{"text_format":"1","workbook":"xlsx","n_sheets":9,"sheets":["Trade Journal","Trade","World","Animals","Animal Tables","Trade Tables","World Tables","Civilization Tables","Rolls"],"not_rendered":{"charts":0,"images":0,"macros":1,"external_links":0,"defined_names":1,"comments":1,"pivot_tables":0},"unopened":[],"bounds":{"document_bytes":16777216,"sheet_cells":100000,"rows_first":2000,"rows_last":500,"rows_between":2000,"halvings":0,"cell_chars":16384,"cell_head_chars":4096},"cells_cut":0,"cells_raw":0,"read":"whole","date_system":"1904"}

{"sheet":"Trade Journal","index":0,"n_rows":76,"n_cols":24,"rows_kept":76,"cut":false,"hidden":false,"merged":[]}
[null,"Ship Trading Sheet"]
["Ship Name:","Tin Lizzie","Ship Type:","Type-A Free Trader"]
[]
["Armor / Hull / Structure:","4 / 4 / 4 = 12","Agility/Maneuver:"]
["Turret 1 (Laser/Sand):",null,"Turret 2 (Missile/Missile):"]
["Cargo Capacity:","80-88 tons","Life Support"]
["-2 tons Aux-Tankage (mty)","-4 tons AirRaft","High/Medium (Cr2000)",8000]
["-2 tons Weapon Controls","Available-Capacity:","Low Passage (Cr100)",2000]
["-2 tons Missile Storage","78 tons","Crew (Cr2000)",12000]
["Ships Locker:","Shotgun x6","Total LLS Cost",22000]
["Std. Vacc Suit x10","Medkit x6","Fuel Tonnage:",22]
["SnubPistol x6","Toolkit x2","Fuel Cost Refined (Cr500)",11000]
["RescueBall x10","Wilderness Survivalkit x2","Fuel Cost Unrefined (Cr100)",2200]
["Crew List",null,"Berthing Cost (Cr100)",100]
["Name:","Tarlon Rhaan (46)","Total Cost per Trip",{"$f":"D14+D10","v":22100}]
["Position:","Pilot/Mechanic",null,"(+Fuel)"]
["Details:","ex-Scout","Crew Salaries"]
["UPP:","468BC8","Captain (Cr6000)",6000]
["Salary&Skills: 6000 Cr","Pilot-3, Electronics-3, Mechanic-2","Pilot (Cr6000)",6000]
["Relationships:",null,"Navigator (Cr5000)",5000]
[null,null,"Medic (Cr4000)",0]
["Name:","Burl Belley (42)","Engineer (Cr4000)",4000]
["Position:","Captain/Steward","Steward/Gunner (Cr2000)",4000]
["Details:","ex-Bureucrate","Salary Total (monthly):",{"$f":"SUM(D18:D23)","v":25000}]
["UPP:","978CFC"]
["Salary&Skills: 6000 Cr","Accounting-5, Liaison-3, Recht-2","Mortgage (monthly):",31666.67]
["Relationships:","Marquis Serk (Khouth/Corridor)","Maintenance (monthly):",3048]
[]
["Name:","Dr Ruce Brenkenhoff (42)","Name:","Lady Valerie Ducote (38)"]
["Position:","Medic/Sensors","Position:","Gunner"]
["Details:","Doctor","Details:","ex-Navy"]
["UPP:","9799D9","UPP:","CA4BAA"]
["Salary&Skills: 4000 Cr","Medic-7, Sensors-3","Salary&Skills: 2000 Cr","Gunner-3, Screens-1, Gun Cbt.-1"]
["Relationships:",null,"Relationships:","Knight of the Imperium"]
[]
["Name:","Ancyl Campbins (34)","Name:","Joseph Saco (58)"]
["Position:","Engineer/Navigator","Position:","Gunner"]
["Details:","ex-Scout","Details:","ex-Navy"]
["UPP:","8B3AD5","UPP:","77785B"]
["Salary&Skills: 5000 Cr","Engineering-2, Navigation-1, Pilot-1","Salary&Skills: 2000 Cr","Gunner-2, Survival-2, ZeroG-1"]
["Relationships:",null,"Relationships:","Baron of Shofrete, Urnian"]
[null,null,null,"(Foreven 3232)"]
["Notes:","All Crew in multirole positions, as money is tight only highest paying occupation is actual salary!"]
[null,"Whenever possible the ship will refuel in the wilderness or skim Gas Giants"]
[null,"Refining costs +10 hours per 20 tons of fuel (30min per ton)"]
[]
[]
["Journal:","035-1110","Ship Account (Cr):",{"$f":"175100+D70","v":234100},null,"Current UWP","C",6,8,6,8,5,4,"–",5]
["Week 6: Jump",null,"Next Stops:"]
["Week 7: Vanejen",null,"457-973","gas giant skimming, no docking",null,"Next1 UWP","X",5,7,2,7,7,6,"–",5]
["Current World","Vanejen","Somem","gas giant skimming",null,"Next2 UWP","C",3,0,1,3,4,0,"–","B"]
[null,null,"Brodie","gas giant skimming",null,"Next3 UWP","C",4,1,0,4,6,8,"–",7]
["Destination World (autocalc)","Somem",{"$f":"CONCATENATE(\"Distance to \",B53,\" (pc)\")","v":"Distance to Somem (pc)"},2]
[{"$f":"CONCATENATE(\"Low Passage (avail.): \",Trade!C6)","v":"Low Passage (avail.): 28"},{"$f":"Trade!A6","v":6},"Einnahmen Low Passage (auto)",{"$f":"Trade!AT6","v":7200},null,"Enter "]
[{"$f":"CONCATENATE(\"Lmid Passage (avail.): \",Trade!C7)","v":"Lmid Passage (avail.): 20"},{"$f":"Trade!A7","v":2},"Einnahmen Mid Passage (auto)",{"$f":"Trade!AT7","v":12000},null,"Desination","Ag","As","Ba","De","Fl","Ga","Hi","Ht","IC","In","Lo","Lt","Na","NI","Po","Ri","Wa","Va"]
[{"$f":"CONCATENATE(\"High Passage (avail.): \",Trade!C8)","v":"High Passage (avail.): 9"},{"$f":"Trade!A8","v":1},"Einnahmen High Passage (auto)",{"$f":"Trade!AT8","v":12000},null,"Trade Codes:",0,0,0,0,0,1,0,0,0,0,0,0,0,0,0,1,0,0]
["Freight Incidental (avail.)",{"$f":"Trade!A10","v":0}]
["Freight Minor (available)",{"$f":"Trade!A11","v":25}]
["Freight Major (available)",{"$f":"Trade!A12","v":60},null,null,null,"LowBerth total",20]
["Freight aboard (undevided lots):",{"$f":"Trade!AQ20","v":60},"Frachteinnahmen (auto)",{"$f":"Trade!AT11","v":72000},null,"LowBerth defect.",3]
["Destination World (manual entries)","Somem","Kosten für obere Destination",{"$f":"D15*D53","v":44200},null,"LowBerth occup.",{"$f":"B62","v":11}]
["Low Passage (aboard):",11,"Einnahmen Low Passage",6000,null,"Low Berth avail.",{"$f":"G59-G60-G61","v":6}]
["Mid Passage (aboard):",0,"Einnahmen Mid Passage",9000]
["High Passage (aboard):",1,"Einnahmen High Passage",0,null,"Stateroom total",4]
["Freight Incidental (avail.)",2,null,null,null,"HiPas avail.",1]
["Freight Minor (available)",55,null,null,null,"HiPas occup.",{"$f":"B64","v":1}]
["Freight Major (available)",100,null,null,null,"HiPas avail.",{"$f":"G65-G66","v":0}]
["Freight aboard (undevided lots):",2,"Frachteinnahmen (manual entries)",55000,null,"MidPas occup.",{"$f":"B63","v":0}]
[null,null,"Kosten für untere Destination",{"$f":"D15","v":22100},null,"MidPas avail.",{"$f":"G64-G66-G68","v":3}]
["prepaid lots (fromprev. Trip)",{"$f":"D62+D63+D64+D68-D69","v":47900},"Gesamteinnahmen",{"$f":"D54+D55+D56+D60-D61+D62+D63+D64+D68-D69-B70","v":59000}]
["We decide to pump 20 tons",null,null,{"$f":"CONCATENATE(\"Leaving \",B51,\" on Day \",D76*2+1,\" for\")","v":"Leaving Vanejen on Day 3 for"},null,"Freight total",{"$f":"Trade!AQ16","v":78}]
["of refined hydrogen back into",null,null,"Jump in 100 diameter Distance of",null,"Freight avail.",{"$f":"G71-B68","v":76}]
["MainTank (leaving 21tons)",null,null,{"$f":"CONCATENATE(ROUND(World!C9*100,2),\" km\")","v":"1036626,76 km"}]
[]
[]
["Press F9 ONCE for every 2 days of Freight/Psgr. aquisition on and note number of keypresses here:",null,null,1]

{"sheet":"Trade","index":1,"n_rows":68,"n_cols":54,"rows_kept":68,"cut":false,"hidden":false,"merged":[[25,9,25,11],[26,9,26,11],[27,9,27,11],[29,9,29,11],[30,9,30,11],[31,9,31,11],[32,9,32,11],[20,9,20,11],[21,9,21,11],[22,9,22,11],[23,9,23,11],[28,9,28,11],[24,9,24,11],[37,9,37,11],[38,9,38,11],[39,9,39,11],[40,9,40,11],[33,9,33,11],[34,9,34,11],[35,9,35,11],[36,9,36,11],[45,9,45,11],[46,9,46,11],[47,9,47,11],[48,9,48,11],[41,9,41,11],[42,9,42,11],[43,9,43,11],[44,9,44,11],[53,9,53,11],[54,9,54,11],[55,9,55,11],[49,9,49,11],[50,9,50,11],[51,9,51,11],[52,9,52,11]]}
[null,"Paste Current UWP:",{"$f":"'Trade Journal'!G48","v":"C"},{"$f":"'Trade Journal'!H48","v":6},{"$f":"'Trade Journal'!I48","v":8},{"$f":"'Trade Journal'!J48","v":6},{"$f":"'Trade Journal'!K48","v":8},{"$f":"'Trade Journal'!L48","v":5},{"$f":"'Trade Journal'!M48","v":4},"–",{"$f":"'Trade Journal'!O48","v":5}]
[null,"Passengers and Freight looking for a ship",null,null,null,null,null,null,null,null,null,null,null,null,null,null,null,null,null,null,null,null,null,null,null,null,null,null,null,null,null,null,null,null,null,null,null,null,null,null,null,"ShipType","Revenue"]
["Distance (PC)",null,"Ag","As","Ba","De","Fl","Ga","Hi","Ht","IC","In","Lo","Lt","Na","NI","Po","Ri","Wa","Va",null,null,null,null,null,null,null,null,null,null,null,null,null,null,null,null,null,null,null,null,null,"Type-A",{"$f":"B5+B9","v":103200}]
[{"$f":"'Trade Journal'!D53","v":2},"Enter Desination Trade Codes:",{"$f":"'Trade Journal'!G56","v":0},{"$f":"'Trade Journal'!H56","v":0},{"$f":"'Trade Journal'!I56","v":0},{"$f":"'Trade Journal'!J56","v":0},{"$f":"'Trade Journal'!K56","v":0},{"$f":"'Trade Journal'!L56","v":1},{"$f":"'Trade Journal'!M56","v":0},{"$f":"'Trade Journal'!N56","v":0},{"$f":"'Trade Journal'!O56","v":0},{"$f":"'Trade Journal'!P56","v":0},{"$f":"'Trade Journal'!Q56","v":0},{"$f":"'Trade Journal'!R56","v":0},{"$f":"'Trade Journal'!S56","v":0},{"$f":"'Trade Journal'!T56","v":0},{"$f":"'Trade Journal'!U56","v":0},{"$f":"'Trade Journal'!V56","v":1},{"$f":"'Trade Journal'!W56","v":0},{"$f":"'Trade Journal'!X56","v":0},null,null,null,null,null,null,null,null,null,null,null,null,null,null,null,null,null,null,null,"Passage Rates"]
["Passengers",{"$f":"A6*AS6+A7*AS7+A8*AS8","v":31200},"Cr",null,null,null,null,null,null,null,null,null,null,null,null,null,null,null,null,null,null,null,null,null,null,null,null,null,null,null,null,null,null,null,null,null,null,null,null,"Parsecs Travelled","High","Middle","Low"]
[{"$f":"IF(OR(C6<AN18,C6=AN18),C6,AN18)","v":6},"Low Passages:",{"$f":"IF(VLOOKUP(Rolls!C44,'Trade Tables'!F4:L20,2)-VLOOKUP(Rolls!C44,'Trade Tables'!F4:L20,3)<0,0,VLOOKUP(Rolls!C44,'Trade Tables'!F4:L20,2)-VLOOKUP(Rolls!C44,'Trade Tables'!F4:L20,3))","v":28},null,null,null,null,null,null,null,null,null,null,null,null,null,null,null,null,null,null,null,null,null,null,null,null,null,null,null,null,null,null,null,null,null,null,null,null,1,6000,3000,1000,null,{"$f":"VLOOKUP(A4,AN6:AQ11,4,TRUE)","v":1200},{"$f":"AS6*A6","v":7200}]
[{"$f":"IF(OR(C7+A8>AO18,C7+A8=AO18),AO18-1,C7)","v":2},"Middle Passages:",{"$f":"IF(VLOOKUP(Rolls!C44,'Trade Tables'!F4:L20,4)-VLOOKUP(Rolls!C44,'Trade Tables'!F4:L20,5)<0,0,VLOOKUP(Rolls!C44,'Trade Tables'!F4:L20,4)-VLOOKUP(Rolls!C44,'Trade Tables'!F4:L20,5))","v":20},null,null,null,null,null,null,null,null,null,null,null,null,null,null,null,null,null,null,null,null,null,null,null,null,null,null,null,null,null,null,null,null,null,null,null,null,2,12000,6000,1200,null,{"$f":"VLOOKUP(A4,AN6:AQ11,3,TRUE)","v":6000},{"$f":"AS7*A7","v":12000}]
[{"$f":"IF(OR(C8<AP18,C8=AP18),C8,AP18)","v":1},"High Passages:",{"$f":"IF(VLOOKUP(Rolls!C44,'Trade Tables'!F4:L20,6)-VLOOKUP(Rolls!C44,'Trade Tables'!F4:L20,7)<0,0,VLOOKUP(Rolls!C44,'Trade Tables'!F4:L20,6)-VLOOKUP(Rolls!C44,'Trade Tables'!F4:L20,7))","v":9},null,null,null,null,null,null,null,null,null,null,null,null,null,null,null,null,null,null,null,null,null,null,null,null,null,null,null,null,null,null,null,null,null,null,null,null,3,20000,10000,1400,null,{"$f":"VLOOKUP(A4,AN6:AQ11,2,TRUE)","v":12000},{"$f":"AS8*A8","v":12000}]
["Freight (dt)",{"$f":"AS11*AS12","v":72000},"Cr",null,null,null,null,null,null,null,null,null,null,null,null,null,null,null,null,null,null,null,null,null,null,null,null,null,null,null,null,null,null,null,null,null,null,null,null,4,30000,15000,1600]
[{"$f":"C10","v":0},"Incidental Freights:",{"$f":"IF(VLOOKUP(Rolls!E44,'Trade Tables'!F26:L42,2)+VLOOKUP(Rolls!E44,'Trade Tables'!F26:L42,3)<0,0,VLOOKUP(Rolls!E44,'Trade Tables'!F26:L42,2)+VLOOKUP(Rolls!E44,'Trade Tables'!F26:L42,3))","v":0},null,null,null,null,null,null,null,null,null,null,null,null,null,null,null,null,null,null,null,null,null,null,null,null,null,null,null,null,null,null,null,null,null,null,null,null,5,40000,20000,1800]
[{"$f":"C11*5","v":25},"Minor Freights:",{"$f":"IF(VLOOKUP(Rolls!E44,'Trade Tables'!F26:L42,4)+VLOOKUP(Rolls!E44,'Trade Tables'!F26:L42,5)<0,0,VLOOKUP(Rolls!E44,'Trade Tables'!F26:L42,4)+VLOOKUP(Rolls!E44,'Trade Tables'!F26:L42,5))","v":5},null,null,null,null,null,null,null,null,null,null,null,null,null,null,null,null,null,null,null,null,null,null,null,null,null,null,null,null,null,null,null,null,null,null,null,null,6,50000,25000,2000,null,{"$f":"IF(OR(A10+A11+A12<AQ18,A10+A11+A12=AQ18),A10+A11+A12,IF(OR(A11+A12<AQ18,A11+A12=AQ18),A11+A12,IF(OR(A10+A12<AQ18,A10+A12=AQ18),A10+A12,IF(OR(A12<AQ18,A12=AQ18),A12,IF(OR(A10+A11<AQ18,A10+A11=AQ18),A10+A11,IF(OR(A11<AQ18,A11=AQ18),A11,A10))))))","v":60},{"$f":"AS11*AS12","v":72000}]
[{"$f":"C12*10","v":60},"Major Freights:",{"$f":"IF(VLOOKUP(Rolls!E44,'Trade Tables'!F26:L42,6)+VLOOKUP(Rolls!E44,'Trade Tables'!F26:L42,7)<0,0,VLOOKUP(Rolls!E44,'Trade Tables'!F26:L42,6)+VLOOKUP(Rolls!E44,'Trade Tables'!F26:L42,7))","v":6},null,null,null,null,null,null,null,null,null,null,null,null,null,null,null,null,null,null,null,null,null,null,null,null,null,null,null,null,null,null,null,null,null,null,null,null,"Freight Rates: ","1000/ton + 200/ton/parsec beyond 1st",null,null,null,{"$f":"(A4-1)*200+1000","v":1200}]
[null,null,null,null,null,null,null,null,null,null,null,null,null,null,null,null,null,null,null,null,null,null,null,null,null,null,null,null,null,null,null,null,null,null,null,null,null,null,null,null,null,null,null,null,null,null,null,null,"Passenger Info",null,null,"Freight Info (tons)"]
[null,"Mail Transport Application Form",null,null,null,null,null,null,null,null,null,null,null,null,null,null,null,null,null,null,null,null,null,null,null,null,null,null,null,null,null,null,null,null,null,null,null,null,null,null,null,null,null,null,null,null,null,null,"Low","Middle","High","Incidental","Minor","Major"]
[null,"Ship Armed: Y/N?",null,null,null,null,null,null,null,null,null,null,null,null,null,null,null,null,null,null,null,null,null,null,null,null,null,null,null,null,null,null,null,null,null,null,null,null,null,"LowBerth","Passengers","max HiPas.","Total Cargo",null,null,null,null,null,{"$f":"IF($C$6>0,LOOKUP(Rolls!B46,'Trade Tables'!B$88:C$123),\"\")","v":"Wide-eyed yokel"},{"$f":"IF($C$7>0,LOOKUP(Rolls!C46,'Trade Tables'!B$88:C$123),\"\")","v":"Wants to stowaway or join the crew"},{"$f":"IF($C$8>0,LOOKUP(Rolls!D46,'Trade Tables'!B$88:C$123),\"\")","v":"Rich noble - raconteur"},{"$f":"IF($C$10>0,Rolls!E46,\"\")","v":""},{"$f":"IF($C$11>0,Rolls!F46,\"\")","v":10},{"$f":"IF($C$12>0,Rolls!G46,\"\")","v":50}]
[null,"Highest Naval or Scout Rank among your crew?",null,null,null,null,null,null,null,null,null,null,null,null,null,null,null,null,null,null,null,null,null,null,null,null,null,null,null,null,null,null,null,null,null,null,null,null,null,17,4,1,78,null,null,null,null,null,{"$f":"IF($C$6>1,LOOKUP(Rolls!B47,'Trade Tables'!B$88:C$123),\"\")","v":"Journalist or researcher"},{"$f":"IF($C$7>1,LOOKUP(Rolls!C47,'Trade Tables'!B$88:C$123),\"\")","v":"Expectant mother"},{"$f":"IF($C$8>1,LOOKUP(Rolls!D47,'Trade Tables'!B$88:C$123),\"\")","v":"Explorer"},{"$f":"IF($C$10>1,Rolls!E47,\"\")","v":""},{"$f":"IF($C$11>1,Rolls!F47,\"\")","v":10},{"$f":"IF($C$12>1,Rolls!G47,\"\")","v":60}]
[null,"Notability of Ship(highest Soc DM)?",null,null,null,null,null,null,null,null,null,null,null,null,null,null,null,null,null,null,null,null,null,null,null,null,null,null,null,null,null,null,null,null,null,null,null,null,null,"Free Low","Free Mid","Free High","FreeCargo",null,null,null,null,null,{"$f":"IF($C$6>2,LOOKUP(Rolls!B48,'Trade Tables'!B$88:C$123),\"\")","v":"Expectant mother"},{"$f":"IF($C$7>2,LOOKUP(Rolls!C48,'Trade Tables'!B$88:C$123),\"\")","v":"Unusually pretty or handsome"},{"$f":"IF($C$8>2,LOOKUP(Rolls!D48,'Trade Tables'!B$88:C$123),\"\")","v":"Tourist"},{"$f":"IF($C$10>2,Rolls!E48,\"\")","v":""},{"$f":"IF($C$11>2,Rolls!F48,\"\")","v":20},{"$f":"IF($C$12>2,Rolls!G48,\"\")","v":20}]
[null,{"$f":"IF(Rolls!G25+LOOKUP(Rolls!F24,'Trade Tables'!N4:O24)+IF(Trade!C15=\"Y\",2,0)+Trade!C16+Trade!C17>=12,\"Approved\",\"Denied\")","v":"Denied"},null,null,null,null,null,null,null,null,null,null,null,null,null,null,null,null,null,null,null,null,null,null,null,null,null,null,null,null,null,null,null,null,null,null,null,null,null,{"$f":"'Trade Journal'!G62","v":6},{"$f":"'Trade Journal'!G69","v":3},{"$f":"'Trade Journal'!G65","v":1},{"$f":"'Trade Journal'!G72","v":76},null,null,null,null,null,{"$f":"IF($C$6>3,LOOKUP(Rolls!B49,'Trade Tables'!B$88:C$123),\"\")","v":"Wants to stowaway or join the crew"},{"$f":"IF($C$7>3,LOOKUP(Rolls!C49,'Trade Tables'!B$88:C$123),\"\")","v":"Ex-Scout"},{"$f":"IF($C$8>3,LOOKUP(Rolls!D49,'Trade Tables'!B$88:C$123),\"\")","v":"Theif or other Criminal"},{"$f":"IF($C$10>3,Rolls!E49,\"\")","v":""},{"$f":"IF($C$11>3,Rolls!F49,\"\")","v":15},{"$f":"IF($C$12>3,Rolls!G49,\"\")","v":10}]
[null,null,null,null,null,null,null,null,null,null,null,null,null,null,null,null,null,null,null,null,null,null,null,null,null,null,null,null,null,null,null,null,null,null,null,null,null,null,null,"New Low","New Mid","New High","New Cargo",null,null,null,null,null,{"$f":"IF($C$6>4,LOOKUP(Rolls!B50,'Trade Tables'!B$88:C$123),\"\")","v":"Rich noble - complains a lot"},{"$f":"IF($C$7>4,LOOKUP(Rolls!C50,'Trade Tables'!B$88:C$123),\"\")","v":"Wanderer"},{"$f":"IF($C$8>4,LOOKUP(Rolls!D50,'Trade Tables'!B$88:C$123),\"\")","v":"Expectant mother"},{"$f":"IF($C$10>4,Rolls!E50,\"\")","v":""},{"$f":"IF($C$11>4,Rolls!F50,\"\")","v":5},{"$f":"IF($C$12>4,Rolls!G50,\"\")","v":30}]
[null,"Good","Tons Avaliable",null,null,null,null,null,"Base Price",null,null,null,null,null,null,null,null,null,null,null,null,null,null,null,null,null,null,null,null,null,null,null,null,null,null,null,null,null,null,null,null,null,{"$f":"AS11","v":60},null,null,null,null,null,{"$f":"IF($C$6>5,LOOKUP(Rolls!B51,'Trade Tables'!B$88:C$123),\"\")","v":"Tourist"},{"$f":"IF($C$7>5,LOOKUP(Rolls!C51,'Trade Tables'!B$88:C$123),\"\")","v":"Tourist"},{"$f":"IF($C$8>5,LOOKUP(Rolls!D51,'Trade Tables'!B$88:C$123),\"\")","v":"Expectant mother"},{"$f":"IF($C$10>5,Rolls!E51,\"\")","v":""},{"$f":"IF($C$11>5,Rolls!F51,\"\")","v":""},{"$f":"IF($C$12>5,Rolls!G51,\"\")","v":40}]
[null,"Basic Electronics",null,null,{"$f":"IF(OR(U21:AF21),CEILING(6*RAND(),1)*'Trade Tables'!D48,0)+IF(AG21,CEILING(6*RAND(),1)*'Trade Tables'!D48,0)+IF(AH21,CEILING(6*RAND(),1)*'Trade Tables'!D48,0)+IF(AI21,CEILING(6*RAND(),1)*'Trade Tables'!D48,0)+IF(AJ21,CEILING(6*RAND(),1)*'Trade Tables'!D48,0)+IF(AK21,CEILING(6*RAND(),1)*'Trade Tables'!D48,0)+IF(AL21,CEILING(6*RAND(),1)*'Trade Tables'!D48,0)","v":80},null,null,null,null,10000,null,null,null,null,null,null,null,null,null,null,{"$f":"IF(AND(World!$G$22=\"yes\",HLOOKUP(Trade!$B21,'Trade Tables'!$G$47:$AP$59,2,FALSE())=1),TRUE(),FALSE())","v":false},{"$f":"IF(AND(World!$G$23=\"yes\",HLOOKUP(Trade!$B21,'Trade Tables'!$G$47:$AP$59,3,FALSE())=1),TRUE(),FALSE())","v":false},{"$f":"IF(AND(World!$G$25=\"yes\",HLOOKUP(Trade!$B21,'Trade Tables'!$G$47:$AP$59,4,FALSE())=1),TRUE(),FALSE())","v":false},{"$f":"IF(AND(World!$G$26=\"yes\",HLOOKUP(Trade!$B21,'Trade Tables'!$G$47:$AP$59,5,FALSE())=1),TRUE(),FALSE())","v":false},{"$f":"IF(AND(World!$G$27=\"yes\",HLOOKUP(Trade!$B21,'Trade Tables'!$G$47:$AP$59,6,FALSE())=1),TRUE(),FALSE())","v":true},{"$f":"IF(AND(World!$G$28=\"yes\",HLOOKUP(Trade!$B21,'Trade Tables'!$G$47:$AP$59,7,FALSE())=1),TRUE(),FALSE())","v":true},{"$f":"IF(AND(World!$G$29=\"yes\",HLOOKUP(Trade!$B21,'Trade Tables'!$G$47:$AP$59,8,FALSE())=1),TRUE(),FALSE())","v":false},{"$f":"IF(AND(World!$G$30=\"yes\",HLOOKUP(Trade!$B21,'Trade Tables'!$G$47:$AP$59,9,FALSE())=1),TRUE(),FALSE())","v":false},{"$f":"IF(AND(World!$G$31=\"yes\",HLOOKUP(Trade!$B21,'Trade Tables'!$G$47:$AP$59,10,FALSE())=1),TRUE(),FALSE())","v":false},{"$f":"IF(AND(World!$G$32=\"yes\",HLOOKUP(Trade!$B21,'Trade Tables'!$G$47:$AP$59,11,FALSE())=1),TRUE(),FALSE())","v":false},{"$f":"IF(AND(World!$G$35=\"yes\",HLOOKUP(Trade!$B21,'Trade Tables'!$G$47:$AP$59,12,FALSE())=1),TRUE(),FALSE())","v":false},{"$f":"IF(AND(World!$G$38=\"yes\",HLOOKUP(Trade!$B21,'Trade Tables'!$G$47:$AP$59,13,FALSE())=1),TRUE(),FALSE())","v":false},{"$f":"IF(Rolls!$G$28='Trade Tables'!$B48,TRUE(),FALSE())","v":false},{"$f":"IF(Rolls!$G$29='Trade Tables'!$B48,TRUE(),FALSE())","v":false},{"$f":"IF(Rolls!$G$30='Trade Tables'!$B48,TRUE(),FALSE())","v":false},{"$f":"IF(Rolls!$G$31='Trade Tables'!$B48,TRUE(),FALSE())","v":true},{"$f":"IF(Rolls!$G$32='Trade Tables'!$B48,TRUE(),FALSE())","v":false},{"$f":"IF(Rolls!$G$33='Trade Tables'!$B48,TRUE(),FALSE())","v":false},null,null,null,null,null,null,null,null,null,null,{"$f":"IF($C$6>6,LOOKUP(Rolls!B52,'Trade Tables'!B$88:C$123),\"\")","v":"Diplomat on a mission"},{"$f":"IF($C$7>6,LOOKUP(Rolls!C52,'Trade Tables'!B$88:C$123),\"\")","v":"Wants to be on board the PC's ship for some reason"},{"$f":"IF($C$8>6,LOOKUP(Rolls!D52,'Trade Tables'!B$88:C$123),\"\")","v":"Wide-eyed yokel"},{"$f":"IF($C$10>6,Rolls!E52,\"\")","v":""},{"$f":"IF($C$11>6,Rolls!F52,\"\")","v":""},{"$f":"IF($C$12>6,Rolls!G52,\"\")","v":""}]
[null,"Basic Machine Parts",null,null,{"$f":"IF(OR(U22:AF22),CEILING(6*RAND(),1)*'Trade Tables'!D49,0)+IF(AG22,CEILING(6*RAND(),1)*'Trade Tables'!D49,0)+IF(AH22,CEILING(6*RAND(),1)*'Trade Tables'!D49,0)+IF(AI22,CEILING(6*RAND(),1)*'Trade Tables'!D49,0)+IF(AJ22,CEILING(6*RAND(),1)*'Trade Tables'!D49,0)+IF(AK22,CEILING(6*RAND(),1)*'Trade Tables'!D49,0)+IF(AL22,CEILING(6*RAND(),1)*'Trade Tables'!D49,0)","v":60},null,null,null,null,10000,null,null,null,null,null,null,null,null,null,null,{"$f":"IF(AND(World!$G$22=\"yes\",HLOOKUP(Trade!$B22,'Trade Tables'!$G$47:$AP$59,2,FALSE())=1),TRUE(),FALSE())","v":false},{"$f":"IF(AND(World!$G$23=\"yes\",HLOOKUP(Trade!$B22,'Trade Tables'!$G$47:$AP$59,3,FALSE())=1),TRUE(),FALSE())","v":false},{"$f":"IF(AND(World!$G$25=\"yes\",HLOOKUP(Trade!$B22,'Trade Tables'!$G$47:$AP$59,4,FALSE())=1),TRUE(),FALSE())","v":false},{"$f":"IF(AND(World!$G$26=\"yes\",HLOOKUP(Trade!$B22,'Trade Tables'!$G$47:$AP$59,5,FALSE())=1),TRUE(),FALSE())","v":false},{"$f":"IF(AND(World!$G$27=\"yes\",HLOOKUP(Trade!$B22,'Trade Tables'!$G$47:$AP$59,6,FALSE())=1),TRUE(),FALSE())","v":true},{"$f":"IF(AND(World!$G$28=\"yes\",HLOOKUP(Trade!$B22,'Trade Tables'!$G$47:$AP$59,7,FALSE())=1),TRUE(),FALSE())","v":true},{"$f":"IF(AND(World!$G$29=\"yes\",HLOOKUP(Trade!$B22,'Trade Tables'!$G$47:$AP$59,8,FALSE())=1),TRUE(),FALSE())","v":false},{"$f":"IF(AND(World!$G$30=\"yes\",HLOOKUP(Trade!$B22,'Trade Tables'!$G$47:$AP$59,9,FALSE())=1),TRUE(),FALSE())","v":false},{"$f":"IF(AND(World!$G$31=\"yes\",HLOOKUP(Trade!$B22,'Trade Tables'!$G$47:$AP$59,10,FALSE())=1),TRUE(),FALSE())","v":false},{"$f":"IF(AND(World!$G$32=\"yes\",HLOOKUP(Trade!$B22,'Trade Tables'!$G$47:$AP$59,11,FALSE())=1),TRUE(),FALSE())","v":false},{"$f":"IF(AND(World!$G$35=\"yes\",HLOOKUP(Trade!$B22,'Trade Tables'!$G$47:$AP$59,12,FALSE())=1),TRUE(),FALSE())","v":false},{"$f":"IF(AND(World!$G$38=\"yes\",HLOOKUP(Trade!$B22,'Trade Tables'!$G$47:$AP$59,13,FALSE())=1),TRUE(),FALSE())","v":false},{"$f":"IF(Rolls!$G$28='Trade Tables'!$B49,TRUE(),FALSE())","v":false},{"$f":"IF(Rolls!$G$29='Trade Tables'!$B49,TRUE(),FALSE())","v":false},{"$f":"IF(Rolls!$G$30='Trade Tables'!$B49,TRUE(),FALSE())","v":false},{"$f":"IF(Rolls!$G$31='Trade Tables'!$B49,TRUE(),FALSE())","v":false},{"$f":"IF(Rolls!$G$32='Trade Tables'!$B49,TRUE(),FALSE())","v":false},{"$f":"IF(Rolls!$G$33='Trade Tables'!$B49,TRUE(),FALSE())","v":false},null,null,null,null,null,null,null,null,null,null,{"$f":"IF($C$6>7,LOOKUP(Rolls!B53,'Trade Tables'!B$88:C$123),\"\")","v":"Unusually pretty or handsome"},{"$f":"IF($C$7>7,LOOKUP(Rolls!C53,'Trade Tables'!B$88:C$123),\"\")","v":"Claustrophobic"},{"$f":"IF($C$8>7,LOOKUP(Rolls!D53,'Trade Tables'!B$88:C$123),\"\")","v":"Expectant mother"},{"$f":"IF($C$10>7,Rolls!E53,\"\")","v":""},{"$f":"IF($C$11>7,Rolls!F53,\"\")","v":""},{"$f":"IF($C$12>7,Rolls!G53,\"\")","v":""}]
[null,"Basic Manufactured Goods",null,null,{"$f":"IF(OR(U23:AF23),CEILING(6*RAND(),1)*'Trade Tables'!D50,0)+IF(AG23,CEILING(6*RAND(),1)*'Trade Tables'!D50,0)+IF(AH23,CEILING(6*RAND(),1)*'Trade Tables'!D50,0)+IF(AI23,CEILING(6*RAND(),1)*'Trade Tables'!D50,0)+IF(AJ23,CEILING(6*RAND(),1)*'Trade Tables'!D50,0)+IF(AK23,CEILING(6*RAND(),1)*'Trade Tables'!D50,0)+IF(AL23,CEILING(6*RAND(),1)*'Trade Tables'!D50,0)","v":10},null,null,null,null,10000,null,null,null,null,null,null,null,null,null,null,{"$f":"IF(AND(World!$G$22=\"yes\",HLOOKUP(Trade!$B23,'Trade Tables'!$G$47:$AP$59,2,FALSE())=1),TRUE(),FALSE())","v":false},{"$f":"IF(AND(World!$G$23=\"yes\",HLOOKUP(Trade!$B23,'Trade Tables'!$G$47:$AP$59,3,FALSE())=1),TRUE(),FALSE())","v":false},{"$f":"IF(AND(World!$G$25=\"yes\",HLOOKUP(Trade!$B23,'Trade Tables'!$G$47:$AP$59,4,FALSE())=1),TRUE(),FALSE())","v":false},{"$f":"IF(AND(World!$G$26=\"yes\",HLOOKUP(Trade!$B23,'Trade Tables'!$G$47:$AP$59,5,FALSE())=1),TRUE(),FALSE())","v":false},{"$f":"IF(AND(World!$G$27=\"yes\",HLOOKUP(Trade!$B23,'Trade Tables'!$G$47:$AP$59,6,FALSE())=1),TRUE(),FALSE())","v":true},{"$f":"IF(AND(World!$G$28=\"yes\",HLOOKUP(Trade!$B23,'Trade Tables'!$G$47:$AP$59,7,FALSE())=1),TRUE(),FALSE())","v":true},{"$f":"IF(AND(World!$G$29=\"yes\",HLOOKUP(Trade!$B23,'Trade Tables'!$G$47:$AP$59,8,FALSE())=1),TRUE(),FALSE())","v":false},{"$f":"IF(AND(World!$G$30=\"yes\",HLOOKUP(Trade!$B23,'Trade Tables'!$G$47:$AP$59,9,FALSE())=1),TRUE(),FALSE())","v":false},{"$f":"IF(AND(World!$G$31=\"yes\",HLOOKUP(Trade!$B23,'Trade Tables'!$G$47:$AP$59,10,FALSE())=1),TRUE(),FALSE())","v":false},{"$f":"IF(AND(World!$G$32=\"yes\",HLOOKUP(Trade!$B23,'Trade Tables'!$G$47:$AP$59,11,FALSE())=1),TRUE(),FALSE())","v":false},{"$f":"IF(AND(World!$G$35=\"yes\",HLOOKUP(Trade!$B23,'Trade Tables'!$G$47:$AP$59,12,FALSE())=1),TRUE(),FALSE())","v":false},{"$f":"IF(AND(World!$G$38=\"yes\",HLOOKUP(Trade!$B23,'Trade Tables'!$G$47:$AP$59,13,FALSE())=1),TRUE(),FALSE())","v":false},{"$f":"IF(Rolls!$G$28='Trade Tables'!$B50,TRUE(),FALSE())","v":false},{"$f":"IF(Rolls!$G$29='Trade Tables'!$B50,TRUE(),FALSE())","v":false},{"$f":"IF(Rolls!$G$30='Trade Tables'!$B50,TRUE(),FALSE())","v":false},{"$f":"IF(Rolls!$G$31='Trade Tables'!$B50,TRUE(),FALSE())","v":false},{"$f":"IF(Rolls!$G$32='Trade Tables'!$B50,TRUE(),FALSE())","v":false},{"$f":"IF(Rolls!$G$33='Trade Tables'!$B50,TRUE(),FALSE())","v":false},null,null,null,null,null,null,null,null,null,null,{"$f":"IF($C$6>8,LOOKUP(Rolls!B54,'Trade Tables'!B$88:C$123),\"\")","v":"Refugee - Political"},{"$f":"IF($C$7>8,LOOKUP(Rolls!C54,'Trade Tables'!B$88:C$123),\"\")","v":"Adventurer"},{"$f":"IF($C$8>8,LOOKUP(Rolls!D54,'Trade Tables'!B$88:C$123),\"\")","v":"Alien"},{"$f":"IF($C$10>8,Rolls!E54,\"\")","v":""},{"$f":"IF($C$11>8,Rolls!F54,\"\")","v":""},{"$f":"IF($C$12>8,Rolls!G54,\"\")","v":""}]
[null,"Basic Raw Materials",null,null,{"$f":"IF(OR(U24:AF24),CEILING(6*RAND(),1)*'Trade Tables'!D51,0)+IF(AG24,CEILING(6*RAND(),1)*'Trade Tables'!D51,0)+IF(AH24,CEILING(6*RAND(),1)*'Trade Tables'!D51,0)+IF(AI24,CEILING(6*RAND(),1)*'Trade Tables'!D51,0)+IF(AJ24,CEILING(6*RAND(),1)*'Trade Tables'!D51,0)+IF(AK24,CEILING(6*RAND(),1)*'Trade Tables'!D51,0)+IF(AL24,CEILING(6*RAND(),1)*'Trade Tables'!D51,0)","v":50},null,null,null,null,5000,null,null,null,null,null,null,null,null,null,null,{"$f":"IF(AND(World!$G$22=\"yes\",HLOOKUP(Trade!$B24,'Trade Tables'!$G$47:$AP$59,2,FALSE())=1),TRUE(),FALSE())","v":false},{"$f":"IF(AND(World!$G$23=\"yes\",HLOOKUP(Trade!$B24,'Trade Tables'!$G$47:$AP$59,3,FALSE())=1),TRUE(),FALSE())","v":false},{"$f":"IF(AND(World!$G$25=\"yes\",HLOOKUP(Trade!$B24,'Trade Tables'!$G$47:$AP$59,4,FALSE())=1),TRUE(),FALSE())","v":false},{"$f":"IF(AND(World!$G$26=\"yes\",HLOOKUP(Trade!$B24,'Trade Tables'!$G$47:$AP$59,5,FALSE())=1),TRUE(),FALSE())","v":false},{"$f":"IF(AND(World!$G$27=\"yes\",HLOOKUP(Trade!$B24,'Trade Tables'!$G$47:$AP$59,6,FALSE())=1),TRUE(),FALSE())","v":true},{"$f":"IF(AND(World!$G$28=\"yes\",HLOOKUP(Trade!$B24,'Trade Tables'!$G$47:$AP$59,7,FALSE())=1),TRUE(),FALSE())","v":true},{"$f":"IF(AND(World!$G$29=\"yes\",HLOOKUP(Trade!$B24,'Trade Tables'!$G$47:$AP$59,8,FALSE())=1),TRUE(),FALSE())","v":false},{"$f":"IF(AND(World!$G$30=\"yes\",HLOOKUP(Trade!$B24,'Trade Tables'!$G$47:$AP$59,9,FALSE())=1),TRUE(),FALSE())","v":false},{"$f":"IF(AND(World!$G$31=\"yes\",HLOOKUP(Trade!$B24,'Trade Tables'!$G$47:$AP$59,10,FALSE())=1),TRUE(),FALSE())","v":false},{"$f":"IF(AND(World!$G$32=\"yes\",HLOOKUP(Trade!$B24,'Trade Tables'!$G$47:$AP$59,11,FALSE())=1),TRUE(),FALSE())","v":false},{"$f":"IF(AND(World!$G$35=\"yes\",HLOOKUP(Trade!$B24,'Trade Tables'!$G$47:$AP$59,12,FALSE())=1),TRUE(),FALSE())","v":false},{"$f":"IF(AND(World!$G$38=\"yes\",HLOOKUP(Trade!$B24,'Trade Tables'!$G$47:$AP$59,13,FALSE())=1),TRUE(),FALSE())","v":false},{"$f":"IF(Rolls!$G$28='Trade Tables'!$B51,TRUE(),FALSE())","v":false},{"$f":"IF(Rolls!$G$29='Trade Tables'!$B51,TRUE(),FALSE())","v":false},{"$f":"IF(Rolls!$G$30='Trade Tables'!$B51,TRUE(),FALSE())","v":false},{"$f":"IF(Rolls!$G$31='Trade Tables'!$B51,TRUE(),FALSE())","v":false},{"$f":"IF(Rolls!$G$32='Trade Tables'!$B51,TRUE(),FALSE())","v":false},{"$f":"IF(Rolls!$G$33='Trade Tables'!$B51,TRUE(),FALSE())","v":false},null,null,null,null,null,null,null,null,null,null,{"$f":"IF($C$6>9,LOOKUP(Rolls!B55,'Trade Tables'!B$88:C$123),\"\")","v":"Claustrophobic"},{"$f":"IF($C$7>9,LOOKUP(Rolls!C55,'Trade Tables'!B$88:C$123),\"\")","v":"Theif or other Criminal"},{"$f":"IF($C$8>9,LOOKUP(Rolls!D55,'Trade Tables'!B$88:C$123),\"\")","v":""},{"$f":"IF($C$10>9,Rolls!E55,\"\")","v":""},{"$f":"IF($C$11>9,Rolls!F55,\"\")","v":""},{"$f":"IF($C$12>9,Rolls!G55,\"\")","v":""}]
[null,"Basic Consumables",null,null,{"$f":"IF(OR(U25:AF25),CEILING(6*RAND(),1)*'Trade Tables'!D52,0)+IF(AG25,CEILING(6*RAND(),1)*'Trade Tables'!D52,0)+IF(AH25,CEILING(6*RAND(),1)*'Trade Tables'!D52,0)+IF(AI25,CEILING(6*RAND(),1)*'Trade Tables'!D52,0)+IF(AJ25,CEILING(6*RAND(),1)*'Trade Tables'!D52,0)+IF(AK25,CEILING(6*RAND(),1)*'Trade Tables'!D52,0)+IF(AL25,CEILING(6*RAND(),1)*'Trade Tables'!D52,0)","v":20},null,null,null,null,2000,null,null,null,null,null,null,null,null,null,null,{"$f":"IF(AND(World!$G$22=\"yes\",HLOOKUP(Trade!$B25,'Trade Tables'!$G$47:$AP$59,2,FALSE())=1),TRUE(),FALSE())","v":false},{"$f":"IF(AND(World!$G$23=\"yes\",HLOOKUP(Trade!$B25,'Trade Tables'!$G$47:$AP$59,3,FALSE())=1),TRUE(),FALSE())","v":false},{"$f":"IF(AND(World!$G$25=\"yes\",HLOOKUP(Trade!$B25,'Trade Tables'!$G$47:$AP$59,4,FALSE())=1),TRUE(),FALSE())","v":false},{"$f":"IF(AND(World!$G$26=\"yes\",HLOOKUP(Trade!$B25,'Trade Tables'!$G$47:$AP$59,5,FALSE())=1),TRUE(),FALSE())","v":false},{"$f":"IF(AND(World!$G$27=\"yes\",HLOOKUP(Trade!$B25,'Trade Tables'!$G$47:$AP$59,6,FALSE())=1),TRUE(),FALSE())","v":true},{"$f":"IF(AND(World!$G$28=\"yes\",HLOOKUP(Trade!$B25,'Trade Tables'!$G$47:$AP$59,7,FALSE())=1),TRUE(),FALSE())","v":true},{"$f":"IF(AND(World!$G$29=\"yes\",HLOOKUP(Trade!$B25,'Trade Tables'!$G$47:$AP$59,8,FALSE())=1),TRUE(),FALSE())","v":false},{"$f":"IF(AND(World!$G$30=\"yes\",HLOOKUP(Trade!$B25,'Trade Tables'!$G$47:$AP$59,9,FALSE())=1),TRUE(),FALSE())","v":false},{"$f":"IF(AND(World!$G$31=\"yes\",HLOOKUP(Trade!$B25,'Trade Tables'!$G$47:$AP$59,10,FALSE())=1),TRUE(),FALSE())","v":false},{"$f":"IF(AND(World!$G$32=\"yes\",HLOOKUP(Trade!$B25,'Trade Tables'!$G$47:$AP$59,11,FALSE())=1),TRUE(),FALSE())","v":false},{"$f":"IF(AND(World!$G$35=\"yes\",HLOOKUP(Trade!$B25,'Trade Tables'!$G$47:$AP$59,12,FALSE())=1),TRUE(),FALSE())","v":false},{"$f":"IF(AND(World!$G$38=\"yes\",HLOOKUP(Trade!$B25,'Trade Tables'!$G$47:$AP$59,13,FALSE())=1),TRUE(),FALSE())","v":false},{"$f":"IF(Rolls!$G$28='Trade Tables'!$B52,TRUE(),FALSE())","v":false},{"$f":"IF(Rolls!$G$29='Trade Tables'!$B52,TRUE(),FALSE())","v":false},{"$f":"IF(Rolls!$G$30='Trade Tables'!$B52,TRUE(),FALSE())","v":false},{"$f":"IF(Rolls!$G$31='Trade Tables'!$B52,TRUE(),FALSE())","v":false},{"$f":"IF(Rolls!$G$32='Trade Tables'!$B52,TRUE(),FALSE())","v":false},{"$f":"IF(Rolls!$G$33='Trade Tables'!$B52,TRUE(),FALSE())","v":false},null,null,null,null,null,null,null,null,null,null,{"$f":"IF($C$6>10,LOOKUP(Rolls!B56,'Trade Tables'!B$88:C$123),\"\")","v":"Scientist"},{"$f":"IF($C$7>10,LOOKUP(Rolls!C56,'Trade Tables'!B$88:C$123),\"\")","v":"Diplomat on a mission"},{"$f":"IF($C$8>10,LOOKUP(Rolls!D56,'Trade Tables'!B$88:C$123),\"\")","v":""},{"$f":"IF($C$10>10,Rolls!E56,\"\")","v":""},{"$f":"IF($C$11>10,Rolls!F56,\"\")","v":""},{"$f":"IF($C$12>10,Rolls!G56,\"\")","v":""}]
[null,"Basic Ore",null,null,{"$f":"IF(OR(U26:AF26),CEILING(6*RAND(),1)*'Trade Tables'!D53,0)+IF(AG26,CEILING(6*RAND(),1)*'Trade Tables'!D53,0)+IF(AH26,CEILING(6*RAND(),1)*'Trade Tables'!D53,0)+IF(AI26,CEILING(6*RAND(),1)*'Trade Tables'!D53,0)+IF(AJ26,CEILING(6*RAND(),1)*'Trade Tables'!D53,0)+IF(AK26,CEILING(6*RAND(),1)*'Trade Tables'!D53,0)+IF(AL26,CEILING(6*RAND(),1)*'Trade Tables'!D53,0)","v":80},null,null,null,null,1000,null,null,null,null,null,null,null,null,null,null,{"$f":"IF(AND(World!$G$22=\"yes\",HLOOKUP(Trade!$B26,'Trade Tables'!$G$47:$AP$59,2,FALSE())=1),TRUE(),FALSE())","v":false},{"$f":"IF(AND(World!$G$23=\"yes\",HLOOKUP(Trade!$B26,'Trade Tables'!$G$47:$AP$59,3,FALSE())=1),TRUE(),FALSE())","v":false},{"$f":"IF(AND(World!$G$25=\"yes\",HLOOKUP(Trade!$B26,'Trade Tables'!$G$47:$AP$59,4,FALSE())=1),TRUE(),FALSE())","v":false},{"$f":"IF(AND(World!$G$26=\"yes\",HLOOKUP(Trade!$B26,'Trade Tables'!$G$47:$AP$59,5,FALSE())=1),TRUE(),FALSE())","v":false},{"$f":"IF(AND(World!$G$27=\"yes\",HLOOKUP(Trade!$B26,'Trade Tables'!$G$47:$AP$59,6,FALSE())=1),TRUE(),FALSE())","v":true},{"$f":"IF(AND(World!$G$28=\"yes\",HLOOKUP(Trade!$B26,'Trade Tables'!$G$47:$AP$59,7,FALSE())=1),TRUE(),FALSE())","v":true},{"$f":"IF(AND(World!$G$29=\"yes\",HLOOKUP(Trade!$B26,'Trade Tables'!$G$47:$AP$59,8,FALSE())=1),TRUE(),FALSE())","v":false},{"$f":"IF(AND(World!$G$30=\"yes\",HLOOKUP(Trade!$B26,'Trade Tables'!$G$47:$AP$59,9,FALSE())=1),TRUE(),FALSE())","v":false},{"$f":"IF(AND(World!$G$31=\"yes\",HLOOKUP(Trade!$B26,'Trade Tables'!$G$47:$AP$59,10,FALSE())=1),TRUE(),FALSE())","v":false},{"$f":"IF(AND(World!$G$32=\"yes\",HLOOKUP(Trade!$B26,'Trade Tables'!$G$47:$AP$59,11,FALSE())=1),TRUE(),FALSE())","v":false},{"$f":"IF(AND(World!$G$35=\"yes\",HLOOKUP(Trade!$B26,'Trade Tables'!$G$47:$AP$59,12,FALSE())=1),TRUE(),FALSE())","v":false},{"$f":"IF(AND(World!$G$38=\"yes\",HLOOKUP(Trade!$B26,'Trade Tables'!$G$47:$AP$59,13,FALSE())=1),TRUE(),FALSE())","v":false},{"$f":"IF(Rolls!$G$28='Trade Tables'!$B53,TRUE(),FALSE())","v":false},{"$f":"IF(Rolls!$G$29='Trade Tables'!$B53,TRUE(),FALSE())","v":true},{"$f":"IF(Rolls!$G$30='Trade Tables'!$B53,TRUE(),FALSE())","v":false},{"$f":"IF(Rolls!$G$31='Trade Tables'!$B53,TRUE(),FALSE())","v":false},{"$f":"IF(Rolls!$G$32='Trade Tables'!$B53,TRUE(),FALSE())","v":false},{"$f":"IF(Rolls!$G$33='Trade Tables'!$B53,TRUE(),FALSE())","v":false},null,null,null,null,null,null,null,null,null,null,{"$f":"IF($C$6>11,LOOKUP(Rolls!B57,'Trade Tables'!B$88:C$123),\"\")","v":"Journalist or researcher"},{"$f":"IF($C$7>11,LOOKUP(Rolls!C57,'Trade Tables'!B$88:C$123),\"\")","v":"Out to see the Universe"},{"$f":"IF($C$8>11,LOOKUP(Rolls!D57,'Trade Tables'!B$88:C$123),\"\")","v":""},{"$f":"IF($C$10>11,Rolls!E57,\"\")","v":""},{"$f":"IF($C$11>11,Rolls!F57,\"\")","v":""},{"$f":"IF($C$12>11,Rolls!G57,\"\")","v":""}]
[null,"Advanced Electronics",null,null,{"$f":"IF(OR(U27:AF27),CEILING(6*RAND(),1)*'Trade Tables'!D54,0)+IF(AG27,CEILING(6*RAND(),1)*'Trade Tables'!D54,0)+IF(AH27,CEILING(6*RAND(),1)*'Trade Tables'!D54,0)+IF(AI27,CEILING(6*RAND(),1)*'Trade Tables'!D54,0)+IF(AJ27,CEILING(6*RAND(),1)*'Trade Tables'!D54,0)+IF(AK27,CEILING(6*RAND(),1)*'Trade Tables'!D54,0)+IF(AL27,CEILING(6*RAND(),1)*'Trade Tables'!D54,0)","v":0},null,null,null,null,100000,null,null,null,null,null,null,null,null,null,null,{"$f":"IF(AND(World!$G$22=\"yes\",HLOOKUP(Trade!$B27,'Trade Tables'!$G$47:$AP$59,2,FALSE())=1),TRUE(),FALSE())","v":false},{"$f":"IF(AND(World!$G$23=\"yes\",HLOOKUP(Trade!$B27,'Trade Tables'!$G$47:$AP$59,3,FALSE())=1),TRUE(),FALSE())","v":false},{"$f":"IF(AND(World!$G$25=\"yes\",HLOOKUP(Trade!$B27,'Trade Tables'!$G$47:$AP$59,4,FALSE())=1),TRUE(),FALSE())","v":false},{"$f":"IF(AND(World!$G$26=\"yes\",HLOOKUP(Trade!$B27,'Trade Tables'!$G$47:$AP$59,5,FALSE())=1),TRUE(),FALSE())","v":false},{"$f":"IF(AND(World!$G$27=\"yes\",HLOOKUP(Trade!$B27,'Trade Tables'!$G$47:$AP$59,6,FALSE())=1),TRUE(),FALSE())","v":false},{"$f":"IF(AND(World!$G$28=\"yes\",HLOOKUP(Trade!$B27,'Trade Tables'!$G$47:$AP$59,7,FALSE())=1),TRUE(),FALSE())","v":false},{"$f":"IF(AND(World!$G$29=\"yes\",HLOOKUP(Trade!$B27,'Trade Tables'!$G$47:$AP$59,8,FALSE())=1),TRUE(),FALSE())","v":false},{"$f":"IF(AND(World!$G$30=\"yes\",HLOOKUP(Trade!$B27,'Trade Tables'!$G$47:$AP$59,9,FALSE())=1),TRUE(),FALSE())","v":false},{"$f":"IF(AND(World!$G$31=\"yes\",HLOOKUP(Trade!$B27,'Trade Tables'!$G$47:$AP$59,10,FALSE())=1),TRUE(),FALSE())","v":false},{"$f":"IF(AND(World!$G$32=\"yes\",HLOOKUP(Trade!$B27,'Trade Tables'!$G$47:$AP$59,11,FALSE())=1),TRUE(),FALSE())","v":false},{"$f":"IF(AND(World!$G$35=\"yes\",HLOOKUP(Trade!$B27,'Trade Tables'!$G$47:$AP$59,12,FALSE())=1),TRUE(),FALSE())","v":false},{"$f":"IF(AND(World!$G$38=\"yes\",HLOOKUP(Trade!$B27,'Trade Tables'!$G$47:$AP$59,13,FALSE())=1),TRUE(),FALSE())","v":false},{"$f":"IF(Rolls!$G$28='Trade Tables'!$B54,TRUE(),FALSE())","v":false},{"$f":"IF(Rolls!$G$29='Trade Tables'!$B54,TRUE(),FALSE())","v":false},{"$f":"IF(Rolls!$G$30='Trade Tables'!$B54,TRUE(),FALSE())","v":false},{"$f":"IF(Rolls!$G$31='Trade Tables'!$B54,TRUE(),FALSE())","v":false},{"$f":"IF(Rolls!$G$32='Trade Tables'!$B54,TRUE(),FALSE())","v":false},{"$f":"IF(Rolls!$G$33='Trade Tables'!$B54,TRUE(),FALSE())","v":false},null,null,null,null,null,null,null,null,null,null,{"$f":"IF($C$6>12,LOOKUP(Rolls!B58,'Trade Tables'!B$88:C$123),\"\")","v":"Alien"},{"$f":"IF($C$7>12,LOOKUP(Rolls!C58,'Trade Tables'!B$88:C$123),\"\")","v":"Wants to stowaway or join the crew"},{"$f":"IF($C$8>12,LOOKUP(Rolls!D58,'Trade Tables'!B$88:C$123),\"\")","v":""},null,{"$f":"IF($C$11>12,Rolls!F58,\"\")","v":""},{"$f":"IF($C$12>12,Rolls!G58,\"\")","v":""}]
[null,"Advanced Machine Parts",null,null,{"$f":"IF(OR(U28:AF28),CEILING(6*RAND(),1)*'Trade Tables'!D55,0)+IF(AG28,CEILING(6*RAND(),1)*'Trade Tables'!D55,0)+IF(AH28,CEILING(6*RAND(),1)*'Trade Tables'!D55,0)+IF(AI28,CEILING(6*RAND(),1)*'Trade Tables'!D55,0)+IF(AJ28,CEILING(6*RAND(),1)*'Trade Tables'!D55,0)+IF(AK28,CEILING(6*RAND(),1)*'Trade Tables'!D55,0)+IF(AL28,CEILING(6*RAND(),1)*'Trade Tables'!D55,0)","v":0},null,null,null,null,75000,null,null,null,null,null,null,null,null,null,null,{"$f":"IF(AND(World!$G$22=\"yes\",HLOOKUP(Trade!$B28,'Trade Tables'!$G$47:$AP$59,2,FALSE())=1),TRUE(),FALSE())","v":false},{"$f":"IF(AND(World!$G$23=\"yes\",HLOOKUP(Trade!$B28,'Trade Tables'!$G$47:$AP$59,3,FALSE())=1),TRUE(),FALSE())","v":false},{"$f":"IF(AND(World!$G$25=\"yes\",HLOOKUP(Trade!$B28,'Trade Tables'!$G$47:$AP$59,4,FALSE())=1),TRUE(),FALSE())","v":false},{"$f":"IF(AND(World!$G$26=\"yes\",HLOOKUP(Trade!$B28,'Trade Tables'!$G$47:$AP$59,5,FALSE())=1),TRUE(),FALSE())","v":false},{"$f":"IF(AND(World!$G$27=\"yes\",HLOOKUP(Trade!$B28,'Trade Tables'!$G$47:$AP$59,6,FALSE())=1),TRUE(),FALSE())","v":false},{"$f":"IF(AND(World!$G$28=\"yes\",HLOOKUP(Trade!$B28,'Trade Tables'!$G$47:$AP$59,7,FALSE())=1),TRUE(),FALSE())","v":false},{"$f":"IF(AND(World!$G$29=\"yes\",HLOOKUP(Trade!$B28,'Trade Tables'!$G$47:$AP$59,8,FALSE())=1),TRUE(),FALSE())","v":false},{"$f":"IF(AND(World!$G$30=\"yes\",HLOOKUP(Trade!$B28,'Trade Tables'!$G$47:$AP$59,9,FALSE())=1),TRUE(),FALSE())","v":false},{"$f":"IF(AND(World!$G$31=\"yes\",HLOOKUP(Trade!$B28,'Trade Tables'!$G$47:$AP$59,10,FALSE())=1),TRUE(),FALSE())","v":false},{"$f":"IF(AND(World!$G$32=\"yes\",HLOOKUP(Trade!$B28,'Trade Tables'!$G$47:$AP$59,11,FALSE())=1),TRUE(),FALSE())","v":false},{"$f":"IF(AND(World!$G$35=\"yes\",HLOOKUP(Trade!$B28,'Trade Tables'!$G$47:$AP$59,12,FALSE())=1),TRUE(),FALSE())","v":false},{"$f":"IF(AND(World!$G$38=\"yes\",HLOOKUP(Trade!$B28,'Trade Tables'!$G$47:$AP$59,13,FALSE())=1),TRUE(),FALSE())","v":false},{"$f":"IF(Rolls!$G$28='Trade Tables'!$B55,TRUE(),FALSE())","v":false},{"$f":"IF(Rolls!$G$29='Trade Tables'!$B55,TRUE(),FALSE())","v":false},{"$f":"IF(Rolls!$G$30='Trade Tables'!$B55,TRUE(),FALSE())","v":false},{"$f":"IF(Rolls!$G$31='Trade Tables'!$B55,TRUE(),FALSE())","v":false},{"$f":"IF(Rolls!$G$32='Trade Tables'!$B55,TRUE(),FALSE())","v":false},{"$f":"IF(Rolls!$G$33='Trade Tables'!$B55,TRUE(),FALSE())","v":false},null,null,null,null,null,null,null,null,null,null,{"$f":"IF($C$6>13,LOOKUP(Rolls!B59,'Trade Tables'!B$88:C$123),\"\")","v":"Refugee - Economic"},{"$f":"IF($C$7>13,LOOKUP(Rolls!C59,'Trade Tables'!B$88:C$123),\"\")","v":"Theif or other Criminal"},{"$f":"IF($C$8>13,LOOKUP(Rolls!D59,'Trade Tables'!B$88:C$123),\"\")","v":""},null,{"$f":"IF($C$11>13,Rolls!F59,\"\")","v":""},{"$f":"IF($C$12>13,Rolls!G59,\"\")","v":""}]
[null,"Advanced Manufactured Goods",null,null,{"$f":"IF(OR(U29:AF29),CEILING(6*RAND(),1)*'Trade Tables'!D56,0)+IF(AG29,CEILING(6*RAND(),1)*'Trade Tables'!D56,0)+IF(AH29,CEILING(6*RAND(),1)*'Trade Tables'!D56,0)+IF(AI29,CEILING(6*RAND(),1)*'Trade Tables'!D56,0)+IF(AJ29,CEILING(6*RAND(),1)*'Trade Tables'!D56,0)+IF(AK29,CEILING(6*RAND(),1)*'Trade Tables'!D56,0)+IF(AL29,CEILING(6*RAND(),1)*'Trade Tables'!D56,0)","v":0},null,null,null,null,100000,null,null,null,null,null,null,null,null,null,null,{"$f":"IF(AND(World!$G$22=\"yes\",HLOOKUP(Trade!$B29,'Trade Tables'!$G$47:$AP$59,2,FALSE())=1),TRUE(),FALSE())","v":false},{"$f":"IF(AND(World!$G$23=\"yes\",HLOOKUP(Trade!$B29,'Trade Tables'!$G$47:$AP$59,3,FALSE())=1),TRUE(),FALSE())","v":false},{"$f":"IF(AND(World!$G$25=\"yes\",HLOOKUP(Trade!$B29,'Trade Tables'!$G$47:$AP$59,4,FALSE())=1),TRUE(),FALSE())","v":false},{"$f":"IF(AND(World!$G$26=\"yes\",HLOOKUP(Trade!$B29,'Trade Tables'!$G$47:$AP$59,5,FALSE())=1),TRUE(),FALSE())","v":false},{"$f":"IF(AND(World!$G$27=\"yes\",HLOOKUP(Trade!$B29,'Trade Tables'!$G$47:$AP$59,6,FALSE())=1),TRUE(),FALSE())","v":false},{"$f":"IF(AND(World!$G$28=\"yes\",HLOOKUP(Trade!$B29,'Trade Tables'!$G$47:$AP$59,7,FALSE())=1),TRUE(),FALSE())","v":false},{"$f":"IF(AND(World!$G$29=\"yes\",HLOOKUP(Trade!$B29,'Trade Tables'!$G$47:$AP$59,8,FALSE())=1),TRUE(),FALSE())","v":false},{"$f":"IF(AND(World!$G$30=\"yes\",HLOOKUP(Trade!$B29,'Trade Tables'!$G$47:$AP$59,9,FALSE())=1),TRUE(),FALSE())","v":false},{"$f":"IF(AND(World!$G$31=\"yes\",HLOOKUP(Trade!$B29,'Trade Tables'!$G$47:$AP$59,10,FALSE())=1),TRUE(),FALSE())","v":false},{"$f":"IF(AND(World!$G$32=\"yes\",HLOOKUP(Trade!$B29,'Trade Tables'!$G$47:$AP$59,11,FALSE())=1),TRUE(),FALSE())","v":false},{"$f":"IF(AND(World!$G$35=\"yes\",HLOOKUP(Trade!$B29,'Trade Tables'!$G$47:$AP$59,12,FALSE())=1),TRUE(),FALSE())","v":false},{"$f":"IF(AND(World!$G$38=\"yes\",HLOOKUP(Trade!$B29,'Trade Tables'!$G$47:$AP$59,13,FALSE())=1),TRUE(),FALSE())","v":false},{"$f":"IF(Rolls!$G$28='Trade Tables'!$B56,TRUE(),FALSE())","v":false},{"$f":"IF(Rolls!$G$29='Trade Tables'!$B56,TRUE(),FALSE())","v":false},{"$f":"IF(Rolls!$G$30='Trade Tables'!$B56,TRUE(),FALSE())","v":false},{"$f":"IF(Rolls!$G$31='Trade Tables'!$B56,TRUE(),FALSE())","v":false},{"$f":"IF(Rolls!$G$32='Trade Tables'!$B56,TRUE(),FALSE())","v":false},{"$f":"IF(Rolls!$G$33='Trade Tables'!$B56,TRUE(),FALSE())","v":false},null,null,null,null,null,null,null,null,null,null,{"$f":"IF($C$6>14,LOOKUP(Rolls!B60,'Trade Tables'!B$88:C$123),\"\")","v":"Possesses something dangerous or illegal"},{"$f":"IF($C$7>14,LOOKUP(Rolls!C60,'Trade Tables'!B$88:C$123),\"\")","v":"Entertainer"},{"$f":"IF($C$8>14,LOOKUP(Rolls!D60,'Trade Tables'!B$88:C$123),\"\")","v":""},null,{"$f":"IF($C$11>14,Rolls!F60,\"\")","v":""},{"$f":"IF($C$12>14,Rolls!G60,\"\")","v":""}]
[null,"Advanced Weapons",null,null,{"$f":"IF(OR(U30:AF30),CEILING(6*RAND(),1)*'Trade Tables'!D57,0)+IF(AG30,CEILING(6*RAND(),1)*'Trade Tables'!D57,0)+IF(AH30,CEILING(6*RAND(),1)*'Trade Tables'!D57,0)+IF(AI30,CEILING(6*RAND(),1)*'Trade Tables'!D57,0)+IF(AJ30,CEILING(6*RAND(),1)*'Trade Tables'!D57,0)+IF(AK30,CEILING(6*RAND(),1)*'Trade Tables'!D57,0)+IF(AL30,CEILING(6*RAND(),1)*'Trade Tables'!D57,0)","v":0},null,null,null,null,150000,null,null,null,null,null,null,null,null,null,null,{"$f":"IF(AND(World!$G$22=\"yes\",HLOOKUP(Trade!$B30,'Trade Tables'!$G$47:$AP$59,2,FALSE())=1),TRUE(),FALSE())","v":false},{"$f":"IF(AND(World!$G$23=\"yes\",HLOOKUP(Trade!$B30,'Trade Tables'!$G$47:$AP$59,3,FALSE())=1),TRUE(),FALSE())","v":false},{"$f":"IF(AND(World!$G$25=\"yes\",HLOOKUP(Trade!$B30,'Trade Tables'!$G$47:$AP$59,4,FALSE())=1),TRUE(),FALSE())","v":false},{"$f":"IF(AND(World!$G$26=\"yes\",HLOOKUP(Trade!$B30,'Trade Tables'!$G$47:$AP$59,5,FALSE())=1),TRUE(),FALSE())","v":false},{"$f":"IF(AND(World!$G$27=\"yes\",HLOOKUP(Trade!$B30,'Trade Tables'!$G$47:$AP$59,6,FALSE())=1),TRUE(),FALSE())","v":false},{"$f":"IF(AND(World!$G$28=\"yes\",HLOOKUP(Trade!$B30,'Trade Tables'!$G$47:$AP$59,7,FALSE())=1),TRUE(),FALSE())","v":false},{"$f":"IF(AND(World!$G$29=\"yes\",HLOOKUP(Trade!$B30,'Trade Tables'!$G$47:$AP$59,8,FALSE())=1),TRUE(),FALSE())","v":false},{"$f":"IF(AND(World!$G$30=\"yes\",HLOOKUP(Trade!$B30,'Trade Tables'!$G$47:$AP$59,9,FALSE())=1),TRUE(),FALSE())","v":false},{"$f":"IF(AND(World!$G$31=\"yes\",HLOOKUP(Trade!$B30,'Trade Tables'!$G$47:$AP$59,10,FALSE())=1),TRUE(),FALSE())","v":false},{"$f":"IF(AND(World!$G$32=\"yes\",HLOOKUP(Trade!$B30,'Trade Tables'!$G$47:$AP$59,11,FALSE())=1),TRUE(),FALSE())","v":false},{"$f":"IF(AND(World!$G$35=\"yes\",HLOOKUP(Trade!$B30,'Trade Tables'!$G$47:$AP$59,12,FALSE())=1),TRUE(),FALSE())","v":false},{"$f":"IF(AND(World!$G$38=\"yes\",HLOOKUP(Trade!$B30,'Trade Tables'!$G$47:$AP$59,13,FALSE())=1),TRUE(),FALSE())","v":false},{"$f":"IF(Rolls!$G$28='Trade Tables'!$B57,TRUE(),FALSE())","v":false},{"$f":"IF(Rolls!$G$29='Trade Tables'!$B57,TRUE(),FALSE())","v":false},{"$f":"IF(Rolls!$G$30='Trade Tables'!$B57,TRUE(),FALSE())","v":false},{"$f":"IF(Rolls!$G$31='Trade Tables'!$B57,TRUE(),FALSE())","v":false},{"$f":"IF(Rolls!$G$32='Trade Tables'!$B57,TRUE(),FALSE())","v":false},{"$f":"IF(Rolls!$G$33='Trade Tables'!$B57,TRUE(),FALSE())","v":false},null,null,null,null,null,null,null,null,null,null,{"$f":"IF($C$6>15,LOOKUP(Rolls!B61,'Trade Tables'!B$88:C$123),\"\")","v":"Corporate executive"},{"$f":"IF($C$7>15,LOOKUP(Rolls!C61,'Trade Tables'!B$88:C$123),\"\")","v":"Adventurer"},{"$f":"IF($C$8>15,LOOKUP(Rolls!D61,'Trade Tables'!B$88:C$123),\"\")","v":""},null,{"$f":"IF($C$11>15,Rolls!F61,\"\")","v":""},{"$f":"IF($C$12>15,Rolls!G61,\"\")","v":""}]
[null,"Advanced Vehicles",null,null,{"$f":"IF(OR(U31:AF31),CEILING(6*RAND(),1)*'Trade Tables'!D58,0)+IF(AG31,CEILING(6*RAND(),1)*'Trade Tables'!D58,0)+IF(AH31,CEILING(6*RAND(),1)*'Trade Tables'!D58,0)+IF(AI31,CEILING(6*RAND(),1)*'Trade Tables'!D58,0)+IF(AJ31,CEILING(6*RAND(),1)*'Trade Tables'!D58,0)+IF(AK31,CEILING(6*RAND(),1)*'Trade Tables'!D58,0)+IF(AL31,CEILING(6*RAND(),1)*'Trade Tables'!D58,0)","v":0},null,null,null,null,180000,null,null,null,null,null,null,null,null,null,null,{"$f":"IF(AND(World!$G$22=\"yes\",HLOOKUP(Trade!$B31,'Trade Tables'!$G$47:$AP$59,2,FALSE())=1),TRUE(),FALSE())","v":false},{"$f":"IF(AND(World!$G$23=\"yes\",HLOOKUP(Trade!$B31,'Trade Tables'!$G$47:$AP$59,3,FALSE())=1),TRUE(),FALSE())","v":false},{"$f":"IF(AND(World!$G$25=\"yes\",HLOOKUP(Trade!$B31,'Trade Tables'!$G$47:$AP$59,4,FALSE())=1),TRUE(),FALSE())","v":false},{"$f":"IF(AND(World!$G$26=\"yes\",HLOOKUP(Trade!$B31,'Trade Tables'!$G$47:$AP$59,5,FALSE())=1),TRUE(),FALSE())","v":false},{"$f":"IF(AND(World!$G$27=\"yes\",HLOOKUP(Trade!$B31,'Trade Tables'!$G$47:$AP$59,6,FALSE())=1),TRUE(),FALSE())","v":false},{"$f":"IF(AND(World!$G$28=\"yes\",HLOOKUP(Trade!$B31,'Trade Tables'!$G$47:$AP$59,7,FALSE())=1),TRUE(),FALSE())","v":false},{"$f":"IF(AND(World!$G$29=\"yes\",HLOOKUP(Trade!$B31,'Trade Tables'!$G$47:$AP$59,8,FALSE())=1),TRUE(),FALSE())","v":false},{"$f":"IF(AND(World!$G$30=\"yes\",HLOOKUP(Trade!$B31,'Trade Tables'!$G$47:$AP$59,9,FALSE())=1),TRUE(),FALSE())","v":false},{"$f":"IF(AND(World!$G$31=\"yes\",HLOOKUP(Trade!$B31,'Trade Tables'!$G$47:$AP$59,10,FALSE())=1),TRUE(),FALSE())","v":false},{"$f":"IF(AND(World!$G$32=\"yes\",HLOOKUP(Trade!$B31,'Trade Tables'!$G$47:$AP$59,11,FALSE())=1),TRUE(),FALSE())","v":false},{"$f":"IF(AND(World!$G$35=\"yes\",HLOOKUP(Trade!$B31,'Trade Tables'!$G$47:$AP$59,12,FALSE())=1),TRUE(),FALSE())","v":false},{"$f":"IF(AND(World!$G$38=\"yes\",HLOOKUP(Trade!$B31,'Trade Tables'!$G$47:$AP$59,13,FALSE())=1),TRUE(),FALSE())","v":false},{"$f":"IF(Rolls!$G$28='Trade Tables'!$B58,TRUE(),FALSE())","v":false},{"$f":"IF(Rolls!$G$29='Trade Tables'!$B58,TRUE(),FALSE())","v":false},{"$f":"IF(Rolls!$G$30='Trade Tables'!$B58,TRUE(),FALSE())","v":false},{"$f":"IF(Rolls!$G$31='Trade Tables'!$B58,TRUE(),FALSE())","v":false},{"$f":"IF(Rolls!$G$32='Trade Tables'!$B58,TRUE(),FALSE())","v":false},{"$f":"IF(Rolls!$G$33='Trade Tables'!$B58,TRUE(),FALSE())","v":false},null,null,null,null,null,null,null,null,null,null,{"$f":"IF($C$6>16,LOOKUP(Rolls!B62,'Trade Tables'!B$88:C$123),\"\")","v":"Hijacker or pirate agent"},{"$f":"IF($C$7>16,LOOKUP(Rolls!C62,'Trade Tables'!B$88:C$123),\"\")","v":"Out to see the Universe"},{"$f":"IF($C$8>16,LOOKUP(Rolls!D62,'Trade Tables'!B$88:C$123),\"\")","v":""},null,{"$f":"IF($C$11>16,Rolls!F62,\"\")","v":""},{"$f":"IF($C$12>16,Rolls!G62,\"\")","v":""}]
[null,"Biochemicals",null,null,{"$f":"IF(OR(U32:AF32),CEILING(6*RAND(),1)*'Trade Tables'!D59,0)+IF(AG32,CEILING(6*RAND(),1)*'Trade Tables'!D59,0)+IF(AH32,CEILING(6*RAND(),1)*'Trade Tables'!D59,0)+IF(AI32,CEILING(6*RAND(),1)*'Trade Tables'!D59,0)+IF(AJ32,CEILING(6*RAND(),1)*'Trade Tables'!D59,0)+IF(AK32,CEILING(6*RAND(),1)*'Trade Tables'!D59,0)+IF(AL32,CEILING(6*RAND(),1)*'Trade Tables'!D59,0)","v":0},null,null,null,null,50000,null,null,null,null,null,null,null,null,null,null,{"$f":"IF(AND(World!$G$22=\"yes\",HLOOKUP(Trade!$B32,'Trade Tables'!$G$47:$AP$59,2,FALSE())=1),TRUE(),FALSE())","v":false},{"$f":"IF(AND(World!$G$23=\"yes\",HLOOKUP(Trade!$B32,'Trade Tables'!$G$47:$AP$59,3,FALSE())=1),TRUE(),FALSE())","v":false},{"$f":"IF(AND(World!$G$25=\"yes\",HLOOKUP(Trade!$B32,'Trade Tables'!$G$47:$AP$59,4,FALSE())=1),TRUE(),FALSE())","v":false},{"$f":"IF(AND(World!$G$26=\"yes\",HLOOKUP(Trade!$B32,'Trade Tables'!$G$47:$AP$59,5,FALSE())=1),TRUE(),FALSE())","v":false},{"$f":"IF(AND(World!$G$27=\"yes\",HLOOKUP(Trade!$B32,'Trade Tables'!$G$47:$AP$59,6,FALSE())=1),TRUE(),FALSE())","v":false},{"$f":"IF(AND(World!$G$28=\"yes\",HLOOKUP(Trade!$B32,'Trade Tables'!$G$47:$AP$59,7,FALSE())=1),TRUE(),FALSE())","v":false},{"$f":"IF(AND(World!$G$29=\"yes\",HLOOKUP(Trade!$B32,'Trade Tables'!$G$47:$AP$59,8,FALSE())=1),TRUE(),FALSE())","v":false},{"$f":"IF(AND(World!$G$30=\"yes\",HLOOKUP(Trade!$B32,'Trade Tables'!$G$47:$AP$59,9,FALSE())=1),TRUE(),FALSE())","v":false},{"$f":"IF(AND(World!$G$31=\"yes\",HLOOKUP(Trade!$B32,'Trade Tables'!$G$47:$AP$59,10,FALSE())=1),TRUE(),FALSE())","v":false},{"$f":"IF(AND(World!$G$32=\"yes\",HLOOKUP(Trade!$B32,'Trade Tables'!$G$47:$AP$59,11,FALSE())=1),TRUE(),FALSE())","v":false},{"$f":"IF(AND(World!$G$35=\"yes\",HLOOKUP(Trade!$B32,'Trade Tables'!$G$47:$AP$59,12,FALSE())=1),TRUE(),FALSE())","v":false},{"$f":"IF(AND(World!$G$38=\"yes\",HLOOKUP(Trade!$B32,'Trade Tables'!$G$47:$AP$59,13,FALSE())=1),TRUE(),FALSE())","v":false},{"$f":"IF(Rolls!$G$28='Trade Tables'!$B59,TRUE(),FALSE())","v":false},{"$f":"IF(Rolls!$G$29='Trade Tables'!$B59,TRUE(),FALSE())","v":false},{"$f":"IF(Rolls!$G$30='Trade Tables'!$B59,TRUE(),FALSE())","v":false},{"$f":"IF(Rolls!$G$31='Trade Tables'!$B59,TRUE(),FALSE())","v":false},{"$f":"IF(Rolls!$G$32='Trade Tables'!$B59,TRUE(),FALSE())","v":false},{"$f":"IF(Rolls!$G$33='Trade Tables'!$B59,TRUE(),FALSE())","v":false},null,null,null,null,null,null,null,null,null,null,{"$f":"IF($C$6>17,LOOKUP(Rolls!B63,'Trade Tables'!B$88:C$123),\"\")","v":"Refugee - Economic"},{"$f":"IF($C$7>17,LOOKUP(Rolls!C63,'Trade Tables'!B$88:C$123),\"\")","v":"Starting a new life offworld"},{"$f":"IF($C$8>17,LOOKUP(Rolls!D63,'Trade Tables'!B$88:C$123),\"\")","v":""},null,{"$f":"IF($C$11>17,Rolls!F63,\"\")","v":""},{"$f":"IF($C$12>17,Rolls!G63,\"\")","v":""}]
[null,"Crystals and Gems",null,null,{"$f":"IF(OR(U33:AF33),CEILING(6*RAND(),1)*'Trade Tables'!D60,0)+IF(AG33,CEILING(6*RAND(),1)*'Trade Tables'!D60,0)+IF(AH33,CEILING(6*RAND(),1)*'Trade Tables'!D60,0)+IF(AI33,CEILING(6*RAND(),1)*'Trade Tables'!D60,0)+IF(AJ33,CEILING(6*RAND(),1)*'Trade Tables'!D60,0)+IF(AK33,CEILING(6*RAND(),1)*'Trade Tables'!D60,0)+IF(AL33,CEILING(6*RAND(),1)*'Trade Tables'!D60,0)","v":0},null,null,null,null,20000,null,null,null,null,null,null,null,null,null,null,{"$f":"IF(AND(World!$G$22=\"yes\",HLOOKUP(Trade!$B33,'Trade Tables'!$G$47:$AP$59,2,FALSE())=1),TRUE(),FALSE())","v":false},{"$f":"IF(AND(World!$G$23=\"yes\",HLOOKUP(Trade!$B33,'Trade Tables'!$G$47:$AP$59,3,FALSE())=1),TRUE(),FALSE())","v":false},{"$f":"IF(AND(World!$G$25=\"yes\",HLOOKUP(Trade!$B33,'Trade Tables'!$G$47:$AP$59,4,FALSE())=1),TRUE(),FALSE())","v":false},{"$f":"IF(AND(World!$G$26=\"yes\",HLOOKUP(Trade!$B33,'Trade Tables'!$G$47:$AP$59,5,FALSE())=1),TRUE(),FALSE())","v":false},{"$f":"IF(AND(World!$G$27=\"yes\",HLOOKUP(Trade!$B33,'Trade Tables'!$G$47:$AP$59,6,FALSE())=1),TRUE(),FALSE())","v":false},{"$f":"IF(AND(World!$G$28=\"yes\",HLOOKUP(Trade!$B33,'Trade Tables'!$G$47:$AP$59,7,FALSE())=1),TRUE(),FALSE())","v":false},{"$f":"IF(AND(World!$G$29=\"yes\",HLOOKUP(Trade!$B33,'Trade Tables'!$G$47:$AP$59,8,FALSE())=1),TRUE(),FALSE())","v":false},{"$f":"IF(AND(World!$G$30=\"yes\",HLOOKUP(Trade!$B33,'Trade Tables'!$G$47:$AP$59,9,FALSE())=1),TRUE(),FALSE())","v":false},{"$f":"IF(AND(World!$G$31=\"yes\",HLOOKUP(Trade!$B33,'Trade Tables'!$G$47:$AP$59,10,FALSE())=1),TRUE(),FALSE())","v":false},{"$f":"IF(AND(World!$G$32=\"yes\",HLOOKUP(Trade!$B33,'Trade Tables'!$G$47:$AP$59,11,FALSE())=1),TRUE(),FALSE())","v":false},{"$f":"IF(AND(World!$G$35=\"yes\",HLOOKUP(Trade!$B33,'Trade Tables'!$G$47:$AP$59,12,FALSE())=1),TRUE(),FALSE())","v":false},{"$f":"IF(AND(World!$G$38=\"yes\",HLOOKUP(Trade!$B33,'Trade Tables'!$G$47:$AP$59,13,FALSE())=1),TRUE(),FALSE())","v":false},{"$f":"IF(Rolls!$G$28='Trade Tables'!$B60,TRUE(),FALSE())","v":false},{"$f":"IF(Rolls!$G$29='Trade Tables'!$B60,TRUE(),FALSE())","v":false},{"$f":"IF(Rolls!$G$30='Trade Tables'!$B60,TRUE(),FALSE())","v":false},{"$f":"IF(Rolls!$G$31='Trade Tables'!$B60,TRUE(),FALSE())","v":false},{"$f":"IF(Rolls!$G$32='Trade Tables'!$B60,TRUE(),FALSE())","v":false},{"$f":"IF(Rolls!$G$33='Trade Tables'!$B60,TRUE(),FALSE())","v":false},null,null,null,null,null,null,null,null,null,null,{"$f":"IF($C$6>18,LOOKUP(Rolls!B64,'Trade Tables'!B$88:C$123),\"\")","v":"Wanderer"},{"$f":"IF($C$7>18,LOOKUP(Rolls!C64,'Trade Tables'!B$88:C$123),\"\")","v":"Bounty Hunter"},{"$f":"IF($C$8>18,LOOKUP(Rolls!D64,'Trade Tables'!B$88:C$123),\"\")","v":""},null,{"$f":"IF($C$11>18,Rolls!F64,\"\")","v":""}]
[null,"Cybernetices",null,null,{"$f":"IF(OR(U34:AF34),CEILING(6*RAND(),1)*'Trade Tables'!D61,0)+IF(AG34,CEILING(6*RAND(),1)*'Trade Tables'!D61,0)+IF(AH34,CEILING(6*RAND(),1)*'Trade Tables'!D61,0)+IF(AI34,CEILING(6*RAND(),1)*'Trade Tables'!D61,0)+IF(AJ34,CEILING(6*RAND(),1)*'Trade Tables'!D61,0)+IF(AK34,CEILING(6*RAND(),1)*'Trade Tables'!D61,0)+IF(AL34,CEILING(6*RAND(),1)*'Trade Tables'!D61,0)","v":0},null,null,null,null,250000,null,null,null,null,null,null,null,null,null,null,{"$f":"IF(AND(World!$G$22=\"yes\",HLOOKUP(Trade!$B34,'Trade Tables'!$G$47:$AP$59,2,FALSE())=1),TRUE(),FALSE())","v":false},{"$f":"IF(AND(World!$G$23=\"yes\",HLOOKUP(Trade!$B34,'Trade Tables'!$G$47:$AP$59,3,FALSE())=1),TRUE(),FALSE())","v":false},{"$f":"IF(AND(World!$G$25=\"yes\",HLOOKUP(Trade!$B34,'Trade Tables'!$G$47:$AP$59,4,FALSE())=1),TRUE(),FALSE())","v":false},{"$f":"IF(AND(World!$G$26=\"yes\",HLOOKUP(Trade!$B34,'Trade Tables'!$G$47:$AP$59,5,FALSE())=1),TRUE(),FALSE())","v":false},{"$f":"IF(AND(World!$G$27=\"yes\",HLOOKUP(Trade!$B34,'Trade Tables'!$G$47:$AP$59,6,FALSE())=1),TRUE(),FALSE())","v":false},{"$f":"IF(AND(World!$G$28=\"yes\",HLOOKUP(Trade!$B34,'Trade Tables'!$G$47:$AP$59,7,FALSE())=1),TRUE(),FALSE())","v":false},{"$f":"IF(AND(World!$G$29=\"yes\",HLOOKUP(Trade!$B34,'Trade Tables'!$G$47:$AP$59,8,FALSE())=1),TRUE(),FALSE())","v":false},{"$f":"IF(AND(World!$G$30=\"yes\",HLOOKUP(Trade!$B34,'Trade Tables'!$G$47:$AP$59,9,FALSE())=1),TRUE(),FALSE())","v":false},{"$f":"IF(AND(World!$G$31=\"yes\",HLOOKUP(Trade!$B34,'Trade Tables'!$G$47:$AP$59,10,FALSE())=1),TRUE(),FALSE())","v":false},{"$f":"IF(AND(World!$G$32=\"yes\",HLOOKUP(Trade!$B34,'Trade Tables'!$G$47:$AP$59,11,FALSE())=1),TRUE(),FALSE())","v":false},{"$f":"IF(AND(World!$G$35=\"yes\",HLOOKUP(Trade!$B34,'Trade Tables'!$G$47:$AP$59,12,FALSE())=1),TRUE(),FALSE())","v":false},{"$f":"IF(AND(World!$G$38=\"yes\",HLOOKUP(Trade!$B34,'Trade Tables'!$G$47:$AP$59,13,FALSE())=1),TRUE(),FALSE())","v":false},{"$f":"IF(Rolls!$G$28='Trade Tables'!$B61,TRUE(),FALSE())","v":false},{"$f":"IF(Rolls!$G$29='Trade Tables'!$B61,TRUE(),FALSE())","v":false},{"$f":"IF(Rolls!$G$30='Trade Tables'!$B61,TRUE(),FALSE())","v":false},{"$f":"IF(Rolls!$G$31='Trade Tables'!$B61,TRUE(),FALSE())","v":false},{"$f":"IF(Rolls!$G$32='Trade Tables'!$B61,TRUE(),FALSE())","v":false},{"$f":"IF(Rolls!$G$33='Trade Tables'!$B61,TRUE(),FALSE())","v":false},null,null,null,null,null,null,null,null,null,null,{"$f":"IF($C$6>19,LOOKUP(Rolls!B65,'Trade Tables'!B$88:C$123),\"\")","v":"Scientist"},{"$f":"IF($C$7>19,LOOKUP(Rolls!C65,'Trade Tables'!B$88:C$123),\"\")","v":"Corporate executive"},{"$f":"IF($C$8>19,LOOKUP(Rolls!D65,'Trade Tables'!B$88:C$123),\"\")","v":""},null,{"$f":"IF($C$11>19,Rolls!F65,\"\")","v":""}]
[null,"Live Animals",null,null,{"$f":"IF(OR(U35:AF35),CEILING(6*RAND(),1)*'Trade Tables'!D62,0)+IF(AG35,CEILING(6*RAND(),1)*'Trade Tables'!D62,0)+IF(AH35,CEILING(6*RAND(),1)*'Trade Tables'!D62,0)+IF(AI35,CEILING(6*RAND(),1)*'Trade Tables'!D62,0)+IF(AJ35,CEILING(6*RAND(),1)*'Trade Tables'!D62,0)+IF(AK35,CEILING(6*RAND(),1)*'Trade Tables'!D62,0)+IF(AL35,CEILING(6*RAND(),1)*'Trade Tables'!D62,0)","v":40},null,null,null,null,10000,null,null,null,null,null,null,null,null,null,null,{"$f":"IF(AND(World!$G$22=\"yes\",HLOOKUP(Trade!$B35,'Trade Tables'!$G$47:$AP$59,2,FALSE())=1),TRUE(),FALSE())","v":false},{"$f":"IF(AND(World!$G$23=\"yes\",HLOOKUP(Trade!$B35,'Trade Tables'!$G$47:$AP$59,3,FALSE())=1),TRUE(),FALSE())","v":false},{"$f":"IF(AND(World!$G$25=\"yes\",HLOOKUP(Trade!$B35,'Trade Tables'!$G$47:$AP$59,4,FALSE())=1),TRUE(),FALSE())","v":false},{"$f":"IF(AND(World!$G$26=\"yes\",HLOOKUP(Trade!$B35,'Trade Tables'!$G$47:$AP$59,5,FALSE())=1),TRUE(),FALSE())","v":false},{"$f":"IF(AND(World!$G$27=\"yes\",HLOOKUP(Trade!$B35,'Trade Tables'!$G$47:$AP$59,6,FALSE())=1),TRUE(),FALSE())","v":true},{"$f":"IF(AND(World!$G$28=\"yes\",HLOOKUP(Trade!$B35,'Trade Tables'!$G$47:$AP$59,7,FALSE())=1),TRUE(),FALSE())","v":false},{"$f":"IF(AND(World!$G$29=\"yes\",HLOOKUP(Trade!$B35,'Trade Tables'!$G$47:$AP$59,8,FALSE())=1),TRUE(),FALSE())","v":false},{"$f":"IF(AND(World!$G$30=\"yes\",HLOOKUP(Trade!$B35,'Trade Tables'!$G$47:$AP$59,9,FALSE())=1),TRUE(),FALSE())","v":false},{"$f":"IF(AND(World!$G$31=\"yes\",HLOOKUP(Trade!$B35,'Trade Tables'!$G$47:$AP$59,10,FALSE())=1),TRUE(),FALSE())","v":false},{"$f":"IF(AND(World!$G$32=\"yes\",HLOOKUP(Trade!$B35,'Trade Tables'!$G$47:$AP$59,11,FALSE())=1),TRUE(),FALSE())","v":false},{"$f":"IF(AND(World!$G$35=\"yes\",HLOOKUP(Trade!$B35,'Trade Tables'!$G$47:$AP$59,12,FALSE())=1),TRUE(),FALSE())","v":false},{"$f":"IF(AND(World!$G$38=\"yes\",HLOOKUP(Trade!$B35,'Trade Tables'!$G$47:$AP$59,13,FALSE())=1),TRUE(),FALSE())","v":false},{"$f":"IF(Rolls!$G$28='Trade Tables'!$B62,TRUE(),FALSE())","v":false},{"$f":"IF(Rolls!$G$29='Trade Tables'!$B62,TRUE(),FALSE())","v":false},{"$f":"IF(Rolls!$G$30='Trade Tables'!$B62,TRUE(),FALSE())","v":false},{"$f":"IF(Rolls!$G$31='Trade Tables'!$B62,TRUE(),FALSE())","v":false},{"$f":"IF(Rolls!$G$32='Trade Tables'!$B62,TRUE(),FALSE())","v":false},{"$f":"IF(Rolls!$G$33='Trade Tables'!$B62,TRUE(),FALSE())","v":false},null,null,null,null,null,null,null,null,null,null,{"$f":"IF($C$6>20,LOOKUP(Rolls!B66,'Trade Tables'!B$88:C$123),\"\")","v":"Rich noble - eccentric"},{"$f":"IF($C$7>20,LOOKUP(Rolls!C66,'Trade Tables'!B$88:C$123),\"\")","v":""},{"$f":"IF($C$8>20,LOOKUP(Rolls!D66,'Trade Tables'!B$88:C$123),\"\")","v":""},null,{"$f":"IF($C$11>20,Rolls!F66,\"\")","v":""}]
[null,"Luxury Consumables",null,null,{"$f":"IF(OR(U36:AF36),CEILING(6*RAND(),1)*'Trade Tables'!D63,0)+IF(AG36,CEILING(6*RAND(),1)*'Trade Tables'!D63,0)+IF(AH36,CEILING(6*RAND(),1)*'Trade Tables'!D63,0)+IF(AI36,CEILING(6*RAND(),1)*'Trade Tables'!D63,0)+IF(AJ36,CEILING(6*RAND(),1)*'Trade Tables'!D63,0)+IF(AK36,CEILING(6*RAND(),1)*'Trade Tables'!D63,0)+IF(AL36,CEILING(6*RAND(),1)*'Trade Tables'!D63,0)","v":30},null,null,null,null,20000,null,null,null,null,null,null,null,null,null,null,{"$f":"IF(AND(World!$G$22=\"yes\",HLOOKUP(Trade!$B36,'Trade Tables'!$G$47:$AP$59,2,FALSE())=1),TRUE(),FALSE())","v":false},{"$f":"IF(AND(World!$G$23=\"yes\",HLOOKUP(Trade!$B36,'Trade Tables'!$G$47:$AP$59,3,FALSE())=1),TRUE(),FALSE())","v":false},{"$f":"IF(AND(World!$G$25=\"yes\",HLOOKUP(Trade!$B36,'Trade Tables'!$G$47:$AP$59,4,FALSE())=1),TRUE(),FALSE())","v":false},{"$f":"IF(AND(World!$G$26=\"yes\",HLOOKUP(Trade!$B36,'Trade Tables'!$G$47:$AP$59,5,FALSE())=1),TRUE(),FALSE())","v":false},{"$f":"IF(AND(World!$G$27=\"yes\",HLOOKUP(Trade!$B36,'Trade Tables'!$G$47:$AP$59,6,FALSE())=1),TRUE(),FALSE())","v":true},{"$f":"IF(AND(World!$G$28=\"yes\",HLOOKUP(Trade!$B36,'Trade Tables'!$G$47:$AP$59,7,FALSE())=1),TRUE(),FALSE())","v":false},{"$f":"IF(AND(World!$G$29=\"yes\",HLOOKUP(Trade!$B36,'Trade Tables'!$G$47:$AP$59,8,FALSE())=1),TRUE(),FALSE())","v":false},{"$f":"IF(AND(World!$G$30=\"yes\",HLOOKUP(Trade!$B36,'Trade Tables'!$G$47:$AP$59,9,FALSE())=1),TRUE(),FALSE())","v":false},{"$f":"IF(AND(World!$G$31=\"yes\",HLOOKUP(Trade!$B36,'Trade Tables'!$G$47:$AP$59,10,FALSE())=1),TRUE(),FALSE())","v":false},{"$f":"IF(AND(World!$G$32=\"yes\",HLOOKUP(Trade!$B36,'Trade Tables'!$G$47:$AP$59,11,FALSE())=1),TRUE(),FALSE())","v":false},{"$f":"IF(AND(World!$G$35=\"yes\",HLOOKUP(Trade!$B36,'Trade Tables'!$G$47:$AP$59,12,FALSE())=1),TRUE(),FALSE())","v":false},{"$f":"IF(AND(World!$G$38=\"yes\",HLOOKUP(Trade!$B36,'Trade Tables'!$G$47:$AP$59,13,FALSE())=1),TRUE(),FALSE())","v":false},{"$f":"IF(Rolls!$G$28='Trade Tables'!$B63,TRUE(),FALSE())","v":false},{"$f":"IF(Rolls!$G$29='Trade Tables'!$B63,TRUE(),FALSE())","v":false},{"$f":"IF(Rolls!$G$30='Trade Tables'!$B63,TRUE(),FALSE())","v":false},{"$f":"IF(Rolls!$G$31='Trade Tables'!$B63,TRUE(),FALSE())","v":false},{"$f":"IF(Rolls!$G$32='Trade Tables'!$B63,TRUE(),FALSE())","v":false},{"$f":"IF(Rolls!$G$33='Trade Tables'!$B63,TRUE(),FALSE())","v":false},null,null,null,null,null,null,null,null,null,null,{"$f":"IF($C$6>21,LOOKUP(Rolls!B67,'Trade Tables'!B$88:C$123),\"\")","v":"Tourist"},{"$f":"IF($C$7>21,LOOKUP(Rolls!C67,'Trade Tables'!B$88:C$123),\"\")","v":""},{"$f":"IF($C$8>21,LOOKUP(Rolls!D67,'Trade Tables'!B$88:C$123),\"\")","v":""},null,{"$f":"IF($C$11>21,Rolls!F67,\"\")","v":""}]
[null,"Luxury Goods",null,null,{"$f":"IF(OR(U37:AF37),CEILING(6*RAND(),1)*'Trade Tables'!D64,0)+IF(AG37,CEILING(6*RAND(),1)*'Trade Tables'!D64,0)+IF(AH37,CEILING(6*RAND(),1)*'Trade Tables'!D64,0)+IF(AI37,CEILING(6*RAND(),1)*'Trade Tables'!D64,0)+IF(AJ37,CEILING(6*RAND(),1)*'Trade Tables'!D64,0)+IF(AK37,CEILING(6*RAND(),1)*'Trade Tables'!D64,0)+IF(AL37,CEILING(6*RAND(),1)*'Trade Tables'!D64,0)","v":1},null,null,null,null,200000,null,null,null,null,null,null,null,null,null,null,{"$f":"IF(AND(World!$G$22=\"yes\",HLOOKUP(Trade!$B37,'Trade Tables'!$G$47:$AP$59,2,FALSE())=1),TRUE(),FALSE())","v":false},{"$f":"IF(AND(World!$G$23=\"yes\",HLOOKUP(Trade!$B37,'Trade Tables'!$G$47:$AP$59,3,FALSE())=1),TRUE(),FALSE())","v":false},{"$f":"IF(AND(World!$G$25=\"yes\",HLOOKUP(Trade!$B37,'Trade Tables'!$G$47:$AP$59,4,FALSE())=1),TRUE(),FALSE())","v":false},{"$f":"IF(AND(World!$G$26=\"yes\",HLOOKUP(Trade!$B37,'Trade Tables'!$G$47:$AP$59,5,FALSE())=1),TRUE(),FALSE())","v":false},{"$f":"IF(AND(World!$G$27=\"yes\",HLOOKUP(Trade!$B37,'Trade Tables'!$G$47:$AP$59,6,FALSE())=1),TRUE(),FALSE())","v":false},{"$f":"IF(AND(World!$G$28=\"yes\",HLOOKUP(Trade!$B37,'Trade Tables'!$G$47:$AP$59,7,FALSE())=1),TRUE(),FALSE())","v":true},{"$f":"IF(AND(World!$G$29=\"yes\",HLOOKUP(Trade!$B37,'Trade Tables'!$G$47:$AP$59,8,FALSE())=1),TRUE(),FALSE())","v":false},{"$f":"IF(AND(World!$G$30=\"yes\",HLOOKUP(Trade!$B37,'Trade Tables'!$G$47:$AP$59,9,FALSE())=1),TRUE(),FALSE())","v":false},{"$f":"IF(AND(World!$G$31=\"yes\",HLOOKUP(Trade!$B37,'Trade Tables'!$G$47:$AP$59,10,FALSE())=1),TRUE(),FALSE())","v":false},{"$f":"IF(AND(World!$G$32=\"yes\",HLOOKUP(Trade!$B37,'Trade Tables'!$G$47:$AP$59,11,FALSE())=1),TRUE(),FALSE())","v":false},{"$f":"IF(AND(World!$G$35=\"yes\",HLOOKUP(Trade!$B37,'Trade Tables'!$G$47:$AP$59,12,FALSE())=1),TRUE(),FALSE())","v":false},{"$f":"IF(AND(World!$G$38=\"yes\",HLOOKUP(Trade!$B37,'Trade Tables'!$G$47:$AP$59,13,FALSE())=1),TRUE(),FALSE())","v":false},{"$f":"IF(Rolls!$G$28='Trade Tables'!$B64,TRUE(),FALSE())","v":false},{"$f":"IF(Rolls!$G$29='Trade Tables'!$B64,TRUE(),FALSE())","v":false},{"$f":"IF(Rolls!$G$30='Trade Tables'!$B64,TRUE(),FALSE())","v":false},{"$f":"IF(Rolls!$G$31='Trade Tables'!$B64,TRUE(),FALSE())","v":false},{"$f":"IF(Rolls!$G$32='Trade Tables'!$B64,TRUE(),FALSE())","v":false},{"$f":"IF(Rolls!$G$33='Trade Tables'!$B64,TRUE(),FALSE())","v":false},null,null,null,null,null,null,null,null,null,null,{"$f":"IF($C$6>22,LOOKUP(Rolls!B68,'Trade Tables'!B$88:C$123),\"\")","v":"Spy"},{"$f":"IF($C$7>22,LOOKUP(Rolls!C68,'Trade Tables'!B$88:C$123),\"\")","v":""},{"$f":"IF($C$8>22,LOOKUP(Rolls!D68,'Trade Tables'!B$88:C$123),\"\")","v":""}]
[null,"Medicals Supplies",null,null,{"$f":"IF(OR(U38:AF38),CEILING(6*RAND(),1)*'Trade Tables'!D65,0)+IF(AG38,CEILING(6*RAND(),1)*'Trade Tables'!D65,0)+IF(AH38,CEILING(6*RAND(),1)*'Trade Tables'!D65,0)+IF(AI38,CEILING(6*RAND(),1)*'Trade Tables'!D65,0)+IF(AJ38,CEILING(6*RAND(),1)*'Trade Tables'!D65,0)+IF(AK38,CEILING(6*RAND(),1)*'Trade Tables'!D65,0)+IF(AL38,CEILING(6*RAND(),1)*'Trade Tables'!D65,0)","v":20},null,null,null,null,50000,null,null,null,null,null,null,null,null,null,null,{"$f":"IF(AND(World!$G$22=\"yes\",HLOOKUP(Trade!$B38,'Trade Tables'!$G$47:$AP$59,2,FALSE())=1),TRUE(),FALSE())","v":false},{"$f":"IF(AND(World!$G$23=\"yes\",HLOOKUP(Trade!$B38,'Trade Tables'!$G$47:$AP$59,3,FALSE())=1),TRUE(),FALSE())","v":false},{"$f":"IF(AND(World!$G$25=\"yes\",HLOOKUP(Trade!$B38,'Trade Tables'!$G$47:$AP$59,4,FALSE())=1),TRUE(),FALSE())","v":false},{"$f":"IF(AND(World!$G$26=\"yes\",HLOOKUP(Trade!$B38,'Trade Tables'!$G$47:$AP$59,5,FALSE())=1),TRUE(),FALSE())","v":false},{"$f":"IF(AND(World!$G$27=\"yes\",HLOOKUP(Trade!$B38,'Trade Tables'!$G$47:$AP$59,6,FALSE())=1),TRUE(),FALSE())","v":false},{"$f":"IF(AND(World!$G$28=\"yes\",HLOOKUP(Trade!$B38,'Trade Tables'!$G$47:$AP$59,7,FALSE())=1),TRUE(),FALSE())","v":true},{"$f":"IF(AND(World!$G$29=\"yes\",HLOOKUP(Trade!$B38,'Trade Tables'!$G$47:$AP$59,8,FALSE())=1),TRUE(),FALSE())","v":false},{"$f":"IF(AND(World!$G$30=\"yes\",HLOOKUP(Trade!$B38,'Trade Tables'!$G$47:$AP$59,9,FALSE())=1),TRUE(),FALSE())","v":false},{"$f":"IF(AND(World!$G$31=\"yes\",HLOOKUP(Trade!$B38,'Trade Tables'!$G$47:$AP$59,10,FALSE())=1),TRUE(),FALSE())","v":false},{"$f":"IF(AND(World!$G$32=\"yes\",HLOOKUP(Trade!$B38,'Trade Tables'!$G$47:$AP$59,11,FALSE())=1),TRUE(),FALSE())","v":false},{"$f":"IF(AND(World!$G$35=\"yes\",HLOOKUP(Trade!$B38,'Trade Tables'!$G$47:$AP$59,12,FALSE())=1),TRUE(),FALSE())","v":false},{"$f":"IF(AND(World!$G$38=\"yes\",HLOOKUP(Trade!$B38,'Trade Tables'!$G$47:$AP$59,13,FALSE())=1),TRUE(),FALSE())","v":false},{"$f":"IF(Rolls!$G$28='Trade Tables'!$B65,TRUE(),FALSE())","v":false},{"$f":"IF(Rolls!$G$29='Trade Tables'!$B65,TRUE(),FALSE())","v":false},{"$f":"IF(Rolls!$G$30='Trade Tables'!$B65,TRUE(),FALSE())","v":false},{"$f":"IF(Rolls!$G$31='Trade Tables'!$B65,TRUE(),FALSE())","v":false},{"$f":"IF(Rolls!$G$32='Trade Tables'!$B65,TRUE(),FALSE())","v":false},{"$f":"IF(Rolls!$G$33='Trade Tables'!$B65,TRUE(),FALSE())","v":false},null,null,null,null,null,null,null,null,null,null,{"$f":"IF($C$6>23,LOOKUP(Rolls!B69,'Trade Tables'!B$88:C$123),\"\")","v":"Wanderer"},{"$f":"IF($C$7>23,LOOKUP(Rolls!C69,'Trade Tables'!B$88:C$123),\"\")","v":""},{"$f":"IF($C$8>23,LOOKUP(Rolls!D69,'Trade Tables'!B$88:C$123),\"\")","v":""}]
[null,"Petrochemicals",null,null,{"$f":"IF(OR(U39:AF39),CEILING(6*RAND(),1)*'Trade Tables'!D66,0)+IF(AG39,CEILING(6*RAND(),1)*'Trade Tables'!D66,0)+IF(AH39,CEILING(6*RAND(),1)*'Trade Tables'!D66,0)+IF(AI39,CEILING(6*RAND(),1)*'Trade Tables'!D66,0)+IF(AJ39,CEILING(6*RAND(),1)*'Trade Tables'!D66,0)+IF(AK39,CEILING(6*RAND(),1)*'Trade Tables'!D66,0)+IF(AL39,CEILING(6*RAND(),1)*'Trade Tables'!D66,0)","v":0},null,null,null,null,10000,null,null,null,null,null,null,null,null,null,null,{"$f":"IF(AND(World!$G$22=\"yes\",HLOOKUP(Trade!$B39,'Trade Tables'!$G$47:$AP$59,2,FALSE())=1),TRUE(),FALSE())","v":false},{"$f":"IF(AND(World!$G$23=\"yes\",HLOOKUP(Trade!$B39,'Trade Tables'!$G$47:$AP$59,3,FALSE())=1),TRUE(),FALSE())","v":false},{"$f":"IF(AND(World!$G$25=\"yes\",HLOOKUP(Trade!$B39,'Trade Tables'!$G$47:$AP$59,4,FALSE())=1),TRUE(),FALSE())","v":false},{"$f":"IF(AND(World!$G$26=\"yes\",HLOOKUP(Trade!$B39,'Trade Tables'!$G$47:$AP$59,5,FALSE())=1),TRUE(),FALSE())","v":false},{"$f":"IF(AND(World!$G$27=\"yes\",HLOOKUP(Trade!$B39,'Trade Tables'!$G$47:$AP$59,6,FALSE())=1),TRUE(),FALSE())","v":false},{"$f":"IF(AND(World!$G$28=\"yes\",HLOOKUP(Trade!$B39,'Trade Tables'!$G$47:$AP$59,7,FALSE())=1),TRUE(),FALSE())","v":false},{"$f":"IF(AND(World!$G$29=\"yes\",HLOOKUP(Trade!$B39,'Trade Tables'!$G$47:$AP$59,8,FALSE())=1),TRUE(),FALSE())","v":false},{"$f":"IF(AND(World!$G$30=\"yes\",HLOOKUP(Trade!$B39,'Trade Tables'!$G$47:$AP$59,9,FALSE())=1),TRUE(),FALSE())","v":false},{"$f":"IF(AND(World!$G$31=\"yes\",HLOOKUP(Trade!$B39,'Trade Tables'!$G$47:$AP$59,10,FALSE())=1),TRUE(),FALSE())","v":false},{"$f":"IF(AND(World!$G$32=\"yes\",HLOOKUP(Trade!$B39,'Trade Tables'!$G$47:$AP$59,11,FALSE())=1),TRUE(),FALSE())","v":false},{"$f":"IF(AND(World!$G$35=\"yes\",HLOOKUP(Trade!$B39,'Trade Tables'!$G$47:$AP$59,12,FALSE())=1),TRUE(),FALSE())","v":false},{"$f":"IF(AND(World!$G$38=\"yes\",HLOOKUP(Trade!$B39,'Trade Tables'!$G$47:$AP$59,13,FALSE())=1),TRUE(),FALSE())","v":false},{"$f":"IF(Rolls!$G$28='Trade Tables'!$B66,TRUE(),FALSE())","v":false},{"$f":"IF(Rolls!$G$29='Trade Tables'!$B66,TRUE(),FALSE())","v":false},{"$f":"IF(Rolls!$G$30='Trade Tables'!$B66,TRUE(),FALSE())","v":false},{"$f":"IF(Rolls!$G$31='Trade Tables'!$B66,TRUE(),FALSE())","v":false},{"$f":"IF(Rolls!$G$32='Trade Tables'!$B66,TRUE(),FALSE())","v":false},{"$f":"IF(Rolls!$G$33='Trade Tables'!$B66,TRUE(),FALSE())","v":false},null,null,null,null,null,null,null,null,null,null,{"$f":"IF($C$6>24,LOOKUP(Rolls!B70,'Trade Tables'!B$88:C$123),\"\")","v":"Gambler"},{"$f":"IF($C$7>24,LOOKUP(Rolls!C70,'Trade Tables'!B$88:C$123),\"\")","v":""},{"$f":"IF($C$8>24,LOOKUP(Rolls!D70,'Trade Tables'!B$88:C$123),\"\")","v":""}]
[null,"Pharmaceuticals",null,null,{"$f":"IF(OR(U40:AF40),CEILING(6*RAND(),1)*'Trade Tables'!D67,0)+IF(AG40,CEILING(6*RAND(),1)*'Trade Tables'!D67,0)+IF(AH40,CEILING(6*RAND(),1)*'Trade Tables'!D67,0)+IF(AI40,CEILING(6*RAND(),1)*'Trade Tables'!D67,0)+IF(AJ40,CEILING(6*RAND(),1)*'Trade Tables'!D67,0)+IF(AK40,CEILING(6*RAND(),1)*'Trade Tables'!D67,0)+IF(AL40,CEILING(6*RAND(),1)*'Trade Tables'!D67,0)","v":6},null,null,null,null,100000,null,null,null,null,null,null,null,null,null,null,{"$f":"IF(AND(World!$G$22=\"yes\",HLOOKUP(Trade!$B40,'Trade Tables'!$G$47:$AP$59,2,FALSE())=1),TRUE(),FALSE())","v":false},{"$f":"IF(AND(World!$G$23=\"yes\",HLOOKUP(Trade!$B40,'Trade Tables'!$G$47:$AP$59,3,FALSE())=1),TRUE(),FALSE())","v":false},{"$f":"IF(AND(World!$G$25=\"yes\",HLOOKUP(Trade!$B40,'Trade Tables'!$G$47:$AP$59,4,FALSE())=1),TRUE(),FALSE())","v":false},{"$f":"IF(AND(World!$G$26=\"yes\",HLOOKUP(Trade!$B40,'Trade Tables'!$G$47:$AP$59,5,FALSE())=1),TRUE(),FALSE())","v":false},{"$f":"IF(AND(World!$G$27=\"yes\",HLOOKUP(Trade!$B40,'Trade Tables'!$G$47:$AP$59,6,FALSE())=1),TRUE(),FALSE())","v":false},{"$f":"IF(AND(World!$G$28=\"yes\",HLOOKUP(Trade!$B40,'Trade Tables'!$G$47:$AP$59,7,FALSE())=1),TRUE(),FALSE())","v":true},{"$f":"IF(AND(World!$G$29=\"yes\",HLOOKUP(Trade!$B40,'Trade Tables'!$G$47:$AP$59,8,FALSE())=1),TRUE(),FALSE())","v":false},{"$f":"IF(AND(World!$G$30=\"yes\",HLOOKUP(Trade!$B40,'Trade Tables'!$G$47:$AP$59,9,FALSE())=1),TRUE(),FALSE())","v":false},{"$f":"IF(AND(World!$G$31=\"yes\",HLOOKUP(Trade!$B40,'Trade Tables'!$G$47:$AP$59,10,FALSE())=1),TRUE(),FALSE())","v":false},{"$f":"IF(AND(World!$G$32=\"yes\",HLOOKUP(Trade!$B40,'Trade Tables'!$G$47:$AP$59,11,FALSE())=1),TRUE(),FALSE())","v":false},{"$f":"IF(AND(World!$G$35=\"yes\",HLOOKUP(Trade!$B40,'Trade Tables'!$G$47:$AP$59,12,FALSE())=1),TRUE(),FALSE())","v":false},{"$f":"IF(AND(World!$G$38=\"yes\",HLOOKUP(Trade!$B40,'Trade Tables'!$G$47:$AP$59,13,FALSE())=1),TRUE(),FALSE())","v":false},{"$f":"IF(Rolls!$G$28='Trade Tables'!$B67,TRUE(),FALSE())","v":false},{"$f":"IF(Rolls!$G$29='Trade Tables'!$B67,TRUE(),FALSE())","v":false},{"$f":"IF(Rolls!$G$30='Trade Tables'!$B67,TRUE(),FALSE())","v":false},{"$f":"IF(Rolls!$G$31='Trade Tables'!$B67,TRUE(),FALSE())","v":false},{"$f":"IF(Rolls!$G$32='Trade Tables'!$B67,TRUE(),FALSE())","v":false},{"$f":"IF(Rolls!$G$33='Trade Tables'!$B67,TRUE(),FALSE())","v":false},null,null,null,null,null,null,null,null,null,null,{"$f":"IF($C$6>25,LOOKUP(Rolls!B71,'Trade Tables'!B$88:C$123),\"\")","v":"Causes Trouble"},{"$f":"IF($C$7>25,LOOKUP(Rolls!C71,'Trade Tables'!B$88:C$123),\"\")","v":""},{"$f":"IF($C$8>25,LOOKUP(Rolls!D71,'Trade Tables'!B$88:C$123),\"\")","v":""}]
[null,"Polymers",null,null,{"$f":"IF(OR(U41:AF41),CEILING(6*RAND(),1)*'Trade Tables'!D68,0)+IF(AG41,CEILING(6*RAND(),1)*'Trade Tables'!D68,0)+IF(AH41,CEILING(6*RAND(),1)*'Trade Tables'!D68,0)+IF(AI41,CEILING(6*RAND(),1)*'Trade Tables'!D68,0)+IF(AJ41,CEILING(6*RAND(),1)*'Trade Tables'!D68,0)+IF(AK41,CEILING(6*RAND(),1)*'Trade Tables'!D68,0)+IF(AL41,CEILING(6*RAND(),1)*'Trade Tables'!D68,0)","v":0},null,null,null,null,7000,null,null,null,null,null,null,null,null,null,null,{"$f":"IF(AND(World!$G$22=\"yes\",HLOOKUP(Trade!$B41,'Trade Tables'!$G$47:$AP$59,2,FALSE())=1),TRUE(),FALSE())","v":false},{"$f":"IF(AND(World!$G$23=\"yes\",HLOOKUP(Trade!$B41,'Trade Tables'!$G$47:$AP$59,3,FALSE())=1),TRUE(),FALSE())","v":false},{"$f":"IF(AND(World!$G$25=\"yes\",HLOOKUP(Trade!$B41,'Trade Tables'!$G$47:$AP$59,4,FALSE())=1),TRUE(),FALSE())","v":false},{"$f":"IF(AND(World!$G$26=\"yes\",HLOOKUP(Trade!$B41,'Trade Tables'!$G$47:$AP$59,5,FALSE())=1),TRUE(),FALSE())","v":false},{"$f":"IF(AND(World!$G$27=\"yes\",HLOOKUP(Trade!$B41,'Trade Tables'!$G$47:$AP$59,6,FALSE())=1),TRUE(),FALSE())","v":false},{"$f":"IF(AND(World!$G$28=\"yes\",HLOOKUP(Trade!$B41,'Trade Tables'!$G$47:$AP$59,7,FALSE())=1),TRUE(),FALSE())","v":false},{"$f":"IF(AND(World!$G$29=\"yes\",HLOOKUP(Trade!$B41,'Trade Tables'!$G$47:$AP$59,8,FALSE())=1),TRUE(),FALSE())","v":false},{"$f":"IF(AND(World!$G$30=\"yes\",HLOOKUP(Trade!$B41,'Trade Tables'!$G$47:$AP$59,9,FALSE())=1),TRUE(),FALSE())","v":false},{"$f":"IF(AND(World!$G$31=\"yes\",HLOOKUP(Trade!$B41,'Trade Tables'!$G$47:$AP$59,10,FALSE())=1),TRUE(),FALSE())","v":false},{"$f":"IF(AND(World!$G$32=\"yes\",HLOOKUP(Trade!$B41,'Trade Tables'!$G$47:$AP$59,11,FALSE())=1),TRUE(),FALSE())","v":false},{"$f":"IF(AND(World!$G$35=\"yes\",HLOOKUP(Trade!$B41,'Trade Tables'!$G$47:$AP$59,12,FALSE())=1),TRUE(),FALSE())","v":false},{"$f":"IF(AND(World!$G$38=\"yes\",HLOOKUP(Trade!$B41,'Trade Tables'!$G$47:$AP$59,13,FALSE())=1),TRUE(),FALSE())","v":false},{"$f":"IF(Rolls!$G$28='Trade Tables'!$B68,TRUE(),FALSE())","v":false},{"$f":"IF(Rolls!$G$29='Trade Tables'!$B68,TRUE(),FALSE())","v":false},{"$f":"IF(Rolls!$G$30='Trade Tables'!$B68,TRUE(),FALSE())","v":false},{"$f":"IF(Rolls!$G$31='Trade Tables'!$B68,TRUE(),FALSE())","v":false},{"$f":"IF(Rolls!$G$32='Trade Tables'!$B68,TRUE(),FALSE())","v":false},{"$f":"IF(Rolls!$G$33='Trade Tables'!$B68,TRUE(),FALSE())","v":false},null,null,null,null,null,null,null,null,null,null,{"$f":"IF($C$6>26,LOOKUP(Rolls!B72,'Trade Tables'!B$88:C$123),\"\")","v":"Rich noble - complains a lot"},{"$f":"IF($C$7>26,LOOKUP(Rolls!C72,'Trade Tables'!B$88:C$123),\"\")","v":""},{"$f":"IF($C$8>26,LOOKUP(Rolls!D72,'Trade Tables'!B$88:C$123),\"\")","v":""}]
[null,"Precious Metals",null,null,{"$f":"IF(OR(U42:AF42),CEILING(6*RAND(),1)*'Trade Tables'!D69,0)+IF(AG42,CEILING(6*RAND(),1)*'Trade Tables'!D69,0)+IF(AH42,CEILING(6*RAND(),1)*'Trade Tables'!D69,0)+IF(AI42,CEILING(6*RAND(),1)*'Trade Tables'!D69,0)+IF(AJ42,CEILING(6*RAND(),1)*'Trade Tables'!D69,0)+IF(AK42,CEILING(6*RAND(),1)*'Trade Tables'!D69,0)+IF(AL42,CEILING(6*RAND(),1)*'Trade Tables'!D69,0)","v":0},null,null,null,null,50000,null,null,null,null,null,null,null,null,null,null,{"$f":"IF(AND(World!$G$22=\"yes\",HLOOKUP(Trade!$B42,'Trade Tables'!$G$47:$AP$59,2,FALSE())=1),TRUE(),FALSE())","v":false},{"$f":"IF(AND(World!$G$23=\"yes\",HLOOKUP(Trade!$B42,'Trade Tables'!$G$47:$AP$59,3,FALSE())=1),TRUE(),FALSE())","v":false},{"$f":"IF(AND(World!$G$25=\"yes\",HLOOKUP(Trade!$B42,'Trade Tables'!$G$47:$AP$59,4,FALSE())=1),TRUE(),FALSE())","v":false},{"$f":"IF(AND(World!$G$26=\"yes\",HLOOKUP(Trade!$B42,'Trade Tables'!$G$47:$AP$59,5,FALSE())=1),TRUE(),FALSE())","v":false},{"$f":"IF(AND(World!$G$27=\"yes\",HLOOKUP(Trade!$B42,'Trade Tables'!$G$47:$AP$59,6,FALSE())=1),TRUE(),FALSE())","v":false},{"$f":"IF(AND(World!$G$28=\"yes\",HLOOKUP(Trade!$B42,'Trade Tables'!$G$47:$AP$59,7,FALSE())=1),TRUE(),FALSE())","v":false},{"$f":"IF(AND(World!$G$29=\"yes\",HLOOKUP(Trade!$B42,'Trade Tables'!$G$47:$AP$59,8,FALSE())=1),TRUE(),FALSE())","v":false},{"$f":"IF(AND(World!$G$30=\"yes\",HLOOKUP(Trade!$B42,'Trade Tables'!$G$47:$AP$59,9,FALSE())=1),TRUE(),FALSE())","v":false},{"$f":"IF(AND(World!$G$31=\"yes\",HLOOKUP(Trade!$B42,'Trade Tables'!$G$47:$AP$59,10,FALSE())=1),TRUE(),FALSE())","v":false},{"$f":"IF(AND(World!$G$32=\"yes\",HLOOKUP(Trade!$B42,'Trade Tables'!$G$47:$AP$59,11,FALSE())=1),TRUE(),FALSE())","v":false},{"$f":"IF(AND(World!$G$35=\"yes\",HLOOKUP(Trade!$B42,'Trade Tables'!$G$47:$AP$59,12,FALSE())=1),TRUE(),FALSE())","v":false},{"$f":"IF(AND(World!$G$38=\"yes\",HLOOKUP(Trade!$B42,'Trade Tables'!$G$47:$AP$59,13,FALSE())=1),TRUE(),FALSE())","v":false},{"$f":"IF(Rolls!$G$28='Trade Tables'!$B69,TRUE(),FALSE())","v":false},{"$f":"IF(Rolls!$G$29='Trade Tables'!$B69,TRUE(),FALSE())","v":false},{"$f":"IF(Rolls!$G$30='Trade Tables'!$B69,TRUE(),FALSE())","v":false},{"$f":"IF(Rolls!$G$31='Trade Tables'!$B69,TRUE(),FALSE())","v":false},{"$f":"IF(Rolls!$G$32='Trade Tables'!$B69,TRUE(),FALSE())","v":false},{"$f":"IF(Rolls!$G$33='Trade Tables'!$B69,TRUE(),FALSE())","v":false},null,null,null,null,null,null,null,null,null,null,{"$f":"IF($C$6>27,LOOKUP(Rolls!B73,'Trade Tables'!B$88:C$123),\"\")","v":"Engineer"},{"$f":"IF($C$7>27,LOOKUP(Rolls!C73,'Trade Tables'!B$88:C$123),\"\")","v":""},{"$f":"IF($C$8>27,LOOKUP(Rolls!D73,'Trade Tables'!B$88:C$123),\"\")","v":""}]
[null,"Radioactives",null,null,{"$f":"IF(OR(U43:AF43),CEILING(6*RAND(),1)*'Trade Tables'!D70,0)+IF(AG43,CEILING(6*RAND(),1)*'Trade Tables'!D70,0)+IF(AH43,CEILING(6*RAND(),1)*'Trade Tables'!D70,0)+IF(AI43,CEILING(6*RAND(),1)*'Trade Tables'!D70,0)+IF(AJ43,CEILING(6*RAND(),1)*'Trade Tables'!D70,0)+IF(AK43,CEILING(6*RAND(),1)*'Trade Tables'!D70,0)+IF(AL43,CEILING(6*RAND(),1)*'Trade Tables'!D70,0)","v":0},null,null,null,null,1000000,null,null,null,null,null,null,null,null,null,null,{"$f":"IF(AND(World!$G$22=\"yes\",HLOOKUP(Trade!$B43,'Trade Tables'!$G$47:$AP$59,2,FALSE())=1),TRUE(),FALSE())","v":false},{"$f":"IF(AND(World!$G$23=\"yes\",HLOOKUP(Trade!$B43,'Trade Tables'!$G$47:$AP$59,3,FALSE())=1),TRUE(),FALSE())","v":false},{"$f":"IF(AND(World!$G$25=\"yes\",HLOOKUP(Trade!$B43,'Trade Tables'!$G$47:$AP$59,4,FALSE())=1),TRUE(),FALSE())","v":false},{"$f":"IF(AND(World!$G$26=\"yes\",HLOOKUP(Trade!$B43,'Trade Tables'!$G$47:$AP$59,5,FALSE())=1),TRUE(),FALSE())","v":false},{"$f":"IF(AND(World!$G$27=\"yes\",HLOOKUP(Trade!$B43,'Trade Tables'!$G$47:$AP$59,6,FALSE())=1),TRUE(),FALSE())","v":false},{"$f":"IF(AND(World!$G$28=\"yes\",HLOOKUP(Trade!$B43,'Trade Tables'!$G$47:$AP$59,7,FALSE())=1),TRUE(),FALSE())","v":false},{"$f":"IF(AND(World!$G$29=\"yes\",HLOOKUP(Trade!$B43,'Trade Tables'!$G$47:$AP$59,8,FALSE())=1),TRUE(),FALSE())","v":false},{"$f":"IF(AND(World!$G$30=\"yes\",HLOOKUP(Trade!$B43,'Trade Tables'!$G$47:$AP$59,9,FALSE())=1),TRUE(),FALSE())","v":false},{"$f":"IF(AND(World!$G$31=\"yes\",HLOOKUP(Trade!$B43,'Trade Tables'!$G$47:$AP$59,10,FALSE())=1),TRUE(),FALSE())","v":false},{"$f":"IF(AND(World!$G$32=\"yes\",HLOOKUP(Trade!$B43,'Trade Tables'!$G$47:$AP$59,11,FALSE())=1),TRUE(),FALSE())","v":false},{"$f":"IF(AND(World!$G$35=\"yes\",HLOOKUP(Trade!$B43,'Trade Tables'!$G$47:$AP$59,12,FALSE())=1),TRUE(),FALSE())","v":false},{"$f":"IF(AND(World!$G$38=\"yes\",HLOOKUP(Trade!$B43,'Trade Tables'!$G$47:$AP$59,13,FALSE())=1),TRUE(),FALSE())","v":false},{"$f":"IF(Rolls!$G$28='Trade Tables'!$B70,TRUE(),FALSE())","v":false},{"$f":"IF(Rolls!$G$29='Trade Tables'!$B70,TRUE(),FALSE())","v":false},{"$f":"IF(Rolls!$G$30='Trade Tables'!$B70,TRUE(),FALSE())","v":false},{"$f":"IF(Rolls!$G$31='Trade Tables'!$B70,TRUE(),FALSE())","v":false},{"$f":"IF(Rolls!$G$32='Trade Tables'!$B70,TRUE(),FALSE())","v":false},{"$f":"IF(Rolls!$G$33='Trade Tables'!$B70,TRUE(),FALSE())","v":false},null,null,null,null,null,null,null,null,null,null,{"$f":"IF($C$6>28,LOOKUP(Rolls!B74,'Trade Tables'!B$88:C$123),\"\")","v":""},{"$f":"IF($C$7>28,LOOKUP(Rolls!C74,'Trade Tables'!B$88:C$123),\"\")","v":""},{"$f":"IF($C$8>28,LOOKUP(Rolls!D74,'Trade Tables'!B$88:C$123),\"\")","v":""}]
[null,"Robots",null,null,{"$f":"IF(OR(U44:AF44),CEILING(6*RAND(),1)*'Trade Tables'!D71,0)+IF(AG44,CEILING(6*RAND(),1)*'Trade Tables'!D71,0)+IF(AH44,CEILING(6*RAND(),1)*'Trade Tables'!D71,0)+IF(AI44,CEILING(6*RAND(),1)*'Trade Tables'!D71,0)+IF(AJ44,CEILING(6*RAND(),1)*'Trade Tables'!D71,0)+IF(AK44,CEILING(6*RAND(),1)*'Trade Tables'!D71,0)+IF(AL44,CEILING(6*RAND(),1)*'Trade Tables'!D71,0)","v":0},null,null,null,null,400000,null,null,null,null,null,null,null,null,null,null,{"$f":"IF(AND(World!$G$22=\"yes\",HLOOKUP(Trade!$B44,'Trade Tables'!$G$47:$AP$59,2,FALSE())=1),TRUE(),FALSE())","v":false},{"$f":"IF(AND(World!$G$23=\"yes\",HLOOKUP(Trade!$B44,'Trade Tables'!$G$47:$AP$59,3,FALSE())=1),TRUE(),FALSE())","v":false},{"$f":"IF(AND(World!$G$25=\"yes\",HLOOKUP(Trade!$B44,'Trade Tables'!$G$47:$AP$59,4,FALSE())=1),TRUE(),FALSE())","v":false},{"$f":"IF(AND(World!$G$26=\"yes\",HLOOKUP(Trade!$B44,'Trade Tables'!$G$47:$AP$59,5,FALSE())=1),TRUE(),FALSE())","v":false},{"$f":"IF(AND(World!$G$27=\"yes\",HLOOKUP(Trade!$B44,'Trade Tables'!$G$47:$AP$59,6,FALSE())=1),TRUE(),FALSE())","v":false},{"$f":"IF(AND(World!$G$28=\"yes\",HLOOKUP(Trade!$B44,'Trade Tables'!$G$47:$AP$59,7,FALSE())=1),TRUE(),FALSE())","v":false},{"$f":"IF(AND(World!$G$29=\"yes\",HLOOKUP(Trade!$B44,'Trade Tables'!$G$47:$AP$59,8,FALSE())=1),TRUE(),FALSE())","v":false},{"$f":"IF(AND(World!$G$30=\"yes\",HLOOKUP(Trade!$B44,'Trade Tables'!$G$47:$AP$59,9,FALSE())=1),TRUE(),FALSE())","v":false},{"$f":"IF(AND(World!$G$31=\"yes\",HLOOKUP(Trade!$B44,'Trade Tables'!$G$47:$AP$59,10,FALSE())=1),TRUE(),FALSE())","v":false},{"$f":"IF(AND(World!$G$32=\"yes\",HLOOKUP(Trade!$B44,'Trade Tables'!$G$47:$AP$59,11,FALSE())=1),TRUE(),FALSE())","v":false},{"$f":"IF(AND(World!$G$35=\"yes\",HLOOKUP(Trade!$B44,'Trade Tables'!$G$47:$AP$59,12,FALSE())=1),TRUE(),FALSE())","v":false},{"$f":"IF(AND(World!$G$38=\"yes\",HLOOKUP(Trade!$B44,'Trade Tables'!$G$47:$AP$59,13,FALSE())=1),TRUE(),FALSE())","v":false},{"$f":"IF(Rolls!$G$28='Trade Tables'!$B71,TRUE(),FALSE())","v":false},{"$f":"IF(Rolls!$G$29='Trade Tables'!$B71,TRUE(),FALSE())","v":false},{"$f":"IF(Rolls!$G$30='Trade Tables'!$B71,TRUE(),FALSE())","v":false},{"$f":"IF(Rolls!$G$31='Trade Tables'!$B71,TRUE(),FALSE())","v":false},{"$f":"IF(Rolls!$G$32='Trade Tables'!$B71,TRUE(),FALSE())","v":false},{"$f":"IF(Rolls!$G$33='Trade Tables'!$B71,TRUE(),FALSE())","v":false},null,null,null,null,null,null,null,null,null,null,{"$f":"IF($C$6>29,LOOKUP(Rolls!B75,'Trade Tables'!B$88:C$123),\"\")","v":""},{"$f":"IF($C$7>29,LOOKUP(Rolls!C75,'Trade Tables'!B$88:C$123),\"\")","v":""},{"$f":"IF($C$8>29,LOOKUP(Rolls!D75,'Trade Tables'!B$88:C$123),\"\")","v":""}]
[null,"Spices",null,null,{"$f":"IF(OR(U45:AF45),CEILING(6*RAND(),1)*'Trade Tables'!D72,0)+IF(AG45,CEILING(6*RAND(),1)*'Trade Tables'!D72,0)+IF(AH45,CEILING(6*RAND(),1)*'Trade Tables'!D72,0)+IF(AI45,CEILING(6*RAND(),1)*'Trade Tables'!D72,0)+IF(AJ45,CEILING(6*RAND(),1)*'Trade Tables'!D72,0)+IF(AK45,CEILING(6*RAND(),1)*'Trade Tables'!D72,0)+IF(AL45,CEILING(6*RAND(),1)*'Trade Tables'!D72,0)","v":25},null,null,null,null,6000,null,null,null,null,null,null,null,null,null,null,{"$f":"IF(AND(World!$G$22=\"yes\",HLOOKUP(Trade!$B45,'Trade Tables'!$G$47:$AP$59,2,FALSE())=1),TRUE(),FALSE())","v":false},{"$f":"IF(AND(World!$G$23=\"yes\",HLOOKUP(Trade!$B45,'Trade Tables'!$G$47:$AP$59,3,FALSE())=1),TRUE(),FALSE())","v":false},{"$f":"IF(AND(World!$G$25=\"yes\",HLOOKUP(Trade!$B45,'Trade Tables'!$G$47:$AP$59,4,FALSE())=1),TRUE(),FALSE())","v":false},{"$f":"IF(AND(World!$G$26=\"yes\",HLOOKUP(Trade!$B45,'Trade Tables'!$G$47:$AP$59,5,FALSE())=1),TRUE(),FALSE())","v":false},{"$f":"IF(AND(World!$G$27=\"yes\",HLOOKUP(Trade!$B45,'Trade Tables'!$G$47:$AP$59,6,FALSE())=1),TRUE(),FALSE())","v":true},{"$f":"IF(AND(World!$G$28=\"yes\",HLOOKUP(Trade!$B45,'Trade Tables'!$G$47:$AP$59,7,FALSE())=1),TRUE(),FALSE())","v":false},{"$f":"IF(AND(World!$G$29=\"yes\",HLOOKUP(Trade!$B45,'Trade Tables'!$G$47:$AP$59,8,FALSE())=1),TRUE(),FALSE())","v":false},{"$f":"IF(AND(World!$G$30=\"yes\",HLOOKUP(Trade!$B45,'Trade Tables'!$G$47:$AP$59,9,FALSE())=1),TRUE(),FALSE())","v":false},{"$f":"IF(AND(World!$G$31=\"yes\",HLOOKUP(Trade!$B45,'Trade Tables'!$G$47:$AP$59,10,FALSE())=1),TRUE(),FALSE())","v":false},{"$f":"IF(AND(World!$G$32=\"yes\",HLOOKUP(Trade!$B45,'Trade Tables'!$G$47:$AP$59,11,FALSE())=1),TRUE(),FALSE())","v":false},{"$f":"IF(AND(World!$G$35=\"yes\",HLOOKUP(Trade!$B45,'Trade Tables'!$G$47:$AP$59,12,FALSE())=1),TRUE(),FALSE())","v":false},{"$f":"IF(AND(World!$G$38=\"yes\",HLOOKUP(Trade!$B45,'Trade Tables'!$G$47:$AP$59,13,FALSE())=1),TRUE(),FALSE())","v":false},{"$f":"IF(Rolls!$G$28='Trade Tables'!$B72,TRUE(),FALSE())","v":false},{"$f":"IF(Rolls!$G$29='Trade Tables'!$B72,TRUE(),FALSE())","v":false},{"$f":"IF(Rolls!$G$30='Trade Tables'!$B72,TRUE(),FALSE())","v":false},{"$f":"IF(Rolls!$G$31='Trade Tables'!$B72,TRUE(),FALSE())","v":false},{"$f":"IF(Rolls!$G$32='Trade Tables'!$B72,TRUE(),FALSE())","v":false},{"$f":"IF(Rolls!$G$33='Trade Tables'!$B72,TRUE(),FALSE())","v":false},null,null,null,null,null,null,null,null,null,null,{"$f":"IF($C$6>30,LOOKUP(Rolls!B76,'Trade Tables'!B$88:C$123),\"\")","v":""},{"$f":"IF($C$7>30,LOOKUP(Rolls!C76,'Trade Tables'!B$88:C$123),\"\")","v":""}]
[null,"Textiles",null,null,{"$f":"IF(OR(U46:AF46),CEILING(6*RAND(),1)*'Trade Tables'!D73,0)+IF(AG46,CEILING(6*RAND(),1)*'Trade Tables'!D73,0)+IF(AH46,CEILING(6*RAND(),1)*'Trade Tables'!D73,0)+IF(AI46,CEILING(6*RAND(),1)*'Trade Tables'!D73,0)+IF(AJ46,CEILING(6*RAND(),1)*'Trade Tables'!D73,0)+IF(AK46,CEILING(6*RAND(),1)*'Trade Tables'!D73,0)+IF(AL46,CEILING(6*RAND(),1)*'Trade Tables'!D73,0)","v":0},null,null,null,null,3000,null,null,null,null,null,null,null,null,null,null,{"$f":"IF(AND(World!$G$22=\"yes\",HLOOKUP(Trade!$B46,'Trade Tables'!$G$47:$AP$59,2,FALSE())=1),TRUE(),FALSE())","v":false},{"$f":"IF(AND(World!$G$23=\"yes\",HLOOKUP(Trade!$B46,'Trade Tables'!$G$47:$AP$59,3,FALSE())=1),TRUE(),FALSE())","v":false},{"$f":"IF(AND(World!$G$25=\"yes\",HLOOKUP(Trade!$B46,'Trade Tables'!$G$47:$AP$59,4,FALSE())=1),TRUE(),FALSE())","v":false},{"$f":"IF(AND(World!$G$26=\"yes\",HLOOKUP(Trade!$B46,'Trade Tables'!$G$47:$AP$59,5,FALSE())=1),TRUE(),FALSE())","v":false},{"$f":"IF(AND(World!$G$27=\"yes\",HLOOKUP(Trade!$B46,'Trade Tables'!$G$47:$AP$59,6,FALSE())=1),TRUE(),FALSE())","v":false},{"$f":"IF(AND(World!$G$28=\"yes\",HLOOKUP(Trade!$B46,'Trade Tables'!$G$47:$AP$59,7,FALSE())=1),TRUE(),FALSE())","v":false},{"$f":"IF(AND(World!$G$29=\"yes\",HLOOKUP(Trade!$B46,'Trade Tables'!$G$47:$AP$59,8,FALSE())=1),TRUE(),FALSE())","v":false},{"$f":"IF(AND(World!$G$30=\"yes\",HLOOKUP(Trade!$B46,'Trade Tables'!$G$47:$AP$59,9,FALSE())=1),TRUE(),FALSE())","v":false},{"$f":"IF(AND(World!$G$31=\"yes\",HLOOKUP(Trade!$B46,'Trade Tables'!$G$47:$AP$59,10,FALSE())=1),TRUE(),FALSE())","v":false},{"$f":"IF(AND(World!$G$32=\"yes\",HLOOKUP(Trade!$B46,'Trade Tables'!$G$47:$AP$59,11,FALSE())=1),TRUE(),FALSE())","v":false},{"$f":"IF(AND(World!$G$35=\"yes\",HLOOKUP(Trade!$B46,'Trade Tables'!$G$47:$AP$59,12,FALSE())=1),TRUE(),FALSE())","v":false},{"$f":"IF(AND(World!$G$38=\"yes\",HLOOKUP(Trade!$B46,'Trade Tables'!$G$47:$AP$59,13,FALSE())=1),TRUE(),FALSE())","v":false},{"$f":"IF(Rolls!$G$28='Trade Tables'!$B73,TRUE(),FALSE())","v":false},{"$f":"IF(Rolls!$G$29='Trade Tables'!$B73,TRUE(),FALSE())","v":false},{"$f":"IF(Rolls!$G$30='Trade Tables'!$B73,TRUE(),FALSE())","v":false},{"$f":"IF(Rolls!$G$31='Trade Tables'!$B73,TRUE(),FALSE())","v":false},{"$f":"IF(Rolls!$G$32='Trade Tables'!$B73,TRUE(),FALSE())","v":false},{"$f":"IF(Rolls!$G$33='Trade Tables'!$B73,TRUE(),FALSE())","v":false},null,null,null,null,null,null,null,null,null,null,{"$f":"IF($C$6>31,LOOKUP(Rolls!B77,'Trade Tables'!B$88:C$123),\"\")","v":""},{"$f":"IF($C$7>31,LOOKUP(Rolls!C77,'Trade Tables'!B$88:C$123),\"\")","v":""}]
[null,"Uncommon Ore",null,null,{"$f":"IF(OR(U47:AF47),CEILING(6*RAND(),1)*'Trade Tables'!D74,0)+IF(AG47,CEILING(6*RAND(),1)*'Trade Tables'!D74,0)+IF(AH47,CEILING(6*RAND(),1)*'Trade Tables'!D74,0)+IF(AI47,CEILING(6*RAND(),1)*'Trade Tables'!D74,0)+IF(AJ47,CEILING(6*RAND(),1)*'Trade Tables'!D74,0)+IF(AK47,CEILING(6*RAND(),1)*'Trade Tables'!D74,0)+IF(AL47,CEILING(6*RAND(),1)*'Trade Tables'!D74,0)","v":0},null,null,null,null,5000,null,null,null,null,null,null,null,null,null,null,{"$f":"IF(AND(World!$G$22=\"yes\",HLOOKUP(Trade!$B47,'Trade Tables'!$G$47:$AP$59,2,FALSE())=1),TRUE(),FALSE())","v":false},{"$f":"IF(AND(World!$G$23=\"yes\",HLOOKUP(Trade!$B47,'Trade Tables'!$G$47:$AP$59,3,FALSE())=1),TRUE(),FALSE())","v":false},{"$f":"IF(AND(World!$G$25=\"yes\",HLOOKUP(Trade!$B47,'Trade Tables'!$G$47:$AP$59,4,FALSE())=1),TRUE(),FALSE())","v":false},{"$f":"IF(AND(World!$G$26=\"yes\",HLOOKUP(Trade!$B47,'Trade Tables'!$G$47:$AP$59,5,FALSE())=1),TRUE(),FALSE())","v":false},{"$f":"IF(AND(World!$G$27=\"yes\",HLOOKUP(Trade!$B47,'Trade Tables'!$G$47:$AP$59,6,FALSE())=1),TRUE(),FALSE())","v":false},{"$f":"IF(AND(World!$G$28=\"yes\",HLOOKUP(Trade!$B47,'Trade Tables'!$G$47:$AP$59,7,FALSE())=1),TRUE(),FALSE())","v":false},{"$f":"IF(AND(World!$G$29=\"yes\",HLOOKUP(Trade!$B47,'Trade Tables'!$G$47:$AP$59,8,FALSE())=1),TRUE(),FALSE())","v":false},{"$f":"IF(AND(World!$G$30=\"yes\",HLOOKUP(Trade!$B47,'Trade Tables'!$G$47:$AP$59,9,FALSE())=1),TRUE(),FALSE())","v":false},{"$f":"IF(AND(World!$G$31=\"yes\",HLOOKUP(Trade!$B47,'Trade Tables'!$G$47:$AP$59,10,FALSE())=1),TRUE(),FALSE())","v":false},{"$f":"IF(AND(World!$G$32=\"yes\",HLOOKUP(Trade!$B47,'Trade Tables'!$G$47:$AP$59,11,FALSE())=1),TRUE(),FALSE())","v":false},{"$f":"IF(AND(World!$G$35=\"yes\",HLOOKUP(Trade!$B47,'Trade Tables'!$G$47:$AP$59,12,FALSE())=1),TRUE(),FALSE())","v":false},{"$f":"IF(AND(World!$G$38=\"yes\",HLOOKUP(Trade!$B47,'Trade Tables'!$G$47:$AP$59,13,FALSE())=1),TRUE(),FALSE())","v":false},{"$f":"IF(Rolls!$G$28='Trade Tables'!$B74,TRUE(),FALSE())","v":false},{"$f":"IF(Rolls!$G$29='Trade Tables'!$B74,TRUE(),FALSE())","v":false},{"$f":"IF(Rolls!$G$30='Trade Tables'!$B74,TRUE(),FALSE())","v":false},{"$f":"IF(Rolls!$G$31='Trade Tables'!$B74,TRUE(),FALSE())","v":false},{"$f":"IF(Rolls!$G$32='Trade Tables'!$B74,TRUE(),FALSE())","v":false},{"$f":"IF(Rolls!$G$33='Trade Tables'!$B74,TRUE(),FALSE())","v":false},null,null,null,null,null,null,null,null,null,null,{"$f":"IF($C$6>32,LOOKUP(Rolls!B78,'Trade Tables'!B$88:C$123),\"\")","v":""},{"$f":"IF($C$7>32,LOOKUP(Rolls!C78,'Trade Tables'!B$88:C$123),\"\")","v":""}]
[null,"Uncommon Raw Materials",null,null,{"$f":"IF(OR(U48:AF48),CEILING(6*RAND(),1)*'Trade Tables'!D75,0)+IF(AG48,CEILING(6*RAND(),1)*'Trade Tables'!D75,0)+IF(AH48,CEILING(6*RAND(),1)*'Trade Tables'!D75,0)+IF(AI48,CEILING(6*RAND(),1)*'Trade Tables'!D75,0)+IF(AJ48,CEILING(6*RAND(),1)*'Trade Tables'!D75,0)+IF(AK48,CEILING(6*RAND(),1)*'Trade Tables'!D75,0)+IF(AL48,CEILING(6*RAND(),1)*'Trade Tables'!D75,0)","v":50},null,null,null,null,20000,null,null,null,null,null,null,null,null,null,null,{"$f":"IF(AND(World!$G$22=\"yes\",HLOOKUP(Trade!$B48,'Trade Tables'!$G$47:$AP$59,2,FALSE())=1),TRUE(),FALSE())","v":false},{"$f":"IF(AND(World!$G$23=\"yes\",HLOOKUP(Trade!$B48,'Trade Tables'!$G$47:$AP$59,3,FALSE())=1),TRUE(),FALSE())","v":false},{"$f":"IF(AND(World!$G$25=\"yes\",HLOOKUP(Trade!$B48,'Trade Tables'!$G$47:$AP$59,4,FALSE())=1),TRUE(),FALSE())","v":false},{"$f":"IF(AND(World!$G$26=\"yes\",HLOOKUP(Trade!$B48,'Trade Tables'!$G$47:$AP$59,5,FALSE())=1),TRUE(),FALSE())","v":false},{"$f":"IF(AND(World!$G$27=\"yes\",HLOOKUP(Trade!$B48,'Trade Tables'!$G$47:$AP$59,6,FALSE())=1),TRUE(),FALSE())","v":false},{"$f":"IF(AND(World!$G$28=\"yes\",HLOOKUP(Trade!$B48,'Trade Tables'!$G$47:$AP$59,7,FALSE())=1),TRUE(),FALSE())","v":false},{"$f":"IF(AND(World!$G$29=\"yes\",HLOOKUP(Trade!$B48,'Trade Tables'!$G$47:$AP$59,8,FALSE())=1),TRUE(),FALSE())","v":false},{"$f":"IF(AND(World!$G$30=\"yes\",HLOOKUP(Trade!$B48,'Trade Tables'!$G$47:$AP$59,9,FALSE())=1),TRUE(),FALSE())","v":false},{"$f":"IF(AND(World!$G$31=\"yes\",HLOOKUP(Trade!$B48,'Trade Tables'!$G$47:$AP$59,10,FALSE())=1),TRUE(),FALSE())","v":false},{"$f":"IF(AND(World!$G$32=\"yes\",HLOOKUP(Trade!$B48,'Trade Tables'!$G$47:$AP$59,11,FALSE())=1),TRUE(),FALSE())","v":false},{"$f":"IF(AND(World!$G$35=\"yes\",HLOOKUP(Trade!$B48,'Trade Tables'!$G$47:$AP$59,12,FALSE())=1),TRUE(),FALSE())","v":false},{"$f":"IF(AND(World!$G$38=\"yes\",HLOOKUP(Trade!$B48,'Trade Tables'!$G$47:$AP$59,13,FALSE())=1),TRUE(),FALSE())","v":false},{"$f":"IF(Rolls!$G$28='Trade Tables'!$B75,TRUE(),FALSE())","v":true},{"$f":"IF(Rolls!$G$29='Trade Tables'!$B75,TRUE(),FALSE())","v":false},{"$f":"IF(Rolls!$G$30='Trade Tables'!$B75,TRUE(),FALSE())","v":false},{"$f":"IF(Rolls!$G$31='Trade Tables'!$B75,TRUE(),FALSE())","v":false},{"$f":"IF(Rolls!$G$32='Trade Tables'!$B75,TRUE(),FALSE())","v":false},{"$f":"IF(Rolls!$G$33='Trade Tables'!$B75,TRUE(),FALSE())","v":false},null,null,null,null,null,null,null,null,null,null,{"$f":"IF($C$6>33,LOOKUP(Rolls!B79,'Trade Tables'!B$88:C$123),\"\")","v":""},{"$f":"IF($C$7>33,LOOKUP(Rolls!C79,'Trade Tables'!B$88:C$123),\"\")","v":""}]
[null,"Wood",null,null,{"$f":"IF(OR(U49:AF49),CEILING(6*RAND(),1)*'Trade Tables'!D76,0)+IF(AG49,CEILING(6*RAND(),1)*'Trade Tables'!D76,0)+IF(AH49,CEILING(6*RAND(),1)*'Trade Tables'!D76,0)+IF(AI49,CEILING(6*RAND(),1)*'Trade Tables'!D76,0)+IF(AJ49,CEILING(6*RAND(),1)*'Trade Tables'!D76,0)+IF(AK49,CEILING(6*RAND(),1)*'Trade Tables'!D76,0)+IF(AL49,CEILING(6*RAND(),1)*'Trade Tables'!D76,0)","v":50},null,null,null,null,1000,null,null,null,null,null,null,null,null,null,null,{"$f":"IF(AND(World!$G$22=\"yes\",HLOOKUP(Trade!$B49,'Trade Tables'!$G$47:$AP$59,2,FALSE())=1),TRUE(),FALSE())","v":false},{"$f":"IF(AND(World!$G$23=\"yes\",HLOOKUP(Trade!$B49,'Trade Tables'!$G$47:$AP$59,3,FALSE())=1),TRUE(),FALSE())","v":false},{"$f":"IF(AND(World!$G$25=\"yes\",HLOOKUP(Trade!$B49,'Trade Tables'!$G$47:$AP$59,4,FALSE())=1),TRUE(),FALSE())","v":false},{"$f":"IF(AND(World!$G$26=\"yes\",HLOOKUP(Trade!$B49,'Trade Tables'!$G$47:$AP$59,5,FALSE())=1),TRUE(),FALSE())","v":false},{"$f":"IF(AND(World!$G$27=\"yes\",HLOOKUP(Trade!$B49,'Trade Tables'!$G$47:$AP$59,6,FALSE())=1),TRUE(),FALSE())","v":true},{"$f":"IF(AND(World!$G$28=\"yes\",HLOOKUP(Trade!$B49,'Trade Tables'!$G$47:$AP$59,7,FALSE())=1),TRUE(),FALSE())","v":false},{"$f":"IF(AND(World!$G$29=\"yes\",HLOOKUP(Trade!$B49,'Trade Tables'!$G$47:$AP$59,8,FALSE())=1),TRUE(),FALSE())","v":false},{"$f":"IF(AND(World!$G$30=\"yes\",HLOOKUP(Trade!$B49,'Trade Tables'!$G$47:$AP$59,9,FALSE())=1),TRUE(),FALSE())","v":false},{"$f":"IF(AND(World!$G$31=\"yes\",HLOOKUP(Trade!$B49,'Trade Tables'!$G$47:$AP$59,10,FALSE())=1),TRUE(),FALSE())","v":false},{"$f":"IF(AND(World!$G$32=\"yes\",HLOOKUP(Trade!$B49,'Trade Tables'!$G$47:$AP$59,11,FALSE())=1),TRUE(),FALSE())","v":false},{"$f":"IF(AND(World!$G$35=\"yes\",HLOOKUP(Trade!$B49,'Trade Tables'!$G$47:$AP$59,12,FALSE())=1),TRUE(),FALSE())","v":false},{"$f":"IF(AND(World!$G$38=\"yes\",HLOOKUP(Trade!$B49,'Trade Tables'!$G$47:$AP$59,13,FALSE())=1),TRUE(),FALSE())","v":false},{"$f":"IF(Rolls!$G$28='Trade Tables'!$B76,TRUE(),FALSE())","v":false},{"$f":"IF(Rolls!$G$29='Trade Tables'!$B76,TRUE(),FALSE())","v":false},{"$f":"IF(Rolls!$G$30='Trade Tables'!$B76,TRUE(),FALSE())","v":false},{"$f":"IF(Rolls!$G$31='Trade Tables'!$B76,TRUE(),FALSE())","v":false},{"$f":"IF(Rolls!$G$32='Trade Tables'!$B76,TRUE(),FALSE())","v":false},{"$f":"IF(Rolls!$G$33='Trade Tables'!$B76,TRUE(),FALSE())","v":false},null,null,null,null,null,null,null,null,null,null,{"$f":"IF($C$6>34,LOOKUP(Rolls!B80,'Trade Tables'!B$88:C$123),\"\")","v":""},{"$f":"IF($C$7>34,LOOKUP(Rolls!C80,'Trade Tables'!B$88:C$123),\"\")","v":""}]
[null,"Vehicles",null,null,{"$f":"IF(OR(U50:AF50),CEILING(6*RAND(),1)*'Trade Tables'!D77,0)+IF(AG50,CEILING(6*RAND(),1)*'Trade Tables'!D77,0)+IF(AH50,CEILING(6*RAND(),1)*'Trade Tables'!D77,0)+IF(AI50,CEILING(6*RAND(),1)*'Trade Tables'!D77,0)+IF(AJ50,CEILING(6*RAND(),1)*'Trade Tables'!D77,0)+IF(AK50,CEILING(6*RAND(),1)*'Trade Tables'!D77,0)+IF(AL50,CEILING(6*RAND(),1)*'Trade Tables'!D77,0)","v":0},null,null,null,null,15000,null,null,null,null,null,null,null,null,null,null,{"$f":"IF(AND(World!$G$22=\"yes\",HLOOKUP(Trade!$B50,'Trade Tables'!$G$47:$AP$59,2,FALSE())=1),TRUE(),FALSE())","v":false},{"$f":"IF(AND(World!$G$23=\"yes\",HLOOKUP(Trade!$B50,'Trade Tables'!$G$47:$AP$59,3,FALSE())=1),TRUE(),FALSE())","v":false},{"$f":"IF(AND(World!$G$25=\"yes\",HLOOKUP(Trade!$B50,'Trade Tables'!$G$47:$AP$59,4,FALSE())=1),TRUE(),FALSE())","v":false},{"$f":"IF(AND(World!$G$26=\"yes\",HLOOKUP(Trade!$B50,'Trade Tables'!$G$47:$AP$59,5,FALSE())=1),TRUE(),FALSE())","v":false},{"$f":"IF(AND(World!$G$27=\"yes\",HLOOKUP(Trade!$B50,'Trade Tables'!$G$47:$AP$59,6,FALSE())=1),TRUE(),FALSE())","v":false},{"$f":"IF(AND(World!$G$28=\"yes\",HLOOKUP(Trade!$B50,'Trade Tables'!$G$47:$AP$59,7,FALSE())=1),TRUE(),FALSE())","v":false},{"$f":"IF(AND(World!$G$29=\"yes\",HLOOKUP(Trade!$B50,'Trade Tables'!$G$47:$AP$59,8,FALSE())=1),TRUE(),FALSE())","v":false},{"$f":"IF(AND(World!$G$30=\"yes\",HLOOKUP(Trade!$B50,'Trade Tables'!$G$47:$AP$59,9,FALSE())=1),TRUE(),FALSE())","v":false},{"$f":"IF(AND(World!$G$31=\"yes\",HLOOKUP(Trade!$B50,'Trade Tables'!$G$47:$AP$59,10,FALSE())=1),TRUE(),FALSE())","v":false},{"$f":"IF(AND(World!$G$32=\"yes\",HLOOKUP(Trade!$B50,'Trade Tables'!$G$47:$AP$59,11,FALSE())=1),TRUE(),FALSE())","v":false},{"$f":"IF(AND(World!$G$35=\"yes\",HLOOKUP(Trade!$B50,'Trade Tables'!$G$47:$AP$59,12,FALSE())=1),TRUE(),FALSE())","v":false},{"$f":"IF(AND(World!$G$38=\"yes\",HLOOKUP(Trade!$B50,'Trade Tables'!$G$47:$AP$59,13,FALSE())=1),TRUE(),FALSE())","v":false},{"$f":"IF(Rolls!$G$28='Trade Tables'!$B77,TRUE(),FALSE())","v":false},{"$f":"IF(Rolls!$G$29='Trade Tables'!$B77,TRUE(),FALSE())","v":false},{"$f":"IF(Rolls!$G$30='Trade Tables'!$B77,TRUE(),FALSE())","v":false},{"$f":"IF(Rolls!$G$31='Trade Tables'!$B77,TRUE(),FALSE())","v":false},{"$f":"IF(Rolls!$G$32='Trade Tables'!$B77,TRUE(),FALSE())","v":false},{"$f":"IF(Rolls!$G$33='Trade Tables'!$B77,TRUE(),FALSE())","v":false},null,null,null,null,null,null,null,null,null,null,{"$f":"IF($C$6>35,LOOKUP(Rolls!B81,'Trade Tables'!B$88:C$123),\"\")","v":""},{"$f":"IF($C$7>35,LOOKUP(Rolls!C81,'Trade Tables'!B$88:C$123),\"\")","v":""}]
[null,"Illegal Biochemicals",null,null,{"$f":"IF(OR(U51:AF51),CEILING(6*RAND(),1)*'Trade Tables'!D78,0)+IF(AG51,CEILING(6*RAND(),1)*'Trade Tables'!D78,0)+IF(AH51,CEILING(6*RAND(),1)*'Trade Tables'!D78,0)+IF(AI51,CEILING(6*RAND(),1)*'Trade Tables'!D78,0)+IF(AJ51,CEILING(6*RAND(),1)*'Trade Tables'!D78,0)+IF(AK51,CEILING(6*RAND(),1)*'Trade Tables'!D78,0)+IF(AL51,CEILING(6*RAND(),1)*'Trade Tables'!D78,0)","v":0},null,null,null,null,50000,null,null,null,null,null,null,null,null,null,null,{"$f":"IF(AND(World!$G$22=\"yes\",HLOOKUP(Trade!$B51,'Trade Tables'!$G$47:$AP$59,2,FALSE())=1),TRUE(),FALSE())","v":false},{"$f":"IF(AND(World!$G$23=\"yes\",HLOOKUP(Trade!$B51,'Trade Tables'!$G$47:$AP$59,3,FALSE())=1),TRUE(),FALSE())","v":false},{"$f":"IF(AND(World!$G$25=\"yes\",HLOOKUP(Trade!$B51,'Trade Tables'!$G$47:$AP$59,4,FALSE())=1),TRUE(),FALSE())","v":false},{"$f":"IF(AND(World!$G$26=\"yes\",HLOOKUP(Trade!$B51,'Trade Tables'!$G$47:$AP$59,5,FALSE())=1),TRUE(),FALSE())","v":false},{"$f":"IF(AND(World!$G$27=\"yes\",HLOOKUP(Trade!$B51,'Trade Tables'!$G$47:$AP$59,6,FALSE())=1),TRUE(),FALSE())","v":false},{"$f":"IF(AND(World!$G$28=\"yes\",HLOOKUP(Trade!$B51,'Trade Tables'!$G$47:$AP$59,7,FALSE())=1),TRUE(),FALSE())","v":false},{"$f":"IF(AND(World!$G$29=\"yes\",HLOOKUP(Trade!$B51,'Trade Tables'!$G$47:$AP$59,8,FALSE())=1),TRUE(),FALSE())","v":false},{"$f":"IF(AND(World!$G$30=\"yes\",HLOOKUP(Trade!$B51,'Trade Tables'!$G$47:$AP$59,9,FALSE())=1),TRUE(),FALSE())","v":false},{"$f":"IF(AND(World!$G$31=\"yes\",HLOOKUP(Trade!$B51,'Trade Tables'!$G$47:$AP$59,10,FALSE())=1),TRUE(),FALSE())","v":false},{"$f":"IF(AND(World!$G$32=\"yes\",HLOOKUP(Trade!$B51,'Trade Tables'!$G$47:$AP$59,11,FALSE())=1),TRUE(),FALSE())","v":false},{"$f":"IF(AND(World!$G$35=\"yes\",HLOOKUP(Trade!$B51,'Trade Tables'!$G$47:$AP$59,12,FALSE())=1),TRUE(),FALSE())","v":false},{"$f":"IF(AND(World!$G$38=\"yes\",HLOOKUP(Trade!$B51,'Trade Tables'!$G$47:$AP$59,13,FALSE())=1),TRUE(),FALSE())","v":false},{"$f":"IF(Rolls!$G$28='Trade Tables'!$B78,TRUE(),FALSE())","v":false},{"$f":"IF(Rolls!$G$29='Trade Tables'!$B78,TRUE(),FALSE())","v":false},{"$f":"IF(Rolls!$G$30='Trade Tables'!$B78,TRUE(),FALSE())","v":false},{"$f":"IF(Rolls!$G$31='Trade Tables'!$B78,TRUE(),FALSE())","v":false},{"$f":"IF(Rolls!$G$32='Trade Tables'!$B78,TRUE(),FALSE())","v":false},{"$f":"IF(Rolls!$G$33='Trade Tables'!$B78,TRUE(),FALSE())","v":false},null,null,null,null,null,null,null,null,null,null,{"$f":"IF($C$6>36,LOOKUP(Rolls!B82,'Trade Tables'!B$88:C$123),\"\")","v":""}]
[null,"Illegal Cybernetics",null,null,{"$f":"IF(OR(U52:AF52),CEILING(6*RAND(),1)*'Trade Tables'!D79,0)+IF(AG52,CEILING(6*RAND(),1)*'Trade Tables'!D79,0)+IF(AH52,CEILING(6*RAND(),1)*'Trade Tables'!D79,0)+IF(AI52,CEILING(6*RAND(),1)*'Trade Tables'!D79,0)+IF(AJ52,CEILING(6*RAND(),1)*'Trade Tables'!D79,0)+IF(AK52,CEILING(6*RAND(),1)*'Trade Tables'!D79,0)+IF(AL52,CEILING(6*RAND(),1)*'Trade Tables'!D79,0)","v":0},null,null,null,null,250000,null,null,null,null,null,null,null,null,null,null,{"$f":"IF(AND(World!$G$22=\"yes\",HLOOKUP(Trade!$B52,'Trade Tables'!$G$47:$AP$59,2,FALSE())=1),TRUE(),FALSE())","v":false},{"$f":"IF(AND(World!$G$23=\"yes\",HLOOKUP(Trade!$B52,'Trade Tables'!$G$47:$AP$59,3,FALSE())=1),TRUE(),FALSE())","v":false},{"$f":"IF(AND(World!$G$25=\"yes\",HLOOKUP(Trade!$B52,'Trade Tables'!$G$47:$AP$59,4,FALSE())=1),TRUE(),FALSE())","v":false},{"$f":"IF(AND(World!$G$26=\"yes\",HLOOKUP(Trade!$B52,'Trade Tables'!$G$47:$AP$59,5,FALSE())=1),TRUE(),FALSE())","v":false},{"$f":"IF(AND(World!$G$27=\"yes\",HLOOKUP(Trade!$B52,'Trade Tables'!$G$47:$AP$59,6,FALSE())=1),TRUE(),FALSE())","v":false},{"$f":"IF(AND(World!$G$28=\"yes\",HLOOKUP(Trade!$B52,'Trade Tables'!$G$47:$AP$59,7,FALSE())=1),TRUE(),FALSE())","v":false},{"$f":"IF(AND(World!$G$29=\"yes\",HLOOKUP(Trade!$B52,'Trade Tables'!$G$47:$AP$59,8,FALSE())=1),TRUE(),FALSE())","v":false},{"$f":"IF(AND(World!$G$30=\"yes\",HLOOKUP(Trade!$B52,'Trade Tables'!$G$47:$AP$59,9,FALSE())=1),TRUE(),FALSE())","v":false},{"$f":"IF(AND(World!$G$31=\"yes\",HLOOKUP(Trade!$B52,'Trade Tables'!$G$47:$AP$59,10,FALSE())=1),TRUE(),FALSE())","v":false},{"$f":"IF(AND(World!$G$32=\"yes\",HLOOKUP(Trade!$B52,'Trade Tables'!$G$47:$AP$59,11,FALSE())=1),TRUE(),FALSE())","v":false},{"$f":"IF(AND(World!$G$35=\"yes\",HLOOKUP(Trade!$B52,'Trade Tables'!$G$47:$AP$59,12,FALSE())=1),TRUE(),FALSE())","v":false},{"$f":"IF(AND(World!$G$38=\"yes\",HLOOKUP(Trade!$B52,'Trade Tables'!$G$47:$AP$59,13,FALSE())=1),TRUE(),FALSE())","v":false},{"$f":"IF(Rolls!$G$28='Trade Tables'!$B79,TRUE(),FALSE())","v":false},{"$f":"IF(Rolls!$G$29='Trade Tables'!$B79,TRUE(),FALSE())","v":false},{"$f":"IF(Rolls!$G$30='Trade Tables'!$B79,TRUE(),FALSE())","v":false},{"$f":"IF(Rolls!$G$31='Trade Tables'!$B79,TRUE(),FALSE())","v":false},{"$f":"IF(Rolls!$G$32='Trade Tables'!$B79,TRUE(),FALSE())","v":false},{"$f":"IF(Rolls!$G$33='Trade Tables'!$B79,TRUE(),FALSE())","v":false},null,null,null,null,null,null,null,null,null,null,{"$f":"IF($C$6>37,LOOKUP(Rolls!B83,'Trade Tables'!B$88:C$123),\"\")","v":""}]
[null,"Illegal Drugs",null,null,{"$f":"IF(OR(U53:AF53),CEILING(6*RAND(),1)*'Trade Tables'!D80,0)+IF(AG53,CEILING(6*RAND(),1)*'Trade Tables'!D80,0)+IF(AH53,CEILING(6*RAND(),1)*'Trade Tables'!D80,0)+IF(AI53,CEILING(6*RAND(),1)*'Trade Tables'!D80,0)+IF(AJ53,CEILING(6*RAND(),1)*'Trade Tables'!D80,0)+IF(AK53,CEILING(6*RAND(),1)*'Trade Tables'!D80,0)+IF(AL53,CEILING(6*RAND(),1)*'Trade Tables'!D80,0)","v":4},null,null,null,null,100000,null,null,null,null,null,null,null,null,null,null,{"$f":"IF(AND(World!$G$22=\"yes\",HLOOKUP(Trade!$B53,'Trade Tables'!$G$47:$AP$59,2,FALSE())=1),TRUE(),FALSE())","v":false},{"$f":"IF(AND(World!$G$23=\"yes\",HLOOKUP(Trade!$B53,'Trade Tables'!$G$47:$AP$59,3,FALSE())=1),TRUE(),FALSE())","v":false},{"$f":"IF(AND(World!$G$25=\"yes\",HLOOKUP(Trade!$B53,'Trade Tables'!$G$47:$AP$59,4,FALSE())=1),TRUE(),FALSE())","v":false},{"$f":"IF(AND(World!$G$26=\"yes\",HLOOKUP(Trade!$B53,'Trade Tables'!$G$47:$AP$59,5,FALSE())=1),TRUE(),FALSE())","v":false},{"$f":"IF(AND(World!$G$27=\"yes\",HLOOKUP(Trade!$B53,'Trade Tables'!$G$47:$AP$59,6,FALSE())=1),TRUE(),FALSE())","v":false},{"$f":"IF(AND(World!$G$28=\"yes\",HLOOKUP(Trade!$B53,'Trade Tables'!$G$47:$AP$59,7,FALSE())=1),TRUE(),FALSE())","v":true},{"$f":"IF(AND(World!$G$29=\"yes\",HLOOKUP(Trade!$B53,'Trade Tables'!$G$47:$AP$59,8,FALSE())=1),TRUE(),FALSE())","v":false},{"$f":"IF(AND(World!$G$30=\"yes\",HLOOKUP(Trade!$B53,'Trade Tables'!$G$47:$AP$59,9,FALSE())=1),TRUE(),FALSE())","v":false},{"$f":"IF(AND(World!$G$31=\"yes\",HLOOKUP(Trade!$B53,'Trade Tables'!$G$47:$AP$59,10,FALSE())=1),TRUE(),FALSE())","v":false},{"$f":"IF(AND(World!$G$32=\"yes\",HLOOKUP(Trade!$B53,'Trade Tables'!$G$47:$AP$59,11,FALSE())=1),TRUE(),FALSE())","v":false},{"$f":"IF(AND(World!$G$35=\"yes\",HLOOKUP(Trade!$B53,'Trade Tables'!$G$47:$AP$59,12,FALSE())=1),TRUE(),FALSE())","v":false},{"$f":"IF(AND(World!$G$38=\"yes\",HLOOKUP(Trade!$B53,'Trade Tables'!$G$47:$AP$59,13,FALSE())=1),TRUE(),FALSE())","v":false},{"$f":"IF(Rolls!$G$28='Trade Tables'!$B80,TRUE(),FALSE())","v":false},{"$f":"IF(Rolls!$G$29='Trade Tables'!$B80,TRUE(),FALSE())","v":false},{"$f":"IF(Rolls!$G$30='Trade Tables'!$B80,TRUE(),FALSE())","v":false},{"$f":"IF(Rolls!$G$31='Trade Tables'!$B80,TRUE(),FALSE())","v":false},{"$f":"IF(Rolls!$G$32='Trade Tables'!$B80,TRUE(),FALSE())","v":false},{"$f":"IF(Rolls!$G$33='Trade Tables'!$B80,TRUE(),FALSE())","v":false},null,null,null,null,null,null,null,null,null,null,{"$f":"IF($C$6>38,LOOKUP(Rolls!B84,'Trade Tables'!B$88:C$123),\"\")","v":""}]
[null,"Illegal Luxuries",null,null,{"$f":"IF(OR(U54:AF54),CEILING(6*RAND(),1)*'Trade Tables'!D81,0)+IF(AG54,CEILING(6*RAND(),1)*'Trade Tables'!D81,0)+IF(AH54,CEILING(6*RAND(),1)*'Trade Tables'!D81,0)+IF(AI54,CEILING(6*RAND(),1)*'Trade Tables'!D81,0)+IF(AJ54,CEILING(6*RAND(),1)*'Trade Tables'!D81,0)+IF(AK54,CEILING(6*RAND(),1)*'Trade Tables'!D81,0)+IF(AL54,CEILING(6*RAND(),1)*'Trade Tables'!D81,0)","v":0},null,null,null,null,50000,null,null,null,null,null,null,null,null,null,null,{"$f":"IF(AND(World!$G$22=\"yes\",HLOOKUP(Trade!$B54,'Trade Tables'!$G$47:$AP$59,2,FALSE())=1),TRUE(),FALSE())","v":false},{"$f":"IF(AND(World!$G$23=\"yes\",HLOOKUP(Trade!$B54,'Trade Tables'!$G$47:$AP$59,3,FALSE())=1),TRUE(),FALSE())","v":false},{"$f":"IF(AND(World!$G$25=\"yes\",HLOOKUP(Trade!$B54,'Trade Tables'!$G$47:$AP$59,4,FALSE())=1),TRUE(),FALSE())","v":false},{"$f":"IF(AND(World!$G$26=\"yes\",HLOOKUP(Trade!$B54,'Trade Tables'!$G$47:$AP$59,5,FALSE())=1),TRUE(),FALSE())","v":false},{"$f":"IF(AND(World!$G$27=\"yes\",HLOOKUP(Trade!$B54,'Trade Tables'!$G$47:$AP$59,6,FALSE())=1),TRUE(),FALSE())","v":false},{"$f":"IF(AND(World!$G$28=\"yes\",HLOOKUP(Trade!$B54,'Trade Tables'!$G$47:$AP$59,7,FALSE())=1),TRUE(),FALSE())","v":false},{"$f":"IF(AND(World!$G$29=\"yes\",HLOOKUP(Trade!$B54,'Trade Tables'!$G$47:$AP$59,8,FALSE())=1),TRUE(),FALSE())","v":false},{"$f":"IF(AND(World!$G$30=\"yes\",HLOOKUP(Trade!$B54,'Trade Tables'!$G$47:$AP$59,9,FALSE())=1),TRUE(),FALSE())","v":false},{"$f":"IF(AND(World!$G$31=\"yes\",HLOOKUP(Trade!$B54,'Trade Tables'!$G$47:$AP$59,10,FALSE())=1),TRUE(),FALSE())","v":false},{"$f":"IF(AND(World!$G$32=\"yes\",HLOOKUP(Trade!$B54,'Trade Tables'!$G$47:$AP$59,11,FALSE())=1),TRUE(),FALSE())","v":false},{"$f":"IF(AND(World!$G$35=\"yes\",HLOOKUP(Trade!$B54,'Trade Tables'!$G$47:$AP$59,12,FALSE())=1),TRUE(),FALSE())","v":false},{"$f":"IF(AND(World!$G$38=\"yes\",HLOOKUP(Trade!$B54,'Trade Tables'!$G$47:$AP$59,13,FALSE())=1),TRUE(),FALSE())","v":false},{"$f":"IF(Rolls!$G$28='Trade Tables'!$B81,TRUE(),FALSE())","v":false},{"$f":"IF(Rolls!$G$29='Trade Tables'!$B81,TRUE(),FALSE())","v":false},{"$f":"IF(Rolls!$G$30='Trade Tables'!$B81,TRUE(),FALSE())","v":false},{"$f":"IF(Rolls!$G$31='Trade Tables'!$B81,TRUE(),FALSE())","v":false},{"$f":"IF(Rolls!$G$32='Trade Tables'!$B81,TRUE(),FALSE())","v":false},{"$f":"IF(Rolls!$G$33='Trade Tables'!$B81,TRUE(),FALSE())","v":false},null,null,null,null,null,null,null,null,null,null,{"$f":"IF($C$6>39,LOOKUP(Rolls!B85,'Trade Tables'!B$88:C$123),\"\")","v":""}]
[null,"Illegal Weapons",null,null,{"$f":"IF(OR(U55:AF55),CEILING(6*RAND(),1)*'Trade Tables'!D82,0)+IF(AG55,CEILING(6*RAND(),1)*'Trade Tables'!D82,0)+IF(AH55,CEILING(6*RAND(),1)*'Trade Tables'!D82,0)+IF(AI55,CEILING(6*RAND(),1)*'Trade Tables'!D82,0)+IF(AJ55,CEILING(6*RAND(),1)*'Trade Tables'!D82,0)+IF(AK55,CEILING(6*RAND(),1)*'Trade Tables'!D82,0)+IF(AL55,CEILING(6*RAND(),1)*'Trade Tables'!D82,0)","v":0},null,null,null,null,150000,null,null,null,null,null,null,null,null,null,null,{"$f":"IF(AND(World!$G$22=\"yes\",HLOOKUP(Trade!$B55,'Trade Tables'!$G$47:$AP$59,2,FALSE())=1),TRUE(),FALSE())","v":false},{"$f":"IF(AND(World!$G$23=\"yes\",HLOOKUP(Trade!$B55,'Trade Tables'!$G$47:$AP$59,3,FALSE())=1),TRUE(),FALSE())","v":false},{"$f":"IF(AND(World!$G$25=\"yes\",HLOOKUP(Trade!$B55,'Trade Tables'!$G$47:$AP$59,4,FALSE())=1),TRUE(),FALSE())","v":false},{"$f":"IF(AND(World!$G$26=\"yes\",HLOOKUP(Trade!$B55,'Trade Tables'!$G$47:$AP$59,5,FALSE())=1),TRUE(),FALSE())","v":false},{"$f":"IF(AND(World!$G$27=\"yes\",HLOOKUP(Trade!$B55,'Trade Tables'!$G$47:$AP$59,6,FALSE())=1),TRUE(),FALSE())","v":false},{"$f":"IF(AND(World!$G$28=\"yes\",HLOOKUP(Trade!$B55,'Trade Tables'!$G$47:$AP$59,7,FALSE())=1),TRUE(),FALSE())","v":false},{"$f":"IF(AND(World!$G$29=\"yes\",HLOOKUP(Trade!$B55,'Trade Tables'!$G$47:$AP$59,8,FALSE())=1),TRUE(),FALSE())","v":false},{"$f":"IF(AND(World!$G$30=\"yes\",HLOOKUP(Trade!$B55,'Trade Tables'!$G$47:$AP$59,9,FALSE())=1),TRUE(),FALSE())","v":false},{"$f":"IF(AND(World!$G$31=\"yes\",HLOOKUP(Trade!$B55,'Trade Tables'!$G$47:$AP$59,10,FALSE())=1),TRUE(),FALSE())","v":false},{"$f":"IF(AND(World!$G$32=\"yes\",HLOOKUP(Trade!$B55,'Trade Tables'!$G$47:$AP$59,11,FALSE())=1),TRUE(),FALSE())","v":false},{"$f":"IF(AND(World!$G$35=\"yes\",HLOOKUP(Trade!$B55,'Trade Tables'!$G$47:$AP$59,12,FALSE())=1),TRUE(),FALSE())","v":false},{"$f":"IF(AND(World!$G$38=\"yes\",HLOOKUP(Trade!$B55,'Trade Tables'!$G$47:$AP$59,13,FALSE())=1),TRUE(),FALSE())","v":false},{"$f":"IF(Rolls!$G$28='Trade Tables'!$B82,TRUE(),FALSE())","v":false},{"$f":"IF(Rolls!$G$29='Trade Tables'!$B82,TRUE(),FALSE())","v":false},{"$f":"IF(Rolls!$G$30='Trade Tables'!$B82,TRUE(),FALSE())","v":false},{"$f":"IF(Rolls!$G$31='Trade Tables'!$B82,TRUE(),FALSE())","v":false},{"$f":"IF(Rolls!$G$32='Trade Tables'!$B82,TRUE(),FALSE())","v":false},{"$f":"IF(Rolls!$G$33='Trade Tables'!$B82,TRUE(),FALSE())","v":false},null,null,null,null,null,null,null,null,null,null,{"$f":"IF($C$6>40,LOOKUP(Rolls!B86,'Trade Tables'!B$88:C$123),\"\")","v":""}]
[null,"Exotics",null,null,{"$f":"IF(OR(U56:AF56),CEILING(6*RAND(),1)*'Trade Tables'!D83,0)+IF(AG56,CEILING(6*RAND(),1)*'Trade Tables'!D83,0)+IF(AH56,CEILING(6*RAND(),1)*'Trade Tables'!D83,0)+IF(AI56,CEILING(6*RAND(),1)*'Trade Tables'!D83,0)+IF(AJ56,CEILING(6*RAND(),1)*'Trade Tables'!D83,0)+IF(AK56,CEILING(6*RAND(),1)*'Trade Tables'!D83,0)+IF(AL56,CEILING(6*RAND(),1)*'Trade Tables'!D83,0)","v":0},null,null,null,null,"Varies",null,null,null,null,null,null,null,null,null,null,{"$f":"IF(AND(World!$G$22=\"yes\",HLOOKUP(Trade!$B56,'Trade Tables'!$G$47:$AP$59,2,FALSE())=1),TRUE(),FALSE())","v":false},{"$f":"IF(AND(World!$G$23=\"yes\",HLOOKUP(Trade!$B56,'Trade Tables'!$G$47:$AP$59,3,FALSE())=1),TRUE(),FALSE())","v":false},{"$f":"IF(AND(World!$G$25=\"yes\",HLOOKUP(Trade!$B56,'Trade Tables'!$G$47:$AP$59,4,FALSE())=1),TRUE(),FALSE())","v":false},{"$f":"IF(AND(World!$G$26=\"yes\",HLOOKUP(Trade!$B56,'Trade Tables'!$G$47:$AP$59,5,FALSE())=1),TRUE(),FALSE())","v":false},{"$f":"IF(AND(World!$G$27=\"yes\",HLOOKUP(Trade!$B56,'Trade Tables'!$G$47:$AP$59,6,FALSE())=1),TRUE(),FALSE())","v":false},{"$f":"IF(AND(World!$G$28=\"yes\",HLOOKUP(Trade!$B56,'Trade Tables'!$G$47:$AP$59,7,FALSE())=1),TRUE(),FALSE())","v":false},{"$f":"IF(AND(World!$G$29=\"yes\",HLOOKUP(Trade!$B56,'Trade Tables'!$G$47:$AP$59,8,FALSE())=1),TRUE(),FALSE())","v":false},{"$f":"IF(AND(World!$G$30=\"yes\",HLOOKUP(Trade!$B56,'Trade Tables'!$G$47:$AP$59,9,FALSE())=1),TRUE(),FALSE())","v":false},{"$f":"IF(AND(World!$G$31=\"yes\",HLOOKUP(Trade!$B56,'Trade Tables'!$G$47:$AP$59,10,FALSE())=1),TRUE(),FALSE())","v":false},{"$f":"IF(AND(World!$G$32=\"yes\",HLOOKUP(Trade!$B56,'Trade Tables'!$G$47:$AP$59,11,FALSE())=1),TRUE(),FALSE())","v":false},{"$f":"IF(AND(World!$G$35=\"yes\",HLOOKUP(Trade!$B56,'Trade Tables'!$G$47:$AP$59,12,FALSE())=1),TRUE(),FALSE())","v":false},{"$f":"IF(AND(World!$G$38=\"yes\",HLOOKUP(Trade!$B56,'Trade Tables'!$G$47:$AP$59,13,FALSE())=1),TRUE(),FALSE())","v":false},{"$f":"IF(Rolls!$G$28='Trade Tables'!$B83,TRUE(),FALSE())","v":false},{"$f":"IF(Rolls!$G$29='Trade Tables'!$B83,TRUE(),FALSE())","v":false},{"$f":"IF(Rolls!$G$30='Trade Tables'!$B83,TRUE(),FALSE())","v":true},{"$f":"IF(Rolls!$G$31='Trade Tables'!$B83,TRUE(),FALSE())","v":false},{"$f":"IF(Rolls!$G$32='Trade Tables'!$B83,TRUE(),FALSE())","v":false},{"$f":"IF(Rolls!$G$33='Trade Tables'!$B83,TRUE(),FALSE())","v":false},null,null,null,null,null,null,null,null,null,null,{"$f":"IF($C$6>41,LOOKUP(Rolls!B87,'Trade Tables'!B$88:C$123),\"\")","v":""}]
[null,null,null,null,null,null,null,null,null,null,null,null,null,null,null,null,null,null,null,null,null,null,null,null,null,null,null,null,null,null,null,null,null,null,null,null,null,null,null,null,null,null,null,null,null,null,null,null,{"$f":"IF($C$6>42,LOOKUP(Rolls!B88,'Trade Tables'!B$88:C$123),\"\")","v":""}]
[null,null,null,null,null,null,null,null,null,null,null,null,null,null,null,null,null,null,null,null,null,null,null,null,null,null,null,null,null,null,null,null,null,null,null,null,null,null,null,null,null,null,null,null,null,null,null,null,{"$f":"IF($C$6>43,LOOKUP(Rolls!B89,'Trade Tables'!B$88:C$123),\"\")","v":""}]
[null,null,null,null,null,null,null,null,null,null,null,null,null,null,null,null,null,null,null,null,null,null,null,null,null,null,null,null,null,null,null,null,null,null,null,null,null,null,null,null,null,null,null,null,null,null,null,null,{"$f":"IF($C$6>44,LOOKUP(Rolls!B90,'Trade Tables'!B$88:C$123),\"\")","v":""}]
[null,null,null,null,null,null,null,null,null,null,null,null,null,null,null,null,null,null,null,null,null,null,null,null,null,null,null,null,null,null,null,null,null,null,null,null,null,null,null,null,null,null,null,null,null,null,null,null,{"$f":"IF($C$6>45,LOOKUP(Rolls!B91,'Trade Tables'!B$88:C$123),\"\")","v":""}]
[null,null,null,null,null,null,null,null,null,null,null,null,null,null,null,null,null,null,null,null,null,null,null,null,null,null,null,null,null,null,null,null,null,null,null,null,null,null,null,null,null,null,null,null,null,null,null,null,{"$f":"IF($C$6>46,LOOKUP(Rolls!B92,'Trade Tables'!B$88:C$123),\"\")","v":""}]
[null,null,null,null,null,null,null,null,null,null,null,null,null,null,null,null,null,null,null,null,null,null,null,null,null,null,null,null,null,null,null,null,null,null,null,null,null,null,null,null,null,null,null,null,null,null,null,null,{"$f":"IF($C$6>47,LOOKUP(Rolls!B93,'Trade Tables'!B$88:C$123),\"\")","v":""}]
[null,null,null,null,null,null,null,null,null,null,null,null,null,null,null,null,null,null,null,null,null,null,null,null,null,null,null,null,null,null,null,null,null,null,null,null,null,null,null,null,null,null,null,null,null,null,null,null,{"$f":"IF($C$6>48,LOOKUP(Rolls!B94,'Trade Tables'!B$88:C$123),\"\")","v":""}]
[null,null,null,null,null,null,null,null,null,null,null,null,null,null,null,null,null,null,null,null,null,null,null,null,null,null,null,null,null,null,null,null,null,null,null,null,null,null,null,null,null,null,null,null,null,null,null,null,{"$f":"IF($C$6>49,LOOKUP(Rolls!B95,'Trade Tables'!B$88:C$123),\"\")","v":""}]
[null,null,null,null,null,null,null,null,null,null,null,null,null,null,null,null,null,null,null,null,null,null,null,null,null,null,null,null,null,null,null,null,null,null,null,null,null,null,null,null,null,null,null,null,null,null,null,null,{"$f":"IF($C$6>50,LOOKUP(Rolls!B96,'Trade Tables'!B$88:C$123),\"\")","v":""}]
[null,null,null,null,null,null,null,null,null,null,null,null,null,null,null,null,null,null,null,null,null,null,null,null,null,null,null,null,null,null,null,null,null,null,null,null,null,null,null,null,null,null,null,null,null,null,null,null,{"$f":"IF($C$6>51,LOOKUP(Rolls!B97,'Trade Tables'!B$88:C$123),\"\")","v":""}]
[null,null,null,null,null,null,null,null,null,null,null,null,null,null,null,null,null,null,null,null,null,null,null,null,null,null,null,null,null,null,null,null,null,null,null,null,null,null,null,null,null,null,null,null,null,null,null,null,{"$f":"IF($C$6>52,LOOKUP(Rolls!B98,'Trade Tables'!B$88:C$123),\"\")","v":""}]
[null,null,null,null,null,null,null,null,null,null,null,null,null,null,null,null,null,null,null,null,null,null,null,null,null,null,null,null,null,null,null,null,null,null,null,null,null,null,null,null,null,null,null,null,null,null,null,null,{"$f":"IF($C$6>53,LOOKUP(Rolls!B99,'Trade Tables'!B$88:C$123),\"\")","v":""}]

{"sheet":"World","index":2,"n_rows":39,"n_cols":8,"rows_kept":39,"cut":false,"hidden":false,"merged":[]}
[]
[null,"UWP: "]
[null,{"$f":"CONCATENATE(CONCATENATE(C7,\"     \",C8,\"    \",G7,DEC2HEX(Rolls!C2),DEC2HEX(Rolls!C3),DEC2HEX(Rolls!C5),DEC2HEX(Rolls!C6),DEC2HEX(Rolls!C7),DEC2HEX(Rolls!C12),\"-\",DEC2HEX(Rolls!C13),\" \"),CONCATENATE(IF(G22=\"yes\",CONCATENATE(\"  \",F22),\"\"),IF(G23=\"yes\",CONCATENATE(\"  \",F23),\"\"),IF(G24=\"yes\",CONCATENATE(\"  \",F24),\"\"),IF(G25=\"yes\",CONCATENATE(\"  \",F25),\"\"),IF(G26=\"yes\",CONCATENATE(\"  \",F26),\"\"),IF(G27=\"yes\",CONCATENATE(\"  \",F27),\"\"),IF(G28=\"yes\",CONCATENATE(\"  \",F28),\"\"),IF(G29=\"yes\",CONCATENATE(\"  \",F29),\"\"),IF(G30=\"yes\",CONCATENATE(\"  \",F30),\"\"),IF(G31=\"yes\",CONCATENATE(\"  \",F31),\"\"),IF(G32=\"yes\",CONCATENATE(\"  \",F32),\"\"),IF(G33=\"yes\",CONCATENATE(\"  \",F33),\"\"),IF(G34=\"yes\",CONCATENATE(\"  \",F34),\"\"),IF(G35=\"yes\",CONCATENATE(\"  \",F35),\"\"),IF(G36=\"yes\",CONCATENATE(\"  \",F36),\"\"),IF(G37=\"yes\",CONCATENATE(\"  \",F37),\"\"),IF(G38=\"yes\",CONCATENATE(\"  \",F38),\"\"),IF(G39=\"yes\",CONCATENATE(\"  \",F39),\"\")),\"      \",IF(C35=\"Amber\",\"A\",IF(C35=\"Red\",\"R\",\"\")))","v":"PLANET NAME     LOCATION    A686984-5   Ga  Hi  Lt      "}]
[]
[]
[null,"Planetary Info",null,null,null,"Starport"]
[null,"Name:","PLANET NAME",null,null,"Class:",{"$f":"LOOKUP(Rolls!C14,'Civilization Tables'!B22:C32)","v":"A"}]
[null,"Location:","LOCATION",{"$f":"IF(Rolls!E4=0,\"Middle of Habitable Zone\",IF(Rolls!F4=1,\"Hot End of Habitable Zone\",\"Cold End of Habitable Zone\"))","v":"Middle of Habitable Zone"},null,"Quality:",{"$f":"VLOOKUP(G7,'Civilization Tables'!E22:I27,2)","v":"Excellent"}]
[null,"Diameter (km):",{"$f":"((LOOKUP(Rolls!C2+1,'World Tables'!B4:C14)-LOOKUP(Rolls!C2,'World Tables'!B4:C14))*Rolls!E2)+LOOKUP(Rolls!C2,'World Tables'!B4:C14)","v":10366.26764564226},null,null,"Berthing Cost:",{"$f":"Rolls!C15*VLOOKUP(World!G7,'Civilization Tables'!E22:I27,3)","v":5000}]
[null,"Gravity(g):",{"$f":"((VLOOKUP(Rolls!C2+1,'World Tables'!B4:D15,3)-VLOOKUP(Rolls!C2,'World Tables'!B4:D15,3))*Rolls!E2)+VLOOKUP(Rolls!C2,'World Tables'!B4:D15,3)","v":0.79578345570528253},null,null,"Fuel Avaliable:",{"$f":"VLOOKUP(G7,'Civilization Tables'!E22:I27,4)","v":"Refined"}]
[null,"Atmosphere:",{"$f":"LOOKUP(Rolls!C3,'World Tables'!F4:G19)","v":"Dense"},null,null,"Facilities Avaliable:",{"$f":"VLOOKUP(G7,'Civilization Tables'!E22:I27,5)","v":"Shipyard (All), Repair"}]
[null,"Pressure(atm)",{"$f":"((VLOOKUP(Rolls!C3,'World Tables'!F4:J19,4)-VLOOKUP(Rolls!C3,'World Tables'!F4:J19,3))*Rolls!E3)+VLOOKUP(Rolls!C3,'World Tables'!F4:J19,3)","v":1.7226149347377975}]
[null,"Survival Gear Required:",{"$f":"IF(Rolls!C3=15,\"Unknown\",IF(ISBLANK(VLOOKUP(Rolls!C3,'World Tables'!F4:J19,5)),\"None\",VLOOKUP(Rolls!C3,'World Tables'!F4:J19,5)))","v":"None"},null,null,"Bases In System:","Naval",{"$f":"IF(Rolls!C16>=VLOOKUP(World!G$7,'Civilization Tables'!E$22:O$27,6),\"Yes\",\"No\")","v":"No"}]
[null,"Temperature(C):",{"$f":"IF(OR(Rolls!C3=1,Rolls!C3=0),\"Unstable\",VLOOKUP(Rolls!C4,'World Tables'!B19:D31,3))","v":"0 to 30"},null,null,null,"Scout",{"$f":"IF(Rolls!C17>=VLOOKUP(World!G$7,'Civilization Tables'!E$22:O$27,7),\"Yes\",\"No\")","v":"No"}]
[null,"Surface Liquid(%):",{"$f":"((VLOOKUP(Rolls!C5,'World Tables'!F24:H34,3)-VLOOKUP(Rolls!C5,'World Tables'!F24:H34,2))*Rolls!E5)+VLOOKUP(Rolls!C5,'World Tables'!F24:H34,2)","v":64.028292157570718},null,null,null,"Research",{"$f":"IF(Rolls!C18>=VLOOKUP(World!G$7,'Civilization Tables'!E$22:O$27,8),\"Yes\",\"No\")","v":"No"}]
[null,"Population at last Census",{"$f":"IF(Rolls!C6=0,0,((LOOKUP(Rolls!C6+1,'World Tables'!B36:C48)-LOOKUP(Rolls!C6,'World Tables'!B36:C48))*Rolls!E6)+LOOKUP(Rolls!C6,'World Tables'!B36:C48))","v":2060017371.6545868},null,null,null,"TAS",{"$f":"IF(Rolls!C19>=VLOOKUP(World!G$7,'Civilization Tables'!E$22:O$27,9),\"Yes\",\"No\")","v":"Yes"}]
[null,"Animal Life:",{"$f":"IF(OR(Animals!C21:R21),VLOOKUP(Rolls!F15,'Animal Tables'!A4:G9,Rolls!G15+1),\"None\")","v":"Echolocation"},null,null,null,"Pirate",{"$f":"IF(Rolls!C20>=VLOOKUP(World!G$7,'Civilization Tables'!E$22:O$27,10),\"Yes\",\"No\")","v":"No"}]
[null,null,null,null,null,null,"Imperial Consulate",{"$f":"IF(Rolls!C21>=VLOOKUP(World!G$7,'Civilization Tables'!E$22:O$27,11),\"Yes\",\"No\")","v":"Yes"}]
[null,"Government Info",null,null,null,null,"Gas Giant",{"$f":"IF(Rolls!F14>=10,\"No\",\"Yes\")","v":"Yes"}]
[null,"Dominant Government Type:",{"$f":"VLOOKUP(Rolls!C7,'Civilization Tables'!E4:L17,2)","v":"Civil Service Bureaucracy"}]
[null,"Other Factions: ","Type","Strength",null,"Trade Codes","Qualify?"]
[null,null,{"$f":"IF(Rolls!C$8>0,LOOKUP(Rolls!G8,'Civilization Tables'!E$4:F$17),\"\")","v":"Balkanisation"},{"$f":"IF(Rolls!C$8>0,LOOKUP(Rolls!E8,'Civilization Tables'!B$4:C$15),\"\")","v":"Fringe"},null,"Ag",{"$f":"IF(AND(Rolls!C$2>='Trade Tables'!G64,Rolls!C$2<='Trade Tables'!H64,Rolls!C$3>='Trade Tables'!I64,Rolls!C$3<='Trade Tables'!J64,Rolls!C$5>='Trade Tables'!K64,Rolls!C$5<='Trade Tables'!L64,Rolls!C$6>='Trade Tables'!M64,Rolls!C$6<='Trade Tables'!N64,Rolls!C$7>='Trade Tables'!O64,Rolls!C$7<='Trade Tables'!P64,Rolls!C$12>='Trade Tables'!Q64,Rolls!C$12<='Trade Tables'!R64,Rolls!C$13>='Trade Tables'!S64,Rolls!C$13<='Trade Tables'!T64),\"yes\",\"no\")","v":"no"}]
[null,null,{"$f":"IF(Rolls!C$8>1,LOOKUP(Rolls!G9,'Civilization Tables'!E$4:F$17),\"\")","v":""},{"$f":"IF(Rolls!C$8>1,LOOKUP(Rolls!E9,'Civilization Tables'!B$4:C$15),\"\")","v":""},null,"As",{"$f":"IF(AND(Rolls!C$2>='Trade Tables'!G65,Rolls!C$2<='Trade Tables'!H65,Rolls!C$3>='Trade Tables'!I65,Rolls!C$3<='Trade Tables'!J65,Rolls!C$5>='Trade Tables'!K65,Rolls!C$5<='Trade Tables'!L65,Rolls!C$6>='Trade Tables'!M65,Rolls!C$6<='Trade Tables'!N65,Rolls!C$7>='Trade Tables'!O65,Rolls!C$7<='Trade Tables'!P65,Rolls!C$12>='Trade Tables'!Q65,Rolls!C$12<='Trade Tables'!R65,Rolls!C$13>='Trade Tables'!S65,Rolls!C$13<='Trade Tables'!T65),\"yes\",\"no\")","v":"no"}]
[null,null,{"$f":"IF(Rolls!C$8>2,LOOKUP(Rolls!G10,'Civilization Tables'!E$4:F$17),\"\")","v":""},{"$f":"IF(Rolls!C$8>2,LOOKUP(Rolls!E10,'Civilization Tables'!B$4:C$15),\"\")","v":""},null,"Ba",{"$f":"IF(AND(Rolls!C$2>='Trade Tables'!G66,Rolls!C$2<='Trade Tables'!H66,Rolls!C$3>='Trade Tables'!I66,Rolls!C$3<='Trade Tables'!J66,Rolls!C$5>='Trade Tables'!K66,Rolls!C$5<='Trade Tables'!L66,Rolls!C$6>='Trade Tables'!M66,Rolls!C$6<='Trade Tables'!N66,Rolls!C$7>='Trade Tables'!O66,Rolls!C$7<='Trade Tables'!P66,Rolls!C$12>='Trade Tables'!Q66,Rolls!C$12<='Trade Tables'!R66,Rolls!C$13>='Trade Tables'!S66,Rolls!C$13<='Trade Tables'!T66),\"yes\",\"no\")","v":"no"}]
[null,null,{"$f":"IF(Rolls!C$8>3,LOOKUP(Rolls!G11,'Civilization Tables'!E$4:F$17),\"\")","v":""},{"$f":"IF(Rolls!C$8>3,LOOKUP(Rolls!E11,'Civilization Tables'!B$4:C$15),\"\")","v":""},null,"De",{"$f":"IF(AND(Rolls!C$2>='Trade Tables'!G67,Rolls!C$2<='Trade Tables'!H67,Rolls!C$3>='Trade Tables'!I67,Rolls!C$3<='Trade Tables'!J67,Rolls!C$5>='Trade Tables'!K67,Rolls!C$5<='Trade Tables'!L67,Rolls!C$6>='Trade Tables'!M67,Rolls!C$6<='Trade Tables'!N67,Rolls!C$7>='Trade Tables'!O67,Rolls!C$7<='Trade Tables'!P67,Rolls!C$12>='Trade Tables'!Q67,Rolls!C$12<='Trade Tables'!R67,Rolls!C$13>='Trade Tables'!S67,Rolls!C$13<='Trade Tables'!T67),\"yes\",\"no\")","v":"no"}]
[null,null,null,null,null,"Fl",{"$f":"IF(AND(Rolls!C$2>='Trade Tables'!G68,Rolls!C$2<='Trade Tables'!H68,Rolls!C$3>='Trade Tables'!I68,Rolls!C$3<='Trade Tables'!J68,Rolls!C$5>='Trade Tables'!K68,Rolls!C$5<='Trade Tables'!L68,Rolls!C$6>='Trade Tables'!M68,Rolls!C$6<='Trade Tables'!N68,Rolls!C$7>='Trade Tables'!O68,Rolls!C$7<='Trade Tables'!P68,Rolls!C$12>='Trade Tables'!Q68,Rolls!C$12<='Trade Tables'!R68,Rolls!C$13>='Trade Tables'!S68,Rolls!C$13<='Trade Tables'!T68),\"yes\",\"no\")","v":"no"}]
[null,"Law Info",null,null,null,"Ga",{"$f":"IF(AND(Rolls!C$2>='Trade Tables'!G69,Rolls!C$2<='Trade Tables'!H69,Rolls!C$3>='Trade Tables'!I69,Rolls!C$3<='Trade Tables'!J69,Rolls!C$5>='Trade Tables'!K69,Rolls!C$5<='Trade Tables'!L69,Rolls!C$6>='Trade Tables'!M69,Rolls!C$6<='Trade Tables'!N69,Rolls!C$7>='Trade Tables'!O69,Rolls!C$7<='Trade Tables'!P69,Rolls!C$12>='Trade Tables'!Q69,Rolls!C$12<='Trade Tables'!R69,Rolls!C$13>='Trade Tables'!S69,Rolls!C$13<='Trade Tables'!T69),\"yes\",\"no\")","v":"yes"}]
[null,"Law Level:",{"$f":"Rolls!C12","v":4},null,null,"Hi",{"$f":"IF(AND(Rolls!C$2>='Trade Tables'!G70,Rolls!C$2<='Trade Tables'!H70,Rolls!C$3>='Trade Tables'!I70,Rolls!C$3<='Trade Tables'!J70,Rolls!C$5>='Trade Tables'!K70,Rolls!C$5<='Trade Tables'!L70,Rolls!C$6>='Trade Tables'!M70,Rolls!C$6<='Trade Tables'!N70,Rolls!C$7>='Trade Tables'!O70,Rolls!C$7<='Trade Tables'!P70,Rolls!C$12>='Trade Tables'!Q70,Rolls!C$12<='Trade Tables'!R70,Rolls!C$13>='Trade Tables'!S70,Rolls!C$13<='Trade Tables'!T70),\"yes\",\"no\")","v":"yes"}]
[null,"Restrictions on:","Weapons",{"$f":"IF(VLOOKUP(Rolls!C$7,'Civilization Tables'!E$4:L$17,3)=1,\"yes\",\"No\")","v":"yes"},null,"Ht",{"$f":"IF(AND(Rolls!C$2>='Trade Tables'!G71,Rolls!C$2<='Trade Tables'!H71,Rolls!C$3>='Trade Tables'!I71,Rolls!C$3<='Trade Tables'!J71,Rolls!C$5>='Trade Tables'!K71,Rolls!C$5<='Trade Tables'!L71,Rolls!C$6>='Trade Tables'!M71,Rolls!C$6<='Trade Tables'!N71,Rolls!C$7>='Trade Tables'!O71,Rolls!C$7<='Trade Tables'!P71,Rolls!C$12>='Trade Tables'!Q71,Rolls!C$12<='Trade Tables'!R71,Rolls!C$13>='Trade Tables'!S71,Rolls!C$13<='Trade Tables'!T71),\"yes\",\"no\")","v":"no"}]
[null,null,"Drugs",{"$f":"IF(VLOOKUP(Rolls!C$7,'Civilization Tables'!E$4:L$17,4)=1,\"yes\",\"No\")","v":"yes"},null,"IC",{"$f":"IF(AND(Rolls!C$2>='Trade Tables'!G72,Rolls!C$2<='Trade Tables'!H72,Rolls!C$3>='Trade Tables'!I72,Rolls!C$3<='Trade Tables'!J72,Rolls!C$5>='Trade Tables'!K72,Rolls!C$5<='Trade Tables'!L72,Rolls!C$6>='Trade Tables'!M72,Rolls!C$6<='Trade Tables'!N72,Rolls!C$7>='Trade Tables'!O72,Rolls!C$7<='Trade Tables'!P72,Rolls!C$12>='Trade Tables'!Q72,Rolls!C$12<='Trade Tables'!R72,Rolls!C$13>='Trade Tables'!S72,Rolls!C$13<='Trade Tables'!T72),\"yes\",\"no\")","v":"no"}]
[null,null,"Information",{"$f":"IF(VLOOKUP(Rolls!C$7,'Civilization Tables'!E$4:L$17,5)=1,\"yes\",\"No\")","v":"No"},null,"In",{"$f":"IF(AND(Rolls!C$2>='Trade Tables'!G73,Rolls!C$2<='Trade Tables'!H73,OR(AND(Rolls!C$3>='Trade Tables'!I73,Rolls!C$3<='Trade Tables'!J73),Rolls!C$3=4,Rolls!C$3=7,Rolls!C$3=9),Rolls!C$5>='Trade Tables'!K73,Rolls!C$5<='Trade Tables'!L73,Rolls!C$6>='Trade Tables'!M73,Rolls!C$6<='Trade Tables'!N73,Rolls!C$7>='Trade Tables'!O73,Rolls!C$7<='Trade Tables'!P73,Rolls!C$12>='Trade Tables'!Q73,Rolls!C$12<='Trade Tables'!R73,Rolls!C$13>='Trade Tables'!S73,Rolls!C$13<='Trade Tables'!T73),\"yes\",\"no\")","v":"no"}]
[null,null,"Technology",{"$f":"IF(VLOOKUP(Rolls!C$7,'Civilization Tables'!E$4:L$17,6)=1,\"yes\",\"No\")","v":"No"},null,"Lo",{"$f":"IF(AND(Rolls!C$2>='Trade Tables'!G74,Rolls!C$2<='Trade Tables'!H74,Rolls!C$3>='Trade Tables'!I74,Rolls!C$3<='Trade Tables'!J74,Rolls!C$5>='Trade Tables'!K74,Rolls!C$5<='Trade Tables'!L74,Rolls!C$6>='Trade Tables'!M74,Rolls!C$6<='Trade Tables'!N74,Rolls!C$7>='Trade Tables'!O74,Rolls!C$7<='Trade Tables'!P74,Rolls!C$12>='Trade Tables'!Q74,Rolls!C$12<='Trade Tables'!R74,Rolls!C$13>='Trade Tables'!S74,Rolls!C$13<='Trade Tables'!T74),\"yes\",\"no\")","v":"no"}]
[null,null,"Travellers",{"$f":"IF(VLOOKUP(Rolls!C$7,'Civilization Tables'!E$4:L$17,7)=1,\"yes\",\"No\")","v":"No"},null,"Lt",{"$f":"IF(AND(Rolls!C$2>='Trade Tables'!G75,Rolls!C$2<='Trade Tables'!H75,Rolls!C$3>='Trade Tables'!I75,Rolls!C$3<='Trade Tables'!J75,Rolls!C$5>='Trade Tables'!K75,Rolls!C$5<='Trade Tables'!L75,Rolls!C$6>='Trade Tables'!M75,Rolls!C$6<='Trade Tables'!N75,Rolls!C$7>='Trade Tables'!O75,Rolls!C$7<='Trade Tables'!P75,Rolls!C$12>='Trade Tables'!Q75,Rolls!C$12<='Trade Tables'!R75,Rolls!C$13>='Trade Tables'!S75,Rolls!C$13<='Trade Tables'!T75),\"yes\",\"no\")","v":"yes"}]
[null,null,"Psionics",{"$f":"IF(VLOOKUP(Rolls!C$7,'Civilization Tables'!E$4:L$17,8)=1,\"yes\",\"No\")","v":"No"},null,"Na",{"$f":"IF(AND(Rolls!C$2>='Trade Tables'!G76,Rolls!C$2<='Trade Tables'!H76,Rolls!C$3>='Trade Tables'!I76,Rolls!C$3<='Trade Tables'!J76,Rolls!C$5>='Trade Tables'!K76,Rolls!C$5<='Trade Tables'!L76,Rolls!C$6>='Trade Tables'!M76,Rolls!C$6<='Trade Tables'!N76,Rolls!C$7>='Trade Tables'!O76,Rolls!C$7<='Trade Tables'!P76,Rolls!C$12>='Trade Tables'!Q76,Rolls!C$12<='Trade Tables'!R76,Rolls!C$13>='Trade Tables'!S76,Rolls!C$13<='Trade Tables'!T76),\"yes\",\"no\")","v":"no"}]
[null,"Zone Code:","FILL THIS IN",null,null,"NI",{"$f":"IF(AND(Rolls!C$2>='Trade Tables'!G77,Rolls!C$2<='Trade Tables'!H77,Rolls!C$3>='Trade Tables'!I77,Rolls!C$3<='Trade Tables'!J77,Rolls!C$5>='Trade Tables'!K77,Rolls!C$5<='Trade Tables'!L77,Rolls!C$6>='Trade Tables'!M77,Rolls!C$6<='Trade Tables'!N77,Rolls!C$7>='Trade Tables'!O77,Rolls!C$7<='Trade Tables'!P77,Rolls!C$12>='Trade Tables'!Q77,Rolls!C$12<='Trade Tables'!R77,Rolls!C$13>='Trade Tables'!S77,Rolls!C$13<='Trade Tables'!T77),\"yes\",\"no\")","v":"no"}]
[null,null,null,null,null,"Po",{"$f":"IF(AND(Rolls!C$2>='Trade Tables'!G78,Rolls!C$2<='Trade Tables'!H78,Rolls!C$3>='Trade Tables'!I78,Rolls!C$3<='Trade Tables'!J78,Rolls!C$5>='Trade Tables'!K78,Rolls!C$5<='Trade Tables'!L78,Rolls!C$6>='Trade Tables'!M78,Rolls!C$6<='Trade Tables'!N78,Rolls!C$7>='Trade Tables'!O78,Rolls!C$7<='Trade Tables'!P78,Rolls!C$12>='Trade Tables'!Q78,Rolls!C$12<='Trade Tables'!R78,Rolls!C$13>='Trade Tables'!S78,Rolls!C$13<='Trade Tables'!T78),\"yes\",\"no\")","v":"no"}]
[null,"Technology Info",null,null,null,"Ri",{"$f":"IF(AND(Rolls!C$2>='Trade Tables'!G79,Rolls!C$2<='Trade Tables'!H79,OR(Rolls!C$3='Trade Tables'!I79,Rolls!C$3='Trade Tables'!J79),Rolls!C$5>='Trade Tables'!K79,Rolls!C$5<='Trade Tables'!L79,Rolls!C$6>='Trade Tables'!M79,Rolls!C$6<='Trade Tables'!N79,Rolls!C$7>='Trade Tables'!O79,Rolls!C$7<='Trade Tables'!P79,Rolls!C$12>='Trade Tables'!Q79,Rolls!C$12<='Trade Tables'!R79,Rolls!C$13>='Trade Tables'!S79,Rolls!C$13<='Trade Tables'!T79),\"yes\",\"no\")","v":"no"}]
[null,"Tech Level:",{"$f":"Rolls!C13","v":5},null,null,"Wa",{"$f":"IF(AND(Rolls!C$2>='Trade Tables'!G80,Rolls!C$2<='Trade Tables'!H80,Rolls!C$3>='Trade Tables'!I80,Rolls!C$3<='Trade Tables'!J80,Rolls!C$5>='Trade Tables'!K80,Rolls!C$5<='Trade Tables'!L80,Rolls!C$6>='Trade Tables'!M80,Rolls!C$6<='Trade Tables'!N80,Rolls!C$7>='Trade Tables'!O80,Rolls!C$7<='Trade Tables'!P80,Rolls!C$12>='Trade Tables'!Q80,Rolls!C$12<='Trade Tables'!R80,Rolls!C$13>='Trade Tables'!S80,Rolls!C$13<='Trade Tables'!T80),\"yes\",\"no\")","v":"no"}]
[null,null,null,null,null,"Va",{"$f":"IF(AND(Rolls!C$2>='Trade Tables'!G81,Rolls!C$2<='Trade Tables'!H81,Rolls!C$3>='Trade Tables'!I81,Rolls!C$3<='Trade Tables'!J81,Rolls!C$5>='Trade Tables'!K81,Rolls!C$5<='Trade Tables'!L81,Rolls!C$6>='Trade Tables'!M81,Rolls!C$6<='Trade Tables'!N81,Rolls!C$7>='Trade Tables'!O81,Rolls!C$7<='Trade Tables'!P81,Rolls!C$12>='Trade Tables'!Q81,Rolls!C$12<='Trade Tables'!R81,Rolls!C$13>='Trade Tables'!S81,Rolls!C$13<='Trade Tables'!T81),\"yes\",\"no\")","v":"no"}]

{"sheet":"Animals","index":3,"n_rows":316,"n_cols":80,"rows_kept":316,"cut":false,"hidden":false,"merged":[]}
[]
[null,null,"Clear","Plain or Praire","Desert(hot or cold)","Hills, Foothills","Mountain","Forest","Woods","Jungle","Rainforest","Rough, Broken","Swamp, Marsh","Beach, Shore","Riverbank","Ocean Shallows","Open Ocean","Deep Ocean"]
[null,null,{"$f":"IF(AND(World!$G22=\"yes\",VLOOKUP(Animals!C$2,'Animal Tables'!$K$51:$AC$66,ROW(C3)-1,FALSE())),TRUE(),IF(World!$G22=\"no\",TRUE(),FALSE()))","v":true},{"$f":"IF(AND(World!$G22=\"yes\",VLOOKUP(Animals!D$2,'Animal Tables'!$K$51:$AC$66,ROW(D3)-1,FALSE())),TRUE(),IF(World!$G22=\"no\",TRUE(),FALSE()))","v":true},{"$f":"IF(AND(World!$G22=\"yes\",VLOOKUP(Animals!E$2,'Animal Tables'!$K$51:$AC$66,ROW(E3)-1,FALSE())),TRUE(),IF(World!$G22=\"no\",TRUE(),FALSE()))","v":true},{"$f":"IF(AND(World!$G22=\"yes\",VLOOKUP(Animals!F$2,'Animal Tables'!$K$51:$AC$66,ROW(F3)-1,FALSE())),TRUE(),IF(World!$G22=\"no\",TRUE(),FALSE()))","v":true},{"$f":"IF(AND(World!$G22=\"yes\",VLOOKUP(Animals!G$2,'Animal Tables'!$K$51:$AC$66,ROW(G3)-1,FALSE())),TRUE(),IF(World!$G22=\"no\",TRUE(),FALSE()))","v":true},{"$f":"IF(AND(World!$G22=\"yes\",VLOOKUP(Animals!H$2,'Animal Tables'!$K$51:$AC$66,ROW(H3)-1,FALSE())),TRUE(),IF(World!$G22=\"no\",TRUE(),FALSE()))","v":true},{"$f":"IF(AND(World!$G22=\"yes\",VLOOKUP(Animals!I$2,'Animal Tables'!$K$51:$AC$66,ROW(I3)-1,FALSE())),TRUE(),IF(World!$G22=\"no\",TRUE(),FALSE()))","v":true},{"$f":"IF(AND(World!$G22=\"yes\",VLOOKUP(Animals!J$2,'Animal Tables'!$K$51:$AC$66,ROW(J3)-1,FALSE())),TRUE(),IF(World!$G22=\"no\",TRUE(),FALSE()))","v":true},{"$f":"IF(AND(World!$G22=\"yes\",VLOOKUP(Animals!K$2,'Animal Tables'!$K$51:$AC$66,ROW(K3)-1,FALSE())),TRUE(),IF(World!$G22=\"no\",TRUE(),FALSE()))","v":true},{"$f":"IF(AND(World!$G22=\"yes\",VLOOKUP(Animals!L$2,'Animal Tables'!$K$51:$AC$66,ROW(L3)-1,FALSE())),TRUE(),IF(World!$G22=\"no\",TRUE(),FALSE()))","v":true},{"$f":"IF(AND(World!$G22=\"yes\",VLOOKUP(Animals!M$2,'Animal Tables'!$K$51:$AC$66,ROW(M3)-1,FALSE())),TRUE(),IF(World!$G22=\"no\",TRUE(),FALSE()))","v":true},{"$f":"IF(AND(World!$G22=\"yes\",VLOOKUP(Animals!N$2,'Animal Tables'!$K$51:$AC$66,ROW(N3)-1,FALSE())),TRUE(),IF(World!$G22=\"no\",TRUE(),FALSE()))","v":true},{"$f":"IF(AND(World!$G22=\"yes\",VLOOKUP(Animals!O$2,'Animal Tables'!$K$51:$AC$66,ROW(O3)-1,FALSE())),TRUE(),IF(World!$G22=\"no\",TRUE(),FALSE()))","v":true},{"$f":"IF(AND(World!$G22=\"yes\",VLOOKUP(Animals!P$2,'Animal Tables'!$K$51:$AC$66,ROW(P3)-1,FALSE())),TRUE(),IF(World!$G22=\"no\",TRUE(),FALSE()))","v":true},{"$f":"IF(AND(World!$G22=\"yes\",VLOOKUP(Animals!Q$2,'Animal Tables'!$K$51:$AC$66,ROW(Q3)-1,FALSE())),TRUE(),IF(World!$G22=\"no\",TRUE(),FALSE()))","v":true},{"$f":"IF(AND(World!$G22=\"yes\",VLOOKUP(Animals!R$2,'Animal Tables'!$K$51:$AC$66,ROW(R3)-1,FALSE())),TRUE(),IF(World!$G22=\"no\",TRUE(),FALSE()))","v":true}]
[null,null,{"$f":"IF(AND(World!$G23=\"yes\",VLOOKUP(Animals!C$2,'Animal Tables'!$K$51:$AC$66,ROW(C4)-1,FALSE())),TRUE(),IF(World!$G23=\"no\",TRUE(),FALSE()))","v":true},{"$f":"IF(AND(World!$G23=\"yes\",VLOOKUP(Animals!D$2,'Animal Tables'!$K$51:$AC$66,ROW(D4)-1,FALSE())),TRUE(),IF(World!$G23=\"no\",TRUE(),FALSE()))","v":true},{"$f":"IF(AND(World!$G23=\"yes\",VLOOKUP(Animals!E$2,'Animal Tables'!$K$51:$AC$66,ROW(E4)-1,FALSE())),TRUE(),IF(World!$G23=\"no\",TRUE(),FALSE()))","v":true},{"$f":"IF(AND(World!$G23=\"yes\",VLOOKUP(Animals!F$2,'Animal Tables'!$K$51:$AC$66,ROW(F4)-1,FALSE())),TRUE(),IF(World!$G23=\"no\",TRUE(),FALSE()))","v":true},{"$f":"IF(AND(World!$G23=\"yes\",VLOOKUP(Animals!G$2,'Animal Tables'!$K$51:$AC$66,ROW(G4)-1,FALSE())),TRUE(),IF(World!$G23=\"no\",TRUE(),FALSE()))","v":true},{"$f":"IF(AND(World!$G23=\"yes\",VLOOKUP(Animals!H$2,'Animal Tables'!$K$51:$AC$66,ROW(H4)-1,FALSE())),TRUE(),IF(World!$G23=\"no\",TRUE(),FALSE()))","v":true},{"$f":"IF(AND(World!$G23=\"yes\",VLOOKUP(Animals!I$2,'Animal Tables'!$K$51:$AC$66,ROW(I4)-1,FALSE())),TRUE(),IF(World!$G23=\"no\",TRUE(),FALSE()))","v":true},{"$f":"IF(AND(World!$G23=\"yes\",VLOOKUP(Animals!J$2,'Animal Tables'!$K$51:$AC$66,ROW(J4)-1,FALSE())),TRUE(),IF(World!$G23=\"no\",TRUE(),FALSE()))","v":true},{"$f":"IF(AND(World!$G23=\"yes\",VLOOKUP(Animals!K$2,'Animal Tables'!$K$51:$AC$66,ROW(K4)-1,FALSE())),TRUE(),IF(World!$G23=\"no\",TRUE(),FALSE()))","v":true},{"$f":"IF(AND(World!$G23=\"yes\",VLOOKUP(Animals!L$2,'Animal Tables'!$K$51:$AC$66,ROW(L4)-1,FALSE())),TRUE(),IF(World!$G23=\"no\",TRUE(),FALSE()))","v":true},{"$f":"IF(AND(World!$G23=\"yes\",VLOOKUP(Animals!M$2,'Animal Tables'!$K$51:$AC$66,ROW(M4)-1,FALSE())),TRUE(),IF(World!$G23=\"no\",TRUE(),FALSE()))","v":true},{"$f":"IF(AND(World!$G23=\"yes\",VLOOKUP(Animals!N$2,'Animal Tables'!$K$51:$AC$66,ROW(N4)-1,FALSE())),TRUE(),IF(World!$G23=\"no\",TRUE(),FALSE()))","v":true},{"$f":"IF(AND(World!$G23=\"yes\",VLOOKUP(Animals!O$2,'Animal Tables'!$K$51:$AC$66,ROW(O4)-1,FALSE())),TRUE(),IF(World!$G23=\"no\",TRUE(),FALSE()))","v":true},{"$f":"IF(AND(World!$G23=\"yes\",VLOOKUP(Animals!P$2,'Animal Tables'!$K$51:$AC$66,ROW(P4)-1,FALSE())),TRUE(),IF(World!$G23=\"no\",TRUE(),FALSE()))","v":true},{"$f":"IF(AND(World!$G23=\"yes\",VLOOKUP(Animals!Q$2,'Animal Tables'!$K$51:$AC$66,ROW(Q4)-1,FALSE())),TRUE(),IF(World!$G23=\"no\",TRUE(),FALSE()))","v":true},{"$f":"IF(AND(World!$G23=\"yes\",VLOOKUP(Animals!R$2,'Animal Tables'!$K$51:$AC$66,ROW(R4)-1,FALSE())),TRUE(),IF(World!$G23=\"no\",TRUE(),FALSE()))","v":true}]
[null,null,{"$f":"IF(AND(World!$G24=\"yes\",VLOOKUP(Animals!C$2,'Animal Tables'!$K$51:$AC$66,ROW(C5)-1,FALSE())),TRUE(),IF(World!$G24=\"no\",TRUE(),FALSE()))","v":true},{"$f":"IF(AND(World!$G24=\"yes\",VLOOKUP(Animals!D$2,'Animal Tables'!$K$51:$AC$66,ROW(D5)-1,FALSE())),TRUE(),IF(World!$G24=\"no\",TRUE(),FALSE()))","v":true},{"$f":"IF(AND(World!$G24=\"yes\",VLOOKUP(Animals!E$2,'Animal Tables'!$K$51:$AC$66,ROW(E5)-1,FALSE())),TRUE(),IF(World!$G24=\"no\",TRUE(),FALSE()))","v":true},{"$f":"IF(AND(World!$G24=\"yes\",VLOOKUP(Animals!F$2,'Animal Tables'!$K$51:$AC$66,ROW(F5)-1,FALSE())),TRUE(),IF(World!$G24=\"no\",TRUE(),FALSE()))","v":true},{"$f":"IF(AND(World!$G24=\"yes\",VLOOKUP(Animals!G$2,'Animal Tables'!$K$51:$AC$66,ROW(G5)-1,FALSE())),TRUE(),IF(World!$G24=\"no\",TRUE(),FALSE()))","v":true},{"$f":"IF(AND(World!$G24=\"yes\",VLOOKUP(Animals!H$2,'Animal Tables'!$K$51:$AC$66,ROW(H5)-1,FALSE())),TRUE(),IF(World!$G24=\"no\",TRUE(),FALSE()))","v":true},{"$f":"IF(AND(World!$G24=\"yes\",VLOOKUP(Animals!I$2,'Animal Tables'!$K$51:$AC$66,ROW(I5)-1,FALSE())),TRUE(),IF(World!$G24=\"no\",TRUE(),FALSE()))","v":true},{"$f":"IF(AND(World!$G24=\"yes\",VLOOKUP(Animals!J$2,'Animal Tables'!$K$51:$AC$66,ROW(J5)-1,FALSE())),TRUE(),IF(World!$G24=\"no\",TRUE(),FALSE()))","v":true},{"$f":"IF(AND(World!$G24=\"yes\",VLOOKUP(Animals!K$2,'Animal Tables'!$K$51:$AC$66,ROW(K5)-1,FALSE())),TRUE(),IF(World!$G24=\"no\",TRUE(),FALSE()))","v":true},{"$f":"IF(AND(World!$G24=\"yes\",VLOOKUP(Animals!L$2,'Animal Tables'!$K$51:$AC$66,ROW(L5)-1,FALSE())),TRUE(),IF(World!$G24=\"no\",TRUE(),FALSE()))","v":true},{"$f":"IF(AND(World!$G24=\"yes\",VLOOKUP(Animals!M$2,'Animal Tables'!$K$51:$AC$66,ROW(M5)-1,FALSE())),TRUE(),IF(World!$G24=\"no\",TRUE(),FALSE()))","v":true},{"$f":"IF(AND(World!$G24=\"yes\",VLOOKUP(Animals!N$2,'Animal Tables'!$K$51:$AC$66,ROW(N5)-1,FALSE())),TRUE(),IF(World!$G24=\"no\",TRUE(),FALSE()))","v":true},{"$f":"IF(AND(World!$G24=\"yes\",VLOOKUP(Animals!O$2,'Animal Tables'!$K$51:$AC$66,ROW(O5)-1,FALSE())),TRUE(),IF(World!$G24=\"no\",TRUE(),FALSE()))","v":true},{"$f":"IF(AND(World!$G24=\"yes\",VLOOKUP(Animals!P$2,'Animal Tables'!$K$51:$AC$66,ROW(P5)-1,FALSE())),TRUE(),IF(World!$G24=\"no\",TRUE(),FALSE()))","v":true},{"$f":"IF(AND(World!$G24=\"yes\",VLOOKUP(Animals!Q$2,'Animal Tables'!$K$51:$AC$66,ROW(Q5)-1,FALSE())),TRUE(),IF(World!$G24=\"no\",TRUE(),FALSE()))","v":true},{"$f":"IF(AND(World!$G24=\"yes\",VLOOKUP(Animals!R$2,'Animal Tables'!$K$51:$AC$66,ROW(R5)-1,FALSE())),TRUE(),IF(World!$G24=\"no\",TRUE(),FALSE()))","v":true}]
[null,null,{"$f":"IF(AND(World!$G25=\"yes\",VLOOKUP(Animals!C$2,'Animal Tables'!$K$51:$AC$66,ROW(C6)-1,FALSE())),TRUE(),IF(World!$G25=\"no\",TRUE(),FALSE()))","v":true},{"$f":"IF(AND(World!$G25=\"yes\",VLOOKUP(Animals!D$2,'Animal Tables'!$K$51:$AC$66,ROW(D6)-1,FALSE())),TRUE(),IF(World!$G25=\"no\",TRUE(),FALSE()))","v":true},{"$f":"IF(AND(World!$G25=\"yes\",VLOOKUP(Animals!E$2,'Animal Tables'!$K$51:$AC$66,ROW(E6)-1,FALSE())),TRUE(),IF(World!$G25=\"no\",TRUE(),FALSE()))","v":true},{"$f":"IF(AND(World!$G25=\"yes\",VLOOKUP(Animals!F$2,'Animal Tables'!$K$51:$AC$66,ROW(F6)-1,FALSE())),TRUE(),IF(World!$G25=\"no\",TRUE(),FALSE()))","v":true},{"$f":"IF(AND(World!$G25=\"yes\",VLOOKUP(Animals!G$2,'Animal Tables'!$K$51:$AC$66,ROW(G6)-1,FALSE())),TRUE(),IF(World!$G25=\"no\",TRUE(),FALSE()))","v":true},{"$f":"IF(AND(World!$G25=\"yes\",VLOOKUP(Animals!H$2,'Animal Tables'!$K$51:$AC$66,ROW(H6)-1,FALSE())),TRUE(),IF(World!$G25=\"no\",TRUE(),FALSE()))","v":true},{"$f":"IF(AND(World!$G25=\"yes\",VLOOKUP(Animals!I$2,'Animal Tables'!$K$51:$AC$66,ROW(I6)-1,FALSE())),TRUE(),IF(World!$G25=\"no\",TRUE(),FALSE()))","v":true},{"$f":"IF(AND(World!$G25=\"yes\",VLOOKUP(Animals!J$2,'Animal Tables'!$K$51:$AC$66,ROW(J6)-1,FALSE())),TRUE(),IF(World!$G25=\"no\",TRUE(),FALSE()))","v":true},{"$f":"IF(AND(World!$G25=\"yes\",VLOOKUP(Animals!K$2,'Animal Tables'!$K$51:$AC$66,ROW(K6)-1,FALSE())),TRUE(),IF(World!$G25=\"no\",TRUE(),FALSE()))","v":true},{"$f":"IF(AND(World!$G25=\"yes\",VLOOKUP(Animals!L$2,'Animal Tables'!$K$51:$AC$66,ROW(L6)-1,FALSE())),TRUE(),IF(World!$G25=\"no\",TRUE(),FALSE()))","v":true},{"$f":"IF(AND(World!$G25=\"yes\",VLOOKUP(Animals!M$2,'Animal Tables'!$K$51:$AC$66,ROW(M6)-1,FALSE())),TRUE(),IF(World!$G25=\"no\",TRUE(),FALSE()))","v":true},{"$f":"IF(AND(World!$G25=\"yes\",VLOOKUP(Animals!N$2,'Animal Tables'!$K$51:$AC$66,ROW(N6)-1,FALSE())),TRUE(),IF(World!$G25=\"no\",TRUE(),FALSE()))","v":true},{"$f":"IF(AND(World!$G25=\"yes\",VLOOKUP(Animals!O$2,'Animal Tables'!$K$51:$AC$66,ROW(O6)-1,FALSE())),TRUE(),IF(World!$G25=\"no\",TRUE(),FALSE()))","v":true},{"$f":"IF(AND(World!$G25=\"yes\",VLOOKUP(Animals!P$2,'Animal Tables'!$K$51:$AC$66,ROW(P6)-1,FALSE())),TRUE(),IF(World!$G25=\"no\",TRUE(),FALSE()))","v":true},{"$f":"IF(AND(World!$G25=\"yes\",VLOOKUP(Animals!Q$2,'Animal Tables'!$K$51:$AC$66,ROW(Q6)-1,FALSE())),TRUE(),IF(World!$G25=\"no\",TRUE(),FALSE()))","v":true},{"$f":"IF(AND(World!$G25=\"yes\",VLOOKUP(Animals!R$2,'Animal Tables'!$K$51:$AC$66,ROW(R6)-1,FALSE())),TRUE(),IF(World!$G25=\"no\",TRUE(),FALSE()))","v":true}]
[null,null,{"$f":"IF(AND(World!$G26=\"yes\",VLOOKUP(Animals!C$2,'Animal Tables'!$K$51:$AC$66,ROW(C7)-1,FALSE())),TRUE(),IF(World!$G26=\"no\",TRUE(),FALSE()))","v":true},{"$f":"IF(AND(World!$G26=\"yes\",VLOOKUP(Animals!D$2,'Animal Tables'!$K$51:$AC$66,ROW(D7)-1,FALSE())),TRUE(),IF(World!$G26=\"no\",TRUE(),FALSE()))","v":true},{"$f":"IF(AND(World!$G26=\"yes\",VLOOKUP(Animals!E$2,'Animal Tables'!$K$51:$AC$66,ROW(E7)-1,FALSE())),TRUE(),IF(World!$G26=\"no\",TRUE(),FALSE()))","v":true},{"$f":"IF(AND(World!$G26=\"yes\",VLOOKUP(Animals!F$2,'Animal Tables'!$K$51:$AC$66,ROW(F7)-1,FALSE())),TRUE(),IF(World!$G26=\"no\",TRUE(),FALSE()))","v":true},{"$f":"IF(AND(World!$G26=\"yes\",VLOOKUP(Animals!G$2,'Animal Tables'!$K$51:$AC$66,ROW(G7)-1,FALSE())),TRUE(),IF(World!$G26=\"no\",TRUE(),FALSE()))","v":true},{"$f":"IF(AND(World!$G26=\"yes\",VLOOKUP(Animals!H$2,'Animal Tables'!$K$51:$AC$66,ROW(H7)-1,FALSE())),TRUE(),IF(World!$G26=\"no\",TRUE(),FALSE()))","v":true},{"$f":"IF(AND(World!$G26=\"yes\",VLOOKUP(Animals!I$2,'Animal Tables'!$K$51:$AC$66,ROW(I7)-1,FALSE())),TRUE(),IF(World!$G26=\"no\",TRUE(),FALSE()))","v":true},{"$f":"IF(AND(World!$G26=\"yes\",VLOOKUP(Animals!J$2,'Animal Tables'!$K$51:$AC$66,ROW(J7)-1,FALSE())),TRUE(),IF(World!$G26=\"no\",TRUE(),FALSE()))","v":true},{"$f":"IF(AND(World!$G26=\"yes\",VLOOKUP(Animals!K$2,'Animal Tables'!$K$51:$AC$66,ROW(K7)-1,FALSE())),TRUE(),IF(World!$G26=\"no\",TRUE(),FALSE()))","v":true},{"$f":"IF(AND(World!$G26=\"yes\",VLOOKUP(Animals!L$2,'Animal Tables'!$K$51:$AC$66,ROW(L7)-1,FALSE())),TRUE(),IF(World!$G26=\"no\",TRUE(),FALSE()))","v":true},{"$f":"IF(AND(World!$G26=\"yes\",VLOOKUP(Animals!M$2,'Animal Tables'!$K$51:$AC$66,ROW(M7)-1,FALSE())),TRUE(),IF(World!$G26=\"no\",TRUE(),FALSE()))","v":true},{"$f":"IF(AND(World!$G26=\"yes\",VLOOKUP(Animals!N$2,'Animal Tables'!$K$51:$AC$66,ROW(N7)-1,FALSE())),TRUE(),IF(World!$G26=\"no\",TRUE(),FALSE()))","v":true},{"$f":"IF(AND(World!$G26=\"yes\",VLOOKUP(Animals!O$2,'Animal Tables'!$K$51:$AC$66,ROW(O7)-1,FALSE())),TRUE(),IF(World!$G26=\"no\",TRUE(),FALSE()))","v":true},{"$f":"IF(AND(World!$G26=\"yes\",VLOOKUP(Animals!P$2,'Animal Tables'!$K$51:$AC$66,ROW(P7)-1,FALSE())),TRUE(),IF(World!$G26=\"no\",TRUE(),FALSE()))","v":true},{"$f":"IF(AND(World!$G26=\"yes\",VLOOKUP(Animals!Q$2,'Animal Tables'!$K$51:$AC$66,ROW(Q7)-1,FALSE())),TRUE(),IF(World!$G26=\"no\",TRUE(),FALSE()))","v":true},{"$f":"IF(AND(World!$G26=\"yes\",VLOOKUP(Animals!R$2,'Animal Tables'!$K$51:$AC$66,ROW(R7)-1,FALSE())),TRUE(),IF(World!$G26=\"no\",TRUE(),FALSE()))","v":true}]
[null,null,{"$f":"IF(AND(World!$G27=\"yes\",VLOOKUP(Animals!C$2,'Animal Tables'!$K$51:$AC$66,ROW(C8)-1,FALSE())),TRUE(),IF(World!$G27=\"no\",TRUE(),FALSE()))","v":true},{"$f":"IF(AND(World!$G27=\"yes\",VLOOKUP(Animals!D$2,'Animal Tables'!$K$51:$AC$66,ROW(D8)-1,FALSE())),TRUE(),IF(World!$G27=\"no\",TRUE(),FALSE()))","v":true},{"$f":"IF(AND(World!$G27=\"yes\",VLOOKUP(Animals!E$2,'Animal Tables'!$K$51:$AC$66,ROW(E8)-1,FALSE())),TRUE(),IF(World!$G27=\"no\",TRUE(),FALSE()))","v":true},{"$f":"IF(AND(World!$G27=\"yes\",VLOOKUP(Animals!F$2,'Animal Tables'!$K$51:$AC$66,ROW(F8)-1,FALSE())),TRUE(),IF(World!$G27=\"no\",TRUE(),FALSE()))","v":true},{"$f":"IF(AND(World!$G27=\"yes\",VLOOKUP(Animals!G$2,'Animal Tables'!$K$51:$AC$66,ROW(G8)-1,FALSE())),TRUE(),IF(World!$G27=\"no\",TRUE(),FALSE()))","v":true},{"$f":"IF(AND(World!$G27=\"yes\",VLOOKUP(Animals!H$2,'Animal Tables'!$K$51:$AC$66,ROW(H8)-1,FALSE())),TRUE(),IF(World!$G27=\"no\",TRUE(),FALSE()))","v":true},{"$f":"IF(AND(World!$G27=\"yes\",VLOOKUP(Animals!I$2,'Animal Tables'!$K$51:$AC$66,ROW(I8)-1,FALSE())),TRUE(),IF(World!$G27=\"no\",TRUE(),FALSE()))","v":true},{"$f":"IF(AND(World!$G27=\"yes\",VLOOKUP(Animals!J$2,'Animal Tables'!$K$51:$AC$66,ROW(J8)-1,FALSE())),TRUE(),IF(World!$G27=\"no\",TRUE(),FALSE()))","v":true},{"$f":"IF(AND(World!$G27=\"yes\",VLOOKUP(Animals!K$2,'Animal Tables'!$K$51:$AC$66,ROW(K8)-1,FALSE())),TRUE(),IF(World!$G27=\"no\",TRUE(),FALSE()))","v":true},{"$f":"IF(AND(World!$G27=\"yes\",VLOOKUP(Animals!L$2,'Animal Tables'!$K$51:$AC$66,ROW(L8)-1,FALSE())),TRUE(),IF(World!$G27=\"no\",TRUE(),FALSE()))","v":true},{"$f":"IF(AND(World!$G27=\"yes\",VLOOKUP(Animals!M$2,'Animal Tables'!$K$51:$AC$66,ROW(M8)-1,FALSE())),TRUE(),IF(World!$G27=\"no\",TRUE(),FALSE()))","v":true},{"$f":"IF(AND(World!$G27=\"yes\",VLOOKUP(Animals!N$2,'Animal Tables'!$K$51:$AC$66,ROW(N8)-1,FALSE())),TRUE(),IF(World!$G27=\"no\",TRUE(),FALSE()))","v":true},{"$f":"IF(AND(World!$G27=\"yes\",VLOOKUP(Animals!O$2,'Animal Tables'!$K$51:$AC$66,ROW(O8)-1,FALSE())),TRUE(),IF(World!$G27=\"no\",TRUE(),FALSE()))","v":true},{"$f":"IF(AND(World!$G27=\"yes\",VLOOKUP(Animals!P$2,'Animal Tables'!$K$51:$AC$66,ROW(P8)-1,FALSE())),TRUE(),IF(World!$G27=\"no\",TRUE(),FALSE()))","v":true},{"$f":"IF(AND(World!$G27=\"yes\",VLOOKUP(Animals!Q$2,'Animal Tables'!$K$51:$AC$66,ROW(Q8)-1,FALSE())),TRUE(),IF(World!$G27=\"no\",TRUE(),FALSE()))","v":true},{"$f":"IF(AND(World!$G27=\"yes\",VLOOKUP(Animals!R$2,'Animal Tables'!$K$51:$AC$66,ROW(R8)-1,FALSE())),TRUE(),IF(World!$G27=\"no\",TRUE(),FALSE()))","v":true}]
[null,null,{"$f":"IF(AND(World!$G28=\"yes\",VLOOKUP(Animals!C$2,'Animal Tables'!$K$51:$AC$66,ROW(C9)-1,FALSE())),TRUE(),IF(World!$G28=\"no\",TRUE(),FALSE()))","v":false},{"$f":"IF(AND(World!$G28=\"yes\",VLOOKUP(Animals!D$2,'Animal Tables'!$K$51:$AC$66,ROW(D9)-1,FALSE())),TRUE(),IF(World!$G28=\"no\",TRUE(),FALSE()))","v":false},{"$f":"IF(AND(World!$G28=\"yes\",VLOOKUP(Animals!E$2,'Animal Tables'!$K$51:$AC$66,ROW(E9)-1,FALSE())),TRUE(),IF(World!$G28=\"no\",TRUE(),FALSE()))","v":true},{"$f":"IF(AND(World!$G28=\"yes\",VLOOKUP(Animals!F$2,'Animal Tables'!$K$51:$AC$66,ROW(F9)-1,FALSE())),TRUE(),IF(World!$G28=\"no\",TRUE(),FALSE()))","v":true},{"$f":"IF(AND(World!$G28=\"yes\",VLOOKUP(Animals!G$2,'Animal Tables'!$K$51:$AC$66,ROW(G9)-1,FALSE())),TRUE(),IF(World!$G28=\"no\",TRUE(),FALSE()))","v":true},{"$f":"IF(AND(World!$G28=\"yes\",VLOOKUP(Animals!H$2,'Animal Tables'!$K$51:$AC$66,ROW(H9)-1,FALSE())),TRUE(),IF(World!$G28=\"no\",TRUE(),FALSE()))","v":false},{"$f":"IF(AND(World!$G28=\"yes\",VLOOKUP(Animals!I$2,'Animal Tables'!$K$51:$AC$66,ROW(I9)-1,FALSE())),TRUE(),IF(World!$G28=\"no\",TRUE(),FALSE()))","v":false},{"$f":"IF(AND(World!$G28=\"yes\",VLOOKUP(Animals!J$2,'Animal Tables'!$K$51:$AC$66,ROW(J9)-1,FALSE())),TRUE(),IF(World!$G28=\"no\",TRUE(),FALSE()))","v":false},{"$f":"IF(AND(World!$G28=\"yes\",VLOOKUP(Animals!K$2,'Animal Tables'!$K$51:$AC$66,ROW(K9)-1,FALSE())),TRUE(),IF(World!$G28=\"no\",TRUE(),FALSE()))","v":false},{"$f":"IF(AND(World!$G28=\"yes\",VLOOKUP(Animals!L$2,'Animal Tables'!$K$51:$AC$66,ROW(L9)-1,FALSE())),TRUE(),IF(World!$G28=\"no\",TRUE(),FALSE()))","v":true},{"$f":"IF(AND(World!$G28=\"yes\",VLOOKUP(Animals!M$2,'Animal Tables'!$K$51:$AC$66,ROW(M9)-1,FALSE())),TRUE(),IF(World!$G28=\"no\",TRUE(),FALSE()))","v":true},{"$f":"IF(AND(World!$G28=\"yes\",VLOOKUP(Animals!N$2,'Animal Tables'!$K$51:$AC$66,ROW(N9)-1,FALSE())),TRUE(),IF(World!$G28=\"no\",TRUE(),FALSE()))","v":true},{"$f":"IF(AND(World!$G28=\"yes\",VLOOKUP(Animals!O$2,'Animal Tables'!$K$51:$AC$66,ROW(O9)-1,FALSE())),TRUE(),IF(World!$G28=\"no\",TRUE(),FALSE()))","v":true},{"$f":"IF(AND(World!$G28=\"yes\",VLOOKUP(Animals!P$2,'Animal Tables'!$K$51:$AC$66,ROW(P9)-1,FALSE())),TRUE(),IF(World!$G28=\"no\",TRUE(),FALSE()))","v":true},{"$f":"IF(AND(World!$G28=\"yes\",VLOOKUP(Animals!Q$2,'Animal Tables'!$K$51:$AC$66,ROW(Q9)-1,FALSE())),TRUE(),IF(World!$G28=\"no\",TRUE(),FALSE()))","v":true},{"$f":"IF(AND(World!$G28=\"yes\",VLOOKUP(Animals!R$2,'Animal Tables'!$K$51:$AC$66,ROW(R9)-1,FALSE())),TRUE(),IF(World!$G28=\"no\",TRUE(),FALSE()))","v":true}]
[null,null,{"$f":"IF(AND(World!$G29=\"yes\",VLOOKUP(Animals!C$2,'Animal Tables'!$K$51:$AC$66,ROW(C10)-1,FALSE())),TRUE(),IF(World!$G29=\"no\",TRUE(),FALSE()))","v":true},{"$f":"IF(AND(World!$G29=\"yes\",VLOOKUP(Animals!D$2,'Animal Tables'!$K$51:$AC$66,ROW(D10)-1,FALSE())),TRUE(),IF(World!$G29=\"no\",TRUE(),FALSE()))","v":true},{"$f":"IF(AND(World!$G29=\"yes\",VLOOKUP(Animals!E$2,'Animal Tables'!$K$51:$AC$66,ROW(E10)-1,FALSE())),TRUE(),IF(World!$G29=\"no\",TRUE(),FALSE()))","v":true},{"$f":"IF(AND(World!$G29=\"yes\",VLOOKUP(Animals!F$2,'Animal Tables'!$K$51:$AC$66,ROW(F10)-1,FALSE())),TRUE(),IF(World!$G29=\"no\",TRUE(),FALSE()))","v":true},{"$f":"IF(AND(World!$G29=\"yes\",VLOOKUP(Animals!G$2,'Animal Tables'!$K$51:$AC$66,ROW(G10)-1,FALSE())),TRUE(),IF(World!$G29=\"no\",TRUE(),FALSE()))","v":true},{"$f":"IF(AND(World!$G29=\"yes\",VLOOKUP(Animals!H$2,'Animal Tables'!$K$51:$AC$66,ROW(H10)-1,FALSE())),TRUE(),IF(World!$G29=\"no\",TRUE(),FALSE()))","v":true},{"$f":"IF(AND(World!$G29=\"yes\",VLOOKUP(Animals!I$2,'Animal Tables'!$K$51:$AC$66,ROW(I10)-1,FALSE())),TRUE(),IF(World!$G29=\"no\",TRUE(),FALSE()))","v":true},{"$f":"IF(AND(World!$G29=\"yes\",VLOOKUP(Animals!J$2,'Animal Tables'!$K$51:$AC$66,ROW(J10)-1,FALSE())),TRUE(),IF(World!$G29=\"no\",TRUE(),FALSE()))","v":true},{"$f":"IF(AND(World!$G29=\"yes\",VLOOKUP(Animals!K$2,'Animal Tables'!$K$51:$AC$66,ROW(K10)-1,FALSE())),TRUE(),IF(World!$G29=\"no\",TRUE(),FALSE()))","v":true},{"$f":"IF(AND(World!$G29=\"yes\",VLOOKUP(Animals!L$2,'Animal Tables'!$K$51:$AC$66,ROW(L10)-1,FALSE())),TRUE(),IF(World!$G29=\"no\",TRUE(),FALSE()))","v":true},{"$f":"IF(AND(World!$G29=\"yes\",VLOOKUP(Animals!M$2,'Animal Tables'!$K$51:$AC$66,ROW(M10)-1,FALSE())),TRUE(),IF(World!$G29=\"no\",TRUE(),FALSE()))","v":true},{"$f":"IF(AND(World!$G29=\"yes\",VLOOKUP(Animals!N$2,'Animal Tables'!$K$51:$AC$66,ROW(N10)-1,FALSE())),TRUE(),IF(World!$G29=\"no\",TRUE(),FALSE()))","v":true},{"$f":"IF(AND(World!$G29=\"yes\",VLOOKUP(Animals!O$2,'Animal Tables'!$K$51:$AC$66,ROW(O10)-1,FALSE())),TRUE(),IF(World!$G29=\"no\",TRUE(),FALSE()))","v":true},{"$f":"IF(AND(World!$G29=\"yes\",VLOOKUP(Animals!P$2,'Animal Tables'!$K$51:$AC$66,ROW(P10)-1,FALSE())),TRUE(),IF(World!$G29=\"no\",TRUE(),FALSE()))","v":true},{"$f":"IF(AND(World!$G29=\"yes\",VLOOKUP(Animals!Q$2,'Animal Tables'!$K$51:$AC$66,ROW(Q10)-1,FALSE())),TRUE(),IF(World!$G29=\"no\",TRUE(),FALSE()))","v":true},{"$f":"IF(AND(World!$G29=\"yes\",VLOOKUP(Animals!R$2,'Animal Tables'!$K$51:$AC$66,ROW(R10)-1,FALSE())),TRUE(),IF(World!$G29=\"no\",TRUE(),FALSE()))","v":true}]
[null,null,{"$f":"IF(AND(World!$G30=\"yes\",VLOOKUP(Animals!C$2,'Animal Tables'!$K$51:$AC$66,ROW(C11)-1,FALSE())),TRUE(),IF(World!$G30=\"no\",TRUE(),FALSE()))","v":true},{"$f":"IF(AND(World!$G30=\"yes\",VLOOKUP(Animals!D$2,'Animal Tables'!$K$51:$AC$66,ROW(D11)-1,FALSE())),TRUE(),IF(World!$G30=\"no\",TRUE(),FALSE()))","v":true},{"$f":"IF(AND(World!$G30=\"yes\",VLOOKUP(Animals!E$2,'Animal Tables'!$K$51:$AC$66,ROW(E11)-1,FALSE())),TRUE(),IF(World!$G30=\"no\",TRUE(),FALSE()))","v":true},{"$f":"IF(AND(World!$G30=\"yes\",VLOOKUP(Animals!F$2,'Animal Tables'!$K$51:$AC$66,ROW(F11)-1,FALSE())),TRUE(),IF(World!$G30=\"no\",TRUE(),FALSE()))","v":true},{"$f":"IF(AND(World!$G30=\"yes\",VLOOKUP(Animals!G$2,'Animal Tables'!$K$51:$AC$66,ROW(G11)-1,FALSE())),TRUE(),IF(World!$G30=\"no\",TRUE(),FALSE()))","v":true},{"$f":"IF(AND(World!$G30=\"yes\",VLOOKUP(Animals!H$2,'Animal Tables'!$K$51:$AC$66,ROW(H11)-1,FALSE())),TRUE(),IF(World!$G30=\"no\",TRUE(),FALSE()))","v":true},{"$f":"IF(AND(World!$G30=\"yes\",VLOOKUP(Animals!I$2,'Animal Tables'!$K$51:$AC$66,ROW(I11)-1,FALSE())),TRUE(),IF(World!$G30=\"no\",TRUE(),FALSE()))","v":true},{"$f":"IF(AND(World!$G30=\"yes\",VLOOKUP(Animals!J$2,'Animal Tables'!$K$51:$AC$66,ROW(J11)-1,FALSE())),TRUE(),IF(World!$G30=\"no\",TRUE(),FALSE()))","v":true},{"$f":"IF(AND(World!$G30=\"yes\",VLOOKUP(Animals!K$2,'Animal Tables'!$K$51:$AC$66,ROW(K11)-1,FALSE())),TRUE(),IF(World!$G30=\"no\",TRUE(),FALSE()))","v":true},{"$f":"IF(AND(World!$G30=\"yes\",VLOOKUP(Animals!L$2,'Animal Tables'!$K$51:$AC$66,ROW(L11)-1,FALSE())),TRUE(),IF(World!$G30=\"no\",TRUE(),FALSE()))","v":true},{"$f":"IF(AND(World!$G30=\"yes\",VLOOKUP(Animals!M$2,'Animal Tables'!$K$51:$AC$66,ROW(M11)-1,FALSE())),TRUE(),IF(World!$G30=\"no\",TRUE(),FALSE()))","v":true},{"$f":"IF(AND(World!$G30=\"yes\",VLOOKUP(Animals!N$2,'Animal Tables'!$K$51:$AC$66,ROW(N11)-1,FALSE())),TRUE(),IF(World!$G30=\"no\",TRUE(),FALSE()))","v":true},{"$f":"IF(AND(World!$G30=\"yes\",VLOOKUP(Animals!O$2,'Animal Tables'!$K$51:$AC$66,ROW(O11)-1,FALSE())),TRUE(),IF(World!$G30=\"no\",TRUE(),FALSE()))","v":true},{"$f":"IF(AND(World!$G30=\"yes\",VLOOKUP(Animals!P$2,'Animal Tables'!$K$51:$AC$66,ROW(P11)-1,FALSE())),TRUE(),IF(World!$G30=\"no\",TRUE(),FALSE()))","v":true},{"$f":"IF(AND(World!$G30=\"yes\",VLOOKUP(Animals!Q$2,'Animal Tables'!$K$51:$AC$66,ROW(Q11)-1,FALSE())),TRUE(),IF(World!$G30=\"no\",TRUE(),FALSE()))","v":true},{"$f":"IF(AND(World!$G30=\"yes\",VLOOKUP(Animals!R$2,'Animal Tables'!$K$51:$AC$66,ROW(R11)-1,FALSE())),TRUE(),IF(World!$G30=\"no\",TRUE(),FALSE()))","v":true}]
[null,null,{"$f":"IF(AND(World!$G31=\"yes\",VLOOKUP(Animals!C$2,'Animal Tables'!$K$51:$AC$66,ROW(C12)-1,FALSE())),TRUE(),IF(World!$G31=\"no\",TRUE(),FALSE()))","v":true},{"$f":"IF(AND(World!$G31=\"yes\",VLOOKUP(Animals!D$2,'Animal Tables'!$K$51:$AC$66,ROW(D12)-1,FALSE())),TRUE(),IF(World!$G31=\"no\",TRUE(),FALSE()))","v":true},{"$f":"IF(AND(World!$G31=\"yes\",VLOOKUP(Animals!E$2,'Animal Tables'!$K$51:$AC$66,ROW(E12)-1,FALSE())),TRUE(),IF(World!$G31=\"no\",TRUE(),FALSE()))","v":true},{"$f":"IF(AND(World!$G31=\"yes\",VLOOKUP(Animals!F$2,'Animal Tables'!$K$51:$AC$66,ROW(F12)-1,FALSE())),TRUE(),IF(World!$G31=\"no\",TRUE(),FALSE()))","v":true},{"$f":"IF(AND(World!$G31=\"yes\",VLOOKUP(Animals!G$2,'Animal Tables'!$K$51:$AC$66,ROW(G12)-1,FALSE())),TRUE(),IF(World!$G31=\"no\",TRUE(),FALSE()))","v":true},{"$f":"IF(AND(World!$G31=\"yes\",VLOOKUP(Animals!H$2,'Animal Tables'!$K$51:$AC$66,ROW(H12)-1,FALSE())),TRUE(),IF(World!$G31=\"no\",TRUE(),FALSE()))","v":true},{"$f":"IF(AND(World!$G31=\"yes\",VLOOKUP(Animals!I$2,'Animal Tables'!$K$51:$AC$66,ROW(I12)-1,FALSE())),TRUE(),IF(World!$G31=\"no\",TRUE(),FALSE()))","v":true},{"$f":"IF(AND(World!$G31=\"yes\",VLOOKUP(Animals!J$2,'Animal Tables'!$K$51:$AC$66,ROW(J12)-1,FALSE())),TRUE(),IF(World!$G31=\"no\",TRUE(),FALSE()))","v":true},{"$f":"IF(AND(World!$G31=\"yes\",VLOOKUP(Animals!K$2,'Animal Tables'!$K$51:$AC$66,ROW(K12)-1,FALSE())),TRUE(),IF(World!$G31=\"no\",TRUE(),FALSE()))","v":true},{"$f":"IF(AND(World!$G31=\"yes\",VLOOKUP(Animals!L$2,'Animal Tables'!$K$51:$AC$66,ROW(L12)-1,FALSE())),TRUE(),IF(World!$G31=\"no\",TRUE(),FALSE()))","v":true},{"$f":"IF(AND(World!$G31=\"yes\",VLOOKUP(Animals!M$2,'Animal Tables'!$K$51:$AC$66,ROW(M12)-1,FALSE())),TRUE(),IF(World!$G31=\"no\",TRUE(),FALSE()))","v":true},{"$f":"IF(AND(World!$G31=\"yes\",VLOOKUP(Animals!N$2,'Animal Tables'!$K$51:$AC$66,ROW(N12)-1,FALSE())),TRUE(),IF(World!$G31=\"no\",TRUE(),FALSE()))","v":true},{"$f":"IF(AND(World!$G31=\"yes\",VLOOKUP(Animals!O$2,'Animal Tables'!$K$51:$AC$66,ROW(O12)-1,FALSE())),TRUE(),IF(World!$G31=\"no\",TRUE(),FALSE()))","v":true},{"$f":"IF(AND(World!$G31=\"yes\",VLOOKUP(Animals!P$2,'Animal Tables'!$K$51:$AC$66,ROW(P12)-1,FALSE())),TRUE(),IF(World!$G31=\"no\",TRUE(),FALSE()))","v":true},{"$f":"IF(AND(World!$G31=\"yes\",VLOOKUP(Animals!Q$2,'Animal Tables'!$K$51:$AC$66,ROW(Q12)-1,FALSE())),TRUE(),IF(World!$G31=\"no\",TRUE(),FALSE()))","v":true},{"$f":"IF(AND(World!$G31=\"yes\",VLOOKUP(Animals!R$2,'Animal Tables'!$K$51:$AC$66,ROW(R12)-1,FALSE())),TRUE(),IF(World!$G31=\"no\",TRUE(),FALSE()))","v":true}]
[null,null,{"$f":"IF(AND(World!$G32=\"yes\",VLOOKUP(Animals!C$2,'Animal Tables'!$K$51:$AC$66,ROW(C13)-1,FALSE())),TRUE(),IF(World!$G32=\"no\",TRUE(),FALSE()))","v":true},{"$f":"IF(AND(World!$G32=\"yes\",VLOOKUP(Animals!D$2,'Animal Tables'!$K$51:$AC$66,ROW(D13)-1,FALSE())),TRUE(),IF(World!$G32=\"no\",TRUE(),FALSE()))","v":true},{"$f":"IF(AND(World!$G32=\"yes\",VLOOKUP(Animals!E$2,'Animal Tables'!$K$51:$AC$66,ROW(E13)-1,FALSE())),TRUE(),IF(World!$G32=\"no\",TRUE(),FALSE()))","v":true},{"$f":"IF(AND(World!$G32=\"yes\",VLOOKUP(Animals!F$2,'Animal Tables'!$K$51:$AC$66,ROW(F13)-1,FALSE())),TRUE(),IF(World!$G32=\"no\",TRUE(),FALSE()))","v":true},{"$f":"IF(AND(World!$G32=\"yes\",VLOOKUP(Animals!G$2,'Animal Tables'!$K$51:$AC$66,ROW(G13)-1,FALSE())),TRUE(),IF(World!$G32=\"no\",TRUE(),FALSE()))","v":true},{"$f":"IF(AND(World!$G32=\"yes\",VLOOKUP(Animals!H$2,'Animal Tables'!$K$51:$AC$66,ROW(H13)-1,FALSE())),TRUE(),IF(World!$G32=\"no\",TRUE(),FALSE()))","v":true},{"$f":"IF(AND(World!$G32=\"yes\",VLOOKUP(Animals!I$2,'Animal Tables'!$K$51:$AC$66,ROW(I13)-1,FALSE())),TRUE(),IF(World!$G32=\"no\",TRUE(),FALSE()))","v":true},{"$f":"IF(AND(World!$G32=\"yes\",VLOOKUP(Animals!J$2,'Animal Tables'!$K$51:$AC$66,ROW(J13)-1,FALSE())),TRUE(),IF(World!$G32=\"no\",TRUE(),FALSE()))","v":true},{"$f":"IF(AND(World!$G32=\"yes\",VLOOKUP(Animals!K$2,'Animal Tables'!$K$51:$AC$66,ROW(K13)-1,FALSE())),TRUE(),IF(World!$G32=\"no\",TRUE(),FALSE()))","v":true},{"$f":"IF(AND(World!$G32=\"yes\",VLOOKUP(Animals!L$2,'Animal Tables'!$K$51:$AC$66,ROW(L13)-1,FALSE())),TRUE(),IF(World!$G32=\"no\",TRUE(),FALSE()))","v":true},{"$f":"IF(AND(World!$G32=\"yes\",VLOOKUP(Animals!M$2,'Animal Tables'!$K$51:$AC$66,ROW(M13)-1,FALSE())),TRUE(),IF(World!$G32=\"no\",TRUE(),FALSE()))","v":true},{"$f":"IF(AND(World!$G32=\"yes\",VLOOKUP(Animals!N$2,'Animal Tables'!$K$51:$AC$66,ROW(N13)-1,FALSE())),TRUE(),IF(World!$G32=\"no\",TRUE(),FALSE()))","v":true},{"$f":"IF(AND(World!$G32=\"yes\",VLOOKUP(Animals!O$2,'Animal Tables'!$K$51:$AC$66,ROW(O13)-1,FALSE())),TRUE(),IF(World!$G32=\"no\",TRUE(),FALSE()))","v":true},{"$f":"IF(AND(World!$G32=\"yes\",VLOOKUP(Animals!P$2,'Animal Tables'!$K$51:$AC$66,ROW(P13)-1,FALSE())),TRUE(),IF(World!$G32=\"no\",TRUE(),FALSE()))","v":true},{"$f":"IF(AND(World!$G32=\"yes\",VLOOKUP(Animals!Q$2,'Animal Tables'!$K$51:$AC$66,ROW(Q13)-1,FALSE())),TRUE(),IF(World!$G32=\"no\",TRUE(),FALSE()))","v":true},{"$f":"IF(AND(World!$G32=\"yes\",VLOOKUP(Animals!R$2,'Animal Tables'!$K$51:$AC$66,ROW(R13)-1,FALSE())),TRUE(),IF(World!$G32=\"no\",TRUE(),FALSE()))","v":true}]
[null,null,{"$f":"IF(AND(World!$G33=\"yes\",VLOOKUP(Animals!C$2,'Animal Tables'!$K$51:$AC$66,ROW(C14)-1,FALSE())),TRUE(),IF(World!$G33=\"no\",TRUE(),FALSE()))","v":true},{"$f":"IF(AND(World!$G33=\"yes\",VLOOKUP(Animals!D$2,'Animal Tables'!$K$51:$AC$66,ROW(D14)-1,FALSE())),TRUE(),IF(World!$G33=\"no\",TRUE(),FALSE()))","v":true},{"$f":"IF(AND(World!$G33=\"yes\",VLOOKUP(Animals!E$2,'Animal Tables'!$K$51:$AC$66,ROW(E14)-1,FALSE())),TRUE(),IF(World!$G33=\"no\",TRUE(),FALSE()))","v":true},{"$f":"IF(AND(World!$G33=\"yes\",VLOOKUP(Animals!F$2,'Animal Tables'!$K$51:$AC$66,ROW(F14)-1,FALSE())),TRUE(),IF(World!$G33=\"no\",TRUE(),FALSE()))","v":true},{"$f":"IF(AND(World!$G33=\"yes\",VLOOKUP(Animals!G$2,'Animal Tables'!$K$51:$AC$66,ROW(G14)-1,FALSE())),TRUE(),IF(World!$G33=\"no\",TRUE(),FALSE()))","v":true},{"$f":"IF(AND(World!$G33=\"yes\",VLOOKUP(Animals!H$2,'Animal Tables'!$K$51:$AC$66,ROW(H14)-1,FALSE())),TRUE(),IF(World!$G33=\"no\",TRUE(),FALSE()))","v":true},{"$f":"IF(AND(World!$G33=\"yes\",VLOOKUP(Animals!I$2,'Animal Tables'!$K$51:$AC$66,ROW(I14)-1,FALSE())),TRUE(),IF(World!$G33=\"no\",TRUE(),FALSE()))","v":true},{"$f":"IF(AND(World!$G33=\"yes\",VLOOKUP(Animals!J$2,'Animal Tables'!$K$51:$AC$66,ROW(J14)-1,FALSE())),TRUE(),IF(World!$G33=\"no\",TRUE(),FALSE()))","v":true},{"$f":"IF(AND(World!$G33=\"yes\",VLOOKUP(Animals!K$2,'Animal Tables'!$K$51:$AC$66,ROW(K14)-1,FALSE())),TRUE(),IF(World!$G33=\"no\",TRUE(),FALSE()))","v":true},{"$f":"IF(AND(World!$G33=\"yes\",VLOOKUP(Animals!L$2,'Animal Tables'!$K$51:$AC$66,ROW(L14)-1,FALSE())),TRUE(),IF(World!$G33=\"no\",TRUE(),FALSE()))","v":true},{"$f":"IF(AND(World!$G33=\"yes\",VLOOKUP(Animals!M$2,'Animal Tables'!$K$51:$AC$66,ROW(M14)-1,FALSE())),TRUE(),IF(World!$G33=\"no\",TRUE(),FALSE()))","v":true},{"$f":"IF(AND(World!$G33=\"yes\",VLOOKUP(Animals!N$2,'Animal Tables'!$K$51:$AC$66,ROW(N14)-1,FALSE())),TRUE(),IF(World!$G33=\"no\",TRUE(),FALSE()))","v":true},{"$f":"IF(AND(World!$G33=\"yes\",VLOOKUP(Animals!O$2,'Animal Tables'!$K$51:$AC$66,ROW(O14)-1,FALSE())),TRUE(),IF(World!$G33=\"no\",TRUE(),FALSE()))","v":true},{"$f":"IF(AND(World!$G33=\"yes\",VLOOKUP(Animals!P$2,'Animal Tables'!$K$51:$AC$66,ROW(P14)-1,FALSE())),TRUE(),IF(World!$G33=\"no\",TRUE(),FALSE()))","v":true},{"$f":"IF(AND(World!$G33=\"yes\",VLOOKUP(Animals!Q$2,'Animal Tables'!$K$51:$AC$66,ROW(Q14)-1,FALSE())),TRUE(),IF(World!$G33=\"no\",TRUE(),FALSE()))","v":true},{"$f":"IF(AND(World!$G33=\"yes\",VLOOKUP(Animals!R$2,'Animal Tables'!$K$51:$AC$66,ROW(R14)-1,FALSE())),TRUE(),IF(World!$G33=\"no\",TRUE(),FALSE()))","v":true}]
[null,null,{"$f":"IF(AND(World!$G34=\"yes\",VLOOKUP(Animals!C$2,'Animal Tables'!$K$51:$AC$66,ROW(C15)-1,FALSE())),TRUE(),IF(World!$G34=\"no\",TRUE(),FALSE()))","v":true},{"$f":"IF(AND(World!$G34=\"yes\",VLOOKUP(Animals!D$2,'Animal Tables'!$K$51:$AC$66,ROW(D15)-1,FALSE())),TRUE(),IF(World!$G34=\"no\",TRUE(),FALSE()))","v":true},{"$f":"IF(AND(World!$G34=\"yes\",VLOOKUP(Animals!E$2,'Animal Tables'!$K$51:$AC$66,ROW(E15)-1,FALSE())),TRUE(),IF(World!$G34=\"no\",TRUE(),FALSE()))","v":true},{"$f":"IF(AND(World!$G34=\"yes\",VLOOKUP(Animals!F$2,'Animal Tables'!$K$51:$AC$66,ROW(F15)-1,FALSE())),TRUE(),IF(World!$G34=\"no\",TRUE(),FALSE()))","v":true},{"$f":"IF(AND(World!$G34=\"yes\",VLOOKUP(Animals!G$2,'Animal Tables'!$K$51:$AC$66,ROW(G15)-1,FALSE())),TRUE(),IF(World!$G34=\"no\",TRUE(),FALSE()))","v":true},{"$f":"IF(AND(World!$G34=\"yes\",VLOOKUP(Animals!H$2,'Animal Tables'!$K$51:$AC$66,ROW(H15)-1,FALSE())),TRUE(),IF(World!$G34=\"no\",TRUE(),FALSE()))","v":true},{"$f":"IF(AND(World!$G34=\"yes\",VLOOKUP(Animals!I$2,'Animal Tables'!$K$51:$AC$66,ROW(I15)-1,FALSE())),TRUE(),IF(World!$G34=\"no\",TRUE(),FALSE()))","v":true},{"$f":"IF(AND(World!$G34=\"yes\",VLOOKUP(Animals!J$2,'Animal Tables'!$K$51:$AC$66,ROW(J15)-1,FALSE())),TRUE(),IF(World!$G34=\"no\",TRUE(),FALSE()))","v":true},{"$f":"IF(AND(World!$G34=\"yes\",VLOOKUP(Animals!K$2,'Animal Tables'!$K$51:$AC$66,ROW(K15)-1,FALSE())),TRUE(),IF(World!$G34=\"no\",TRUE(),FALSE()))","v":true},{"$f":"IF(AND(World!$G34=\"yes\",VLOOKUP(Animals!L$2,'Animal Tables'!$K$51:$AC$66,ROW(L15)-1,FALSE())),TRUE(),IF(World!$G34=\"no\",TRUE(),FALSE()))","v":true},{"$f":"IF(AND(World!$G34=\"yes\",VLOOKUP(Animals!M$2,'Animal Tables'!$K$51:$AC$66,ROW(M15)-1,FALSE())),TRUE(),IF(World!$G34=\"no\",TRUE(),FALSE()))","v":true},{"$f":"IF(AND(World!$G34=\"yes\",VLOOKUP(Animals!N$2,'Animal Tables'!$K$51:$AC$66,ROW(N15)-1,FALSE())),TRUE(),IF(World!$G34=\"no\",TRUE(),FALSE()))","v":true},{"$f":"IF(AND(World!$G34=\"yes\",VLOOKUP(Animals!O$2,'Animal Tables'!$K$51:$AC$66,ROW(O15)-1,FALSE())),TRUE(),IF(World!$G34=\"no\",TRUE(),FALSE()))","v":true},{"$f":"IF(AND(World!$G34=\"yes\",VLOOKUP(Animals!P$2,'Animal Tables'!$K$51:$AC$66,ROW(P15)-1,FALSE())),TRUE(),IF(World!$G34=\"no\",TRUE(),FALSE()))","v":true},{"$f":"IF(AND(World!$G34=\"yes\",VLOOKUP(Animals!Q$2,'Animal Tables'!$K$51:$AC$66,ROW(Q15)-1,FALSE())),TRUE(),IF(World!$G34=\"no\",TRUE(),FALSE()))","v":true},{"$f":"IF(AND(World!$G34=\"yes\",VLOOKUP(Animals!R$2,'Animal Tables'!$K$51:$AC$66,ROW(R15)-1,FALSE())),TRUE(),IF(World!$G34=\"no\",TRUE(),FALSE()))","v":true}]
[null,null,{"$f":"IF(AND(World!$G35=\"yes\",VLOOKUP(Animals!C$2,'Animal Tables'!$K$51:$AC$66,ROW(C16)-1,FALSE())),TRUE(),IF(World!$G35=\"no\",TRUE(),FALSE()))","v":true},{"$f":"IF(AND(World!$G35=\"yes\",VLOOKUP(Animals!D$2,'Animal Tables'!$K$51:$AC$66,ROW(D16)-1,FALSE())),TRUE(),IF(World!$G35=\"no\",TRUE(),FALSE()))","v":true},{"$f":"IF(AND(World!$G35=\"yes\",VLOOKUP(Animals!E$2,'Animal Tables'!$K$51:$AC$66,ROW(E16)-1,FALSE())),TRUE(),IF(World!$G35=\"no\",TRUE(),FALSE()))","v":true},{"$f":"IF(AND(World!$G35=\"yes\",VLOOKUP(Animals!F$2,'Animal Tables'!$K$51:$AC$66,ROW(F16)-1,FALSE())),TRUE(),IF(World!$G35=\"no\",TRUE(),FALSE()))","v":true},{"$f":"IF(AND(World!$G35=\"yes\",VLOOKUP(Animals!G$2,'Animal Tables'!$K$51:$AC$66,ROW(G16)-1,FALSE())),TRUE(),IF(World!$G35=\"no\",TRUE(),FALSE()))","v":true},{"$f":"IF(AND(World!$G35=\"yes\",VLOOKUP(Animals!H$2,'Animal Tables'!$K$51:$AC$66,ROW(H16)-1,FALSE())),TRUE(),IF(World!$G35=\"no\",TRUE(),FALSE()))","v":true},{"$f":"IF(AND(World!$G35=\"yes\",VLOOKUP(Animals!I$2,'Animal Tables'!$K$51:$AC$66,ROW(I16)-1,FALSE())),TRUE(),IF(World!$G35=\"no\",TRUE(),FALSE()))","v":true},{"$f":"IF(AND(World!$G35=\"yes\",VLOOKUP(Animals!J$2,'Animal Tables'!$K$51:$AC$66,ROW(J16)-1,FALSE())),TRUE(),IF(World!$G35=\"no\",TRUE(),FALSE()))","v":true},{"$f":"IF(AND(World!$G35=\"yes\",VLOOKUP(Animals!K$2,'Animal Tables'!$K$51:$AC$66,ROW(K16)-1,FALSE())),TRUE(),IF(World!$G35=\"no\",TRUE(),FALSE()))","v":true},{"$f":"IF(AND(World!$G35=\"yes\",VLOOKUP(Animals!L$2,'Animal Tables'!$K$51:$AC$66,ROW(L16)-1,FALSE())),TRUE(),IF(World!$G35=\"no\",TRUE(),FALSE()))","v":true},{"$f":"IF(AND(World!$G35=\"yes\",VLOOKUP(Animals!M$2,'Animal Tables'!$K$51:$AC$66,ROW(M16)-1,FALSE())),TRUE(),IF(World!$G35=\"no\",TRUE(),FALSE()))","v":true},{"$f":"IF(AND(World!$G35=\"yes\",VLOOKUP(Animals!N$2,'Animal Tables'!$K$51:$AC$66,ROW(N16)-1,FALSE())),TRUE(),IF(World!$G35=\"no\",TRUE(),FALSE()))","v":true},{"$f":"IF(AND(World!$G35=\"yes\",VLOOKUP(Animals!O$2,'Animal Tables'!$K$51:$AC$66,ROW(O16)-1,FALSE())),TRUE(),IF(World!$G35=\"no\",TRUE(),FALSE()))","v":true},{"$f":"IF(AND(World!$G35=\"yes\",VLOOKUP(Animals!P$2,'Animal Tables'!$K$51:$AC$66,ROW(P16)-1,FALSE())),TRUE(),IF(World!$G35=\"no\",TRUE(),FALSE()))","v":true},{"$f":"IF(AND(World!$G35=\"yes\",VLOOKUP(Animals!Q$2,'Animal Tables'!$K$51:$AC$66,ROW(Q16)-1,FALSE())),TRUE(),IF(World!$G35=\"no\",TRUE(),FALSE()))","v":true},{"$f":"IF(AND(World!$G35=\"yes\",VLOOKUP(Animals!R$2,'Animal Tables'!$K$51:$AC$66,ROW(R16)-1,FALSE())),TRUE(),IF(World!$G35=\"no\",TRUE(),FALSE()))","v":true}]
[null,null,{"$f":"IF(AND(World!$G36=\"yes\",VLOOKUP(Animals!C$2,'Animal Tables'!$K$51:$AC$66,ROW(C17)-1,FALSE())),TRUE(),IF(World!$G36=\"no\",TRUE(),FALSE()))","v":true},{"$f":"IF(AND(World!$G36=\"yes\",VLOOKUP(Animals!D$2,'Animal Tables'!$K$51:$AC$66,ROW(D17)-1,FALSE())),TRUE(),IF(World!$G36=\"no\",TRUE(),FALSE()))","v":true},{"$f":"IF(AND(World!$G36=\"yes\",VLOOKUP(Animals!E$2,'Animal Tables'!$K$51:$AC$66,ROW(E17)-1,FALSE())),TRUE(),IF(World!$G36=\"no\",TRUE(),FALSE()))","v":true},{"$f":"IF(AND(World!$G36=\"yes\",VLOOKUP(Animals!F$2,'Animal Tables'!$K$51:$AC$66,ROW(F17)-1,FALSE())),TRUE(),IF(World!$G36=\"no\",TRUE(),FALSE()))","v":true},{"$f":"IF(AND(World!$G36=\"yes\",VLOOKUP(Animals!G$2,'Animal Tables'!$K$51:$AC$66,ROW(G17)-1,FALSE())),TRUE(),IF(World!$G36=\"no\",TRUE(),FALSE()))","v":true},{"$f":"IF(AND(World!$G36=\"yes\",VLOOKUP(Animals!H$2,'Animal Tables'!$K$51:$AC$66,ROW(H17)-1,FALSE())),TRUE(),IF(World!$G36=\"no\",TRUE(),FALSE()))","v":true},{"$f":"IF(AND(World!$G36=\"yes\",VLOOKUP(Animals!I$2,'Animal Tables'!$K$51:$AC$66,ROW(I17)-1,FALSE())),TRUE(),IF(World!$G36=\"no\",TRUE(),FALSE()))","v":true},{"$f":"IF(AND(World!$G36=\"yes\",VLOOKUP(Animals!J$2,'Animal Tables'!$K$51:$AC$66,ROW(J17)-1,FALSE())),TRUE(),IF(World!$G36=\"no\",TRUE(),FALSE()))","v":true},{"$f":"IF(AND(World!$G36=\"yes\",VLOOKUP(Animals!K$2,'Animal Tables'!$K$51:$AC$66,ROW(K17)-1,FALSE())),TRUE(),IF(World!$G36=\"no\",TRUE(),FALSE()))","v":true},{"$f":"IF(AND(World!$G36=\"yes\",VLOOKUP(Animals!L$2,'Animal Tables'!$K$51:$AC$66,ROW(L17)-1,FALSE())),TRUE(),IF(World!$G36=\"no\",TRUE(),FALSE()))","v":true},{"$f":"IF(AND(World!$G36=\"yes\",VLOOKUP(Animals!M$2,'Animal Tables'!$K$51:$AC$66,ROW(M17)-1,FALSE())),TRUE(),IF(World!$G36=\"no\",TRUE(),FALSE()))","v":true},{"$f":"IF(AND(World!$G36=\"yes\",VLOOKUP(Animals!N$2,'Animal Tables'!$K$51:$AC$66,ROW(N17)-1,FALSE())),TRUE(),IF(World!$G36=\"no\",TRUE(),FALSE()))","v":true},{"$f":"IF(AND(World!$G36=\"yes\",VLOOKUP(Animals!O$2,'Animal Tables'!$K$51:$AC$66,ROW(O17)-1,FALSE())),TRUE(),IF(World!$G36=\"no\",TRUE(),FALSE()))","v":true},{"$f":"IF(AND(World!$G36=\"yes\",VLOOKUP(Animals!P$2,'Animal Tables'!$K$51:$AC$66,ROW(P17)-1,FALSE())),TRUE(),IF(World!$G36=\"no\",TRUE(),FALSE()))","v":true},{"$f":"IF(AND(World!$G36=\"yes\",VLOOKUP(Animals!Q$2,'Animal Tables'!$K$51:$AC$66,ROW(Q17)-1,FALSE())),TRUE(),IF(World!$G36=\"no\",TRUE(),FALSE()))","v":true},{"$f":"IF(AND(World!$G36=\"yes\",VLOOKUP(Animals!R$2,'Animal Tables'!$K$51:$AC$66,ROW(R17)-1,FALSE())),TRUE(),IF(World!$G36=\"no\",TRUE(),FALSE()))","v":true}]
[null,null,{"$f":"IF(AND(World!$G37=\"yes\",VLOOKUP(Animals!C$2,'Animal Tables'!$K$51:$AC$66,ROW(C18)-1,FALSE())),TRUE(),IF(World!$G37=\"no\",TRUE(),FALSE()))","v":true},{"$f":"IF(AND(World!$G37=\"yes\",VLOOKUP(Animals!D$2,'Animal Tables'!$K$51:$AC$66,ROW(D18)-1,FALSE())),TRUE(),IF(World!$G37=\"no\",TRUE(),FALSE()))","v":true},{"$f":"IF(AND(World!$G37=\"yes\",VLOOKUP(Animals!E$2,'Animal Tables'!$K$51:$AC$66,ROW(E18)-1,FALSE())),TRUE(),IF(World!$G37=\"no\",TRUE(),FALSE()))","v":true},{"$f":"IF(AND(World!$G37=\"yes\",VLOOKUP(Animals!F$2,'Animal Tables'!$K$51:$AC$66,ROW(F18)-1,FALSE())),TRUE(),IF(World!$G37=\"no\",TRUE(),FALSE()))","v":true},{"$f":"IF(AND(World!$G37=\"yes\",VLOOKUP(Animals!G$2,'Animal Tables'!$K$51:$AC$66,ROW(G18)-1,FALSE())),TRUE(),IF(World!$G37=\"no\",TRUE(),FALSE()))","v":true},{"$f":"IF(AND(World!$G37=\"yes\",VLOOKUP(Animals!H$2,'Animal Tables'!$K$51:$AC$66,ROW(H18)-1,FALSE())),TRUE(),IF(World!$G37=\"no\",TRUE(),FALSE()))","v":true},{"$f":"IF(AND(World!$G37=\"yes\",VLOOKUP(Animals!I$2,'Animal Tables'!$K$51:$AC$66,ROW(I18)-1,FALSE())),TRUE(),IF(World!$G37=\"no\",TRUE(),FALSE()))","v":true},{"$f":"IF(AND(World!$G37=\"yes\",VLOOKUP(Animals!J$2,'Animal Tables'!$K$51:$AC$66,ROW(J18)-1,FALSE())),TRUE(),IF(World!$G37=\"no\",TRUE(),FALSE()))","v":true},{"$f":"IF(AND(World!$G37=\"yes\",VLOOKUP(Animals!K$2,'Animal Tables'!$K$51:$AC$66,ROW(K18)-1,FALSE())),TRUE(),IF(World!$G37=\"no\",TRUE(),FALSE()))","v":true},{"$f":"IF(AND(World!$G37=\"yes\",VLOOKUP(Animals!L$2,'Animal Tables'!$K$51:$AC$66,ROW(L18)-1,FALSE())),TRUE(),IF(World!$G37=\"no\",TRUE(),FALSE()))","v":true},{"$f":"IF(AND(World!$G37=\"yes\",VLOOKUP(Animals!M$2,'Animal Tables'!$K$51:$AC$66,ROW(M18)-1,FALSE())),TRUE(),IF(World!$G37=\"no\",TRUE(),FALSE()))","v":true},{"$f":"IF(AND(World!$G37=\"yes\",VLOOKUP(Animals!N$2,'Animal Tables'!$K$51:$AC$66,ROW(N18)-1,FALSE())),TRUE(),IF(World!$G37=\"no\",TRUE(),FALSE()))","v":true},{"$f":"IF(AND(World!$G37=\"yes\",VLOOKUP(Animals!O$2,'Animal Tables'!$K$51:$AC$66,ROW(O18)-1,FALSE())),TRUE(),IF(World!$G37=\"no\",TRUE(),FALSE()))","v":true},{"$f":"IF(AND(World!$G37=\"yes\",VLOOKUP(Animals!P$2,'Animal Tables'!$K$51:$AC$66,ROW(P18)-1,FALSE())),TRUE(),IF(World!$G37=\"no\",TRUE(),FALSE()))","v":true},{"$f":"IF(AND(World!$G37=\"yes\",VLOOKUP(Animals!Q$2,'Animal Tables'!$K$51:$AC$66,ROW(Q18)-1,FALSE())),TRUE(),IF(World!$G37=\"no\",TRUE(),FALSE()))","v":true},{"$f":"IF(AND(World!$G37=\"yes\",VLOOKUP(Animals!R$2,'Animal Tables'!$K$51:$AC$66,ROW(R18)-1,FALSE())),TRUE(),IF(World!$G37=\"no\",TRUE(),FALSE()))","v":true}]
[null,null,{"$f":"IF(AND(World!$G38=\"yes\",VLOOKUP(Animals!C$2,'Animal Tables'!$K$51:$AC$66,ROW(C19)-1,FALSE())),TRUE(),IF(World!$G38=\"no\",TRUE(),FALSE()))","v":true},{"$f":"IF(AND(World!$G38=\"yes\",VLOOKUP(Animals!D$2,'Animal Tables'!$K$51:$AC$66,ROW(D19)-1,FALSE())),TRUE(),IF(World!$G38=\"no\",TRUE(),FALSE()))","v":true},{"$f":"IF(AND(World!$G38=\"yes\",VLOOKUP(Animals!E$2,'Animal Tables'!$K$51:$AC$66,ROW(E19)-1,FALSE())),TRUE(),IF(World!$G38=\"no\",TRUE(),FALSE()))","v":true},{"$f":"IF(AND(World!$G38=\"yes\",VLOOKUP(Animals!F$2,'Animal Tables'!$K$51:$AC$66,ROW(F19)-1,FALSE())),TRUE(),IF(World!$G38=\"no\",TRUE(),FALSE()))","v":true},{"$f":"IF(AND(World!$G38=\"yes\",VLOOKUP(Animals!G$2,'Animal Tables'!$K$51:$AC$66,ROW(G19)-1,FALSE())),TRUE(),IF(World!$G38=\"no\",TRUE(),FALSE()))","v":true},{"$f":"IF(AND(World!$G38=\"yes\",VLOOKUP(Animals!H$2,'Animal Tables'!$K$51:$AC$66,ROW(H19)-1,FALSE())),TRUE(),IF(World!$G38=\"no\",TRUE(),FALSE()))","v":true},{"$f":"IF(AND(World!$G38=\"yes\",VLOOKUP(Animals!I$2,'Animal Tables'!$K$51:$AC$66,ROW(I19)-1,FALSE())),TRUE(),IF(World!$G38=\"no\",TRUE(),FALSE()))","v":true},{"$f":"IF(AND(World!$G38=\"yes\",VLOOKUP(Animals!J$2,'Animal Tables'!$K$51:$AC$66,ROW(J19)-1,FALSE())),TRUE(),IF(World!$G38=\"no\",TRUE(),FALSE()))","v":true},{"$f":"IF(AND(World!$G38=\"yes\",VLOOKUP(Animals!K$2,'Animal Tables'!$K$51:$AC$66,ROW(K19)-1,FALSE())),TRUE(),IF(World!$G38=\"no\",TRUE(),FALSE()))","v":true},{"$f":"IF(AND(World!$G38=\"yes\",VLOOKUP(Animals!L$2,'Animal Tables'!$K$51:$AC$66,ROW(L19)-1,FALSE())),TRUE(),IF(World!$G38=\"no\",TRUE(),FALSE()))","v":true},{"$f":"IF(AND(World!$G38=\"yes\",VLOOKUP(Animals!M$2,'Animal Tables'!$K$51:$AC$66,ROW(M19)-1,FALSE())),TRUE(),IF(World!$G38=\"no\",TRUE(),FALSE()))","v":true},{"$f":"IF(AND(World!$G38=\"yes\",VLOOKUP(Animals!N$2,'Animal Tables'!$K$51:$AC$66,ROW(N19)-1,FALSE())),TRUE(),IF(World!$G38=\"no\",TRUE(),FALSE()))","v":true},{"$f":"IF(AND(World!$G38=\"yes\",VLOOKUP(Animals!O$2,'Animal Tables'!$K$51:$AC$66,ROW(O19)-1,FALSE())),TRUE(),IF(World!$G38=\"no\",TRUE(),FALSE()))","v":true},{"$f":"IF(AND(World!$G38=\"yes\",VLOOKUP(Animals!P$2,'Animal Tables'!$K$51:$AC$66,ROW(P19)-1,FALSE())),TRUE(),IF(World!$G38=\"no\",TRUE(),FALSE()))","v":true},{"$f":"IF(AND(World!$G38=\"yes\",VLOOKUP(Animals!Q$2,'Animal Tables'!$K$51:$AC$66,ROW(Q19)-1,FALSE())),TRUE(),IF(World!$G38=\"no\",TRUE(),FALSE()))","v":true},{"$f":"IF(AND(World!$G38=\"yes\",VLOOKUP(Animals!R$2,'Animal Tables'!$K$51:$AC$66,ROW(R19)-1,FALSE())),TRUE(),IF(World!$G38=\"no\",TRUE(),FALSE()))","v":true}]
[null,null,{"$f":"IF(AND(World!$G39=\"yes\",VLOOKUP(Animals!C$2,'Animal Tables'!$K$51:$AC$66,ROW(C20)-1,FALSE())),TRUE(),IF(World!$G39=\"no\",TRUE(),FALSE()))","v":true},{"$f":"IF(AND(World!$G39=\"yes\",VLOOKUP(Animals!D$2,'Animal Tables'!$K$51:$AC$66,ROW(D20)-1,FALSE())),TRUE(),IF(World!$G39=\"no\",TRUE(),FALSE()))","v":true},{"$f":"IF(AND(World!$G39=\"yes\",VLOOKUP(Animals!E$2,'Animal Tables'!$K$51:$AC$66,ROW(E20)-1,FALSE())),TRUE(),IF(World!$G39=\"no\",TRUE(),FALSE()))","v":true},{"$f":"IF(AND(World!$G39=\"yes\",VLOOKUP(Animals!F$2,'Animal Tables'!$K$51:$AC$66,ROW(F20)-1,FALSE())),TRUE(),IF(World!$G39=\"no\",TRUE(),FALSE()))","v":true},{"$f":"IF(AND(World!$G39=\"yes\",VLOOKUP(Animals!G$2,'Animal Tables'!$K$51:$AC$66,ROW(G20)-1,FALSE())),TRUE(),IF(World!$G39=\"no\",TRUE(),FALSE()))","v":true},{"$f":"IF(AND(World!$G39=\"yes\",VLOOKUP(Animals!H$2,'Animal Tables'!$K$51:$AC$66,ROW(H20)-1,FALSE())),TRUE(),IF(World!$G39=\"no\",TRUE(),FALSE()))","v":true},{"$f":"IF(AND(World!$G39=\"yes\",VLOOKUP(Animals!I$2,'Animal Tables'!$K$51:$AC$66,ROW(I20)-1,FALSE())),TRUE(),IF(World!$G39=\"no\",TRUE(),FALSE()))","v":true},{"$f":"IF(AND(World!$G39=\"yes\",VLOOKUP(Animals!J$2,'Animal Tables'!$K$51:$AC$66,ROW(J20)-1,FALSE())),TRUE(),IF(World!$G39=\"no\",TRUE(),FALSE()))","v":true},{"$f":"IF(AND(World!$G39=\"yes\",VLOOKUP(Animals!K$2,'Animal Tables'!$K$51:$AC$66,ROW(K20)-1,FALSE())),TRUE(),IF(World!$G39=\"no\",TRUE(),FALSE()))","v":true},{"$f":"IF(AND(World!$G39=\"yes\",VLOOKUP(Animals!L$2,'Animal Tables'!$K$51:$AC$66,ROW(L20)-1,FALSE())),TRUE(),IF(World!$G39=\"no\",TRUE(),FALSE()))","v":true},{"$f":"IF(AND(World!$G39=\"yes\",VLOOKUP(Animals!M$2,'Animal Tables'!$K$51:$AC$66,ROW(M20)-1,FALSE())),TRUE(),IF(World!$G39=\"no\",TRUE(),FALSE()))","v":true},{"$f":"IF(AND(World!$G39=\"yes\",VLOOKUP(Animals!N$2,'Animal Tables'!$K$51:$AC$66,ROW(N20)-1,FALSE())),TRUE(),IF(World!$G39=\"no\",TRUE(),FALSE()))","v":true},{"$f":"IF(AND(World!$G39=\"yes\",VLOOKUP(Animals!O$2,'Animal Tables'!$K$51:$AC$66,ROW(O20)-1,FALSE())),TRUE(),IF(World!$G39=\"no\",TRUE(),FALSE()))","v":true},{"$f":"IF(AND(World!$G39=\"yes\",VLOOKUP(Animals!P$2,'Animal Tables'!$K$51:$AC$66,ROW(P20)-1,FALSE())),TRUE(),IF(World!$G39=\"no\",TRUE(),FALSE()))","v":true},{"$f":"IF(AND(World!$G39=\"yes\",VLOOKUP(Animals!Q$2,'Animal Tables'!$K$51:$AC$66,ROW(Q20)-1,FALSE())),TRUE(),IF(World!$G39=\"no\",TRUE(),FALSE()))","v":true},{"$f":"IF(AND(World!$G39=\"yes\",VLOOKUP(Animals!R$2,'Animal Tables'!$K$51:$AC$66,ROW(R20)-1,FALSE())),TRUE(),IF(World!$G39=\"no\",TRUE(),FALSE()))","v":true}]
[null,null,{"$f":"AND(C3:C20)","v":false},{"$f":"AND(D3:D20)","v":false},true,true,true,false,false,false,false,true,true,true,true,true,true,true]
[null,"Animal Encounter Table"]
[null,"Terrain:",{"$f":"IF(C21,C2,\"\")","v":""},"","Desert(hot or cold)","Hills, Foothills","Mountain","","","","","Rough, Broken","Swamp, Marsh","Beach, Shore","Riverbank","Ocean Shallows","Open Ocean","Deep Ocean"]
[null,2,{"$f":"IF(EXACT(C$23,\"\"),\"----------\",HYPERLINK(CONCATENATE(\"#'Animals'!\",ADDRESS(((ROW(C24)-23)*28)+10,((COLUMN(C24)-3)*5)+2),\":\",ADDRESS(((ROW(C24)-23)*28)+36,((COLUMN(C24)-2)*5))),INDIRECT(ADDRESS(((ROW(C24)-23)*28)+10,((COLUMN(C24)-3)*5)+3))))","v":"----------"},{"$f":"IF(EXACT(D$23,\"\"),\"----------\",HYPERLINK(CONCATENATE(\"#'Animals'!\",ADDRESS(((ROW(D24)-23)*28)+10,((COLUMN(D24)-3)*5)+2),\":\",ADDRESS(((ROW(D24)-23)*28)+36,((COLUMN(D24)-2)*5))),INDIRECT(ADDRESS(((ROW(D24)-23)*28)+10,((COLUMN(D24)-3)*5)+3))))","v":"----------"},"Species LOCATION-21","Species LOCATION-31","Species LOCATION-41","----------","----------","----------","----------","Species LOCATION-91","Species LOCATION-101","Species LOCATION-111","Species LOCATION-121","Species LOCATION-131","Species LOCATION-141","Species LOCATION-151"]
[null,3,{"$f":"IF(EXACT(C$23,\"\"),\"----------\",HYPERLINK(CONCATENATE(\"#'Animals'!\",ADDRESS(((ROW(C25)-23)*28)+10,((COLUMN(C25)-3)*5)+2),\":\",ADDRESS(((ROW(C25)-23)*28)+36,((COLUMN(C25)-2)*5))),INDIRECT(ADDRESS(((ROW(C25)-23)*28)+10,((COLUMN(C25)-3)*5)+3))))","v":"----------"},"----------","Species LOCATION-22","Species LOCATION-32","Species LOCATION-42","----------","----------","----------","----------","Species LOCATION-92","Species LOCATION-102","Species LOCATION-112","Species LOCATION-122","Species LOCATION-132","Species LOCATION-142","Species LOCATION-152"]
[null,4,"----------","----------","Species LOCATION-23","Species LOCATION-33","Species LOCATION-43","----------","----------","----------","----------","Species LOCATION-93","Species LOCATION-103","Species LOCATION-113","Species LOCATION-123","Species LOCATION-133","Species LOCATION-143","Species LOCATION-153"]
[null,5,"----------","----------","Species LOCATION-24","Species LOCATION-34","Species LOCATION-44","----------","----------","----------","----------","Species LOCATION-94","Species LOCATION-104","Species LOCATION-114","Species LOCATION-124","Species LOCATION-134","Species LOCATION-144","Species LOCATION-154"]
[null,6,"----------","----------","Species LOCATION-25","Species LOCATION-35","Species LOCATION-45","----------","----------","----------","----------","Species LOCATION-95","Species LOCATION-105","Species LOCATION-115","Species LOCATION-125","Species LOCATION-135","Species LOCATION-145","Species LOCATION-155"]
[null,7,"----------","----------","Species LOCATION-26","Species LOCATION-36","Species LOCATION-46","----------","----------","----------","----------","Species LOCATION-96","Species LOCATION-106","Species LOCATION-116","Species LOCATION-126","Species LOCATION-136","Species LOCATION-146","Species LOCATION-156"]
[null,8,"----------","----------","Species LOCATION-27","Species LOCATION-37","Species LOCATION-47","----------","----------","----------","----------","Species LOCATION-97","Species LOCATION-107","Species LOCATION-117","Species LOCATION-127","Species LOCATION-137","Species LOCATION-147","Species LOCATION-157"]
[null,9,"----------","----------","Species LOCATION-28","Species LOCATION-38","Species LOCATION-48","----------","----------","----------","----------","Species LOCATION-98","Species LOCATION-108","Species LOCATION-118","Species LOCATION-128","Species LOCATION-138","Species LOCATION-148","Species LOCATION-158"]
[null,10,{"$f":"IF(EXACT(C$23,\"\"),\"----------\",\"Unusual Event or Object\")","v":"----------"},{"$f":"IF(EXACT(D$23,\"\"),\"----------\",\"Unusual Event or Object\")","v":"----------"},"Unusual Event or Object","Unusual Event or Object","Unusual Event or Object","----------","----------","----------","----------","Unusual Event or Object","Unusual Event or Object","Unusual Event or Object","Unusual Event or Object","Unusual Event or Object","Unusual Event or Object","Unusual Event or Object"]
[null,11,{"$f":"IF(EXACT(C$23,\"\"),\"----------\",HYPERLINK(CONCATENATE(\"#'Animals'!\",ADDRESS(((ROW(C33)-24)*28)+10,((COLUMN(C33)-3)*5)+2),\":\",ADDRESS(((ROW(C33)-24)*28)+36,((COLUMN(C33)-2)*5))),INDIRECT(ADDRESS(((ROW(C33)-24)*28)+10,((COLUMN(C33)-3)*5)+3))))","v":"----------"},{"$f":"IF(EXACT(D$23,\"\"),\"----------\",HYPERLINK(CONCATENATE(\"#'Animals'!\",ADDRESS(((ROW(D33)-24)*28)+10,((COLUMN(D33)-3)*5)+2),\":\",ADDRESS(((ROW(D33)-24)*28)+36,((COLUMN(D33)-2)*5))),INDIRECT(ADDRESS(((ROW(D33)-24)*28)+10,((COLUMN(D33)-3)*5)+3))))","v":"----------"},"Species LOCATION-29","Species LOCATION-39","Species LOCATION-49","----------","----------","----------","----------","Species LOCATION-99","Species LOCATION-109","Species LOCATION-119","Species LOCATION-129","Species LOCATION-139","Species LOCATION-149","Species LOCATION-159"]
[null,12,{"$f":"IF(EXACT(C$23,\"\"),\"----------\",HYPERLINK(CONCATENATE(\"#'Animals'!\",ADDRESS(((ROW(C34)-24)*28)+10,((COLUMN(C34)-3)*5)+2),\":\",ADDRESS(((ROW(C34)-24)*28)+36,((COLUMN(C34)-2)*5))),INDIRECT(ADDRESS(((ROW(C34)-24)*28)+10,((COLUMN(C34)-3)*5)+3))))","v":"----------"},"----------","Species LOCATION-30","Species LOCATION-40","Species LOCATION-50","----------","----------","----------","----------","Species LOCATION-100","Species LOCATION-110","Species LOCATION-120","Species LOCATION-130","Species LOCATION-140","Species LOCATION-150","Species LOCATION-160"]
[]
[null,"Animals"]
[]
[null,"Name:","Species LOCATION-1",null,null,null,"Name:","Species LOCATION-11",null,null,null,"Name:","Species LOCATION-21",null,null,null,"Name:","Species LOCATION-31",null,null,null,"Name:","Species LOCATION-41",null,null,null,"Name:","Species LOCATION-51",null,null,null,"Name:","Species LOCATION-61",null,null,null,"Name:","Species LOCATION-71",null,null,null,"Name:","Species LOCATION-81",null,null,null,"Name:","Species LOCATION-91",null,null,null,"Name:","Species LOCATION-101",null,null,null,"Name:","Species LOCATION-111",null,null,null,"Name:","Species LOCATION-121",null,null,null,"Name:","Species LOCATION-131",null,null,null,"Name:","Species LOCATION-141",null,null,null,"Name:","Species LOCATION-151"]
[null,"Average Weight(kg):",1600,null,null,null,"Average Weight(kg):",1,null,null,null,"Average Weight(kg):",1,null,null,null,"Average Weight(kg):",50,null,null,null,"Average Weight(kg):",400,null,null,null,"Average Weight(kg):",1,null,null,null,"Average Weight(kg):",50,null,null,null,"Average Weight(kg):",1,null,null,null,"Average Weight(kg):",400,null,null,null,"Average Weight(kg):",1,null,null,null,"Average Weight(kg):",5000,null,null,null,"Average Weight(kg):",1600,null,null,null,"Average Weight(kg):",3200,null,null,null,"Average Weight(kg):",6,null,null,null,"Average Weight(kg):",25,null,null,null,"Average Weight(kg):",5000]
[null,"Movement:","Walker",null,null,null,"Movement:","Flyer",null,null,null,"Movement:","Flyer",null,null,null,"Movement:","Walker",null,null,null,"Movement:","Walker",null,null,null,"Movement:","Flyer",null,null,null,"Movement:","Walker",null,null,null,"Movement:","Flyer",null,null,null,"Movement:","Walker",null,null,null,"Movement:","Flyer",null,null,null,"Movement:","Walker",null,null,null,"Movement:","Walker",null,null,null,"Movement:","Amphibious",null,null,null,"Movement:","Flyer",null,null,null,"Movement:","Swimmer",null,null,null,"Movement:","Swimmer"]
[null,"Type:","Scavenger(Hijacker)",null,null,null,"Type:","Scavenger(Intimidator)",null,null,null,"Type:","Scavenger(Reducer)",null,null,null,"Type:","Scavenger(Intimidator)",null,null,null,"Type:","Scavenger(Hijacker)",null,null,null,"Type:","Scavenger(Hijacker)",null,null,null,"Type:","Scavenger(Carrion-Eater)",null,null,null,"Type:","Scavenger(Hijacker)",null,null,null,"Type:","Scavenger(Hijacker)",null,null,null,"Type:","Scavenger(Hijacker)",null,null,null,"Type:","Scavenger(Reducer)",null,null,null,"Type:","Scavenger(Reducer)",null,null,null,"Type:","Scavenger(Hijacker)",null,null,null,"Type:","Scavenger(Hijacker)",null,null,null,"Type:","Scavenger(Carrion-Eater)",null,null,null,"Type:","Scavenger(Intimidator)"]
[null,"Type:"]
[null,"Stats:",null,"Score","DM",null,"Stats:",null,"Score","DM",null,"Stats:",null,"Score","DM",null,"Stats:",null,"Score","DM",null,"Stats:",null,"Score","DM",null,"Stats:",null,"Score","DM",null,"Stats:",null,"Score","DM",null,"Stats:",null,"Score","DM",null,"Stats:",null,"Score","DM",null,"Stats:",null,"Score","DM",null,"Stats:",null,"Score","DM",null,"Stats:",null,"Score","DM",null,"Stats:",null,"Score","DM",null,"Stats:",null,"Score","DM",null,"Stats:",null,"Score","DM",null,"Stats:",null,"Score","DM"]
[null,null,"Strength:",22,5,null,null,"Strength:",1,-2,null,null,"Strength:",1,-2,null,null,"Strength:",7,0,null,null,"Strength:",18,4,null,null,"Strength:",3,-1,null,null,"Strength:",7,0,null,null,"Strength:",3,-1,null,null,"Strength:",13,2,null,null,"Strength:",3,-1,null,null,"Strength:",28,7,null,null,"Strength:",14,2,null,null,"Strength:",21,5,null,null,"Strength:",7,0,null,null,"Strength:",9,1,null,null,"Strength:",36,10]
[null,null,"Dexterity:",11,1,null,null,"Dexterity:",3,-1,null,null,"Dexterity:",1,-2,null,null,"Dexterity:",10,1,null,null,"Dexterity:",6,0,null,null,"Dexterity:",6,0,null,null,"Dexterity:",9,1,null,null,"Dexterity:",2,-2,null,null,"Dexterity:",5,-1,null,null,"Dexterity:",3,-1,null,null,"Dexterity:",1,-2,null,null,"Dexterity:",7,0,null,null,"Dexterity:",1,-2,null,null,"Dexterity:",8,0,null,null,"Dexterity:",11,1,null,null,"Dexterity:",5,-1]
[null,null,"Endurance:",16,3,null,null,"Endurance:",1,-2,null,null,"Endurance:",1,-2,null,null,"Endurance:",4,-1,null,null,"Endurance:",14,2,null,null,"Endurance:",1,-2,null,null,"Endurance:",11,1,null,null,"Endurance:",1,-2,null,null,"Endurance:",17,3,null,null,"Endurance:",1,-2,null,null,"Endurance:",28,7,null,null,"Endurance:",20,4,null,null,"Endurance:",26,6,null,null,"Endurance:",6,0,null,null,"Endurance:",9,1,null,null,"Endurance:",18,4]
[null,null,"Inteligence:",0,-3,null,null,"Inteligence:",0,-3,null,null,"Inteligence:",0,-3,null,null,"Inteligence:",0,-3,null,null,"Inteligence:",1,-2,null,null,"Inteligence:",1,-2,null,null,"Inteligence:",0,-3,null,null,"Inteligence:",3,-1,null,null,"Inteligence:",1,-2,null,null,"Inteligence:",0,-3,null,null,"Inteligence:",0,-3,null,null,"Inteligence:",3,-1,null,null,"Inteligence:",1,-2,null,null,"Inteligence:",0,-3,null,null,"Inteligence:",1,-2,null,null,"Inteligence:",1,-2]
[null,null,"Instinct:",8,0,null,null,"Instinct:",4,-1,null,null,"Instinct:",3,-1,null,null,"Instinct:",7,0,null,null,"Instinct:",3,-1,null,null,"Instinct:",6,0,null,null,"Instinct:",11,1,null,null,"Instinct:",6,0,null,null,"Instinct:",12,2,null,null,"Instinct:",3,-1,null,null,"Instinct:",12,2,null,null,"Instinct:",4,-1,null,null,"Instinct:",5,-1,null,null,"Instinct:",5,-1,null,null,"Instinct:",8,0,null,null,"Instinct:",8,0]
[null,null,"Pack:",8,0,null,null,"Pack:",8,0,null,null,"Pack:",14,2,null,null,"Pack:",12,2,null,null,"Pack:",13,2,null,null,"Pack:",9,1,null,null,"Pack:",8,0,null,null,"Pack:",12,2,null,null,"Pack:",6,0,null,null,"Pack:",10,1,null,null,"Pack:",11,1,null,null,"Pack:",9,1,null,null,"Pack:",12,2,null,null,"Pack:",6,0,null,null,"Pack:",8,0,null,null,"Pack:",12,2]
[]
[null,"Skills:","Athletics:",0,null,null,"Skills:","Athletics:",1,null,null,"Skills:","Athletics:",1,null,null,"Skills:","Athletics:",0,null,null,"Skills:","Athletics:",3,null,null,"Skills:","Athletics:",2,null,null,"Skills:","Athletics:",1,null,null,"Skills:","Athletics:",1,null,null,"Skills:","Athletics:",1,null,null,"Skills:","Athletics:",3,null,null,"Skills:","Athletics:",1,null,null,"Skills:","Athletics:",3,null,null,"Skills:","Athletics:",2,null,null,"Skills:","Athletics:",1,null,null,"Skills:","Athletics:",2,null,null,"Skills:","Athletics:",0]
[null,null,"Recon:",1,null,null,null,"Recon:",0,null,null,null,"Recon:",0,null,null,null,"Recon:",1,null,null,null,"Recon:",1,null,null,null,"Recon:",1,null,null,null,"Recon:",1,null,null,null,"Recon:",1,null,null,null,"Recon:",3,null,null,null,"Recon:",1,null,null,null,"Recon:",1,null,null,null,"Recon:",0,null,null,null,"Recon:",2,null,null,null,"Recon:",1,null,null,null,"Recon:",1,null,null,null,"Recon:",0]
[null,null,"Survival:",0,null,null,null,"Survival:",0,null,null,null,"Survival:",0,null,null,null,"Survival:",1,null,null,null,"Survival:",1,null,null,null,"Survival:",0,null,null,null,"Survival:",0,null,null,null,"Survival:",2,null,null,null,"Survival:",1,null,null,null,"Survival:",1,null,null,null,"Survival:",0,null,null,null,"Survival:",1,null,null,null,"Survival:",2,null,null,null,"Survival:",0,null,null,null,"Survival:",2,null,null,null,"Survival:",1]
[null,null,"Melee:",null,null,null,null,"Melee:",1,null,null,null,"Melee:",1,null,null,null,"Melee:",0,null,null,null,"Melee:",0,null,null,null,"Melee:",0,null,null,null,"Melee:",null,null,null,null,"Melee:",0,null,null,null,"Melee:",null,null,null,null,"Melee:",null,null,null,null,"Melee:",null,null,null,null,"Melee:",null,null,null,null,"Melee:",null,null,null,null,"Melee:",0,null,null,null,"Melee:",null,null,null,null,"Melee:"]
[null,null,"Deception:",null,null,null,null,"Deception:",1,null,null,null,"Deception:",null,null,null,null,"Deception:",null,null,null,null,"Deception:",null,null,null,null,"Deception:",null,null,null,null,"Deception:",null,null,null,null,"Deception:",null,null,null,null,"Deception:",null,null,null,null,"Deception:",null,null,null,null,"Deception:",null,null,null,null,"Deception:",null,null,null,null,"Deception:",null,null,null,null,"Deception:",null,null,null,null,"Deception:",null,null,null,null,"Deception:"]
[null,null,"Persuade:",null,null,null,null,"Persuade:",1,null,null,null,"Persuade:",null,null,null,null,"Persuade:",1,null,null,null,"Persuade:",null,null,null,null,"Persuade:",null,null,null,null,"Persuade:",null,null,null,null,"Persuade:",null,null,null,null,"Persuade:",null,null,null,null,"Persuade:",null,null,null,null,"Persuade:",null,null,null,null,"Persuade:",null,null,null,null,"Persuade:",null,null,null,null,"Persuade:",null,null,null,null,"Persuade:",null,null,null,null,"Persuade:",1]
[null,null,"Stealth:",null,null,null,null,"Stealth:",null,null,null,null,"Stealth:",null,null,null,null,"Stealth:",null,null,null,null,"Stealth:",null,null,null,null,"Stealth:",null,null,null,null,"Stealth:",null,null,null,null,"Stealth:",null,null,null,null,"Stealth:",null,null,null,null,"Stealth:",null,null,null,null,"Stealth:",null,null,null,null,"Stealth:",null,null,null,null,"Stealth:",null,null,null,null,"Stealth:",null,null,null,null,"Stealth:",null,null,null,null,"Stealth:"]
[]
[null,"Weapons:","Type","Damage",null,null,"Weapons:","Type","Damage",null,null,"Weapons:","Type","Damage",null,null,"Weapons:","Type","Damage",null,null,"Weapons:","Type","Damage",null,null,"Weapons:","Type","Damage",null,null,"Weapons:","Type","Damage",null,null,"Weapons:","Type","Damage",null,null,"Weapons:","Type","Damage",null,null,"Weapons:","Type","Damage",null,null,"Weapons:","Type","Damage",null,null,"Weapons:","Type","Damage",null,null,"Weapons:","Type","Damage",null,null,"Weapons:","Type","Damage",null,null,"Weapons:","Type","Damage",null,null,"Weapons:","Type","Damage"]
[null,null,"Teeth","5d6",null,null,null,"Teeth","3d6",null,null,null,"Teeth","2d6",null,null,null,"Teeth","3d6",null,null,null,"Teeth","2d6",null,null,null,"Teeth","1d6",null,null,null,"Teeth","1d6",null,null,null,"Teeth","1d6",null,null,null,"Teeth","2d6",null,null,null,"Teeth","2d6",null,null,null,"Teeth","3d6",null,null,null,"Teeth","3d6",null,null,null,"Teeth","4d6",null,null,null,"Teeth","1d6",null,null,null,"Teeth","3d6",null,null,null,"Teeth","4d6"]
[null,null,"Claws","5d6",null,null,null,"Claws","3d6",null,null,null,"Claws","2d6",null,null,null,"Claws and Teeth","3d6",null,null,null,"Hooves and Teeth","2d6",null,null,null,"Teeth","1d6",null,null,null,"Hooves","1d6",null,null,null,"Teeth","1d6",null,null,null,"Hooves and Teeth","2d6",null,null,null,"Thrasher","2d6",null,null,null,"Teeth","3d6",null,null,null,"Stinger","3d6",null,null,null,"Stinger","4d6",null,null,null,"Hooves and Teeth","1d6",null,null,null,"Claws and Teeth","3d6",null,null,null,"Hooves and Teeth","4d6"]
[null,"Armor:",9,null,null,null,"Armor:",11,null,null,null,"Armor:",7,null,null,null,"Armor:",10,null,null,null,"Armor:",12,null,null,null,"Armor:",2,null,null,null,"Armor:",9,null,null,null,"Armor:",3,null,null,null,"Armor:",8,null,null,null,"Armor:",10,null,null,null,"Armor:",4,null,null,null,"Armor:",6,null,null,null,"Armor:",7,null,null,null,"Armor:",3,null,null,null,"Armor:",6,null,null,null,"Armor:",6]
[]
[null,"Number Encountered:","2d6",null,null,null,"Number Encountered:","2d6",null,null,null,"Number Encountered:","4d6",null,null,null,"Number Encountered:","4d6",null,null,null,"Number Encountered:","4d6",null,null,null,"Number Encountered:","3d6",null,null,null,"Number Encountered:","2d6",null,null,null,"Number Encountered:","4d6",null,null,null,"Number Encountered:","2d6",null,null,null,"Number Encountered:","3d6",null,null,null,"Number Encountered:","3d6",null,null,null,"Number Encountered:","3d6",null,null,null,"Number Encountered:","4d6",null,null,null,"Number Encountered:","2d6",null,null,null,"Number Encountered:","2d6",null,null,null,"Number Encountered:","4d6"]
[]
[null,"Name:","Species LOCATION-2",null,null,null,"Name:","Species LOCATION-12",null,null,null,"Name:","Species LOCATION-22",null,null,null,"Name:","Species LOCATION-32",null,null,null,"Name:","Species LOCATION-42",null,null,null,"Name:","Species LOCATION-52",null,null,null,"Name:","Species LOCATION-62",null,null,null,"Name:","Species LOCATION-72",null,null,null,"Name:","Species LOCATION-82",null,null,null,"Name:","Species LOCATION-92",null,null,null,"Name:","Species LOCATION-102",null,null,null,"Name:","Species LOCATION-112",null,null,null,"Name:","Species LOCATION-122",null,null,null,"Name:","Species LOCATION-132",null,null,null,"Name:","Species LOCATION-142",null,null,null,"Name:","Species LOCATION-152"]
[null,"Average Weight(kg):",50,null,null,null,"Average Weight(kg):",100,null,null,null,"Average Weight(kg):",50,null,null,null,"Average Weight(kg):",400,null,null,null,"Average Weight(kg):",1,null,null,null,"Average Weight(kg):",1,null,null,null,"Average Weight(kg):",1,null,null,null,"Average Weight(kg):",100,null,null,null,"Average Weight(kg):",50,null,null,null,"Average Weight(kg):",12,null,null,null,"Average Weight(kg):",5000,null,null,null,"Average Weight(kg):",200,null,null,null,"Average Weight(kg):",400,null,null,null,"Average Weight(kg):",1,null,null,null,"Average Weight(kg):",6,null,null,null,"Average Weight(kg):",200]
[null,"Movement:","Walker",null,null,null,"Movement:","Walker",null,null,null,"Movement:","Walker",null,null,null,"Movement:","Walker",null,null,null,"Movement:","Flyer",null,null,null,"Movement:","Walker",null,null,null,"Movement:","Flyer",null,null,null,"Movement:","Walker",null,null,null,"Movement:","Walker",null,null,null,"Movement:","Walker",null,null,null,"Movement:","Walker",null,null,null,"Movement:","Walker",null,null,null,"Movement:","Walker",null,null,null,"Movement:","Flyer",null,null,null,"Movement:","Swimmer",null,null,null,"Movement:","Swimmer"]
[null,"Type:","Omnivore(Gatherer)",null,null,null,"Type:","Omnivore(Hunter)",null,null,null,"Type:","Omnivore(Eater)",null,null,null,"Type:","Omnivore(Gatherer)",null,null,null,"Type:","Omnivore(Gatherer)",null,null,null,"Type:","Omnivore(Gatherer)",null,null,null,"Type:","Omnivore(Gatherer)",null,null,null,"Type:","Omnivore(Eater)",null,null,null,"Type:","Omnivore(Gatherer)",null,null,null,"Type:","Omnivore(Eater)",null,null,null,"Type:","Omnivore(Eater)",null,null,null,"Type:","Omnivore(Gatherer)",null,null,null,"Type:","Omnivore(Hunter)",null,null,null,"Type:","Omnivore(Hunter)",null,null,null,"Type:","Omnivore(Gatherer)",null,null,null,"Type:","Omnivore(Hunter)"]
[]
[null,"Stats:",null,"Score","DM",null,"Stats:",null,"Score","DM",null,"Stats:",null,"Score","DM",null,"Stats:",null,"Score","DM",null,"Stats:",null,"Score","DM",null,"Stats:",null,"Score","DM",null,"Stats:",null,"Score","DM",null,"Stats:",null,"Score","DM",null,"Stats:",null,"Score","DM",null,"Stats:",null,"Score","DM",null,"Stats:",null,"Score","DM",null,"Stats:",null,"Score","DM",null,"Stats:",null,"Score","DM",null,"Stats:",null,"Score","DM",null,"Stats:",null,"Score","DM",null,"Stats:",null,"Score","DM"]
[null,null,"Strength:",9,1,null,null,"Strength:",13,2,null,null,"Strength:",8,0,null,null,"Strength:",15,3,null,null,"Strength:",1,-2,null,null,"Strength:",1,-2,null,null,"Strength:",1,-2,null,null,"Strength:",13,2,null,null,"Strength:",5,-1,null,null,"Strength:",3,-1,null,null,"Strength:",31,8,null,null,"Strength:",8,0,null,null,"Strength:",12,2,null,null,"Strength:",1,-2,null,null,"Strength:",2,-2,null,null,"Strength:",10,1]
[null,null,"Dexterity:",18,4,null,null,"Dexterity:",10,1,null,null,"Dexterity:",14,2,null,null,"Dexterity:",3,-1,null,null,"Dexterity:",1,-2,null,null,"Dexterity:",2,-2,null,null,"Dexterity:",1,-2,null,null,"Dexterity:",10,1,null,null,"Dexterity:",9,1,null,null,"Dexterity:",7,0,null,null,"Dexterity:",2,-2,null,null,"Dexterity:",12,2,null,null,"Dexterity:",2,-2,null,null,"Dexterity:",2,-2,null,null,"Dexterity:",5,-1,null,null,"Dexterity:",10,1]
[null,null,"Endurance:",8,0,null,null,"Endurance:",7,0,null,null,"Endurance:",8,0,null,null,"Endurance:",15,3,null,null,"Endurance:",1,-2,null,null,"Endurance:",1,-2,null,null,"Endurance:",1,-2,null,null,"Endurance:",12,2,null,null,"Endurance:",6,0,null,null,"Endurance:",8,0,null,null,"Endurance:",28,7,null,null,"Endurance:",9,1,null,null,"Endurance:",20,4,null,null,"Endurance:",1,-2,null,null,"Endurance:",2,-2,null,null,"Endurance:",15,3]
[null,null,"Inteligence:",0,-3,null,null,"Inteligence:",1,-2,null,null,"Inteligence:",1,-2,null,null,"Inteligence:",0,-3,null,null,"Inteligence:",1,-2,null,null,"Inteligence:",0,-3,null,null,"Inteligence:",1,-2,null,null,"Inteligence:",1,-2,null,null,"Inteligence:",0,-3,null,null,"Inteligence:",3,-1,null,null,"Inteligence:",0,-3,null,null,"Inteligence:",3,-1,null,null,"Inteligence:",0,-3,null,null,"Inteligence:",0,-3,null,null,"Inteligence:",1,-2,null,null,"Inteligence:",0,-3]
[null,null,"Instinct:",7,0,null,null,"Instinct:",7,0,null,null,"Instinct:",7,0,null,null,"Instinct:",3,-1,null,null,"Instinct:",10,1,null,null,"Instinct:",4,-1,null,null,"Instinct:",9,1,null,null,"Instinct:",11,1,null,null,"Instinct:",10,1,null,null,"Instinct:",5,-1,null,null,"Instinct:",8,0,null,null,"Instinct:",9,1,null,null,"Instinct:",11,1,null,null,"Instinct:",9,1,null,null,"Instinct:",7,0,null,null,"Instinct:",6,0]
[null,null,"Pack:",10,1,null,null,"Pack:",10,1,null,null,"Pack:",6,0,null,null,"Pack:",11,1,null,null,"Pack:",9,1,null,null,"Pack:",12,2,null,null,"Pack:",5,-1,null,null,"Pack:",10,1,null,null,"Pack:",10,1,null,null,"Pack:",8,0,null,null,"Pack:",9,1,null,null,"Pack:",7,0,null,null,"Pack:",11,1,null,null,"Pack:",5,-1,null,null,"Pack:",8,0,null,null,"Pack:",8,0]
[]
[null,"Skills:","Athletics:",0,null,null,"Skills:","Athletics:",0,null,null,"Skills:","Athletics:",1,null,null,"Skills:","Athletics:",0,null,null,"Skills:","Athletics:",0,null,null,"Skills:","Athletics:",0,null,null,"Skills:","Athletics:",1,null,null,"Skills:","Athletics:",1,null,null,"Skills:","Athletics:",0,null,null,"Skills:","Athletics:",0,null,null,"Skills:","Athletics:",0,null,null,"Skills:","Athletics:",0,null,null,"Skills:","Athletics:",2,null,null,"Skills:","Athletics:",0,null,null,"Skills:","Athletics:",0,null,null,"Skills:","Athletics:",0]
[null,null,"Recon:",0,null,null,null,"Recon:",1,null,null,null,"Recon:",1,null,null,null,"Recon:",0,null,null,null,"Recon:",2,null,null,null,"Recon:",2,null,null,null,"Recon:",1,null,null,null,"Recon:",3,null,null,null,"Recon:",0,null,null,null,"Recon:",2,null,null,null,"Recon:",1,null,null,null,"Recon:",0,null,null,null,"Recon:",2,null,null,null,"Recon:",0,null,null,null,"Recon:",0,null,null,null,"Recon:",2]
[null,null,"Survival:",0,null,null,null,"Survival:",1,null,null,null,"Survival:",0,null,null,null,"Survival:",0,null,null,null,"Survival:",0,null,null,null,"Survival:",0,null,null,null,"Survival:",0,null,null,null,"Survival:",1,null,null,null,"Survival:",0,null,null,null,"Survival:",1,null,null,null,"Survival:",1,null,null,null,"Survival:",0,null,null,null,"Survival:",1,null,null,null,"Survival:",1,null,null,null,"Survival:",0,null,null,null,"Survival:",1]
[null,null,"Melee:",0,null,null,null,"Melee:",null,null,null,null,"Melee:",0,null,null,null,"Melee:",null,null,null,null,"Melee:",0,null,null,null,"Melee:",null,null,null,null,"Melee:",null,null,null,null,"Melee:",null,null,null,null,"Melee:",null,null,null,null,"Melee:",null,null,null,null,"Melee:",1,null,null,null,"Melee:",1,null,null,null,"Melee:",null,null,null,null,"Melee:",null,null,null,null,"Melee:",null,null,null,null,"Melee:"]
[null,null,"Deception:",0,null,null,null,"Deception:",null,null,null,null,"Deception:",null,null,null,null,"Deception:",null,null,null,null,"Deception:",null,null,null,null,"Deception:",1,null,null,null,"Deception:",null,null,null,null,"Deception:",null,null,null,null,"Deception:",null,null,null,null,"Deception:",null,null,null,null,"Deception:",null,null,null,null,"Deception:",null,null,null,null,"Deception:",null,null,null,null,"Deception:",null,null,null,null,"Deception:",0,null,null,null,"Deception:"]
[null,null,"Persuade:",null,null,null,null,"Persuade:",null,null,null,null,"Persuade:",null,null,null,null,"Persuade:",null,null,null,null,"Persuade:",null,null,null,null,"Persuade:",null,null,null,null,"Persuade:",null,null,null,null,"Persuade:",null,null,null,null,"Persuade:",null,null,null,null,"Persuade:",null,null,null,null,"Persuade:",null,null,null,null,"Persuade:",null,null,null,null,"Persuade:",null,null,null,null,"Persuade:",null,null,null,null,"Persuade:",null,null,null,null,"Persuade:"]
[null,null,"Stealth:",1,null,null,null,"Stealth:",null,null,null,null,"Stealth:",null,null,null,null,"Stealth:",1,null,null,null,"Stealth:",1,null,null,null,"Stealth:",1,null,null,null,"Stealth:",1,null,null,null,"Stealth:",null,null,null,null,"Stealth:",1,null,null,null,"Stealth:",null,null,null,null,"Stealth:",null,null,null,null,"Stealth:",1,null,null,null,"Stealth:",null,null,null,null,"Stealth:",null,null,null,null,"Stealth:",1,null,null,null,"Stealth:"]
[]
[null,"Weapons:","Type","Damage",null,null,"Weapons:","Type","Damage",null,null,"Weapons:","Type","Damage",null,null,"Weapons:","Type","Damage",null,null,"Weapons:","Type","Damage",null,null,"Weapons:","Type","Damage",null,null,"Weapons:","Type","Damage",null,null,"Weapons:","Type","Damage",null,null,"Weapons:","Type","Damage",null,null,"Weapons:","Type","Damage",null,null,"Weapons:","Type","Damage",null,null,"Weapons:","Type","Damage",null,null,"Weapons:","Type","Damage",null,null,"Weapons:","Type","Damage",null,null,"Weapons:","Type","Damage",null,null,"Weapons:","Type","Damage"]
[]
[null,null,"Thrasher","3d6",null,null,null,"Thrasher","4d6",null,null,null,"Stinger","2d6",null,null,null,"Stinger","3d6",null,null,null,"Thrasher","3d6",null,null,null,"Thrasher","3d6",null,null,null,"Thrasher","3d6",null,null,null,"Claws","4d6",null,null,null,"Claws","3d6",null,null,null,"Claws","2d6",null,null,null,"Thrasher","5d6",null,null,null,"Thrasher","3d6",null,null,null,"Teeth","4d6",null,null,null,"Teeth","3d6",null,null,null,"Thrasher","2d6",null,null,null,"Thrasher","3d6"]
[null,"Armor:",3,null,null,null,"Armor:",9,null,null,null,"Armor:",11,null,null,null,"Armor:",12,null,null,null,"Armor:",7,null,null,null,"Armor:",5,null,null,null,"Armor:",6,null,null,null,"Armor:",6,null,null,null,"Armor:",7,null,null,null,"Armor:",10,null,null,null,"Armor:",8,null,null,null,"Armor:",11,null,null,null,"Armor:",10,null,null,null,"Armor:",7,null,null,null,"Armor:",7,null,null,null,"Armor:",7]
[]
[null,"Number Encountered:","3d6",null,null,null,"Number Encountered:","3d6",null,null,null,"Number Encountered:","2d6",null,null,null,"Number Encountered:","3d6",null,null,null,"Number Encountered:","3d6",null,null,null,"Number Encountered:","4d6",null,null,null,"Number Encountered:","1d6",null,null,null,"Number Encountered:","3d6",null,null,null,"Number Encountered:","3d6",null,null,null,"Number Encountered:","2d6",null,null,null,"Number Encountered:","3d6",null,null,null,"Number Encountered:","2d6",null,null,null,"Number Encountered:","3d6",null,null,null,"Number Encountered:","1d6",null,null,null,"Number Encountered:","2d6",null,null,null,"Number Encountered:","2d6"]
[]
[null,"Name:","Species LOCATION-3",null,null,null,"Name:","Species LOCATION-13",null,null,null,"Name:","Species LOCATION-23",null,null,null,"Name:","Species LOCATION-33",null,null,null,"Name:","Species LOCATION-43",null,null,null,"Name:","Species LOCATION-53",null,null,null,"Name:","Species LOCATION-63",null,null,null,"Name:","Species LOCATION-73",null,null,null,"Name:","Species LOCATION-83",null,null,null,"Name:","Species LOCATION-93",null,null,null,"Name:","Species LOCATION-103",null,null,null,"Name:","Species LOCATION-113",null,null,null,"Name:","Species LOCATION-123",null,null,null,"Name:","Species LOCATION-133",null,null,null,"Name:","Species LOCATION-143",null,null,null,"Name:","Species LOCATION-153"]
[null,"Average Weight(kg):",3200,null,null,null,"Average Weight(kg):",200,null,null,null,"Average Weight(kg):",1,null,null,null,"Average Weight(kg):",1,null,null,null,"Average Weight(kg):",800,null,null,null,"Average Weight(kg):",6,null,null,null,"Average Weight(kg):",400,null,null,null,"Average Weight(kg):",50,null,null,null,"Average Weight(kg):",3,null,null,null,"Average Weight(kg):",400,null,null,null,"Average Weight(kg):",5000,null,null,null,"Average Weight(kg):",6,null,null,null,"Average Weight(kg):",6,null,null,null,"Average Weight(kg):",800,null,null,null,"Average Weight(kg):",200,null,null,null,"Average Weight(kg):",400]
[null,"Movement:","Walker",null,null,null,"Movement:","Walker",null,null,null,"Movement:","Flyer",null,null,null,"Movement:","Flyer",null,null,null,"Movement:","Flyer",null,null,null,"Movement:","Walker",null,null,null,"Movement:","Walker",null,null,null,"Movement:","Walker",null,null,null,"Movement:","Walker",null,null,null,"Movement:","Flyer",null,null,null,"Movement:","Walker",null,null,null,"Movement:","Flyer",null,null,null,"Movement:","Walker",null,null,null,"Movement:","Swimmer",null,null,null,"Movement:","Swimmer",null,null,null,"Movement:","Swimmer"]
[null,"Type:","Scavenger(Intimidator)",null,null,null,"Type:","Scavenger(Hijacker)",null,null,null,"Type:","Scavenger(Reducer)",null,null,null,"Type:","Scavenger(Reducer)",null,null,null,"Type:","Scavenger(Carrion-Eater)",null,null,null,"Type:","Scavenger(Carrion-Eater)",null,null,null,"Type:","Scavenger(Reducer)",null,null,null,"Type:","Scavenger(Carrion-Eater)",null,null,null,"Type:","Scavenger(Reducer)",null,null,null,"Type:","Scavenger(Intimidator)",null,null,null,"Type:","Scavenger(Reducer)",null,null,null,"Type:","Scavenger(Hijacker)",null,null,null,"Type:","Scavenger(Hijacker)",null,null,null,"Type:","Scavenger(Intimidator)",null,null,null,"Type:","Scavenger(Hijacker)",null,null,null,"Type:","Scavenger(Hijacker)"]
[]
[null,"Stats:",null,"Score","DM",null,"Stats:",null,"Score","DM",null,"Stats:",null,"Score","DM",null,"Stats:",null,"Score","DM",null,"Stats:",null,"Score","DM",null,"Stats:",null,"Score","DM",null,"Stats:",null,"Score","DM",null,"Stats:",null,"Score","DM",null,"Stats:",null,"Score","DM",null,"Stats:",null,"Score","DM",null,"Stats:",null,"Score","DM",null,"Stats:",null,"Score","DM",null,"Stats:",null,"Score","DM",null,"Stats:",null,"Score","DM",null,"Stats:",null,"Score","DM",null,"Stats:",null,"Score","DM"]
[null,null,"Strength:",23,5,null,null,"Strength:",11,1,null,null,"Strength:",1,-2,null,null,"Strength:",1,-2,null,null,"Strength:",13,2,null,null,"Strength:",2,-2,null,null,"Strength:",10,1,null,null,"Strength:",8,0,null,null,"Strength:",2,-2,null,null,"Strength:",14,2,null,null,"Strength:",27,7,null,null,"Strength:",5,-1,null,null,"Strength:",7,0,null,null,"Strength:",11,1,null,null,"Strength:",11,1,null,null,"Strength:",18,4]
[null,null,"Dexterity:",4,-1,null,null,"Dexterity:",6,0,null,null,"Dexterity:",3,-1,null,null,"Dexterity:",2,-2,null,null,"Dexterity:",2,-2,null,null,"Dexterity:",9,1,null,null,"Dexterity:",8,0,null,null,"Dexterity:",12,2,null,null,"Dexterity:",3,-1,null,null,"Dexterity:",4,-1,null,null,"Dexterity:",6,0,null,null,"Dexterity:",5,-1,null,null,"Dexterity:",8,0,null,null,"Dexterity:",11,1,null,null,"Dexterity:",11,1,null,null,"Dexterity:",6,0]
[null,null,"Endurance:",21,5,null,null,"Endurance:",6,0,null,null,"Endurance:",1,-2,null,null,"Endurance:",1,-2,null,null,"Endurance:",14,2,null,null,"Endurance:",4,-1,null,null,"Endurance:",10,1,null,null,"Endurance:",4,-1,null,null,"Endurance:",2,-2,null,null,"Endurance:",18,4,null,null,"Endurance:",24,6,null,null,"Endurance:",4,-1,null,null,"Endurance:",4,-1,null,null,"Endurance:",9,1,null,null,"Endurance:",16,3,null,null,"Endurance:",16,3]
[null,null,"Inteligence:",1,-2,null,null,"Inteligence:",1,-2,null,null,"Inteligence:",0,-3,null,null,"Inteligence:",1,-2,null,null,"Inteligence:",1,-2,null,null,"Inteligence:",0,-3,null,null,"Inteligence:",1,-2,null,null,"Inteligence:",0,-3,null,null,"Inteligence:",0,-3,null,null,"Inteligence:",0,-3,null,null,"Inteligence:",0,-3,null,null,"Inteligence:",3,-1,null,null,"Inteligence:",0,-3,null,null,"Inteligence:",0,-3,null,null,"Inteligence:",0,-3,null,null,"Inteligence:",0,-3]
[null,null,"Instinct:",6,0,null,null,"Instinct:",7,0,null,null,"Instinct:",7,0,null,null,"Instinct:",7,0,null,null,"Instinct:",8,0,null,null,"Instinct:",6,0,null,null,"Instinct:",4,-1,null,null,"Instinct:",5,-1,null,null,"Instinct:",5,-1,null,null,"Instinct:",8,0,null,null,"Instinct:",6,0,null,null,"Instinct:",5,-1,null,null,"Instinct:",7,0,null,null,"Instinct:",6,0,null,null,"Instinct:",4,-1,null,null,"Instinct:",2,-2]
[null,null,"Pack:",8,0,null,null,"Pack:",10,1,null,null,"Pack:",12,2,null,null,"Pack:",10,1,null,null,"Pack:",5,-1,null,null,"Pack:",5,-1,null,null,"Pack:",7,0,null,null,"Pack:",5,-1,null,null,"Pack:",11,1,null,null,"Pack:",5,-1,null,null,"Pack:",16,3,null,null,"Pack:",13,2,null,null,"Pack:",11,1,null,null,"Pack:",7,0,null,null,"Pack:",7,0,null,null,"Pack:",10,1]
[]
[null,"Skills:","Athletics:",2,null,null,"Skills:","Athletics:",0,null,null,"Skills:","Athletics:",0,null,null,"Skills:","Athletics:",0,null,null,"Skills:","Athletics:",0,null,null,"Skills:","Athletics:",0,null,null,"Skills:","Athletics:",1,null,null,"Skills:","Athletics:",0,null,null,"Skills:","Athletics:",0,null,null,"Skills:","Athletics:",1,null,null,"Skills:","Athletics:",0,null,null,"Skills:","Athletics:",0,null,null,"Skills:","Athletics:",0,null,null,"Skills:","Athletics:",2,null,null,"Skills:","Athletics:",0,null,null,"Skills:","Athletics:",1]
[null,null,"Recon:",0,null,null,null,"Recon:",0,null,null,null,"Recon:",1,null,null,null,"Recon:",1,null,null,null,"Recon:",1,null,null,null,"Recon:",2,null,null,null,"Recon:",1,null,null,null,"Recon:",1,null,null,null,"Recon:",0,null,null,null,"Recon:",1,null,null,null,"Recon:",0,null,null,null,"Recon:",2,null,null,null,"Recon:",0,null,null,null,"Recon:",0,null,null,null,"Recon:",0,null,null,null,"Recon:",2]
[null,null,"Survival:",0,null,null,null,"Survival:",1,null,null,null,"Survival:",0,null,null,null,"Survival:",0,null,null,null,"Survival:",0,null,null,null,"Survival:",2,null,null,null,"Survival:",1,null,null,null,"Survival:",0,null,null,null,"Survival:",1,null,null,null,"Survival:",2,null,null,null,"Survival:",0,null,null,null,"Survival:",2,null,null,null,"Survival:",0,null,null,null,"Survival:",0,null,null,null,"Survival:",0,null,null,null,"Survival:",1]
[null,null,"Melee:",0,null,null,null,"Melee:",null,null,null,null,"Melee:",null,null,null,null,"Melee:",null,null,null,null,"Melee:",0,null,null,null,"Melee:",0,null,null,null,"Melee:",1,null,null,null,"Melee:",null,null,null,null,"Melee:",null,null,null,null,"Melee:",0,null,null,null,"Melee:",2,null,null,null,"Melee:",0,null,null,null,"Melee:",2,null,null,null,"Melee:",0,null,null,null,"Melee:",0,null,null,null,"Melee:"]
[null,null,"Deception:",null,null,null,null,"Deception:",null,null,null,null,"Deception:",null,null,null,null,"Deception:",null,null,null,null,"Deception:",null,null,null,null,"Deception:",null,null,null,null,"Deception:",null,null,null,null,"Deception:",null,null,null,null,"Deception:",null,null,null,null,"Deception:",null,null,null,null,"Deception:",null,null,null,null,"Deception:",null,null,null,null,"Deception:",null,null,null,null,"Deception:",0,null,null,null,"Deception:",null,null,null,null,"Deception:"]
[null,null,"Persuade:",1,null,null,null,"Persuade:",null,null,null,null,"Persuade:",null,null,null,null,"Persuade:",null,null,null,null,"Persuade:",null,null,null,null,"Persuade:",null,null,null,null,"Persuade:",null,null,null,null,"Persuade:",null,null,null,null,"Persuade:",null,null,null,null,"Persuade:",1,null,null,null,"Persuade:",null,null,null,null,"Persuade:",null,null,null,null,"Persuade:",null,null,null,null,"Persuade:",1,null,null,null,"Persuade:",null,null,null,null,"Persuade:"]
[null,null,"Stealth:",null,null,null,null,"Stealth:",null,null,null,null,"Stealth:",null,null,null,null,"Stealth:",null,null,null,null,"Stealth:",null,null,null,null,"Stealth:",null,null,null,null,"Stealth:",null,null,null,null,"Stealth:",null,null,null,null,"Stealth:",null,null,null,null,"Stealth:",null,null,null,null,"Stealth:",null,null,null,null,"Stealth:",null,null,null,null,"Stealth:",null,null,null,null,"Stealth:",null,null,null,null,"Stealth:",null,null,null,null,"Stealth:"]
[]
[null,"Weapons:","Type","Damage",null,null,"Weapons:","Type","Damage",null,null,"Weapons:","Type","Damage",null,null,"Weapons:","Type","Damage",null,null,"Weapons:","Type","Damage",null,null,"Weapons:","Type","Damage",null,null,"Weapons:","Type","Damage",null,null,"Weapons:","Type","Damage",null,null,"Weapons:","Type","Damage",null,null,"Weapons:","Type","Damage",null,null,"Weapons:","Type","Damage",null,null,"Weapons:","Type","Damage",null,null,"Weapons:","Type","Damage",null,null,"Weapons:","Type","Damage",null,null,"Weapons:","Type","Damage",null,null,"Weapons:","Type","Damage"]
[null,null,"Teeth","5d6",null,null,null,"Teeth","2d6",null,null,null,"Teeth","2d6",null,null,null,"Teeth","1d6",null,null,null,"Teeth","3d6",null,null,null,"Teeth","2d6",null,null,null,"Teeth","1d6",null,null,null,"Teeth","1d6",null,null,null,"Teeth","1d6",null,null,null,"Teeth","3d6",null,null,null,"Teeth","4d6",null,null,null,"Teeth","1d6",null,null,null,"Teeth","1d6",null,null,null,"Teeth","2d6",null,null,null,"Teeth","2d6",null,null,null,"Teeth","2d6"]
[null,null,"Claws","5d6",null,null,null,"Hooves and Teeth","2d6",null,null,null,"Claws","2d6",null,null,null,"Hooves and Teeth","1d6",null,null,null,"Thrasher","3d6",null,null,null,"Claws","2d6",null,null,null,"Hooves","1d6",null,null,null,"Hooves","1d6",null,null,null,"Teeth","1d6",null,null,null,"Claws","3d6",null,null,null,"Thrasher","4d6",null,null,null,"Horns","1d6",null,null,null,"Hooves","1d6",null,null,null,"Hooves and Teeth","2d6",null,null,null,"Hooves and Teeth","2d6",null,null,null,"Horns","2d6"]
[null,"Armor:",10,null,null,null,"Armor:",7,null,null,null,"Armor:",5,null,null,null,"Armor:",3,null,null,null,"Armor:",9,null,null,null,"Armor:",8,null,null,null,"Armor:",10,null,null,null,"Armor:",11,null,null,null,"Armor:",4,null,null,null,"Armor:",6,null,null,null,"Armor:",6,null,null,null,"Armor:",8,null,null,null,"Armor:",4,null,null,null,"Armor:",4,null,null,null,"Armor:",5,null,null,null,"Armor:",8]
[]
[null,"Number Encountered:","2d6",null,null,null,"Number Encountered:","3d6",null,null,null,"Number Encountered:","4d6",null,null,null,"Number Encountered:","3d6",null,null,null,"Number Encountered:","1d6",null,null,null,"Number Encountered:","1d6",null,null,null,"Number Encountered:","2d6",null,null,null,"Number Encountered:","1d6",null,null,null,"Number Encountered:","3d6",null,null,null,"Number Encountered:","1d6",null,null,null,"Number Encountered:","5d6",null,null,null,"Number Encountered:","4d6",null,null,null,"Number Encountered:","3d6",null,null,null,"Number Encountered:","2d6",null,null,null,"Number Encountered:","2d6",null,null,null,"Number Encountered:","3d6"]
[]
[null,"Name:","Species LOCATION-4",null,null,null,"Name:","Species LOCATION-14",null,null,null,"Name:","Species LOCATION-24",null,null,null,"Name:","Species LOCATION-34",null,null,null,"Name:","Species LOCATION-44",null,null,null,"Name:","Species LOCATION-54",null,null,null,"Name:","Species LOCATION-64",null,null,null,"Name:","Species LOCATION-74",null,null,null,"Name:","Species LOCATION-84",null,null,null,"Name:","Species LOCATION-94",null,null,null,"Name:","Species LOCATION-104",null,null,null,"Name:","Species LOCATION-114",null,null,null,"Name:","Species LOCATION-124",null,null,null,"Name:","Species LOCATION-134",null,null,null,"Name:","Species LOCATION-144",null,null,null,"Name:","Species LOCATION-154"]
[null,"Average Weight(kg):",1600,null,null,null,"Average Weight(kg):",200,null,null,null,"Average Weight(kg):",400,null,null,null,"Average Weight(kg):",800,null,null,null,"Average Weight(kg):",6,null,null,null,"Average Weight(kg):",3,null,null,null,"Average Weight(kg):",50,null,null,null,"Average Weight(kg):",1,null,null,null,"Average Weight(kg):",50,null,null,null,"Average Weight(kg):",400,null,null,null,"Average Weight(kg):",200,null,null,null,"Average Weight(kg):",5000,null,null,null,"Average Weight(kg):",25,null,null,null,"Average Weight(kg):",800,null,null,null,"Average Weight(kg):",6,null,null,null,"Average Weight(kg):",6]
[null,"Movement:","Walker",null,null,null,"Movement:","Walker",null,null,null,"Movement:","Flyer",null,null,null,"Movement:","Walker",null,null,null,"Movement:","Flyer",null,null,null,"Movement:","Walker",null,null,null,"Movement:","Walker",null,null,null,"Movement:","Walker",null,null,null,"Movement:","Walker",null,null,null,"Movement:","Flyer",null,null,null,"Movement:","Flyer",null,null,null,"Movement:","Walker",null,null,null,"Movement:","Walker",null,null,null,"Movement:","Swimmer",null,null,null,"Movement:","Swimmer",null,null,null,"Movement:","Swimmer"]
[null,"Type:","Omnivore(Gatherer)",null,null,null,"Type:","Omnivore(Gatherer)",null,null,null,"Type:","Omnivore(Eater)",null,null,null,"Type:","Omnivore(Eater)",null,null,null,"Type:","Omnivore(Gatherer)",null,null,null,"Type:","Omnivore(Gatherer)",null,null,null,"Type:","Omnivore(Hunter)",null,null,null,"Type:","Omnivore(Gatherer)",null,null,null,"Type:","Omnivore(Gatherer)",null,null,null,"Type:","Omnivore(Hunter)",null,null,null,"Type:","Omnivore(Gatherer)",null,null,null,"Type:","Omnivore(Hunter)",null,null,null,"Type:","Omnivore(Hunter)",null,null,null,"Type:","Omnivore(Eater)",null,null,null,"Type:","Omnivore(Hunter)",null,null,null,"Type:","Omnivore(Hunter)"]
[]
[null,"Stats:",null,"Score","DM",null,"Stats:",null,"Score","DM",null,"Stats:",null,"Score","DM",null,"Stats:",null,"Score","DM",null,"Stats:",null,"Score","DM",null,"Stats:",null,"Score","DM",null,"Stats:",null,"Score","DM",null,"Stats:",null,"Score","DM",null,"Stats:",null,"Score","DM",null,"Stats:",null,"Score","DM",null,"Stats:",null,"Score","DM",null,"Stats:",null,"Score","DM",null,"Stats:",null,"Score","DM",null,"Stats:",null,"Score","DM",null,"Stats:",null,"Score","DM",null,"Stats:",null,"Score","DM"]
[null,null,"Strength:",18,4,null,null,"Strength:",12,2,null,null,"Strength:",22,5,null,null,"Strength:",19,4,null,null,"Strength:",4,-1,null,null,"Strength:",2,-2,null,null,"Strength:",9,1,null,null,"Strength:",1,-2,null,null,"Strength:",6,0,null,null,"Strength:",12,2,null,null,"Strength:",16,3,null,null,"Strength:",27,7,null,null,"Strength:",10,1,null,null,"Strength:",10,1,null,null,"Strength:",4,-1,null,null,"Strength:",1,-2]
[null,null,"Dexterity:",9,1,null,null,"Dexterity:",10,1,null,null,"Dexterity:",8,0,null,null,"Dexterity:",8,0,null,null,"Dexterity:",5,-1,null,null,"Dexterity:",5,-1,null,null,"Dexterity:",18,4,null,null,"Dexterity:",5,-1,null,null,"Dexterity:",10,1,null,null,"Dexterity:",9,1,null,null,"Dexterity:",14,2,null,null,"Dexterity:",4,-1,null,null,"Dexterity:",15,3,null,null,"Dexterity:",6,0,null,null,"Dexterity:",8,0,null,null,"Dexterity:",7,0]
[null,null,"Endurance:",20,4,null,null,"Endurance:",15,3,null,null,"Endurance:",19,4,null,null,"Endurance:",15,3,null,null,"Endurance:",1,-2,null,null,"Endurance:",2,-2,null,null,"Endurance:",2,-2,null,null,"Endurance:",1,-2,null,null,"Endurance:",7,0,null,null,"Endurance:",16,3,null,null,"Endurance:",9,1,null,null,"Endurance:",23,5,null,null,"Endurance:",10,1,null,null,"Endurance:",18,4,null,null,"Endurance:",1,-2,null,null,"Endurance:",3,-1]
[null,null,"Inteligence:",1,-2,null,null,"Inteligence:",1,-2,null,null,"Inteligence:",0,-3,null,null,"Inteligence:",3,-1,null,null,"Inteligence:",0,-3,null,null,"Inteligence:",1,-2,null,null,"Inteligence:",1,-2,null,null,"Inteligence:",0,-3,null,null,"Inteligence:",1,-2,null,null,"Inteligence:",1,-2,null,null,"Inteligence:",0,-3,null,null,"Inteligence:",0,-3,null,null,"Inteligence:",1,-2,null,null,"Inteligence:",1,-2,null,null,"Inteligence:",0,-3,null,null,"Inteligence:",0,-3]
[null,null,"Instinct:",5,-1,null,null,"Instinct:",5,-1,null,null,"Instinct:",4,-1,null,null,"Instinct:",7,0,null,null,"Instinct:",5,-1,null,null,"Instinct:",9,1,null,null,"Instinct:",11,1,null,null,"Instinct:",7,0,null,null,"Instinct:",6,0,null,null,"Instinct:",11,1,null,null,"Instinct:",5,-1,null,null,"Instinct:",9,1,null,null,"Instinct:",7,0,null,null,"Instinct:",8,0,null,null,"Instinct:",12,2,null,null,"Instinct:",9,1]
[null,null,"Pack:",8,0,null,null,"Pack:",10,1,null,null,"Pack:",11,1,null,null,"Pack:",5,-1,null,null,"Pack:",7,0,null,null,"Pack:",9,1,null,null,"Pack:",5,-1,null,null,"Pack:",8,0,null,null,"Pack:",7,0,null,null,"Pack:",8,0,null,null,"Pack:",11,1,null,null,"Pack:",11,1,null,null,"Pack:",5,-1,null,null,"Pack:",5,-1,null,null,"Pack:",7,0,null,null,"Pack:",8,0]
[]
[null,"Skills:","Athletics:",0,null,null,"Skills:","Athletics:",0,null,null,"Skills:","Athletics:",4,null,null,"Skills:","Athletics:",0,null,null,"Skills:","Athletics:",0,null,null,"Skills:","Athletics:",0,null,null,"Skills:","Athletics:",1,null,null,"Skills:","Athletics:",0,null,null,"Skills:","Athletics:",0,null,null,"Skills:","Athletics:",0,null,null,"Skills:","Athletics:",0,null,null,"Skills:","Athletics:",0,null,null,"Skills:","Athletics:",0,null,null,"Skills:","Athletics:",2,null,null,"Skills:","Athletics:",2,null,null,"Skills:","Athletics:",2]
[null,null,"Recon:",2,null,null,null,"Recon:",0,null,null,null,"Recon:",1,null,null,null,"Recon:",2,null,null,null,"Recon:",1,null,null,null,"Recon:",0,null,null,null,"Recon:",0,null,null,null,"Recon:",2,null,null,null,"Recon:",1,null,null,null,"Recon:",0,null,null,null,"Recon:",1,null,null,null,"Recon:",1,null,null,null,"Recon:",0,null,null,null,"Recon:",0,null,null,null,"Recon:",0,null,null,null,"Recon:",1]
[null,null,"Survival:",0,null,null,null,"Survival:",0,null,null,null,"Survival:",0,null,null,null,"Survival:",0,null,null,null,"Survival:",0,null,null,null,"Survival:",0,null,null,null,"Survival:",3,null,null,null,"Survival:",2,null,null,null,"Survival:",2,null,null,null,"Survival:",1,null,null,null,"Survival:",0,null,null,null,"Survival:",1,null,null,null,"Survival:",1,null,null,null,"Survival:",0,null,null,null,"Survival:",1,null,null,null,"Survival:",2]
[null,null,"Melee:",null,null,null,null,"Melee:",null,null,null,null,"Melee:",null,null,null,null,"Melee:",0,null,null,null,"Melee:",1,null,null,null,"Melee:",null,null,null,null,"Melee:",null,null,null,null,"Melee:",null,null,null,null,"Melee:",null,null,null,null,"Melee:",null,null,null,null,"Melee:",0,null,null,null,"Melee:",null,null,null,null,"Melee:",null,null,null,null,"Melee:",1,null,null,null,"Melee:",null,null,null,null,"Melee:"]
[null,null,"Deception:",0,null,null,null,"Deception:",null,null,null,null,"Deception:",null,null,null,null,"Deception:",null,null,null,null,"Deception:",0,null,null,null,"Deception:",null,null,null,null,"Deception:",null,null,null,null,"Deception:",null,null,null,null,"Deception:",0,null,null,null,"Deception:",null,null,null,null,"Deception:",1,null,null,null,"Deception:",null,null,null,null,"Deception:",null,null,null,null,"Deception:",null,null,null,null,"Deception:",null,null,null,null,"Deception:"]
[null,null,"Persuade:",null,null,null,null,"Persuade:",null,null,null,null,"Persuade:",null,null,null,null,"Persuade:",null,null,null,null,"Persuade:",null,null,null,null,"Persuade:",null,null,null,null,"Persuade:",null,null,null,null,"Persuade:",null,null,null,null,"Persuade:",null,null,null,null,"Persuade:",null,null,null,null,"Persuade:",null,null,null,null,"Persuade:",null,null,null,null,"Persuade:",null,null,null,null,"Persuade:",null,null,null,null,"Persuade:",null,null,null,null,"Persuade:"]
[null,null,"Stealth:",1,null,null,null,"Stealth:",1,null,null,null,"Stealth:",null,null,null,null,"Stealth:",null,null,null,null,"Stealth:",1,null,null,null,"Stealth:",1,null,null,null,"Stealth:",null,null,null,null,"Stealth:",1,null,null,null,"Stealth:",1,null,null,null,"Stealth:",null,null,null,null,"Stealth:",1,null,null,null,"Stealth:",null,null,null,null,"Stealth:",null,null,null,null,"Stealth:",null,null,null,null,"Stealth:",null,null,null,null,"Stealth:"]
[]
[null,"Weapons:","Type","Damage",null,null,"Weapons:","Type","Damage",null,null,"Weapons:","Type","Damage",null,null,"Weapons:","Type","Damage",null,null,"Weapons:","Type","Damage",null,null,"Weapons:","Type","Damage",null,null,"Weapons:","Type","Damage",null,null,"Weapons:","Type","Damage",null,null,"Weapons:","Type","Damage",null,null,"Weapons:","Type","Damage",null,null,"Weapons:","Type","Damage",null,null,"Weapons:","Type","Damage",null,null,"Weapons:","Type","Damage",null,null,"Weapons:","Type","Damage",null,null,"Weapons:","Type","Damage",null,null,"Weapons:","Type","Damage"]
[]
[null,null,"Claws","4d6",null,null,null,"Teeth","4d6",null,null,null,"Thrasher","4d6",null,null,null,"Claws","3d6",null,null,null,"Claws","2d6",null,null,null,"Claws","3d6",null,null,null,"Claws","3d6",null,null,null,"Thrasher","3d6",null,null,null,"Thrasher","3d6",null,null,null,"Thrasher","4d6",null,null,null,"Thrasher","4d6",null,null,null,"Stinger","4d6",null,null,null,"Claws and Teeth","3d6",null,null,null,"Claws and Teeth","3d6",null,null,null,"Thrasher","2d6",null,null,null,"Teeth","3d6"]
[null,"Armor:",7,null,null,null,"Armor:",9,null,null,null,"Armor:",12,null,null,null,"Armor:",11,null,null,null,"Armor:",4,null,null,null,"Armor:",8,null,null,null,"Armor:",11,null,null,null,"Armor:",10,null,null,null,"Armor:",2,null,null,null,"Armor:",11,null,null,null,"Armor:",5,null,null,null,"Armor:",10,null,null,null,"Armor:",8,null,null,null,"Armor:",7,null,null,null,"Armor:",4,null,null,null,"Armor:",8]
[]
[null,"Number Encountered:","2d6",null,null,null,"Number Encountered:","3d6",null,null,null,"Number Encountered:","3d6",null,null,null,"Number Encountered:","1d6",null,null,null,"Number Encountered:","2d6",null,null,null,"Number Encountered:","3d6",null,null,null,"Number Encountered:","1d6",null,null,null,"Number Encountered:","2d6",null,null,null,"Number Encountered:","2d6",null,null,null,"Number Encountered:","2d6",null,null,null,"Number Encountered:","3d6",null,null,null,"Number Encountered:","3d6",null,null,null,"Number Encountered:","1d6",null,null,null,"Number Encountered:","1d6",null,null,null,"Number Encountered:","2d6",null,null,null,"Number Encountered:","2d6"]
[]
[null,"Name:","Species LOCATION-5",null,null,null,"Name:","Species LOCATION-15",null,null,null,"Name:","Species LOCATION-25",null,null,null,"Name:","Species LOCATION-35",null,null,null,"Name:","Species LOCATION-45",null,null,null,"Name:","Species LOCATION-55",null,null,null,"Name:","Species LOCATION-65",null,null,null,"Name:","Species LOCATION-75",null,null,null,"Name:","Species LOCATION-85",null,null,null,"Name:","Species LOCATION-95",null,null,null,"Name:","Species LOCATION-105",null,null,null,"Name:","Species LOCATION-115",null,null,null,"Name:","Species LOCATION-125",null,null,null,"Name:","Species LOCATION-135",null,null,null,"Name:","Species LOCATION-145",null,null,null,"Name:","Species LOCATION-155"]
[null,"Average Weight(kg):",5000,null,null,null,"Average Weight(kg):",200,null,null,null,"Average Weight(kg):",1,null,null,null,"Average Weight(kg):",400,null,null,null,"Average Weight(kg):",800,null,null,null,"Average Weight(kg):",1,null,null,null,"Average Weight(kg):",1,null,null,null,"Average Weight(kg):",1,null,null,null,"Average Weight(kg):",1,null,null,null,"Average Weight(kg):",400,null,null,null,"Average Weight(kg):",3200,null,null,null,"Average Weight(kg):",100,null,null,null,"Average Weight(kg):",6,null,null,null,"Average Weight(kg):",6,null,null,null,"Average Weight(kg):",3,null,null,null,"Average Weight(kg):",5000]
[null,"Movement:","Walker",null,null,null,"Movement:","Walker",null,null,null,"Movement:","Flyer",null,null,null,"Movement:","Walker",null,null,null,"Movement:","Flyer",null,null,null,"Movement:","Flyer",null,null,null,"Movement:","Walker",null,null,null,"Movement:","Flyer",null,null,null,"Movement:","Flyer",null,null,null,"Movement:","Flyer",null,null,null,"Movement:","Amphibious",null,null,null,"Movement:","Flyer",null,null,null,"Movement:","Walker",null,null,null,"Movement:","Swimmer",null,null,null,"Movement:","Flyer",null,null,null,"Movement:","Swimmer"]
[null,"Type:","Herbivore(Intermittent)",null,null,null,"Type:","Herbivore(Grazer)",null,null,null,"Type:","Herbivore(Grazer)",null,null,null,"Type:","Herbivore(Filter)",null,null,null,"Type:","Herbivore(Grazer)",null,null,null,"Type:","Herbivore(Intermittent)",null,null,null,"Type:","Herbivore(Intermittent)",null,null,null,"Type:","Herbivore(Filter)",null,null,null,"Type:","Herbivore(Grazer)",null,null,null,"Type:","Herbivore(Intermittent)",null,null,null,"Type:","Herbivore(Intermittent)",null,null,null,"Type:","Herbivore(Grazer)",null,null,null,"Type:","Herbivore(Grazer)",null,null,null,"Type:","Herbivore(Grazer)",null,null,null,"Type:","Herbivore(Grazer)",null,null,null,"Type:","Herbivore(Grazer)"]
[]
[null,"Stats:",null,"Score","DM",null,"Stats:",null,"Score","DM",null,"Stats:",null,"Score","DM",null,"Stats:",null,"Score","DM",null,"Stats:",null,"Score","DM",null,"Stats:",null,"Score","DM",null,"Stats:",null,"Score","DM",null,"Stats:",null,"Score","DM",null,"Stats:",null,"Score","DM",null,"Stats:",null,"Score","DM",null,"Stats:",null,"Score","DM",null,"Stats:",null,"Score","DM",null,"Stats:",null,"Score","DM",null,"Stats:",null,"Score","DM",null,"Stats:",null,"Score","DM",null,"Stats:",null,"Score","DM"]
[null,null,"Strength:",24,6,null,null,"Strength:",13,2,null,null,"Strength:",1,-2,null,null,"Strength:",14,2,null,null,"Strength:",13,2,null,null,"Strength:",1,-2,null,null,"Strength:",1,-2,null,null,"Strength:",1,-2,null,null,"Strength:",1,-2,null,null,"Strength:",13,2,null,null,"Strength:",25,6,null,null,"Strength:",8,0,null,null,"Strength:",3,-1,null,null,"Strength:",6,0,null,null,"Strength:",2,-2,null,null,"Strength:",25,6]
[null,null,"Dexterity:",5,-1,null,null,"Dexterity:",11,1,null,null,"Dexterity:",6,0,null,null,"Dexterity:",6,0,null,null,"Dexterity:",10,1,null,null,"Dexterity:",5,-1,null,null,"Dexterity:",1,-2,null,null,"Dexterity:",5,-1,null,null,"Dexterity:",2,-2,null,null,"Dexterity:",7,0,null,null,"Dexterity:",4,-1,null,null,"Dexterity:",9,1,null,null,"Dexterity:",7,0,null,null,"Dexterity:",6,0,null,null,"Dexterity:",3,-1,null,null,"Dexterity:",6,0]
[null,null,"Endurance:",29,7,null,null,"Endurance:",7,0,null,null,"Endurance:",1,-2,null,null,"Endurance:",26,6,null,null,"Endurance:",11,1,null,null,"Endurance:",1,-2,null,null,"Endurance:",1,-2,null,null,"Endurance:",5,-1,null,null,"Endurance:",1,-2,null,null,"Endurance:",19,4,null,null,"Endurance:",26,6,null,null,"Endurance:",9,1,null,null,"Endurance:",2,-2,null,null,"Endurance:",3,-1,null,null,"Endurance:",2,-2,null,null,"Endurance:",29,7]
[null,null,"Inteligence:",0,-3,null,null,"Inteligence:",1,-2,null,null,"Inteligence:",1,-2,null,null,"Inteligence:",1,-2,null,null,"Inteligence:",0,-3,null,null,"Inteligence:",3,-1,null,null,"Inteligence:",0,-3,null,null,"Inteligence:",1,-2,null,null,"Inteligence:",3,-1,null,null,"Inteligence:",0,-3,null,null,"Inteligence:",1,-2,null,null,"Inteligence:",0,-3,null,null,"Inteligence:",0,-3,null,null,"Inteligence:",0,-3,null,null,"Inteligence:",1,-2,null,null,"Inteligence:",1,-2]
[null,null,"Instinct:",7,0,null,null,"Instinct:",10,1,null,null,"Instinct:",11,1,null,null,"Instinct:",5,-1,null,null,"Instinct:",6,0,null,null,"Instinct:",3,-1,null,null,"Instinct:",8,0,null,null,"Instinct:",9,1,null,null,"Instinct:",8,0,null,null,"Instinct:",7,0,null,null,"Instinct:",8,0,null,null,"Instinct:",12,2,null,null,"Instinct:",5,-1,null,null,"Instinct:",7,0,null,null,"Instinct:",8,0,null,null,"Instinct:",7,0]
[null,null,"Pack:",12,2,null,null,"Pack:",7,0,null,null,"Pack:",14,2,null,null,"Pack:",7,0,null,null,"Pack:",13,2,null,null,"Pack:",15,3,null,null,"Pack:",14,2,null,null,"Pack:",9,1,null,null,"Pack:",10,1,null,null,"Pack:",12,2,null,null,"Pack:",11,1,null,null,"Pack:",12,2,null,null,"Pack:",9,1,null,null,"Pack:",7,0,null,null,"Pack:",11,1,null,null,"Pack:",12,2]
[]
[null,"Skills:","Athletics:",1,null,null,"Skills:","Athletics:",0,null,null,"Skills:","Athletics:",0,null,null,"Skills:","Athletics:",0,null,null,"Skills:","Athletics:",2,null,null,"Skills:","Athletics:",1,null,null,"Skills:","Athletics:",2,null,null,"Skills:","Athletics:",1,null,null,"Skills:","Athletics:",0,null,null,"Skills:","Athletics:",1,null,null,"Skills:","Athletics:",0,null,null,"Skills:","Athletics:",0,null,null,"Skills:","Athletics:",0,null,null,"Skills:","Athletics:",1,null,null,"Skills:","Athletics:",0,null,null,"Skills:","Athletics:",1]
[null,null,"Recon:",1,null,null,null,"Recon:",1,null,null,null,"Recon:",0,null,null,null,"Recon:",2,null,null,null,"Recon:",1,null,null,null,"Recon:",0,null,null,null,"Recon:",3,null,null,null,"Recon:",1,null,null,null,"Recon:",0,null,null,null,"Recon:",0,null,null,null,"Recon:",2,null,null,null,"Recon:",1,null,null,null,"Recon:",0,null,null,null,"Recon:",2,null,null,null,"Recon:",1,null,null,null,"Recon:",1]
[null,null,"Survival:",1,null,null,null,"Survival:",1,null,null,null,"Survival:",2,null,null,null,"Survival:",0,null,null,null,"Survival:",0,null,null,null,"Survival:",0,null,null,null,"Survival:",0,null,null,null,"Survival:",1,null,null,null,"Survival:",0,null,null,null,"Survival:",0,null,null,null,"Survival:",2,null,null,null,"Survival:",2,null,null,null,"Survival:",0,null,null,null,"Survival:",1,null,null,null,"Survival:",1,null,null,null,"Survival:",0]
[null,null,"Melee:",1,null,null,null,"Melee:",1,null,null,null,"Melee:",null,null,null,null,"Melee:",null,null,null,null,"Melee:",1,null,null,null,"Melee:",1,null,null,null,"Melee:",0,null,null,null,"Melee:",0,null,null,null,"Melee:",0,null,null,null,"Melee:",2,null,null,null,"Melee:",null,null,null,null,"Melee:",2,null,null,null,"Melee:",0,null,null,null,"Melee:",1,null,null,null,"Melee:",0,null,null,null,"Melee:",0]
[null,null,"Deception:",null,null,null,null,"Deception:",null,null,null,null,"Deception:",null,null,null,null,"Deception:",null,null,null,null,"Deception:",null,null,null,null,"Deception:",null,null,null,null,"Deception:",null,null,null,null,"Deception:",null,null,null,null,"Deception:",null,null,null,null,"Deception:",null,null,null,null,"Deception:",null,null,null,null,"Deception:",null,null,null,null,"Deception:",null,null,null,null,"Deception:",null,null,null,null,"Deception:",null,null,null,null,"Deception:"]
[null,null,"Persuade:",null,null,null,null,"Persuade:",null,null,null,null,"Persuade:",null,null,null,null,"Persuade:",null,null,null,null,"Persuade:",null,null,null,null,"Persuade:",null,null,null,null,"Persuade:",null,null,null,null,"Persuade:",null,null,null,null,"Persuade:",null,null,null,null,"Persuade:",null,null,null,null,"Persuade:",null,null,null,null,"Persuade:",null,null,null,null,"Persuade:",null,null,null,null,"Persuade:",null,null,null,null,"Persuade:",null,null,null,null,"Persuade:"]
[null,null,"Stealth:",null,null,null,null,"Stealth:",null,null,null,null,"Stealth:",null,null,null,null,"Stealth:",null,null,null,null,"Stealth:",null,null,null,null,"Stealth:",null,null,null,null,"Stealth:",null,null,null,null,"Stealth:",null,null,null,null,"Stealth:",null,null,null,null,"Stealth:",null,null,null,null,"Stealth:",null,null,null,null,"Stealth:",null,null,null,null,"Stealth:",null,null,null,null,"Stealth:",null,null,null,null,"Stealth:",null,null,null,null,"Stealth:"]
[]
[null,"Weapons:","Type","Damage",null,null,"Weapons:","Type","Damage",null,null,"Weapons:","Type","Damage",null,null,"Weapons:","Type","Damage",null,null,"Weapons:","Type","Damage",null,null,"Weapons:","Type","Damage",null,null,"Weapons:","Type","Damage",null,null,"Weapons:","Type","Damage",null,null,"Weapons:","Type","Damage",null,null,"Weapons:","Type","Damage",null,null,"Weapons:","Type","Damage",null,null,"Weapons:","Type","Damage",null,null,"Weapons:","Type","Damage",null,null,"Weapons:","Type","Damage",null,null,"Weapons:","Type","Damage",null,null,"Weapons:","Type","Damage"]
[]
[null,null,"Teeth","3d6",null,null,null,"None","-",null,null,null,"None","-",null,null,null,"Teeth","2d6",null,null,null,"None","-",null,null,null,"None","-",null,null,null,"Horns","1d6",null,null,null,"Teeth","1d6",null,null,null,"None","-",null,null,null,"Hooves and Teeth","2d6",null,null,null,"None","-",null,null,null,"Teeth","1d6",null,null,null,"None","-",null,null,null,"None","-",null,null,null,"Hooves","1d6",null,null,null,"Teeth","3d6"]
[null,"Armor:",11,null,null,null,"Armor:",6,null,null,null,"Armor:",4,null,null,null,"Armor:",9,null,null,null,"Armor:",5,null,null,null,"Armor:",9,null,null,null,"Armor:",8,null,null,null,"Armor:",10,null,null,null,"Armor:",12,null,null,null,"Armor:",9,null,null,null,"Armor:",3,null,null,null,"Armor:",5,null,null,null,"Armor:",9,null,null,null,"Armor:",11,null,null,null,"Armor:",9,null,null,null,"Armor:",5]
[]
[null,"Number Encountered:","4d6",null,null,null,"Number Encountered:","2d6",null,null,null,"Number Encountered:","4d6",null,null,null,"Number Encountered:","2d6",null,null,null,"Number Encountered:","4d6",null,null,null,"Number Encountered:","5d6",null,null,null,"Number Encountered:","4d6",null,null,null,"Number Encountered:","3d6",null,null,null,"Number Encountered:","3d6",null,null,null,"Number Encountered:","4d6",null,null,null,"Number Encountered:","3d6",null,null,null,"Number Encountered:","4d6",null,null,null,"Number Encountered:","3d6",null,null,null,"Number Encountered:","2d6",null,null,null,"Number Encountered:","3d6",null,null,null,"Number Encountered:","4d6"]
[]
[null,"Name:","Species LOCATION-6",null,null,null,"Name:","Species LOCATION-16",null,null,null,"Name:","Species LOCATION-26",null,null,null,"Name:","Species LOCATION-36",null,null,null,"Name:","Species LOCATION-46",null,null,null,"Name:","Species LOCATION-56",null,null,null,"Name:","Species LOCATION-66",null,null,null,"Name:","Species LOCATION-76",null,null,null,"Name:","Species LOCATION-86",null,null,null,"Name:","Species LOCATION-96",null,null,null,"Name:","Species LOCATION-106",null,null,null,"Name:","Species LOCATION-116",null,null,null,"Name:","Species LOCATION-126",null,null,null,"Name:","Species LOCATION-136",null,null,null,"Name:","Species LOCATION-146",null,null,null,"Name:","Species LOCATION-156"]
[null,"Average Weight(kg):",5000,null,null,null,"Average Weight(kg):",5000,null,null,null,"Average Weight(kg):",6,null,null,null,"Average Weight(kg):",100,null,null,null,"Average Weight(kg):",800,null,null,null,"Average Weight(kg):",1,null,null,null,"Average Weight(kg):",400,null,null,null,"Average Weight(kg):",25,null,null,null,"Average Weight(kg):",50,null,null,null,"Average Weight(kg):",12,null,null,null,"Average Weight(kg):",200,null,null,null,"Average Weight(kg):",5000,null,null,null,"Average Weight(kg):",100,null,null,null,"Average Weight(kg):",400,null,null,null,"Average Weight(kg):",1,null,null,null,"Average Weight(kg):",5000]
[null,"Movement:","Walker",null,null,null,"Movement:","Walker",null,null,null,"Movement:","Walker",null,null,null,"Movement:","Walker",null,null,null,"Movement:","Walker",null,null,null,"Movement:","Walker",null,null,null,"Movement:","Walker",null,null,null,"Movement:","Walker",null,null,null,"Movement:","Walker",null,null,null,"Movement:","Walker",null,null,null,"Movement:","Amphibious",null,null,null,"Movement:","Walker",null,null,null,"Movement:","Walker",null,null,null,"Movement:","Flyer",null,null,null,"Movement:","Flyer",null,null,null,"Movement:","Swimmer"]
[null,"Type:","Herbivore(Grazer)",null,null,null,"Type:","Herbivore(Grazer)",null,null,null,"Type:","Herbivore(Grazer)",null,null,null,"Type:","Herbivore(Grazer)",null,null,null,"Type:","Herbivore(Grazer)",null,null,null,"Type:","Herbivore(Intermittent)",null,null,null,"Type:","Herbivore(Intermittent)",null,null,null,"Type:","Herbivore(Intermittent)",null,null,null,"Type:","Herbivore(Filter)",null,null,null,"Type:","Herbivore(Intermittent)",null,null,null,"Type:","Herbivore(Intermittent)",null,null,null,"Type:","Herbivore(Grazer)",null,null,null,"Type:","Herbivore(Intermittent)",null,null,null,"Type:","Herbivore(Grazer)",null,null,null,"Type:","Herbivore(Grazer)",null,null,null,"Type:","Herbivore(Grazer)"]
[]
[null,"Stats:",null,"Score","DM",null,"Stats:",null,"Score","DM",null,"Stats:",null,"Score","DM",null,"Stats:",null,"Score","DM",null,"Stats:",null,"Score","DM",null,"Stats:",null,"Score","DM",null,"Stats:",null,"Score","DM",null,"Stats:",null,"Score","DM",null,"Stats:",null,"Score","DM",null,"Stats:",null,"Score","DM",null,"Stats:",null,"Score","DM",null,"Stats:",null,"Score","DM",null,"Stats:",null,"Score","DM",null,"Stats:",null,"Score","DM",null,"Stats:",null,"Score","DM",null,"Stats:",null,"Score","DM"]
[null,null,"Strength:",27,7,null,null,"Strength:",26,6,null,null,"Strength:",3,-1,null,null,"Strength:",10,1,null,null,"Strength:",13,2,null,null,"Strength:",1,-2,null,null,"Strength:",16,3,null,null,"Strength:",5,-1,null,null,"Strength:",6,0,null,null,"Strength:",5,-1,null,null,"Strength:",16,3,null,null,"Strength:",27,7,null,null,"Strength:",15,3,null,null,"Strength:",17,3,null,null,"Strength:",1,-2,null,null,"Strength:",28,7]
[null,null,"Dexterity:",4,-1,null,null,"Dexterity:",4,-1,null,null,"Dexterity:",5,-1,null,null,"Dexterity:",13,2,null,null,"Dexterity:",10,1,null,null,"Dexterity:",1,-2,null,null,"Dexterity:",12,2,null,null,"Dexterity:",8,0,null,null,"Dexterity:",20,4,null,null,"Dexterity:",4,-1,null,null,"Dexterity:",6,0,null,null,"Dexterity:",3,-1,null,null,"Dexterity:",15,3,null,null,"Dexterity:",7,0,null,null,"Dexterity:",3,-1,null,null,"Dexterity:",4,-1]
[null,null,"Endurance:",30,8,null,null,"Endurance:",30,8,null,null,"Endurance:",5,-1,null,null,"Endurance:",12,2,null,null,"Endurance:",10,1,null,null,"Endurance:",1,-2,null,null,"Endurance:",15,3,null,null,"Endurance:",11,1,null,null,"Endurance:",9,1,null,null,"Endurance:",1,-2,null,null,"Endurance:",11,1,null,null,"Endurance:",27,7,null,null,"Endurance:",6,0,null,null,"Endurance:",15,3,null,null,"Endurance:",1,-2,null,null,"Endurance:",23,5]
[null,null,"Inteligence:",0,-3,null,null,"Inteligence:",0,-3,null,null,"Inteligence:",1,-2,null,null,"Inteligence:",1,-2,null,null,"Inteligence:",0,-3,null,null,"Inteligence:",1,-2,null,null,"Inteligence:",0,-3,null,null,"Inteligence:",0,-3,null,null,"Inteligence:",1,-2,null,null,"Inteligence:",1,-2,null,null,"Inteligence:",0,-3,null,null,"Inteligence:",0,-3,null,null,"Inteligence:",1,-2,null,null,"Inteligence:",1,-2,null,null,"Inteligence:",0,-3,null,null,"Inteligence:",0,-3]
[null,null,"Instinct:",11,1,null,null,"Instinct:",7,0,null,null,"Instinct:",12,2,null,null,"Instinct:",8,0,null,null,"Instinct:",10,1,null,null,"Instinct:",9,1,null,null,"Instinct:",6,0,null,null,"Instinct:",9,1,null,null,"Instinct:",9,1,null,null,"Instinct:",11,1,null,null,"Instinct:",8,0,null,null,"Instinct:",8,0,null,null,"Instinct:",4,-1,null,null,"Instinct:",14,2,null,null,"Instinct:",12,2,null,null,"Instinct:",10,1]
[null,null,"Pack:",8,0,null,null,"Pack:",13,2,null,null,"Pack:",13,2,null,null,"Pack:",14,2,null,null,"Pack:",12,2,null,null,"Pack:",15,3,null,null,"Pack:",13,2,null,null,"Pack:",15,3,null,null,"Pack:",3,-1,null,null,"Pack:",16,3,null,null,"Pack:",12,2,null,null,"Pack:",11,1,null,null,"Pack:",9,1,null,null,"Pack:",13,2,null,null,"Pack:",14,2,null,null,"Pack:",12,2]
[]
[null,"Skills:","Athletics:",4,null,null,"Skills:","Athletics:",1,null,null,"Skills:","Athletics:",0,null,null,"Skills:","Athletics:",1,null,null,"Skills:","Athletics:",1,null,null,"Skills:","Athletics:",0,null,null,"Skills:","Athletics:",3,null,null,"Skills:","Athletics:",1,null,null,"Skills:","Athletics:",1,null,null,"Skills:","Athletics:",2,null,null,"Skills:","Athletics:",1,null,null,"Skills:","Athletics:",0,null,null,"Skills:","Athletics:",0,null,null,"Skills:","Athletics:",0,null,null,"Skills:","Athletics:",0,null,null,"Skills:","Athletics:",0]
[null,null,"Recon:",1,null,null,null,"Recon:",1,null,null,null,"Recon:",0,null,null,null,"Recon:",0,null,null,null,"Recon:",4,null,null,null,"Recon:",1,null,null,null,"Recon:",0,null,null,null,"Recon:",4,null,null,null,"Recon:",1,null,null,null,"Recon:",2,null,null,null,"Recon:",0,null,null,null,"Recon:",0,null,null,null,"Recon:",0,null,null,null,"Recon:",0,null,null,null,"Recon:",0,null,null,null,"Recon:",1]
[null,null,"Survival:",0,null,null,null,"Survival:",3,null,null,null,"Survival:",1,null,null,null,"Survival:",2,null,null,null,"Survival:",0,null,null,null,"Survival:",1,null,null,null,"Survival:",0,null,null,null,"Survival:",0,null,null,null,"Survival:",1,null,null,null,"Survival:",1,null,null,null,"Survival:",5,null,null,null,"Survival:",0,null,null,null,"Survival:",0,null,null,null,"Survival:",2,null,null,null,"Survival:",0,null,null,null,"Survival:",0]
[null,null,"Melee:",0,null,null,null,"Melee:",0,null,null,null,"Melee:",0,null,null,null,"Melee:",null,null,null,null,"Melee:",0,null,null,null,"Melee:",null,null,null,null,"Melee:",0,null,null,null,"Melee:",0,null,null,null,"Melee:",null,null,null,null,"Melee:",null,null,null,null,"Melee:",null,null,null,null,"Melee:",1,null,null,null,"Melee:",1,null,null,null,"Melee:",null,null,null,null,"Melee:",1,null,null,null,"Melee:"]
[null,null,"Deception:",null,null,null,null,"Deception:",null,null,null,null,"Deception:",null,null,null,null,"Deception:",null,null,null,null,"Deception:",null,null,null,null,"Deception:",null,null,null,null,"Deception:",null,null,null,null,"Deception:",null,null,null,null,"Deception:",null,null,null,null,"Deception:",null,null,null,null,"Deception:",null,null,null,null,"Deception:",null,null,null,null,"Deception:",null,null,null,null,"Deception:",null,null,null,null,"Deception:",null,null,null,null,"Deception:"]
[null,null,"Persuade:",null,null,null,null,"Persuade:",null,null,null,null,"Persuade:",null,null,null,null,"Persuade:",null,null,null,null,"Persuade:",null,null,null,null,"Persuade:",null,null,null,null,"Persuade:",null,null,null,null,"Persuade:",null,null,null,null,"Persuade:",null,null,null,null,"Persuade:",null,null,null,null,"Persuade:",null,null,null,null,"Persuade:",null,null,null,null,"Persuade:",null,null,null,null,"Persuade:",null,null,null,null,"Persuade:",null,null,null,null,"Persuade:"]
[null,null,"Stealth:",null,null,null,null,"Stealth:",null,null,null,null,"Stealth:",null,null,null,null,"Stealth:",null,null,null,null,"Stealth:",null,null,null,null,"Stealth:",null,null,null,null,"Stealth:",null,null,null,null,"Stealth:",null,null,null,null,"Stealth:",null,null,null,null,"Stealth:",null,null,null,null,"Stealth:",null,null,null,null,"Stealth:",null,null,null,null,"Stealth:",null,null,null,null,"Stealth:",null,null,null,null,"Stealth:",null,null,null,null,"Stealth:"]
[]
[null,"Weapons:","Type","Damage",null,null,"Weapons:","Type","Damage",null,null,"Weapons:","Type","Damage",null,null,"Weapons:","Type","Damage",null,null,"Weapons:","Type","Damage",null,null,"Weapons:","Type","Damage",null,null,"Weapons:","Type","Damage",null,null,"Weapons:","Type","Damage",null,null,"Weapons:","Type","Damage",null,null,"Weapons:","Type","Damage",null,null,"Weapons:","Type","Damage",null,null,"Weapons:","Type","Damage",null,null,"Weapons:","Type","Damage",null,null,"Weapons:","Type","Damage",null,null,"Weapons:","Type","Damage",null,null,"Weapons:","Type","Damage"]
[]
[null,null,"Hooves","3d6",null,null,null,"None","-",null,null,null,"Horns","1d6",null,null,null,"None","-",null,null,null,"None","-",null,null,null,"None","-",null,null,null,"None","-",null,null,null,"None","-",null,null,null,"Hooves","1d6",null,null,null,"None","-",null,null,null,"Horns","2d6",null,null,null,"None","-",null,null,null,"None","-",null,null,null,"None","-",null,null,null,"None","-",null,null,null,"Hooves and Teeth","3d6"]
[null,"Armor:",6,null,null,null,"Armor:",5,null,null,null,"Armor:",11,null,null,null,"Armor:",7,null,null,null,"Armor:",5,null,null,null,"Armor:",9,null,null,null,"Armor:",8,null,null,null,"Armor:",9,null,null,null,"Armor:",4,null,null,null,"Armor:",6,null,null,null,"Armor:",10,null,null,null,"Armor:",8,null,null,null,"Armor:",5,null,null,null,"Armor:",8,null,null,null,"Armor:",7,null,null,null,"Armor:",6]
[]
[null,"Number Encountered:","2d6",null,null,null,"Number Encountered:","4d6",null,null,null,"Number Encountered:","4d6",null,null,null,"Number Encountered:","4d6",null,null,null,"Number Encountered:","4d6",null,null,null,"Number Encountered:","5d6",null,null,null,"Number Encountered:","4d6",null,null,null,"Number Encountered:","5d6",null,null,null,"Number Encountered:","1d6",null,null,null,"Number Encountered:","5d6",null,null,null,"Number Encountered:","4d6",null,null,null,"Number Encountered:","3d6",null,null,null,"Number Encountered:","3d6",null,null,null,"Number Encountered:","4d6",null,null,null,"Number Encountered:","4d6",null,null,null,"Number Encountered:","4d6"]
[]
[null,"Name:","Species LOCATION-7",null,null,null,"Name:","Species LOCATION-17",null,null,null,"Name:","Species LOCATION-27",null,null,null,"Name:","Species LOCATION-37",null,null,null,"Name:","Species LOCATION-47",null,null,null,"Name:","Species LOCATION-57",null,null,null,"Name:","Species LOCATION-67",null,null,null,"Name:","Species LOCATION-77",null,null,null,"Name:","Species LOCATION-87",null,null,null,"Name:","Species LOCATION-97",null,null,null,"Name:","Species LOCATION-107",null,null,null,"Name:","Species LOCATION-117",null,null,null,"Name:","Species LOCATION-127",null,null,null,"Name:","Species LOCATION-137",null,null,null,"Name:","Species LOCATION-147",null,null,null,"Name:","Species LOCATION-157"]
[null,"Average Weight(kg):",800,null,null,null,"Average Weight(kg):",12,null,null,null,"Average Weight(kg):",1,null,null,null,"Average Weight(kg):",3200,null,null,null,"Average Weight(kg):",1,null,null,null,"Average Weight(kg):",3,null,null,null,"Average Weight(kg):",50,null,null,null,"Average Weight(kg):",400,null,null,null,"Average Weight(kg):",3,null,null,null,"Average Weight(kg):",6,null,null,null,"Average Weight(kg):",3200,null,null,null,"Average Weight(kg):",1600,null,null,null,"Average Weight(kg):",400,null,null,null,"Average Weight(kg):",200,null,null,null,"Average Weight(kg):",400,null,null,null,"Average Weight(kg):",400]
[null,"Movement:","Walker",null,null,null,"Movement:","Walker",null,null,null,"Movement:","Flyer",null,null,null,"Movement:","Walker",null,null,null,"Movement:","Flyer",null,null,null,"Movement:","Flyer",null,null,null,"Movement:","Walker",null,null,null,"Movement:","Walker",null,null,null,"Movement:","Walker",null,null,null,"Movement:","Walker",null,null,null,"Movement:","Amphibious",null,null,null,"Movement:","Walker",null,null,null,"Movement:","Walker",null,null,null,"Movement:","Swimmer",null,null,null,"Movement:","Swimmer",null,null,null,"Movement:","Swimmer"]
[null,"Type:","Herbivore(Grazer)",null,null,null,"Type:","Herbivore(Grazer)",null,null,null,"Type:","Herbivore(Grazer)",null,null,null,"Type:","Herbivore(Intermittent)",null,null,null,"Type:","Herbivore(Grazer)",null,null,null,"Type:","Herbivore(Intermittent)",null,null,null,"Type:","Herbivore(Filter)",null,null,null,"Type:","Herbivore(Intermittent)",null,null,null,"Type:","Herbivore(Intermittent)",null,null,null,"Type:","Herbivore(Intermittent)",null,null,null,"Type:","Herbivore(Filter)",null,null,null,"Type:","Herbivore(Grazer)",null,null,null,"Type:","Herbivore(Grazer)",null,null,null,"Type:","Herbivore(Grazer)",null,null,null,"Type:","Herbivore(Grazer)",null,null,null,"Type:","Herbivore(Grazer)"]
[]
[null,"Stats:",null,"Score","DM",null,"Stats:",null,"Score","DM",null,"Stats:",null,"Score","DM",null,"Stats:",null,"Score","DM",null,"Stats:",null,"Score","DM",null,"Stats:",null,"Score","DM",null,"Stats:",null,"Score","DM",null,"Stats:",null,"Score","DM",null,"Stats:",null,"Score","DM",null,"Stats:",null,"Score","DM",null,"Stats:",null,"Score","DM",null,"Stats:",null,"Score","DM",null,"Stats:",null,"Score","DM",null,"Stats:",null,"Score","DM",null,"Stats:",null,"Score","DM",null,"Stats:",null,"Score","DM"]
[null,null,"Strength:",14,2,null,null,"Strength:",2,-2,null,null,"Strength:",1,-2,null,null,"Strength:",13,2,null,null,"Strength:",1,-2,null,null,"Strength:",2,-2,null,null,"Strength:",8,0,null,null,"Strength:",9,1,null,null,"Strength:",2,-2,null,null,"Strength:",4,-1,null,null,"Strength:",27,7,null,null,"Strength:",16,3,null,null,"Strength:",14,2,null,null,"Strength:",13,2,null,null,"Strength:",14,2,null,null,"Strength:",17,3]
[null,null,"Dexterity:",9,1,null,null,"Dexterity:",4,-1,null,null,"Dexterity:",2,-2,null,null,"Dexterity:",4,-1,null,null,"Dexterity:",1,-2,null,null,"Dexterity:",6,0,null,null,"Dexterity:",19,4,null,null,"Dexterity:",7,0,null,null,"Dexterity:",3,-1,null,null,"Dexterity:",9,1,null,null,"Dexterity:",3,-1,null,null,"Dexterity:",7,0,null,null,"Dexterity:",8,0,null,null,"Dexterity:",12,2,null,null,"Dexterity:",7,0,null,null,"Dexterity:",8,0]
[null,null,"Endurance:",14,2,null,null,"Endurance:",2,-2,null,null,"Endurance:",1,-2,null,null,"Endurance:",19,4,null,null,"Endurance:",1,-2,null,null,"Endurance:",2,-2,null,null,"Endurance:",11,1,null,null,"Endurance:",19,4,null,null,"Endurance:",2,-2,null,null,"Endurance:",6,0,null,null,"Endurance:",21,5,null,null,"Endurance:",20,4,null,null,"Endurance:",15,3,null,null,"Endurance:",7,0,null,null,"Endurance:",19,4,null,null,"Endurance:",14,2]
[null,null,"Inteligence:",0,-3,null,null,"Inteligence:",0,-3,null,null,"Inteligence:",1,-2,null,null,"Inteligence:",0,-3,null,null,"Inteligence:",0,-3,null,null,"Inteligence:",1,-2,null,null,"Inteligence:",0,-3,null,null,"Inteligence:",0,-3,null,null,"Inteligence:",0,-3,null,null,"Inteligence:",0,-3,null,null,"Inteligence:",0,-3,null,null,"Inteligence:",1,-2,null,null,"Inteligence:",3,-1,null,null,"Inteligence:",0,-3,null,null,"Inteligence:",0,-3,null,null,"Inteligence:",0,-3]
[null,null,"Instinct:",9,1,null,null,"Instinct:",7,0,null,null,"Instinct:",9,1,null,null,"Instinct:",5,-1,null,null,"Instinct:",11,1,null,null,"Instinct:",6,0,null,null,"Instinct:",4,-1,null,null,"Instinct:",8,0,null,null,"Instinct:",9,1,null,null,"Instinct:",7,0,null,null,"Instinct:",8,0,null,null,"Instinct:",9,1,null,null,"Instinct:",9,1,null,null,"Instinct:",10,1,null,null,"Instinct:",5,-1,null,null,"Instinct:",8,0]
[null,null,"Pack:",12,2,null,null,"Pack:",10,1,null,null,"Pack:",12,2,null,null,"Pack:",16,3,null,null,"Pack:",13,2,null,null,"Pack:",7,0,null,null,"Pack:",9,1,null,null,"Pack:",12,2,null,null,"Pack:",10,1,null,null,"Pack:",12,2,null,null,"Pack:",9,1,null,null,"Pack:",12,2,null,null,"Pack:",13,2,null,null,"Pack:",14,2,null,null,"Pack:",10,1,null,null,"Pack:",13,2]
[]
[null,"Skills:","Athletics:",0,null,null,"Skills:","Athletics:",0,null,null,"Skills:","Athletics:",0,null,null,"Skills:","Athletics:",1,null,null,"Skills:","Athletics:",1,null,null,"Skills:","Athletics:",3,null,null,"Skills:","Athletics:",2,null,null,"Skills:","Athletics:",1,null,null,"Skills:","Athletics:",0,null,null,"Skills:","Athletics:",2,null,null,"Skills:","Athletics:",0,null,null,"Skills:","Athletics:",2,null,null,"Skills:","Athletics:",0,null,null,"Skills:","Athletics:",1,null,null,"Skills:","Athletics:",1,null,null,"Skills:","Athletics:",3]
[null,null,"Recon:",0,null,null,null,"Recon:",1,null,null,null,"Recon:",1,null,null,null,"Recon:",2,null,null,null,"Recon:",0,null,null,null,"Recon:",0,null,null,null,"Recon:",2,null,null,null,"Recon:",1,null,null,null,"Recon:",1,null,null,null,"Recon:",2,null,null,null,"Recon:",0,null,null,null,"Recon:",0,null,null,null,"Recon:",1,null,null,null,"Recon:",1,null,null,null,"Recon:",0,null,null,null,"Recon:",3]
[null,null,"Survival:",0,null,null,null,"Survival:",0,null,null,null,"Survival:",0,null,null,null,"Survival:",1,null,null,null,"Survival:",0,null,null,null,"Survival:",1,null,null,null,"Survival:",1,null,null,null,"Survival:",1,null,null,null,"Survival:",1,null,null,null,"Survival:",1,null,null,null,"Survival:",0,null,null,null,"Survival:",1,null,null,null,"Survival:",0,null,null,null,"Survival:",0,null,null,null,"Survival:",2,null,null,null,"Survival:",0]
[null,null,"Melee:",0,null,null,null,"Melee:",null,null,null,null,"Melee:",null,null,null,null,"Melee:",null,null,null,null,"Melee:",null,null,null,null,"Melee:",1,null,null,null,"Melee:",null,null,null,null,"Melee:",null,null,null,null,"Melee:",null,null,null,null,"Melee:",null,null,null,null,"Melee:",0,null,null,null,"Melee:",1,null,null,null,"Melee:",null,null,null,null,"Melee:",0,null,null,null,"Melee:",2,null,null,null,"Melee:"]
[null,null,"Deception:",null,null,null,null,"Deception:",null,null,null,null,"Deception:",null,null,null,null,"Deception:",null,null,null,null,"Deception:",null,null,null,null,"Deception:",null,null,null,null,"Deception:",null,null,null,null,"Deception:",null,null,null,null,"Deception:",null,null,null,null,"Deception:",null,null,null,null,"Deception:",null,null,null,null,"Deception:",null,null,null,null,"Deception:",null,null,null,null,"Deception:",null,null,null,null,"Deception:",null,null,null,null,"Deception:"]
[null,null,"Persuade:",null,null,null,null,"Persuade:",null,null,null,null,"Persuade:",null,null,null,null,"Persuade:",null,null,null,null,"Persuade:",null,null,null,null,"Persuade:",null,null,null,null,"Persuade:",null,null,null,null,"Persuade:",null,null,null,null,"Persuade:",null,null,null,null,"Persuade:",null,null,null,null,"Persuade:",null,null,null,null,"Persuade:",null,null,null,null,"Persuade:",null,null,null,null,"Persuade:",null,null,null,null,"Persuade:",null,null,null,null,"Persuade:"]
[null,null,"Stealth:",null,null,null,null,"Stealth:",null,null,null,null,"Stealth:",null,null,null,null,"Stealth:",null,null,null,null,"Stealth:",null,null,null,null,"Stealth:",null,null,null,null,"Stealth:",null,null,null,null,"Stealth:",null,null,null,null,"Stealth:",null,null,null,null,"Stealth:",null,null,null,null,"Stealth:",null,null,null,null,"Stealth:",null,null,null,null,"Stealth:",null,null,null,null,"Stealth:",null,null,null,null,"Stealth:",null,null,null,null,"Stealth:"]
[]
[null,"Weapons:","Type","Damage",null,null,"Weapons:","Type","Damage",null,null,"Weapons:","Type","Damage",null,null,"Weapons:","Type","Damage",null,null,"Weapons:","Type","Damage",null,null,"Weapons:","Type","Damage",null,null,"Weapons:","Type","Damage",null,null,"Weapons:","Type","Damage",null,null,"Weapons:","Type","Damage",null,null,"Weapons:","Type","Damage",null,null,"Weapons:","Type","Damage",null,null,"Weapons:","Type","Damage",null,null,"Weapons:","Type","Damage",null,null,"Weapons:","Type","Damage",null,null,"Weapons:","Type","Damage",null,null,"Weapons:","Type","Damage"]
[]
[null,null,"Teeth","2d6",null,null,null,"None","-",null,null,null,"None","-",null,null,null,"Teeth","2d6",null,null,null,"None","-",null,null,null,"Hooves","1d6",null,null,null,"Hooves","1d6",null,null,null,"None","-",null,null,null,"None","-",null,null,null,"None","-",null,null,null,"Teeth","3d6",null,null,null,"None","-",null,null,null,"None","-",null,null,null,"Hooves","2d6",null,null,null,"None","-",null,null,null,"Hooves","2d6"]
[null,"Armor:",7,null,null,null,"Armor:",9,null,null,null,"Armor:",4,null,null,null,"Armor:",10,null,null,null,"Armor:",3,null,null,null,"Armor:",11,null,null,null,"Armor:",11,null,null,null,"Armor:",4,null,null,null,"Armor:",6,null,null,null,"Armor:",9,null,null,null,"Armor:",7,null,null,null,"Armor:",5,null,null,null,"Armor:",12,null,null,null,"Armor:",2,null,null,null,"Armor:",9,null,null,null,"Armor:",9]
[]
[null,"Number Encountered:","4d6",null,null,null,"Number Encountered:","3d6",null,null,null,"Number Encountered:","4d6",null,null,null,"Number Encountered:","5d6",null,null,null,"Number Encountered:","4d6",null,null,null,"Number Encountered:","2d6",null,null,null,"Number Encountered:","3d6",null,null,null,"Number Encountered:","4d6",null,null,null,"Number Encountered:","3d6",null,null,null,"Number Encountered:","4d6",null,null,null,"Number Encountered:","3d6",null,null,null,"Number Encountered:","4d6",null,null,null,"Number Encountered:","4d6",null,null,null,"Number Encountered:","4d6",null,null,null,"Number Encountered:","3d6",null,null,null,"Number Encountered:","4d6"]
[]
[null,"Name:","Species LOCATION-8",null,null,null,"Name:","Species LOCATION-18",null,null,null,"Name:","Species LOCATION-28",null,null,null,"Name:","Species LOCATION-38",null,null,null,"Name:","Species LOCATION-48",null,null,null,"Name:","Species LOCATION-58",null,null,null,"Name:","Species LOCATION-68",null,null,null,"Name:","Species LOCATION-78",null,null,null,"Name:","Species LOCATION-88",null,null,null,"Name:","Species LOCATION-98",null,null,null,"Name:","Species LOCATION-108",null,null,null,"Name:","Species LOCATION-118",null,null,null,"Name:","Species LOCATION-128",null,null,null,"Name:","Species LOCATION-138",null,null,null,"Name:","Species LOCATION-148",null,null,null,"Name:","Species LOCATION-158"]
[null,"Average Weight(kg):",100,null,null,null,"Average Weight(kg):",200,null,null,null,"Average Weight(kg):",12,null,null,null,"Average Weight(kg):",6,null,null,null,"Average Weight(kg):",50,null,null,null,"Average Weight(kg):",12,null,null,null,"Average Weight(kg):",100,null,null,null,"Average Weight(kg):",6,null,null,null,"Average Weight(kg):",1,null,null,null,"Average Weight(kg):",25,null,null,null,"Average Weight(kg):",5000,null,null,null,"Average Weight(kg):",3200,null,null,null,"Average Weight(kg):",25,null,null,null,"Average Weight(kg):",100,null,null,null,"Average Weight(kg):",1,null,null,null,"Average Weight(kg):",1600]
[null,"Movement:","Walker",null,null,null,"Movement:","Walker",null,null,null,"Movement:","Walker",null,null,null,"Movement:","Flyer",null,null,null,"Movement:","Flyer",null,null,null,"Movement:","Walker",null,null,null,"Movement:","Walker",null,null,null,"Movement:","Walker",null,null,null,"Movement:","Flyer",null,null,null,"Movement:","Walker",null,null,null,"Movement:","Walker",null,null,null,"Movement:","Amphibious",null,null,null,"Movement:","Walker",null,null,null,"Movement:","Swimmer",null,null,null,"Movement:","Swimmer",null,null,null,"Movement:","Swimmer"]
[null,"Type:","Carnivore(Chaser)",null,null,null,"Type:","Carnivore(Pouncer)",null,null,null,"Type:","Carnivore(Siren)",null,null,null,"Type:","Carnivore(Chaser)",null,null,null,"Type:","Carnivore(Chaser)",null,null,null,"Type:","Carnivore(Chaser)",null,null,null,"Type:","Carnivore(Trapper)",null,null,null,"Type:","Carnivore(Trapper)",null,null,null,"Type:","Carnivore(Chaser)",null,null,null,"Type:","Carnivore(Pouncer)",null,null,null,"Type:","Carnivore(Trapper)",null,null,null,"Type:","Carnivore(Chaser)",null,null,null,"Type:","Carnivore(Chaser)",null,null,null,"Type:","Carnivore(Siren)",null,null,null,"Type:","Carnivore(Chaser)",null,null,null,"Type:","Carnivore(Siren)"]
[]
[null,"Stats:",null,"Score","DM",null,"Stats:",null,"Score","DM",null,"Stats:",null,"Score","DM",null,"Stats:",null,"Score","DM",null,"Stats:",null,"Score","DM",null,"Stats:",null,"Score","DM",null,"Stats:",null,"Score","DM",null,"Stats:",null,"Score","DM",null,"Stats:",null,"Score","DM",null,"Stats:",null,"Score","DM",null,"Stats:",null,"Score","DM",null,"Stats:",null,"Score","DM",null,"Stats:",null,"Score","DM",null,"Stats:",null,"Score","DM",null,"Stats:",null,"Score","DM",null,"Stats:",null,"Score","DM"]
[null,null,"Strength:",13,2,null,null,"Strength:",13,2,null,null,"Strength:",6,0,null,null,"Strength:",2,-2,null,null,"Strength:",8,0,null,null,"Strength:",4,-1,null,null,"Strength:",9,1,null,null,"Strength:",6,0,null,null,"Strength:",1,-2,null,null,"Strength:",4,-1,null,null,"Strength:",26,6,null,null,"Strength:",23,5,null,null,"Strength:",7,0,null,null,"Strength:",11,1,null,null,"Strength:",1,-2,null,null,"Strength:",24,6]
[null,null,"Dexterity:",10,1,null,null,"Dexterity:",12,2,null,null,"Dexterity:",5,-1,null,null,"Dexterity:",11,1,null,null,"Dexterity:",20,4,null,null,"Dexterity:",13,2,null,null,"Dexterity:",14,2,null,null,"Dexterity:",8,0,null,null,"Dexterity:",6,0,null,null,"Dexterity:",17,3,null,null,"Dexterity:",6,0,null,null,"Dexterity:",9,1,null,null,"Dexterity:",13,2,null,null,"Dexterity:",9,1,null,null,"Dexterity:",8,0,null,null,"Dexterity:",4,-1]
[null,null,"Endurance:",10,1,null,null,"Endurance:",7,0,null,null,"Endurance:",6,0,null,null,"Endurance:",5,-1,null,null,"Endurance:",9,1,null,null,"Endurance:",5,-1,null,null,"Endurance:",16,3,null,null,"Endurance:",2,-2,null,null,"Endurance:",1,-2,null,null,"Endurance:",6,0,null,null,"Endurance:",20,4,null,null,"Endurance:",23,5,null,null,"Endurance:",6,0,null,null,"Endurance:",10,1,null,null,"Endurance:",1,-2,null,null,"Endurance:",16,3]
[null,null,"Inteligence:",1,-2,null,null,"Inteligence:",0,-3,null,null,"Inteligence:",1,-2,null,null,"Inteligence:",0,-3,null,null,"Inteligence:",1,-2,null,null,"Inteligence:",1,-2,null,null,"Inteligence:",0,-3,null,null,"Inteligence:",0,-3,null,null,"Inteligence:",3,-1,null,null,"Inteligence:",3,-1,null,null,"Inteligence:",0,-3,null,null,"Inteligence:",0,-3,null,null,"Inteligence:",1,-2,null,null,"Inteligence:",1,-2,null,null,"Inteligence:",1,-2,null,null,"Inteligence:",0,-3]
[null,null,"Instinct:",10,1,null,null,"Instinct:",10,1,null,null,"Instinct:",8,0,null,null,"Instinct:",6,0,null,null,"Instinct:",6,0,null,null,"Instinct:",8,0,null,null,"Instinct:",10,1,null,null,"Instinct:",8,0,null,null,"Instinct:",11,1,null,null,"Instinct:",14,2,null,null,"Instinct:",10,1,null,null,"Instinct:",7,0,null,null,"Instinct:",9,1,null,null,"Instinct:",7,0,null,null,"Instinct:",8,0,null,null,"Instinct:",6,0]
[null,null,"Pack:",6,0,null,null,"Pack:",10,1,null,null,"Pack:",2,-2,null,null,"Pack:",7,0,null,null,"Pack:",7,0,null,null,"Pack:",9,1,null,null,"Pack:",3,-1,null,null,"Pack:",6,0,null,null,"Pack:",9,1,null,null,"Pack:",8,0,null,null,"Pack:",7,0,null,null,"Pack:",12,2,null,null,"Pack:",14,2,null,null,"Pack:",2,-2,null,null,"Pack:",6,0,null,null,"Pack:",4,-1]
[]
[null,"Skills:","Athletics:",1,null,null,"Skills:","Athletics:",1,null,null,"Skills:","Athletics:",1,null,null,"Skills:","Athletics:",2,null,null,"Skills:","Athletics:",1,null,null,"Skills:","Athletics:",1,null,null,"Skills:","Athletics:",1,null,null,"Skills:","Athletics:",0,null,null,"Skills:","Athletics:",2,null,null,"Skills:","Athletics:",1,null,null,"Skills:","Athletics:",1,null,null,"Skills:","Athletics:",1,null,null,"Skills:","Athletics:",3,null,null,"Skills:","Athletics:",0,null,null,"Skills:","Athletics:",3,null,null,"Skills:","Athletics:",1]
[null,null,"Recon:",1,null,null,null,"Recon:",1,null,null,null,"Recon:",1,null,null,null,"Recon:",1,null,null,null,"Recon:",0,null,null,null,"Recon:",0,null,null,null,"Recon:",0,null,null,null,"Recon:",2,null,null,null,"Recon:",2,null,null,null,"Recon:",1,null,null,null,"Recon:",0,null,null,null,"Recon:",0,null,null,null,"Recon:",0,null,null,null,"Recon:",0,null,null,null,"Recon:",0,null,null,null,"Recon:",0]
[null,null,"Survival:",0,null,null,null,"Survival:",0,null,null,null,"Survival:",0,null,null,null,"Survival:",1,null,null,null,"Survival:",2,null,null,null,"Survival:",1,null,null,null,"Survival:",0,null,null,null,"Survival:",0,null,null,null,"Survival:",1,null,null,null,"Survival:",0,null,null,null,"Survival:",0,null,null,null,"Survival:",2,null,null,null,"Survival:",3,null,null,null,"Survival:",2,null,null,null,"Survival:",1,null,null,null,"Survival:",1]
[null,null,"Melee:",null,null,null,null,"Melee:",null,null,null,null,"Melee:",null,null,null,null,"Melee:",null,null,null,null,"Melee:",null,null,null,null,"Melee:",3,null,null,null,"Melee:",1,null,null,null,"Melee:",1,null,null,null,"Melee:",null,null,null,null,"Melee:",null,null,null,null,"Melee:",null,null,null,null,"Melee:",null,null,null,null,"Melee:",null,null,null,null,"Melee:",null,null,null,null,"Melee:",0,null,null,null,"Melee:",2]
[null,null,"Deception:",null,null,null,null,"Deception:",null,null,null,null,"Deception:",1,null,null,null,"Deception:",null,null,null,null,"Deception:",null,null,null,null,"Deception:",null,null,null,null,"Deception:",null,null,null,null,"Deception:",null,null,null,null,"Deception:",null,null,null,null,"Deception:",null,null,null,null,"Deception:",null,null,null,null,"Deception:",null,null,null,null,"Deception:",null,null,null,null,"Deception:",1,null,null,null,"Deception:",null,null,null,null,"Deception:",1]
[null,null,"Persuade:",null,null,null,null,"Persuade:",null,null,null,null,"Persuade:",null,null,null,null,"Persuade:",null,null,null,null,"Persuade:",null,null,null,null,"Persuade:",null,null,null,null,"Persuade:",null,null,null,null,"Persuade:",null,null,null,null,"Persuade:",null,null,null,null,"Persuade:",null,null,null,null,"Persuade:",null,null,null,null,"Persuade:",null,null,null,null,"Persuade:",null,null,null,null,"Persuade:",null,null,null,null,"Persuade:",null,null,null,null,"Persuade:"]
[null,null,"Stealth:",null,null,null,null,"Stealth:",1,null,null,null,"Stealth:",null,null,null,null,"Stealth:",null,null,null,null,"Stealth:",null,null,null,null,"Stealth:",null,null,null,null,"Stealth:",null,null,null,null,"Stealth:",null,null,null,null,"Stealth:",null,null,null,null,"Stealth:",1,null,null,null,"Stealth:",null,null,null,null,"Stealth:",null,null,null,null,"Stealth:",null,null,null,null,"Stealth:",null,null,null,null,"Stealth:",null,null,null,null,"Stealth:"]
[]
[null,"Weapons:","Type","Damage",null,null,"Weapons:","Type","Damage",null,null,"Weapons:","Type","Damage",null,null,"Weapons:","Type","Damage",null,null,"Weapons:","Type","Damage",null,null,"Weapons:","Type","Damage",null,null,"Weapons:","Type","Damage",null,null,"Weapons:","Type","Damage",null,null,"Weapons:","Type","Damage",null,null,"Weapons:","Type","Damage",null,null,"Weapons:","Type","Damage",null,null,"Weapons:","Type","Damage",null,null,"Weapons:","Type","Damage",null,null,"Weapons:","Type","Damage",null,null,"Weapons:","Type","Damage",null,null,"Weapons:","Type","Damage"]
[]
[null,null,"Thrasher","4d6",null,null,null,"Thrasher","4d6",null,null,null,"Thrasher","3d6",null,null,null,"Thrasher","3d6",null,null,null,"Thrasher","3d6",null,null,null,"Thrasher","3d6",null,null,null,"Thrasher","3d6",null,null,null,"Thrasher","3d6",null,null,null,"Thrasher","3d6",null,null,null,"Thrasher","3d6",null,null,null,"Claws and Teeth","5d6",null,null,null,"Thrasher","5d6",null,null,null,"Thrasher","3d6",null,null,null,"Thrasher","4d6",null,null,null,"Thrasher","3d6",null,null,null,"Thrasher","5d6"]
[null,"Armor:",6,null,null,null,"Armor:",6,null,null,null,"Armor:",5,null,null,null,"Armor:",5,null,null,null,"Armor:",5,null,null,null,"Armor:",6,null,null,null,"Armor:",9,null,null,null,"Armor:",7,null,null,null,"Armor:",8,null,null,null,"Armor:",12,null,null,null,"Armor:",9,null,null,null,"Armor:",9,null,null,null,"Armor:",6,null,null,null,"Armor:",6,null,null,null,"Armor:",8,null,null,null,"Armor:",11]
[]
[null,"Number Encountered:","2d6",null,null,null,"Number Encountered:","3d6",null,null,null,"Number Encountered:","1d3",null,null,null,"Number Encountered:","2d6",null,null,null,"Number Encountered:","2d6",null,null,null,"Number Encountered:","3d6",null,null,null,"Number Encountered:","1d6",null,null,null,"Number Encountered:","2d6",null,null,null,"Number Encountered:","3d6",null,null,null,"Number Encountered:","2d6",null,null,null,"Number Encountered:","2d6",null,null,null,"Number Encountered:","4d6",null,null,null,"Number Encountered:","4d6",null,null,null,"Number Encountered:","1d3",null,null,null,"Number Encountered:","2d6",null,null,null,"Number Encountered:","1d6"]
[]
[null,"Name:","Species LOCATION-9",null,null,null,"Name:","Species LOCATION-19",null,null,null,"Name:","Species LOCATION-29",null,null,null,"Name:","Species LOCATION-39",null,null,null,"Name:","Species LOCATION-49",null,null,null,"Name:","Species LOCATION-59",null,null,null,"Name:","Species LOCATION-69",null,null,null,"Name:","Species LOCATION-79",null,null,null,"Name:","Species LOCATION-89",null,null,null,"Name:","Species LOCATION-99",null,null,null,"Name:","Species LOCATION-109",null,null,null,"Name:","Species LOCATION-119",null,null,null,"Name:","Species LOCATION-129",null,null,null,"Name:","Species LOCATION-139",null,null,null,"Name:","Species LOCATION-149",null,null,null,"Name:","Species LOCATION-159"]
[null,"Average Weight(kg):",5000,null,null,null,"Average Weight(kg):",6,null,null,null,"Average Weight(kg):",25,null,null,null,"Average Weight(kg):",100,null,null,null,"Average Weight(kg):",800,null,null,null,"Average Weight(kg):",1,null,null,null,"Average Weight(kg):",1,null,null,null,"Average Weight(kg):",1,null,null,null,"Average Weight(kg):",200,null,null,null,"Average Weight(kg):",1,null,null,null,"Average Weight(kg):",1600,null,null,null,"Average Weight(kg):",6,null,null,null,"Average Weight(kg):",5000,null,null,null,"Average Weight(kg):",3200,null,null,null,"Average Weight(kg):",1,null,null,null,"Average Weight(kg):",3200]
[null,"Movement:","Walker",null,null,null,"Movement:","Walker",null,null,null,"Movement:","Walker",null,null,null,"Movement:","Walker",null,null,null,"Movement:","Walker",null,null,null,"Movement:","Flyer",null,null,null,"Movement:","Flyer",null,null,null,"Movement:","Walker",null,null,null,"Movement:","Walker",null,null,null,"Movement:","Walker",null,null,null,"Movement:","Walker",null,null,null,"Movement:","Swimmer",null,null,null,"Movement:","Amphibious",null,null,null,"Movement:","Flyer",null,null,null,"Movement:","Flyer",null,null,null,"Movement:","Swimmer"]
[null,"Type:","Carnivore(Chaser)",null,null,null,"Type:","Carnivore(Chaser)",null,null,null,"Type:","Carnivore(Chaser)",null,null,null,"Type:","Carnivore(Chaser)",null,null,null,"Type:","Carnivore(Killer)",null,null,null,"Type:","Carnivore(Pouncer)",null,null,null,"Type:","Carnivore(Pouncer)",null,null,null,"Type:","Carnivore(Pouncer)",null,null,null,"Type:","Carnivore(Chaser)",null,null,null,"Type:","Carnivore(Trapper)",null,null,null,"Type:","Carnivore(Chaser)",null,null,null,"Type:","Carnivore(Chaser)",null,null,null,"Type:","Carnivore(Trapper)",null,null,null,"Type:","Carnivore(Chaser)",null,null,null,"Type:","Carnivore(Chaser)",null,null,null,"Type:","Carnivore(Chaser)"]
[]
[null,"Stats:",null,"Score","DM",null,"Stats:",null,"Score","DM",null,"Stats:",null,"Score","DM",null,"Stats:",null,"Score","DM",null,"Stats:",null,"Score","DM",null,"Stats:",null,"Score","DM",null,"Stats:",null,"Score","DM",null,"Stats:",null,"Score","DM",null,"Stats:",null,"Score","DM",null,"Stats:",null,"Score","DM",null,"Stats:",null,"Score","DM",null,"Stats:",null,"Score","DM",null,"Stats:",null,"Score","DM",null,"Stats:",null,"Score","DM",null,"Stats:",null,"Score","DM",null,"Stats:",null,"Score","DM"]
[null,null,"Strength:",23,5,null,null,"Strength:",4,-1,null,null,"Strength:",11,1,null,null,"Strength:",14,2,null,null,"Strength:",12,2,null,null,"Strength:",1,-2,null,null,"Strength:",1,-2,null,null,"Strength:",1,-2,null,null,"Strength:",13,2,null,null,"Strength:",1,-2,null,null,"Strength:",11,1,null,null,"Strength:",5,-1,null,null,"Strength:",28,7,null,null,"Strength:",19,4,null,null,"Strength:",1,-2,null,null,"Strength:",24,6]
[null,null,"Dexterity:",5,-1,null,null,"Dexterity:",12,2,null,null,"Dexterity:",19,4,null,null,"Dexterity:",17,3,null,null,"Dexterity:",12,2,null,null,"Dexterity:",6,0,null,null,"Dexterity:",9,1,null,null,"Dexterity:",10,1,null,null,"Dexterity:",12,2,null,null,"Dexterity:",2,-2,null,null,"Dexterity:",9,1,null,null,"Dexterity:",10,1,null,null,"Dexterity:",5,-1,null,null,"Dexterity:",9,1,null,null,"Dexterity:",5,-1,null,null,"Dexterity:",9,1]
[null,null,"Endurance:",27,7,null,null,"Endurance:",5,-1,null,null,"Endurance:",9,1,null,null,"Endurance:",11,1,null,null,"Endurance:",14,2,null,null,"Endurance:",1,-2,null,null,"Endurance:",1,-2,null,null,"Endurance:",1,-2,null,null,"Endurance:",12,2,null,null,"Endurance:",1,-2,null,null,"Endurance:",14,2,null,null,"Endurance:",3,-1,null,null,"Endurance:",26,6,null,null,"Endurance:",21,5,null,null,"Endurance:",1,-2,null,null,"Endurance:",25,6]
[null,null,"Inteligence:",0,-3,null,null,"Inteligence:",0,-3,null,null,"Inteligence:",0,-3,null,null,"Inteligence:",1,-2,null,null,"Inteligence:",1,-2,null,null,"Inteligence:",1,-2,null,null,"Inteligence:",0,-3,null,null,"Inteligence:",3,-1,null,null,"Inteligence:",1,-2,null,null,"Inteligence:",1,-2,null,null,"Inteligence:",0,-3,null,null,"Inteligence:",0,-3,null,null,"Inteligence:",1,-2,null,null,"Inteligence:",1,-2,null,null,"Inteligence:",1,-2,null,null,"Inteligence:",1,-2]
[null,null,"Instinct:",11,1,null,null,"Instinct:",10,1,null,null,"Instinct:",11,1,null,null,"Instinct:",7,0,null,null,"Instinct:",9,1,null,null,"Instinct:",12,2,null,null,"Instinct:",14,2,null,null,"Instinct:",8,0,null,null,"Instinct:",9,1,null,null,"Instinct:",8,0,null,null,"Instinct:",14,2,null,null,"Instinct:",7,0,null,null,"Instinct:",6,0,null,null,"Instinct:",4,-1,null,null,"Instinct:",6,0,null,null,"Instinct:",10,1]
[null,null,"Pack:",10,1,null,null,"Pack:",10,1,null,null,"Pack:",13,2,null,null,"Pack:",12,2,null,null,"Pack:",4,-1,null,null,"Pack:",4,-1,null,null,"Pack:",8,0,null,null,"Pack:",7,0,null,null,"Pack:",11,1,null,null,"Pack:",2,-2,null,null,"Pack:",8,0,null,null,"Pack:",5,-1,null,null,"Pack:",5,-1,null,null,"Pack:",8,0,null,null,"Pack:",11,1,null,null,"Pack:",6,0]
[]
[null,"Skills:","Athletics:",3,null,null,"Skills:","Athletics:",3,null,null,"Skills:","Athletics:",1,null,null,"Skills:","Athletics:",1,null,null,"Skills:","Athletics:",0,null,null,"Skills:","Athletics:",1,null,null,"Skills:","Athletics:",1,null,null,"Skills:","Athletics:",2,null,null,"Skills:","Athletics:",1,null,null,"Skills:","Athletics:",0,null,null,"Skills:","Athletics:",1,null,null,"Skills:","Athletics:",1,null,null,"Skills:","Athletics:",0,null,null,"Skills:","Athletics:",4,null,null,"Skills:","Athletics:",2,null,null,"Skills:","Athletics:",2]
[null,null,"Recon:",1,null,null,null,"Recon:",1,null,null,null,"Recon:",1,null,null,null,"Recon:",2,null,null,null,"Recon:",2,null,null,null,"Recon:",1,null,null,null,"Recon:",1,null,null,null,"Recon:",1,null,null,null,"Recon:",1,null,null,null,"Recon:",1,null,null,null,"Recon:",0,null,null,null,"Recon:",2,null,null,null,"Recon:",0,null,null,null,"Recon:",1,null,null,null,"Recon:",1,null,null,null,"Recon:",0]
[null,null,"Survival:",1,null,null,null,"Survival:",2,null,null,null,"Survival:",0,null,null,null,"Survival:",1,null,null,null,"Survival:",1,null,null,null,"Survival:",0,null,null,null,"Survival:",0,null,null,null,"Survival:",1,null,null,null,"Survival:",3,null,null,null,"Survival:",1,null,null,null,"Survival:",1,null,null,null,"Survival:",0,null,null,null,"Survival:",2,null,null,null,"Survival:",0,null,null,null,"Survival:",3,null,null,null,"Survival:",0]
[null,null,"Melee:",null,null,null,null,"Melee:",null,null,null,null,"Melee:",1,null,null,null,"Melee:",0,null,null,null,"Melee:",2,null,null,null,"Melee:",null,null,null,null,"Melee:",null,null,null,null,"Melee:",null,null,null,null,"Melee:",null,null,null,null,"Melee:",0,null,null,null,"Melee:",0,null,null,null,"Melee:",1,null,null,null,"Melee:",null,null,null,null,"Melee:",null,null,null,null,"Melee:",null,null,null,null,"Melee:",1]
[null,null,"Deception:",null,null,null,null,"Deception:",null,null,null,null,"Deception:",null,null,null,null,"Deception:",null,null,null,null,"Deception:",null,null,null,null,"Deception:",null,null,null,null,"Deception:",null,null,null,null,"Deception:",0,null,null,null,"Deception:",null,null,null,null,"Deception:",null,null,null,null,"Deception:",null,null,null,null,"Deception:",null,null,null,null,"Deception:",null,null,null,null,"Deception:",null,null,null,null,"Deception:",null,null,null,null,"Deception:"]
[null,null,"Persuade:",null,null,null,null,"Persuade:",null,null,null,null,"Persuade:",null,null,null,null,"Persuade:",null,null,null,null,"Persuade:",null,null,null,null,"Persuade:",null,null,null,null,"Persuade:",null,null,null,null,"Persuade:",null,null,null,null,"Persuade:",null,null,null,null,"Persuade:",null,null,null,null,"Persuade:",null,null,null,null,"Persuade:",null,null,null,null,"Persuade:",null,null,null,null,"Persuade:",null,null,null,null,"Persuade:",null,null,null,null,"Persuade:"]
[null,null,"Stealth:",null,null,null,null,"Stealth:",null,null,null,null,"Stealth:",null,null,null,null,"Stealth:",null,null,null,null,"Stealth:",null,null,null,null,"Stealth:",1,null,null,null,"Stealth:",1,null,null,null,"Stealth:",1,null,null,null,"Stealth:",null,null,null,null,"Stealth:",null,null,null,null,"Stealth:",null,null,null,null,"Stealth:",null,null,null,null,"Stealth:",null,null,null,null,"Stealth:",null,null,null,null,"Stealth:",null,null,null,null,"Stealth:"]
[]
[null,"Weapons:","Type","Damage",null,null,"Weapons:","Type","Damage",null,null,"Weapons:","Type","Damage",null,null,"Weapons:","Type","Damage",null,null,"Weapons:","Type","Damage",null,null,"Weapons:","Type","Damage",null,null,"Weapons:","Type","Damage",null,null,"Weapons:","Type","Damage",null,null,"Weapons:","Type","Damage",null,null,"Weapons:","Type","Damage",null,null,"Weapons:","Type","Damage",null,null,"Weapons:","Type","Damage",null,null,"Weapons:","Type","Damage",null,null,"Weapons:","Type","Damage",null,null,"Weapons:","Type","Damage",null,null,"Weapons:","Type","Damage"]
[]
[null,null,"Thrasher","5d6",null,null,null,"Thrasher","3d6",null,null,null,"Thrasher","4d6",null,null,null,"Thrasher","4d6",null,null,null,"Thrasher","4d6",null,null,null,"Thrasher","3d6",null,null,null,"Thrasher","3d6",null,null,null,"Claws and Teeth","3d6",null,null,null,"Thrasher","4d6",null,null,null,"Thrasher","3d6",null,null,null,"Thrasher","4d6",null,null,null,"Teeth","3d6",null,null,null,"Thrasher","5d6",null,null,null,"Thrasher","4d6",null,null,null,"Claws","3d6",null,null,null,"Thrasher","5d6"]
[null,"Armor:",9,null,null,null,"Armor:",8,null,null,null,"Armor:",5,null,null,null,"Armor:",6,null,null,null,"Armor:",9,null,null,null,"Armor:",8,null,null,null,"Armor:",7,null,null,null,"Armor:",9,null,null,null,"Armor:",7,null,null,null,"Armor:",6,null,null,null,"Armor:",4,null,null,null,"Armor:",8,null,null,null,"Armor:",9,null,null,null,"Armor:",10,null,null,null,"Armor:",8,null,null,null,"Armor:",7]
[]
[null,"Number Encountered:","3d6",null,null,null,"Number Encountered:","3d6",null,null,null,"Number Encountered:","4d6",null,null,null,"Number Encountered:","4d6",null,null,null,"Number Encountered:","1d6",null,null,null,"Number Encountered:","1d6",null,null,null,"Number Encountered:","2d6",null,null,null,"Number Encountered:","2d6",null,null,null,"Number Encountered:","3d6",null,null,null,"Number Encountered:","1d3",null,null,null,"Number Encountered:","2d6",null,null,null,"Number Encountered:","1d6",null,null,null,"Number Encountered:","1d6",null,null,null,"Number Encountered:","2d6",null,null,null,"Number Encountered:","3d6",null,null,null,"Number Encountered:","2d6"]
[]
[null,"Name:","Species LOCATION-10",null,null,null,"Name:","Species LOCATION-20",null,null,null,"Name:","Species LOCATION-30",null,null,null,"Name:","Species LOCATION-40",null,null,null,"Name:","Species LOCATION-50",null,null,null,"Name:","Species LOCATION-60",null,null,null,"Name:","Species LOCATION-70",null,null,null,"Name:","Species LOCATION-80",null,null,null,"Name:","Species LOCATION-90",null,null,null,"Name:","Species LOCATION-100",null,null,null,"Name:","Species LOCATION-110",null,null,null,"Name:","Species LOCATION-120",null,null,null,"Name:","Species LOCATION-130",null,null,null,"Name:","Species LOCATION-140",null,null,null,"Name:","Species LOCATION-150",null,null,null,"Name:","Species LOCATION-160"]
[null,"Average Weight(kg):",1600,null,null,null,"Average Weight(kg):",3200,null,null,null,"Average Weight(kg):",6,null,null,null,"Average Weight(kg):",12,null,null,null,"Average Weight(kg):",3,null,null,null,"Average Weight(kg):",1,null,null,null,"Average Weight(kg):",1,null,null,null,"Average Weight(kg):",12,null,null,null,"Average Weight(kg):",200,null,null,null,"Average Weight(kg):",50,null,null,null,"Average Weight(kg):",1600,null,null,null,"Average Weight(kg):",6,null,null,null,"Average Weight(kg):",5000,null,null,null,"Average Weight(kg):",50,null,null,null,"Average Weight(kg):",3,null,null,null,"Average Weight(kg):",5000]
[null,"Movement:","Walker",null,null,null,"Movement:","Walker",null,null,null,"Movement:","Walker",null,null,null,"Movement:","Walker",null,null,null,"Movement:","Flyer",null,null,null,"Movement:","Walker",null,null,null,"Movement:","Walker",null,null,null,"Movement:","Walker",null,null,null,"Movement:","Walker",null,null,null,"Movement:","Walker",null,null,null,"Movement:","Swimmer",null,null,null,"Movement:","Swimmer",null,null,null,"Movement:","Amphibious",null,null,null,"Movement:","Swimmer",null,null,null,"Movement:","Swimmer",null,null,null,"Movement:","Swimmer"]
[null,"Type:","Carnivore(Chaser)",null,null,null,"Type:","Carnivore(Killer)",null,null,null,"Type:","Carnivore(Killer)",null,null,null,"Type:","Carnivore(Chaser)",null,null,null,"Type:","Carnivore(Chaser)",null,null,null,"Type:","Carnivore(Siren)",null,null,null,"Type:","Carnivore(Chaser)",null,null,null,"Type:","Carnivore(Pouncer)",null,null,null,"Type:","Carnivore(Killer)",null,null,null,"Type:","Carnivore(Pouncer)",null,null,null,"Type:","Carnivore(Chaser)",null,null,null,"Type:","Carnivore(Chaser)",null,null,null,"Type:","Carnivore(Pouncer)",null,null,null,"Type:","Carnivore(Chaser)",null,null,null,"Type:","Carnivore(Chaser)",null,null,null,"Type:","Carnivore(Chaser)"]
[]
[null,"Stats:",null,"Score","DM",null,"Stats:",null,"Score","DM",null,"Stats:",null,"Score","DM",null,"Stats:",null,"Score","DM",null,"Stats:",null,"Score","DM",null,"Stats:",null,"Score","DM",null,"Stats:",null,"Score","DM",null,"Stats:",null,"Score","DM",null,"Stats:",null,"Score","DM",null,"Stats:",null,"Score","DM",null,"Stats:",null,"Score","DM",null,"Stats:",null,"Score","DM",null,"Stats:",null,"Score","DM",null,"Stats:",null,"Score","DM",null,"Stats:",null,"Score","DM",null,"Stats:",null,"Score","DM"]
[null,null,"Strength:",22,5,null,null,"Strength:",19,4,null,null,"Strength:",9,1,null,null,"Strength:",4,-1,null,null,"Strength:",2,-2,null,null,"Strength:",1,-2,null,null,"Strength:",1,-2,null,null,"Strength:",5,-1,null,null,"Strength:",13,2,null,null,"Strength:",7,0,null,null,"Strength:",22,5,null,null,"Strength:",1,-2,null,null,"Strength:",32,8,null,null,"Strength:",10,1,null,null,"Strength:",2,-2,null,null,"Strength:",27,7]
[null,null,"Dexterity:",6,0,null,null,"Dexterity:",8,0,null,null,"Dexterity:",11,1,null,null,"Dexterity:",7,0,null,null,"Dexterity:",5,-1,null,null,"Dexterity:",4,-1,null,null,"Dexterity:",7,0,null,null,"Dexterity:",13,2,null,null,"Dexterity:",18,4,null,null,"Dexterity:",26,6,null,null,"Dexterity:",14,2,null,null,"Dexterity:",12,2,null,null,"Dexterity:",8,0,null,null,"Dexterity:",19,4,null,null,"Dexterity:",8,0,null,null,"Dexterity:",5,-1]
[null,null,"Endurance:",19,4,null,null,"Endurance:",29,7,null,null,"Endurance:",3,-1,null,null,"Endurance:",1,-2,null,null,"Endurance:",2,-2,null,null,"Endurance:",1,-2,null,null,"Endurance:",1,-2,null,null,"Endurance:",5,-1,null,null,"Endurance:",13,2,null,null,"Endurance:",8,0,null,null,"Endurance:",15,3,null,null,"Endurance:",6,0,null,null,"Endurance:",25,6,null,null,"Endurance:",5,-1,null,null,"Endurance:",2,-2,null,null,"Endurance:",17,3]
[null,null,"Inteligence:",1,-2,null,null,"Inteligence:",3,-1,null,null,"Inteligence:",0,-3,null,null,"Inteligence:",0,-3,null,null,"Inteligence:",1,-2,null,null,"Inteligence:",0,-3,null,null,"Inteligence:",0,-3,null,null,"Inteligence:",0,-3,null,null,"Inteligence:",1,-2,null,null,"Inteligence:",1,-2,null,null,"Inteligence:",0,-3,null,null,"Inteligence:",0,-3,null,null,"Inteligence:",0,-3,null,null,"Inteligence:",0,-3,null,null,"Inteligence:",0,-3,null,null,"Inteligence:",0,-3]
[null,null,"Instinct:",11,1,null,null,"Instinct:",16,3,null,null,"Instinct:",9,1,null,null,"Instinct:",13,2,null,null,"Instinct:",12,2,null,null,"Instinct:",4,-1,null,null,"Instinct:",9,1,null,null,"Instinct:",10,1,null,null,"Instinct:",11,1,null,null,"Instinct:",12,2,null,null,"Instinct:",9,1,null,null,"Instinct:",10,1,null,null,"Instinct:",12,2,null,null,"Instinct:",7,0,null,null,"Instinct:",4,-1,null,null,"Instinct:",8,0]
[null,null,"Pack:",7,0,null,null,"Pack:",5,-1,null,null,"Pack:",5,-1,null,null,"Pack:",9,1,null,null,"Pack:",6,0,null,null,"Pack:",-2,-3,null,null,"Pack:",11,1,null,null,"Pack:",6,0,null,null,"Pack:",4,-1,null,null,"Pack:",7,0,null,null,"Pack:",6,0,null,null,"Pack:",10,1,null,null,"Pack:",7,0,null,null,"Pack:",9,1,null,null,"Pack:",7,0,null,null,"Pack:",8,0]
[]
[null,"Skills:","Athletics:",2,null,null,"Skills:","Athletics:",0,null,null,"Skills:","Athletics:",0,null,null,"Skills:","Athletics:",1,null,null,"Skills:","Athletics:",1,null,null,"Skills:","Athletics:",0,null,null,"Skills:","Athletics:",1,null,null,"Skills:","Athletics:",1,null,null,"Skills:","Athletics:",0,null,null,"Skills:","Athletics:",3,null,null,"Skills:","Athletics:",2,null,null,"Skills:","Athletics:",1,null,null,"Skills:","Athletics:",1,null,null,"Skills:","Athletics:",2,null,null,"Skills:","Athletics:",1,null,null,"Skills:","Athletics:",2]
[null,null,"Recon:",0,null,null,null,"Recon:",0,null,null,null,"Recon:",0,null,null,null,"Recon:",0,null,null,null,"Recon:",1,null,null,null,"Recon:",0,null,null,null,"Recon:",1,null,null,null,"Recon:",1,null,null,null,"Recon:",1,null,null,null,"Recon:",1,null,null,null,"Recon:",0,null,null,null,"Recon:",0,null,null,null,"Recon:",1,null,null,null,"Recon:",1,null,null,null,"Recon:",1,null,null,null,"Recon:",0]
[null,null,"Survival:",0,null,null,null,"Survival:",0,null,null,null,"Survival:",0,null,null,null,"Survival:",0,null,null,null,"Survival:",1,null,null,null,"Survival:",0,null,null,null,"Survival:",2,null,null,null,"Survival:",1,null,null,null,"Survival:",0,null,null,null,"Survival:",0,null,null,null,"Survival:",2,null,null,null,"Survival:",2,null,null,null,"Survival:",0,null,null,null,"Survival:",1,null,null,null,"Survival:",2,null,null,null,"Survival:",0]
[null,null,"Melee:",null,null,null,null,"Melee:",1,null,null,null,"Melee:",1,null,null,null,"Melee:",null,null,null,null,"Melee:",0,null,null,null,"Melee:",null,null,null,null,"Melee:",0,null,null,null,"Melee:",null,null,null,null,"Melee:",1,null,null,null,"Melee:",0,null,null,null,"Melee:",0,null,null,null,"Melee:",1,null,null,null,"Melee:",null,null,null,null,"Melee:",null,null,null,null,"Melee:",0,null,null,null,"Melee:"]
[null,null,"Deception:",null,null,null,null,"Deception:",null,null,null,null,"Deception:",null,null,null,null,"Deception:",null,null,null,null,"Deception:",null,null,null,null,"Deception:",1,null,null,null,"Deception:",null,null,null,null,"Deception:",null,null,null,null,"Deception:",null,null,null,null,"Deception:",null,null,null,null,"Deception:",null,null,null,null,"Deception:",null,null,null,null,"Deception:",null,null,null,null,"Deception:",null,null,null,null,"Deception:",null,null,null,null,"Deception:"]
[null,null,"Persuade:",null,null,null,null,"Persuade:",null,null,null,null,"Persuade:",null,null,null,null,"Persuade:",null,null,null,null,"Persuade:",null,null,null,null,"Persuade:",null,null,null,null,"Persuade:",null,null,null,null,"Persuade:",null,null,null,null,"Persuade:",null,null,null,null,"Persuade:",null,null,null,null,"Persuade:",null,null,null,null,"Persuade:",null,null,null,null,"Persuade:",null,null,null,null,"Persuade:",null,null,null,null,"Persuade:",null,null,null,null,"Persuade:"]
[null,null,"Stealth:",null,null,null,null,"Stealth:",null,null,null,null,"Stealth:",null,null,null,null,"Stealth:",null,null,null,null,"Stealth:",null,null,null,null,"Stealth:",null,null,null,null,"Stealth:",null,null,null,null,"Stealth:",1,null,null,null,"Stealth:",null,null,null,null,"Stealth:",1,null,null,null,"Stealth:",null,null,null,null,"Stealth:",null,null,null,null,"Stealth:",1,null,null,null,"Stealth:",null,null,null,null,"Stealth:",null,null,null,null,"Stealth:"]
[]
[null,"Weapons:","Type","Damage",null,null,"Weapons:","Type","Damage",null,null,"Weapons:","Type","Damage",null,null,"Weapons:","Type","Damage",null,null,"Weapons:","Type","Damage",null,null,"Weapons:","Type","Damage",null,null,"Weapons:","Type","Damage",null,null,"Weapons:","Type","Damage",null,null,"Weapons:","Type","Damage",null,null,"Weapons:","Type","Damage",null,null,"Weapons:","Type","Damage",null,null,"Weapons:","Type","Damage",null,null,"Weapons:","Type","Damage",null,null,"Weapons:","Type","Damage",null,null,"Weapons:","Type","Damage",null,null,"Weapons:","Type","Damage"]
[]
[null,null,"Thrasher","5d6",null,null,null,"Thrasher","4d6",null,null,null,"Thrasher","3d6",null,null,null,"Thrasher","3d6",null,null,null,"Thrasher","3d6",null,null,null,"Claws","3d6",null,null,null,"Thrasher","3d6",null,null,null,"Thrasher","3d6",null,null,null,"Thrasher","4d6",null,null,null,"Thrasher","3d6",null,null,null,"Thrasher","5d6",null,null,null,"Thrasher","3d6",null,null,null,"Thrasher","6d6",null,null,null,"Thrasher","3d6",null,null,null,"Thrasher","3d6",null,null,null,"Thrasher","5d6"]
[null,"Armor:",7,null,null,null,"Armor:",5,null,null,null,"Armor:",6,null,null,null,"Armor:",5,null,null,null,"Armor:",5,null,null,null,"Armor:",8,null,null,null,"Armor:",7,null,null,null,"Armor:",11,null,null,null,"Armor:",11,null,null,null,"Armor:",9,null,null,null,"Armor:",6,null,null,null,"Armor:",7,null,null,null,"Armor:",9,null,null,null,"Armor:",4,null,null,null,"Armor:",5,null,null,null,"Armor:",9]
[]
[null,"Number Encountered:","2d6",null,null,null,"Number Encountered:","1d6",null,null,null,"Number Encountered:","1d6",null,null,null,"Number Encountered:","3d6",null,null,null,"Number Encountered:","2d6",null,null,null,"Number Encountered:",1,null,null,null,"Number Encountered:","3d6",null,null,null,"Number Encountered:","2d6",null,null,null,"Number Encountered:","1d6",null,null,null,"Number Encountered:","2d6",null,null,null,"Number Encountered:","2d6",null,null,null,"Number Encountered:","3d6",null,null,null,"Number Encountered:","2d6",null,null,null,"Number Encountered:","3d6",null,null,null,"Number Encountered:","2d6",null,null,null,"Number Encountered:","2d6"]

{"sheet":"Animal Tables","index":4,"n_rows":84,"n_cols":29,"rows_kept":84,"cut":false,"hidden":false,"merged":[]}
[]
["Planetary Quirks",null,null,null,null,null,null,null,null,null,null,null,null,null,null,null,null,"Number Encountered"]
["Roll","Sensory Quirks","Defense Quirk","Nesting Quirk","Locomotion Quirk","Reproduction quirk","Attack Quirk",null,null,null,null,null,null,null,null,null,null,"Pack","Num"]
[1,"Sees in infrared","Armoured shell","Digs burrows","Six limbs","Lays eggs","Acid spit",null,null,null,null,null,null,null,null,null,null,0,1]
[2,"Multiple eyes","Screeches for aid","Nests in trees","Gasbags","Lays thousands of spawn","Strangling tentacles",null,null,null,null,null,null,null,null,null,null,1,"1d3"]
[3,"Sensitive cilia or hairs","Reacts to attack with attack","Hides stocks of food","Crawls on webbing","Males gestate young","Primitive tools",null,null,null,null,null,null,null,null,null,null,2,"1d3"]
[4,"Echolocation","Camouflage","Steals nests","Slime","Multiple sexes","Spiked tail or bill",null,null,null,null,null,null,null,null,null,null,3,"1d6"]
[5,"Symbiosis with a hunter or pilot animal","Avoids or mitigates attacks","Builds nests from organic material","Hijacks the bodies of other creatures","Young grow inside adult, released on death","Electricity",null,null,null,null,null,null,null,null,null,null,4,"1d6"]
[6,"Sensitive sense of smell","Inflates","Fortifies nests","A prehensile body part which is not normally prehensile","Can change gender","Poison",null,null,null,null,null,null,null,null,null,null,5,"1d6"]
[null,null,null,null,null,null,null,null,null,null,null,null,null,null,null,null,null,6,"2d6"]
[null,null,null,null,null,null,null,null,null,null,null,null,null,null,null,null,null,7,"2d6"]
["Terrain DM Chart",null,null,"Roll for Creature Movement",null,null,null,null,null,"Movement Size Modifier",null,null,null,null,null,null,null,8,"2d6"]
["Terrain","Type DM","Size DM",1,2,3,4,5,6,1,2,3,4,5,6,null,null,9,"3d6"]
["Clear",3,0,"Walker","Walker","Walker","Walker","Walker","Flyer",0,0,0,0,2,-6,null,null,10,"3d6"]
["Plain or Praire",4,0,"Walker","Walker","Walker","Walker","Walker","Flyer",0,0,0,2,4,-6,null,null,11,"3d6"]
["Desert(hot or cold)",3,-3,"Walker","Walker","Walker","Walker","Flyer","Flyer",0,0,0,0,-4,-6,null,null,12,"4d6"]
["Hills, Foothills",0,0,"Walker","Walker","Walker","Walker","Flyer","Flyer",0,0,0,2,-4,-6,null,null,13,"4d6"]
["Mountain",0,0,"Walker","Walker","Walker","Flyer","Flyer","Flyer",0,0,0,-2,-4,-6,null,null,14,"4d6"]
["Forest",-4,-4,"Walker","Walker","Walker","Walker","Flyer","Flyer",0,0,0,0,-4,-6,null,null,15,"5d6"]
["Woods",-2,-1,"Walker","Walker","Walker","Walker","Walker","Flyer",0,0,0,0,0,-6]
["Jungle",-4,-3,"Walker","Walker","Walker","Walker","Walker","Flyer",0,0,0,0,2,-6]
["Rainforest",-2,-2,"Walker","Walker","Walker","Walker","Walker","Flyer",0,0,0,2,4,-6]
["Rough, Broken",-3,-3,"Walker","Walker","Walker","Walker","Flyer","Flyer",0,0,0,2,-4,-6]
["Swamp, Marsh",-2,4,"Swimmer","Amphibious","Walker","Walker","Flyer","Flyer",-6,2,0,0,-4,-6]
["Beach, Shore",3,2,"Swimmer","Amphibious","Walker","Walker","Flyer","Flyer",1,2,0,0,-4,-6]
["Riverbank",1,1,"Swimmer","Amphibious","Walker","Walker","Walker","Flyer",-4,0,0,0,0,-6]
["Ocean Shallows",4,1,"Swimmer","Swimmer","Swimmer","Swimmer","Flyer","Flyer",4,2,0,0,-4,-6]
["Open Ocean",4,-4,"Swimmer","Swimmer","Swimmer","Swimmer","Flyer","Flyer",6,4,2,0,-4,-6]
["Deep Ocean",4,2,"Swimmer","Swimmer","Swimmer","Swimmer","Swimmer","Swimmer",8,6,4,2,0,-2]
[]
[]
["Rural Encounter Table",null,null,null,"Animal Types",null,null,null,null,null,"Size Table",null,"#d6"]
["Column number","Creature Type",null,null,"Roll","Herbivore","Omnivore","Carnivore","Scavenger",null,"Roll","Weight(kg)","Str","Dex","End"]
[5,"Scavenger",null,null,1,"Filter","Gatherer","Pouncer","Carrion-Eater",null,1,1,"1 Flat",1,"1 Flat"]
[3,"Omnivore",null,null,2,"Filter","Eater","Siren","Reducer",null,2,3,"2 Flat",1,"2 Flat"]
[5,"Scavenger",null,null,3,"Intermittent","Gatherer","Pouncer","Hijacker",null,3,6,1,2,1]
[3,"Omnivore",null,null,4,"Intermittent","Eater","Killer","Carrion-Eater",null,4,12,1,2,1]
[2,"Herbivore",null,null,5,"Intermittent","Gatherer","Trapper","Intimidator",null,5,25,2,3,2]
[2,"Herbivore",null,null,6,"Intermittent","Hunter","Pouncer","Reducer",null,6,50,2,4,2]
[2,"Herbivore",null,null,7,"Grazer","Hunter","Chaser","Carrion-Eater",null,7,100,3,3,3]
[4,"Carnivore",null,null,8,"Grazer","Hunter","Chaser","Reducer",null,8,200,3,3,3]
[4,"Carnivore",null,null,9,"Grazer","Gatherer","Chaser","Hijacker",null,9,400,4,2,4]
[4,"Carnivore",null,null,10,"Grazer","Eater","Killer","Intimidator","hn ",10,800,4,2,4]
[null,null,null,null,11,"Grazer","Hunter","Chaser","Reducer",null,11,1600,5,2,5]
[null,null,null,null,12,"Grazer","Gatherer","Siren","Hijacker",null,12,3200,6,1,6]
[null,null,null,null,13,"Grazer","Gatherer","Chaser","Intimidator",null,13,5000,7,1,7]
[]
[]
["Weapons Table",null,null,null,"Armour Table",null,null,"Damage",null,null,"Terrain by World"]
["Roll","Weapons","Extra Dice",null,"Roll","Armour",null,"Strength","Damage(#d6)",null,"Terrain","Ag","As","Ba","De","Fl","Ga","Hi","Ht","IC","In","Lo","Lt","Na","NI","Po","Ri","Wa","Va"]
[1,"None",0,null,1,0,null,10,1,null,"Clear",{"$f":"TRUE()","v":true},{"$f":"FALSE()","v":false},{"$f":"TRUE()","v":true},{"$f":"TRUE()","v":true},{"$f":"TRUE()","v":true},{"$f":"TRUE()","v":true},{"$f":"FALSE()","v":false},{"$f":"TRUE()","v":true},{"$f":"FALSE()","v":false},{"$f":"FALSE()","v":false},{"$f":"TRUE()","v":true},{"$f":"TRUE()","v":true},{"$f":"TRUE()","v":true},{"$f":"TRUE()","v":true},{"$f":"TRUE()","v":true},{"$f":"TRUE()","v":true},{"$f":"FALSE()","v":false},{"$f":"FALSE()","v":false}]
[2,"Teeth",0,null,2,0,null,20,2,null,"Plain or Praire",{"$f":"TRUE()","v":true},{"$f":"FALSE()","v":false},{"$f":"TRUE()","v":true},{"$f":"FALSE()","v":false},{"$f":"TRUE()","v":true},{"$f":"TRUE()","v":true},{"$f":"FALSE()","v":false},{"$f":"TRUE()","v":true},{"$f":"FALSE()","v":false},{"$f":"FALSE()","v":false},{"$f":"TRUE()","v":true},{"$f":"TRUE()","v":true},{"$f":"FALSE()","v":false},{"$f":"TRUE()","v":true},{"$f":"TRUE()","v":true},{"$f":"TRUE()","v":true},{"$f":"FALSE()","v":false},{"$f":"FALSE()","v":false}]
[3,"Horns",0,null,3,0,null,30,3,null,"Desert(hot or cold)",{"$f":"FALSE()","v":false},{"$f":"FALSE()","v":false},{"$f":"TRUE()","v":true},{"$f":"TRUE()","v":true},{"$f":"TRUE()","v":true},{"$f":"TRUE()","v":true},true,{"$f":"TRUE()","v":true},{"$f":"TRUE()","v":true},{"$f":"TRUE()","v":true},{"$f":"TRUE()","v":true},{"$f":"TRUE()","v":true},{"$f":"TRUE()","v":true},{"$f":"TRUE()","v":true},{"$f":"TRUE()","v":true},{"$f":"TRUE()","v":true},{"$f":"FALSE()","v":false},{"$f":"FALSE()","v":false}]
[4,"Hooves",0,null,4,1,null,40,4,null,"Hills, Foothills",{"$f":"TRUE()","v":true},{"$f":"FALSE()","v":false},{"$f":"TRUE()","v":true},{"$f":"FALSE()","v":false},{"$f":"TRUE()","v":true},{"$f":"TRUE()","v":true},true,{"$f":"TRUE()","v":true},{"$f":"FALSE()","v":false},{"$f":"FALSE()","v":false},{"$f":"TRUE()","v":true},{"$f":"TRUE()","v":true},{"$f":"TRUE()","v":true},{"$f":"TRUE()","v":true},{"$f":"TRUE()","v":true},{"$f":"TRUE()","v":true},{"$f":"FALSE()","v":false},{"$f":"FALSE()","v":false}]
[5,"Hooves and Teeth",0,null,5,1,null,50,5,null,"Mountain",{"$f":"TRUE()","v":true},{"$f":"FALSE()","v":false},{"$f":"TRUE()","v":true},{"$f":"TRUE()","v":true},{"$f":"TRUE()","v":true},{"$f":"TRUE()","v":true},true,{"$f":"TRUE()","v":true},{"$f":"FALSE()","v":false},{"$f":"TRUE()","v":true},{"$f":"TRUE()","v":true},{"$f":"TRUE()","v":true},{"$f":"TRUE()","v":true},{"$f":"TRUE()","v":true},{"$f":"TRUE()","v":true},{"$f":"TRUE()","v":true},{"$f":"FALSE()","v":false},{"$f":"FALSE()","v":false}]
[6,"Teeth",0,null,6,2,null,60,6,null,"Forest",{"$f":"TRUE()","v":true},{"$f":"FALSE()","v":false},{"$f":"TRUE()","v":true},{"$f":"FALSE()","v":false},{"$f":"TRUE()","v":true},{"$f":"TRUE()","v":true},{"$f":"FALSE()","v":false},{"$f":"TRUE()","v":true},{"$f":"FALSE()","v":false},{"$f":"FALSE()","v":false},{"$f":"TRUE()","v":true},{"$f":"TRUE()","v":true},{"$f":"FALSE()","v":false},{"$f":"TRUE()","v":true},{"$f":"TRUE()","v":true},{"$f":"TRUE()","v":true},{"$f":"FALSE()","v":false},{"$f":"FALSE()","v":false}]
[7,"Claws",1,null,7,2,null,null,null,null,"Woods",{"$f":"TRUE()","v":true},{"$f":"FALSE()","v":false},{"$f":"TRUE()","v":true},{"$f":"FALSE()","v":false},{"$f":"TRUE()","v":true},{"$f":"TRUE()","v":true},{"$f":"FALSE()","v":false},{"$f":"TRUE()","v":true},{"$f":"FALSE()","v":false},{"$f":"FALSE()","v":false},{"$f":"TRUE()","v":true},{"$f":"TRUE()","v":true},{"$f":"FALSE()","v":false},{"$f":"TRUE()","v":true},{"$f":"TRUE()","v":true},{"$f":"TRUE()","v":true},{"$f":"FALSE()","v":false},{"$f":"FALSE()","v":false}]
[8,"Stinger",1,null,8,3,null,null,null,null,"Jungle",{"$f":"TRUE()","v":true},{"$f":"FALSE()","v":false},{"$f":"TRUE()","v":true},{"$f":"FALSE()","v":false},{"$f":"TRUE()","v":true},{"$f":"TRUE()","v":true},{"$f":"FALSE()","v":false},{"$f":"TRUE()","v":true},{"$f":"FALSE()","v":false},{"$f":"FALSE()","v":false},{"$f":"TRUE()","v":true},{"$f":"TRUE()","v":true},{"$f":"FALSE()","v":false},{"$f":"TRUE()","v":true},{"$f":"TRUE()","v":true},{"$f":"TRUE()","v":true},{"$f":"FALSE()","v":false},{"$f":"FALSE()","v":false}]
[9,"Thrasher",1,null,9,3,null,null,null,null,"Rainforest",{"$f":"TRUE()","v":true},{"$f":"FALSE()","v":false},{"$f":"TRUE()","v":true},{"$f":"FALSE()","v":false},{"$f":"TRUE()","v":true},{"$f":"TRUE()","v":true},{"$f":"FALSE()","v":false},{"$f":"TRUE()","v":true},{"$f":"FALSE()","v":false},{"$f":"FALSE()","v":false},{"$f":"TRUE()","v":true},{"$f":"TRUE()","v":true},{"$f":"FALSE()","v":false},{"$f":"TRUE()","v":true},{"$f":"TRUE()","v":true},{"$f":"TRUE()","v":true},{"$f":"FALSE()","v":false},{"$f":"FALSE()","v":false}]
[10,"Claws and Teeth",2,null,10,4,null,null,null,null,"Rough, Broken",{"$f":"TRUE()","v":true},{"$f":"FALSE()","v":false},{"$f":"TRUE()","v":true},{"$f":"TRUE()","v":true},{"$f":"TRUE()","v":true},{"$f":"TRUE()","v":true},true,{"$f":"TRUE()","v":true},{"$f":"FALSE()","v":false},{"$f":"TRUE()","v":true},{"$f":"TRUE()","v":true},{"$f":"TRUE()","v":true},{"$f":"TRUE()","v":true},{"$f":"TRUE()","v":true},{"$f":"TRUE()","v":true},{"$f":"TRUE()","v":true},{"$f":"FALSE()","v":false},{"$f":"FALSE()","v":false}]
[11,"Claws",2,null,11,4,null,null,null,null,"Swamp, Marsh",{"$f":"TRUE()","v":true},{"$f":"FALSE()","v":false},{"$f":"TRUE()","v":true},{"$f":"FALSE()","v":false},{"$f":"TRUE()","v":true},{"$f":"TRUE()","v":true},true,{"$f":"TRUE()","v":true},{"$f":"FALSE()","v":false},{"$f":"FALSE()","v":false},{"$f":"TRUE()","v":true},{"$f":"TRUE()","v":true},{"$f":"FALSE()","v":false},{"$f":"TRUE()","v":true},{"$f":"TRUE()","v":true},{"$f":"TRUE()","v":true},{"$f":"TRUE()","v":true},{"$f":"FALSE()","v":false}]
[12,"Teeth",2,null,12,5,null,null,null,null,"Beach, Shore",{"$f":"TRUE()","v":true},{"$f":"FALSE()","v":false},{"$f":"TRUE()","v":true},{"$f":"FALSE()","v":false},{"$f":"TRUE()","v":true},{"$f":"TRUE()","v":true},true,{"$f":"TRUE()","v":true},{"$f":"FALSE()","v":false},{"$f":"FALSE()","v":false},{"$f":"TRUE()","v":true},{"$f":"TRUE()","v":true},{"$f":"FALSE()","v":false},{"$f":"TRUE()","v":true},{"$f":"TRUE()","v":true},{"$f":"TRUE()","v":true},{"$f":"TRUE()","v":true},{"$f":"FALSE()","v":false}]
[13,"Thrasher",2,null,13,5,null,null,null,null,"Riverbank",{"$f":"TRUE()","v":true},{"$f":"FALSE()","v":false},{"$f":"TRUE()","v":true},{"$f":"FALSE()","v":false},{"$f":"TRUE()","v":true},{"$f":"TRUE()","v":true},true,{"$f":"TRUE()","v":true},{"$f":"FALSE()","v":false},{"$f":"FALSE()","v":false},{"$f":"TRUE()","v":true},{"$f":"TRUE()","v":true},{"$f":"FALSE()","v":false},{"$f":"TRUE()","v":true},{"$f":"TRUE()","v":true},{"$f":"TRUE()","v":true},{"$f":"TRUE()","v":true},{"$f":"FALSE()","v":false}]
[null,null,null,null,null,null,null,null,null,null,"Ocean Shallows",{"$f":"TRUE()","v":true},{"$f":"FALSE()","v":false},{"$f":"TRUE()","v":true},{"$f":"FALSE()","v":false},{"$f":"TRUE()","v":true},{"$f":"TRUE()","v":true},true,{"$f":"TRUE()","v":true},{"$f":"FALSE()","v":false},{"$f":"FALSE()","v":false},{"$f":"TRUE()","v":true},{"$f":"TRUE()","v":true},{"$f":"TRUE()","v":true},{"$f":"TRUE()","v":true},{"$f":"TRUE()","v":true},{"$f":"TRUE()","v":true},{"$f":"TRUE()","v":true},{"$f":"FALSE()","v":false}]
[null,null,null,null,null,null,null,null,null,null,"Open Ocean",{"$f":"TRUE()","v":true},{"$f":"FALSE()","v":false},{"$f":"TRUE()","v":true},{"$f":"FALSE()","v":false},{"$f":"TRUE()","v":true},{"$f":"TRUE()","v":true},true,{"$f":"TRUE()","v":true},{"$f":"FALSE()","v":false},{"$f":"TRUE()","v":true},{"$f":"TRUE()","v":true},{"$f":"TRUE()","v":true},{"$f":"TRUE()","v":true},{"$f":"TRUE()","v":true},{"$f":"TRUE()","v":true},{"$f":"TRUE()","v":true},{"$f":"TRUE()","v":true},{"$f":"FALSE()","v":false}]
[null,null,null,null,null,null,null,null,null,null,"Deep Ocean",{"$f":"TRUE()","v":true},{"$f":"FALSE()","v":false},{"$f":"TRUE()","v":true},{"$f":"FALSE()","v":false},{"$f":"TRUE()","v":true},{"$f":"TRUE()","v":true},true,{"$f":"TRUE()","v":true},{"$f":"FALSE()","v":false},{"$f":"TRUE()","v":true},{"$f":"TRUE()","v":true},{"$f":"TRUE()","v":true},{"$f":"FALSE()","v":false},{"$f":"TRUE()","v":true},{"$f":"TRUE()","v":true},{"$f":"TRUE()","v":true},{"$f":"TRUE()","v":true},{"$f":"FALSE()","v":false}]
[]
["Type Stat Modifiers"]
["Type","Str","Dex","End","Int","Inst","Pack","Athletics","Recon","Survival","Melee","Deception","Persuade","Stealth"]
["Carrion-Eater",0,0,0,0,2,0,0,1,0,0,0,0,0]
["Chaser",0,4,0,0,2,2,1,0,0,0,0,0,0]
["Eater",0,0,4,0,0,2,0,0,0,0,0,0,0]
["Filter",0,0,4,0,0,0,0,0,0,0,0,0,0]
["Gatherer",0,0,0,0,0,2,0,0,0,0,0,0,1]
["Grazer",0,0,0,0,2,4,0,0,0,0,0,0,0]
["Hunter",0,0,0,0,2,0,0,0,1,0,0,0,0]
["Hijacker",2,0,0,0,0,2,0,0,0,0,0,0,0]
["Intimidator",0,0,0,0,0,0,0,0,0,0,0,1,0]
["Killer",4,4,0,0,4,-2,0,0,0,1,0,0,0]
["Intermittent",0,0,0,0,0,4,0,0,0,0,0,0,0]
["Pouncer",0,4,0,0,4,0,1,1,0,0,0,0,1]
["Reducer",0,0,0,0,0,4,0,0,0,0,0,0,0]
["Siren",0,0,0,0,0,-4,0,0,0,0,1,0,0]
["Trapper",0,0,0,0,0,-2,0,0,0,0,0,0,0]

{"sheet":"Trade Tables","index":5,"n_rows":123,"n_cols":42,"rows_kept":123,"cut":false,"hidden":false,"merged":[]}
[]
[null,"Passenger Traffic",null,null,null,"Avaliable Passengers",null,null,null,null,null,null,null,"Mail DMs"]
[null,"World Type","Current World","Destination World",null,"Passenger Traffic Value","Low Passages","(minus)","Middle Passages","(minus)","High Passages","(minus)",null,"FTM","DM"]
[null,"Agricultural",0,0,null,0,0,0,0,0,0,0,null,-10,-2]
[null,"Asteroid",1,-1,null,1,{"$f":"CEILING(6*RAND(),1)+CEILING(6*RAND(),1)","v":3},6,{"$f":"CEILING(6*RAND(),1)","v":3},2,0,0,null,-9,-1]
[null,"Barren",-5,-5,null,2,{"$f":"CEILING(6*RAND(),1)+CEILING(6*RAND(),1)","v":10},0,{"$f":"CEILING(6*RAND(),1)","v":1},0,{"$f":"CEILING(6*RAND(),1)","v":1},{"$f":"CEILING(6*RAND(),1)","v":3},null,-8,-1]
[null,"Desert",-1,-1,null,3,{"$f":"CEILING(6*RAND(),1)+CEILING(6*RAND(),1)","v":7},0,{"$f":"CEILING(6*RAND(),1)+CEILING(6*RAND(),1)","v":7},{"$f":"CEILING(6*RAND(),1)","v":2},{"$f":"CEILING(6*RAND(),1)+CEILING(6*RAND(),1)","v":9},{"$f":"CEILING(6*RAND(),1)+CEILING(6*RAND(),1)","v":9},null,-7,-1]
[null,"Fluid Oceans",0,0,null,4,{"$f":"CEILING(6*RAND(),1)+CEILING(6*RAND(),1)+CEILING(6*RAND(),1)","v":15},{"$f":"CEILING(6*RAND(),1)","v":6},{"$f":"CEILING(6*RAND(),1)+CEILING(6*RAND(),1)","v":9},{"$f":"CEILING(6*RAND(),1)","v":4},{"$f":"CEILING(6*RAND(),1)+CEILING(6*RAND(),1)","v":7},{"$f":"CEILING(6*RAND(),1)","v":4},null,-6,-1]
[null,"Garden",2,2,null,5,{"$f":"CEILING(6*RAND(),1)+CEILING(6*RAND(),1)+CEILING(6*RAND(),1)","v":9},{"$f":"CEILING(6*RAND(),1)","v":1},{"$f":"CEILING(6*RAND(),1)+CEILING(6*RAND(),1)+CEILING(6*RAND(),1)","v":7},{"$f":"CEILING(6*RAND(),1)+CEILING(6*RAND(),1)","v":8},{"$f":"CEILING(6*RAND(),1)+CEILING(6*RAND(),1)","v":2},{"$f":"CEILING(6*RAND(),1)","v":1},null,-5,-1]
[null,"High Population",4,4,null,6,{"$f":"CEILING(6*RAND(),1)+CEILING(6*RAND(),1)+CEILING(6*RAND(),1)","v":10},0,7,{"$f":"CEILING(6*RAND(),1)+CEILING(6*RAND(),1)","v":8},{"$f":"CEILING(6*RAND(),1)+CEILING(6*RAND(),1)+CEILING(6*RAND(),1)","v":5},{"$f":"CEILING(6*RAND(),1)+CEILING(6*RAND(),1)","v":10},null,-4,0]
[null,"Ice-Capped",1,-1,null,7,{"$f":"CEILING(6*RAND(),1)+CEILING(6*RAND(),1)+CEILING(6*RAND(),1)","v":11},0,13,{"$f":"CEILING(6*RAND(),1)","v":1},13,{"$f":"CEILING(6*RAND(),1)+CEILING(6*RAND(),1)","v":11},null,-3,0]
[null,"Industrial",2,1,null,8,{"$f":"CEILING(6*RAND(),1)+CEILING(6*RAND(),1)+CEILING(6*RAND(),1)+CEILING(6*RAND(),1)","v":14},0,15,{"$f":"CEILING(6*RAND(),1)","v":3},7,{"$f":"CEILING(6*RAND(),1)","v":1},null,-2,0]
[null,"Low Population",-4,-4,null,9,{"$f":"CEILING(6*RAND(),1)+CEILING(6*RAND(),1)+CEILING(6*RAND(),1)+CEILING(6*RAND(),1)","v":12},0,7,0,9,{"$f":"CEILING(6*RAND(),1)","v":3},null,-1,0]
[null,"Non-Agricultural",0,0,null,10,{"$f":"CEILING(6*RAND(),1)+CEILING(6*RAND(),1)+CEILING(6*RAND(),1)+CEILING(6*RAND(),1)+CEILING(6*RAND(),1)","v":18},0,11,0,10,{"$f":"CEILING(6*RAND(),1)","v":6},null,0,0]
[null,"Non-Industrial",0,-1,null,11,{"$f":"CEILING(6*RAND(),1)+CEILING(6*RAND(),1)+CEILING(6*RAND(),1)+CEILING(6*RAND(),1)+CEILING(6*RAND(),1)","v":16},0,{"$f":"CEILING(6*RAND(),1)+CEILING(6*RAND(),1)+CEILING(6*RAND(),1)+CEILING(6*RAND(),1)","v":17},0,11,0,null,1,0]
[null,"Poor",-2,-1,null,12,{"$f":"CEILING(6*RAND(),1)+CEILING(6*RAND(),1)+CEILING(6*RAND(),1)+CEILING(6*RAND(),1)+CEILING(6*RAND(),1)+CEILING(6*RAND(),1)","v":22},0,{"$f":"CEILING(6*RAND(),1)+CEILING(6*RAND(),1)+CEILING(6*RAND(),1)+CEILING(6*RAND(),1)","v":12},0,7,0,null,2,0]
[null,"Rich",-1,2,null,13,{"$f":"CEILING(6*RAND(),1)+CEILING(6*RAND(),1)+CEILING(6*RAND(),1)+CEILING(6*RAND(),1)+CEILING(6*RAND(),1)+CEILING(6*RAND(),1)","v":23},0,{"$f":"CEILING(6*RAND(),1)+CEILING(6*RAND(),1)+CEILING(6*RAND(),1)+CEILING(6*RAND(),1)","v":13},0,{"$f":"CEILING(6*RAND(),1)+CEILING(6*RAND(),1)+CEILING(6*RAND(),1)+CEILING(6*RAND(),1)","v":19},0,null,3,0]
[null,"Water World",0,0,null,14,{"$f":"CEILING(6*RAND(),1)+CEILING(6*RAND(),1)+CEILING(6*RAND(),1)+CEILING(6*RAND(),1)+CEILING(6*RAND(),1)+CEILING(6*RAND(),1)+CEILING(6*RAND(),1)","v":28},0,{"$f":"CEILING(6*RAND(),1)+CEILING(6*RAND(),1)+CEILING(6*RAND(),1)+CEILING(6*RAND(),1)+CEILING(6*RAND(),1)","v":12},0,{"$f":"CEILING(6*RAND(),1)+CEILING(6*RAND(),1)+CEILING(6*RAND(),1)+CEILING(6*RAND(),1)","v":15},0,null,4,0]
[null,"Amber Zone",2,-2,null,15,{"$f":"CEILING(6*RAND(),1)+CEILING(6*RAND(),1)+CEILING(6*RAND(),1)+CEILING(6*RAND(),1)+CEILING(6*RAND(),1)+CEILING(6*RAND(),1)+CEILING(6*RAND(),1)+CEILING(6*RAND(),1)","v":28},0,{"$f":"CEILING(6*RAND(),1)+CEILING(6*RAND(),1)+CEILING(6*RAND(),1)+CEILING(6*RAND(),1)+CEILING(6*RAND(),1)","v":20},0,{"$f":"CEILING(6*RAND(),1)+CEILING(6*RAND(),1)+CEILING(6*RAND(),1)+CEILING(6*RAND(),1)","v":9},0,null,5,1]
[null,"Red Zone",4,-4,null,16,{"$f":"CEILING(6*RAND(),1)+CEILING(6*RAND(),1)+CEILING(6*RAND(),1)+CEILING(6*RAND(),1)+CEILING(6*RAND(),1)+CEILING(6*RAND(),1)+CEILING(6*RAND(),1)+CEILING(6*RAND(),1)+CEILING(6*RAND(),1)","v":40},0,{"$f":"CEILING(6*RAND(),1)+CEILING(6*RAND(),1)+CEILING(6*RAND(),1)+CEILING(6*RAND(),1)+CEILING(6*RAND(),1)+CEILING(6*RAND(),1)","v":22},0,{"$f":"CEILING(6*RAND(),1)+CEILING(6*RAND(),1)+CEILING(6*RAND(),1)+CEILING(6*RAND(),1)+CEILING(6*RAND(),1)","v":20},0,null,6,1]
[null,"No Classification",0,0,null,null,null,null,null,null,null,null,null,7,1]
[null,null,null,null,null,null,null,null,null,null,null,null,null,8,1]
[null,null,null,null,null,null,null,null,null,null,null,null,null,9,1]
[null,"Freight Traffic",null,null,null,"Avaliable Freight Lots",null,null,null,null,null,null,null,10,2]
[null,"World Type","Current World","Destination World",null,"Freight Traffic Value","Incidental","(plus/minus)","Minor","(plus/minus)","Major","(plus/minus)"]
[null,"Agricultural",2,1,null,0,0,0,0,0,0,0]
[null,"Asteroid",-3,1,null,1,0,0,{"$f":"CEILING(6*RAND(),1)","v":1},-4,{"$f":"CEILING(6*RAND(),1)","v":3},-4]
[null,"Barren",-999,-5,null,2,0,0,5,-1,3,-2]
[null,"Desert",-3,0,null,3,0,0,3,0,1,-1]
[null,"Fluid Oceans",-3,0,null,4,0,0,1,1,5,0]
[null,"Garden",2,1,null,5,0,0,5,2,6,1]
[null,"High Population",2,2,null,6,0,0,2,3,4,2]
[null,"Ice-Capped",-3,0,null,7,0,0,5,4,1,3]
[null,"Industrial",3,2,null,8,0,0,3,5,2,4]
[null,"Low Population",-5,-5,null,9,{"$f":"CEILING(6*RAND(),1)","v":3},-2,4,6,4,5]
[null,"Non-Agricultural",-3,1,null,10,6,0,4,7,3,6]
[null,"Non-Industrial",-3,1,null,11,2,1,2,8,2,7]
[null,"Poor",-3,-3,null,12,4,2,5,9,5,8]
[null,"Rich",2,2,null,13,6,3,2,10,1,9]
[null,"Water World",-3,0,null,14,4,4,4,12,4,10]
[null,"Amber Zone",5,-5,null,15,3,5,3,14,4,11]
[null,"Red Zone",-5,-999,null,16,4,6,1,16,3,12]
[null,"No Classification",0,0]
[]
[]
[null,"Trade Goods",null,null,null,"Trade Goods by World Type"]
[null,"Roll","Type","Tons(1d6 x #)",null,"World Type","Basic Electronics","Basic Machine Parts","Basic Manufactured Goods","Basic Raw Materials","Basic Consumables","Basic Ore","Advanced Electronics","Advanced Machine Parts","Advanced Manufactured Goods","Advanced Weapons","Advanced Vehicles","Biochemicals","Crystals and Gems","Cybernetices","Live Animals","Luxury Consumables","Luxury Goods","Medicals Supplies","Petrochemicals","Pharmaceuticals","Polymers","Precious Metals","Radioactives","Robots","Spices","Textiles","Uncommon Ore","Uncommon Raw Materials","Wood","Vehicles","Illegal Biochemicals","Illegal Cybernetics","Illegal Drugs","Illegal Luxuries","Illegal Weapons","Exotics"]
[null,11,"Basic Electronics",10,null,"Agricultural",1,1,1,1,1,1,0,0,0,0,0,1,0,0,1,1,0,0,0,0,0,0,0,0,0,1,0,1,1,0,1,0,0,1,0,0]
[null,12,"Basic Machine Parts",10,null,"Asteroid",1,1,1,1,1,1,0,0,0,0,0,0,1,0,0,0,0,0,0,1,0,1,1,0,0,0,1,0,0,0,0,0,1,0,0,0]
[null,13,"Basic Manufactured Goods",10,null,"Desert",1,1,1,1,1,1,0,0,0,0,0,0,1,0,0,0,0,0,1,1,0,1,1,0,1,0,0,1,0,0,0,0,1,1,0,0]
[null,14,"Basic Raw Materials",10,null,"Fluid Oceans",1,1,1,1,1,1,0,0,0,0,0,0,0,0,0,0,0,0,1,0,0,1,0,0,0,0,0,0,0,0,0,0,0,0,0,0]
[null,15,"Basic Consumables",10,null,"Garden",1,1,1,1,1,1,0,0,0,0,0,0,0,0,1,1,0,0,0,0,0,0,0,0,1,0,0,0,1,0,0,0,0,0,0,0]
[null,16,"Basic Ore",10,null,"High Population",1,1,1,1,1,1,0,0,0,0,0,0,0,0,0,0,1,1,0,1,0,0,0,0,0,0,0,0,0,0,0,0,1,0,0,0]
[null,21,"Advanced Electronics",5,null,"High Technology",1,1,1,1,1,1,1,1,1,1,1,0,0,1,0,0,0,1,0,0,0,0,0,1,0,0,0,0,0,1,0,0,0,0,1,0]
[null,22,"Advanced Machine Parts",5,null,"Ice Capped",1,1,1,1,1,1,0,0,0,0,0,0,1,0,0,0,0,0,1,0,0,1,0,0,0,0,1,0,0,0,0,0,0,0,0,0]
[null,23,"Advanced Manufactured Goods",5,null,"Industrial",1,1,1,1,1,1,1,1,1,1,1,0,0,0,0,0,0,0,0,0,1,0,0,1,0,0,0,0,0,1,0,0,0,0,1,0]
[null,24,"Advanced Weapons",5,null,"Low Population",1,1,1,1,1,1,0,0,0,0,0,0,0,0,0,0,0,0,0,0,0,0,1,0,0,0,0,0,0,0,0,0,0,0,0,0]
[null,25,"Advanced Vehicles",5,null,"Non-Industrial",1,1,1,1,1,1,0,0,0,0,0,0,0,0,0,0,0,0,0,0,0,0,0,0,0,1,0,0,0,0,0,0,0,0,0,0]
[null,26,"Biochemicals",5,null,"Water World",1,1,1,1,1,1,0,0,0,0,0,1,0,0,0,1,0,0,1,1,0,0,0,0,1,0,0,1,0,0,1,0,1,1,0,0]
[null,31,"Crystals and Gems",5]
[null,32,"Cybernetices",1]
[null,33,"Live Animals",10,null,"Trade Codes","low","high","low","high","low","high","low","high","low","high","low","high","low","high"]
[null,34,"Luxury Consumables",10,null,"Code","Planet Size",null,"Atmosphere",null,"Hydro",null,"Population",null,"Government",null,"Law Level",null,"Techlevel"]
[null,35,"Luxury Goods",1,null,"Ag",0,15,4,9,4,8,5,7,0,15,0,15,0,15]
[null,36,"Medicals Supplies",5,null,"As",0,0,0,0,0,0,0,15,0,15,0,15,0,15]
[null,41,"Petrochemicals",10,null,"Ba",0,15,0,null,null,null,0,0,0,0,0,0,0,15]
[null,42,"Pharmaceuticals",1,null,"De",0,15,2,15,0,0,0,15,0,15,0,15,0,15]
[null,43,"Polymers",10,null,"Fl",0,15,10,15,1,15,0,15,0,15,0,15,0,15]
[null,44,"Precious Metals",1,null,"Ga",5,15,4,9,4,8,0,15,0,15,0,15,0,15]
[null,45,"Radioactives",1,null,"Hi",0,15,0,15,0,15,9,15,0,15,0,15,0,15]
[null,46,"Robots",5,null,"Ht",0,15,0,15,0,15,0,15,0,15,0,15,12,15]
[null,51,"Spices",5,null,"IC",0,15,0,1,1,15,0,15,0,15,0,15,0,15]
[null,52,"Textiles",10,null,"In",0,15,0,2,0,15,9,15,0,15,0,15,0,15]
[null,53,"Uncommon Ore",10,null,"Lo",0,15,0,15,0,15,1,3,0,15,0,15,0,15]
[null,54,"Uncommon Raw Materials",10,null,"Lt",0,15,0,15,0,15,0,15,0,15,0,15,0,5]
[null,55,"Wood",10,null,"Na",0,15,0,3,0,3,6,15,0,15,0,15,0,15]
[null,56,"Vehicles",10,null,"NI",0,15,0,15,0,15,4,6,0,15,0,15,0,15]
[null,61,"Illegal Biochemicals",5,null,"Po",0,15,2,5,0,3,0,15,0,15,0,15,0,15]
[null,62,"Illegal Cybernetics",1,null,"Ri",0,15,6,8,0,null,6,8,0,15,0,15,0,15]
[null,63,"Illegal Drugs",1,null,"Wa",0,15,0,15,10,10,0,15,0,15,0,15,0,15]
[null,64,"Illegal Luxuries",1,null,"Va",0,15,0,0,0,15,0,15,0,15,0,15,0,15]
[null,65,"Illegal Weapons",5]
[null,66,"Exotics",0]
[]
[]
[null,"Passengers"]
[null,"Roll","Passenger"]
[null,11,"Refugee - Political"]
[null,12,"Refugee - Economic"]
[null,13,"Starting a new life offworld"]
[null,14,"Mercenary"]
[null,15,"Spy"]
[null,16,"Corporate executive"]
[null,21,"Out to see the Universe"]
[null,22,"Tourist"]
[null,23,"Wide-eyed yokel"]
[null,24,"Adventurer"]
[null,25,"Explorer"]
[null,26,"Claustrophobic"]
[null,31,"Expectant mother"]
[null,32,"Wants to stowaway or join the crew"]
[null,33,"Possesses something dangerous or illegal"]
[null,34,"Causes Trouble"]
[null,35,"Unusually pretty or handsome"]
[null,36,"Engineer"]
[null,41,"Ex-Scout"]
[null,42,"Wanderer"]
[null,43,"Theif or other Criminal"]
[null,44,"Scientist"]
[null,45,"Journalist or researcher"]
[null,46,"Entertainer"]
[null,51,"Gambler"]
[null,52,"Rich noble - complains a lot"]
[null,53,"Rich noble - eccentric"]
[null,54,"Rich noble - raconteur"]
[null,55,"Diplomat on a mission"]
[null,56,"Agent on a mission"]
[null,61,"Patron"]
[null,62,"Alien"]
[null,63,"Bounty Hunter"]
[null,64,"On the run"]
[null,65,"Wants to be on board the PC's ship for some reason"]
[null,66,"Hijacker or pirate agent"]

{"sheet":"World Tables","index":6,"n_rows":54,"n_cols":10,"rows_kept":54,"cut":false,"hidden":false,"merged":[]}
[]
[null,"Size Table",null,null,null,"Atmosphere Table"]
[null,"Digit","World Size (km)","Surface Gravity",null,"Digit","Atmosphere","Pressure (Low)","Pressure(High)","Survival Gear Required"]
[null,0,800,0,null,0,"None",0,0,"Vacc Suit"]
[null,1,1600,0.05,null,1,"Trace",1E-3,0.09,"Vacc Suit"]
[null,2,3200,0.15,null,2,"Very Thin, Tainted",0.1,0.42,"Respirator, Filter"]
[null,3,4800,0.25,null,3,"Very Thin",0.1,0.42,"Respirator"]
[null,4,6400,0.35,null,4,"Thin, Tainted",0.43,0.7,"Filter"]
[null,5,8000,0.45,null,5,"Thin",0.43,0.7]
[null,6,9600,0.7,null,6,"Standard",0.71,1.49]
[null,7,11200,0.9,null,7,"Standard, Tainted",0.71,1.49,"Filter"]
[null,8,12800,1,null,8,"Dense",1.5,2.4900000000000002]
[null,9,14400,1.25,null,9,"Dense, Tainted",1.5,2.4900000000000002,"Filter"]
[null,10,16000,1.4,null,10,"Exotic",0.5,2.5,"Air Supply"]
[null,11,17600,1.5,null,11,"Corrosive",0.5,2.5,"Vacc Suit"]
[null,null,null,null,null,12,"Insidious",0.5,2.5,"Vacc Suit"]
[null,"Temperature Table",null,null,null,13,"Dense, High",2.5,4]
[null,"Roll","Type","Average Temp",null,14,"Thin, Low",0,0.5]
[null,0,"Frozen","-51 or less",null,15,"Unusual",0.5,2.5]
[null,1,"Frozen","-51 or less"]
[null,2,"Frozen","-51 or less"]
[null,3,"Cold","-51 to 0",null,"Hydrographics Table"]
[null,4,"Cold","-51 to 0",null,"Digit","Percentage (Low)","Percentage (High)"]
[null,5,"Temperate","0 to 30",null,0,0,5]
[null,6,"Temperate","0 to 30",null,1,6,15]
[null,7,"Temperate","0 to 30",null,2,16,25]
[null,8,"Temperate","0 to 30",null,3,26,35]
[null,9,"Temperate","0 to 30",null,4,36,45]
[null,10,"Hot","31 to 80",null,5,46,55]
[null,11,"Hot","31 to 80",null,6,56,65]
[null,12,"Roasting","81+",null,7,66,75]
[null,null,null,null,null,8,76,85]
[null,null,null,null,null,9,86,95]
[null,"Population Table",null,null,null,10,96,100]
[null,"Digit","Population"]
[null,0,0]
[null,1,1,null,"Temperature DMs"]
[null,2,100,null,"Atmosphere","DM"]
[null,3,1000,null,0,0]
[null,4,10000,null,1,0]
[null,5,100000,null,2,-2]
[null,6,1000000,null,3,-2]
[null,7,10000000,null,4,-1]
[null,8,100000000,null,5,-1]
[null,9,1000000000,null,6,0]
[null,10,10000000000,null,7,0]
[null,11,100000000000,null,8,1]
[null,12,1000000000000,null,9,1]
[null,null,null,null,10,2]
[null,null,null,null,11,6]
[null,null,null,null,12,6]
[null,null,null,null,13,2]
[null,null,null,null,14,-1]
[null,null,null,null,15,2]

{"sheet":"Civilization Tables","index":7,"n_rows":52,"n_cols":15,"rows_kept":52,"cut":false,"hidden":false,"merged":[]}
[]
[null,"Faction Strength Table",null,null,"Government Table",null,"Contraband"]
[null,"Roll","Relative Strength",null,"Type","Government","Weapons","Drugs","Information","Technology","Travellers","Psionics"]
[null,1,"Obscure",null,0,"Anarchy",0,0,0,0,0,0]
[null,2,"Obscure",null,1,"Company/Corporation",1,1,0,0,1,0]
[null,3,"Obscure",null,2,"Participating Democracy",0,1,0,0,0,0]
[null,4,"Fringe",null,3,"Self-Perpetuating Oligarchy",1,0,0,1,1,0]
[null,5,"Fringe",null,4,"Representative Democracy",1,1,0,0,0,1]
[null,6,"Minor",null,5,"Feudal Technocracy",1,0,1,1,0,0]
[null,7,"Minor",null,6,"Captive Government",1,0,0,1,1,0]
[null,8,"Notable",null,7,"Balkanisation",0,0,0,0,0,0]
[null,9,"Notable",null,8,"Civil Service Bureaucracy",1,1,0,0,0,0]
[null,10,"Significant",null,9,"Impersonal Bureaucracy",1,1,0,1,1,1]
[null,11,"Significant",null,10,"Charismatic Dictatorship",0,0,0,0,0,0]
[null,12,"Overwhelming",null,11,"Non-Charismatic Leader",1,0,1,1,0,0]
[null,null,null,null,12,"Charismatic Oligarchy",1,0,0,0,0,0]
[null,null,null,null,13,"Religious Dictatorship",0,0,0,0,0,0]
[]
[]
[null,"Starport Table",null,null,"Starports",null,null,null,null,"Bases"]
[null,"Roll","Class",null,"Class","Quality","Berthing Cost(1d6 x #)","Fuel","Facilities","Naval","Scout","Research","TAS","Pirate","Imperial Consulate"]
[null,2,"X",null,"A","Excellent",1000,"Refined","Shipyard (All), Repair",8,10,8,4,999,6]
[null,3,"E",null,"B","Good",500,"Refined","Shipyard (spacecraft), Repair",8,8,10,6,12,8]
[null,4,"E",null,"C","Routine",100,"Unrefined","Shipyard (small craft), Repair",999,8,10,10,10,10]
[null,5,"D",null,"D","Poor",10,"Unrefined","Limited Repair",999,7,999,999,12,999]
[null,6,"D",null,"E","Frontier",0,"None","None",999,999,999,999,12,999]
[null,7,"C",null,"X","No Starport",0,"None","None",999,999,999,999,999,999]
[null,8,"C"]
[null,9,"B"]
[null,10,"B"]
[null,11,"A"]
[null,12,"A"]
[]
[]
[null,"Tech Level DMs",null,null,null,null,null,null,null,"Enviromental Limits"]
[null,"Value","Starport","Size","Atmosphere","Hydro","Population","Government",null,"Atmosphere","Min TL"]
[null,0,0,2,1,1,0,1,null,0,8]
[null,1,0,2,1,0,1,0,null,1,8]
[null,2,-4,1,1,0,1,0,null,2,5]
[null,3,0,1,1,0,1,0,null,3,5]
[null,4,0,1,0,0,1,0,null,4,3]
[null,5,0,0,0,0,1,1,null,5,0]
[null,6,0,0,0,0,0,0,null,6,0]
[null,7,2,0,0,0,0,2,null,7,3]
[null,8,2,0,0,0,0,0,null,8,0]
[null,9,4,0,0,1,1,0,null,9,3]
[null,10,4,0,1,1,2,0,null,10,8]
[null,11,6,0,1,0,3,0,null,11,9]
[null,12,6,0,1,0,4,0,null,12,10]
[null,13,0,0,1,0,0,-2,null,13,5]
[null,14,0,0,1,0,0,-2,null,14,5]
[null,15,0,0,1,0,0,0,null,15,8]

{"sheet":"Rolls","index":8,"n_rows":99,"n_cols":15,"rows_kept":99,"cut":false,"hidden":false,"merged":[]}
["Enter UPP","World",null,null,null,null,null,null,null,null,null,null,null,null,1]
[{"$f":"HEX2DEC(Trade!D1)","v":6},"Size",{"$f":"IF(ISNUMBER(A2),A2,CEILING(6*RAND(),1)+CEILING(6*RAND(),1)-2)","v":6},"mod",{"$f":"RAND()","v":0.47891727852641264},null,null,null,{"$f":"IF(ISNUMBER(A2),A2,C2)","v":6}]
[{"$f":"HEX2DEC(Trade!E1)","v":8},"Atmosphere",{"$f":"IF(ISNUMBER(A3),A3,IF(G3<0,0,G3))","v":8},"mod",{"$f":"RAND()","v":0.22486357044221972},null,{"$f":"CEILING(6*RAND(),1)+CEILING(6*RAND(),1)-7+C2","v":7},null,8]
[null,"Temp",{"$f":"IF(ISNUMBER(A4),A4,IF(G4<0,0,IF(G4>12,12,G4)))","v":6},"mod",{"$f":"ROUND(RAND(),0.1)","v":0},{"$f":"ROUND(RAND(),0.1)","v":0},{"$f":"CEILING(6*RAND(),1)+CEILING(6*RAND(),1)+LOOKUP(C3,'World Tables'!E39:F54)+IF(E4=1,IF(F4=1,4,-4),0)","v":6},null,6]
[{"$f":"HEX2DEC(Trade!F1)","v":6},"Hydro",{"$f":"IF(ISNUMBER(A5),A5,IF(OR(C2=0,C2=1),0,IF(G5<0,0,IF(G5>10,10,G5))))","v":6},"mod",{"$f":"RAND()","v":0.89203246195230168},null,{"$f":"CEILING(6*RAND(),1)+CEILING(6*RAND(),1)-7+C2+IF(OR(C3=0,C3=1,C3=10,C3=11,C3=12),-4,0)+IF(AND(NOT(C3=13),OR(C4=10,C4=11)),-2,IF(AND(NOT(C3=13),C4=12),-6,0))","v":1},null,6]
[{"$f":"Trade!G1","v":8},"Population",{"$f":"CEILING(6*RAND(),1)+CEILING(6*RAND(),1)-2+CEILING(3*RAND(),1)-1","v":9},"mod",{"$f":"RAND()","v":0.11777970796162074},null,null,null,{"$f":"IF(ISNUMBER(A6),A6,C6)","v":8}]
[{"$f":"HEX2DEC(Trade!H1)","v":5},"Gov",{"$f":"IF(ISNUMBER(A6),A6,IF(G7<0,0,IF(G7>13,13,G7)))","v":8},null,null,null,{"$f":"CEILING(6*RAND(),1)+CEILING(6*RAND(),1)-7+C$6","v":7},null,5]
[null,"Other Fac",{"$f":"CEILING(3*RAND(),1)+IF(OR(C7=0,C7=7),1,0)+IF(C7>9,-1,0)","v":1},"Str 1",{"$f":"CEILING(6*RAND(),1)+CEILING(6*RAND(),1)","v":4},"Gov 1",{"$f":"IF(H8<0,0,IF(H8>13,13,H8))","v":7},{"$f":"CEILING(6*RAND(),1)+CEILING(6*RAND(),1)-7+C$6","v":7},1]
[null,null,null,"Str 2",{"$f":"CEILING(6*RAND(),1)+CEILING(6*RAND(),1)","v":9},"Gov 2",{"$f":"IF(H9<0,0,IF(H9>13,13,H9))","v":13},{"$f":"CEILING(6*RAND(),1)+CEILING(6*RAND(),1)-7+C$6","v":13},0]
[null,null,null,"Str 3",{"$f":"CEILING(6*RAND(),1)+CEILING(6*RAND(),1)","v":8},"Gov 3",{"$f":"IF(H10<0,0,IF(H10>13,13,H10))","v":8},{"$f":"CEILING(6*RAND(),1)+CEILING(6*RAND(),1)-7+C$6","v":8},0]
[null,null,null,"Str 4",{"$f":"CEILING(6*RAND(),1)+CEILING(6*RAND(),1)","v":8},"Gov 4",{"$f":"IF(H11<0,0,IF(H11>13,13,H11))","v":5},{"$f":"CEILING(6*RAND(),1)+CEILING(6*RAND(),1)-7+C$6","v":5},0]
[{"$f":"HEX2DEC(Trade!I1)","v":4},"Law",{"$f":"IF(ISNUMBER(A12),A12,IF(G12<0,0,G12))","v":4},null,null,null,{"$f":"CEILING(6*RAND(),1)+CEILING(6*RAND(),1)-7+C7","v":12},null,4]
[{"$f":"HEX2DEC(Trade!K1)","v":5},"Tech",{"$f":"IF(ISNUMBER(A13),A13,IF(G13<LOOKUP(C3,'Civilization Tables'!J37:K52),LOOKUP(C3,'Civilization Tables'!J37:K52),G13))","v":5},null,null,null,{"$f":"CEILING(6*RAND(),1)+VLOOKUP(C14,'Civilization Tables'!B37:H52,2)+VLOOKUP(Rolls!C2,'Civilization Tables'!B37:H52,3)+VLOOKUP(Rolls!C3,'Civilization Tables'!B37:H52,4)+VLOOKUP(Rolls!C5,'Civilization Tables'!B37:H52,5)+VLOOKUP(Rolls!C6,'Civilization Tables'!B37:H52,6)+VLOOKUP(Rolls!C7,'Civilization Tables'!B37:H52,7)","v":8},null,5]
[{"$f":"HEX2DEC(Trade!C1)","v":12},"Starport",{"$f":"IF(ISNUMBER(A14),A14,CEILING(6*RAND(),1)+CEILING(6*RAND(),1))","v":12},null,"gas",{"$f":"CEILING(6*RAND(),1)+CEILING(6*RAND(),1)","v":5},null,null,12]
[null,"berth cost",{"$f":"CEILING(6*RAND(),1)","v":5},null,"quirk",{"$f":"CEILING(6*RAND(),1)","v":4},{"$f":"CEILING(6*RAND(),1)","v":1},null,5]
[null,"Nav",{"$f":"CEILING(6*RAND(),1)+CEILING(6*RAND(),1)","v":6},null,null,null,null,null,6]
[null,"Scout",9,null,null,null,null,null,9]
[null,"Research",5]
[null,"TAS",7]
[null,"Pirate",8]
[null,"Imperial",8]
[]
[null,"Trade"]
[null,"Pass Traffic Val",{"$f":"C6+SUM(B26:B43)+SUM(C26:C43)","v":15},"Freight Traffic Val",{"$f":"C6+SUM(D26:D43)+SUM(E26:E43)","v":6},{"$f":"IF(E24<-10,-10,IF(E24>10,10,E24))","v":6},"Mail"]
[null,"mods","mods","mods","mods",null,{"$f":"CEILING(6*RAND(),1)+CEILING(6*RAND(),1)","v":6}]
[null,{"$f":"IF(World!$G22=\"yes\",'Trade Tables'!C4,0)","v":0},{"$f":"IF(Trade!$C$4,'Trade Tables'!D4,0)","v":0},{"$f":"IF(World!$G22=\"yes\",'Trade Tables'!C26,0)","v":0},{"$f":"IF(Trade!$C$4,'Trade Tables'!D26,0)","v":0},null,"Goods"]
[null,{"$f":"IF(World!G23=\"yes\",'Trade Tables'!C5,0)","v":0},{"$f":"IF(Trade!$D$4,'Trade Tables'!D5,0)","v":0},{"$f":"IF(World!$G23=\"yes\",'Trade Tables'!C27,0)","v":0},{"$f":"IF(Trade!$D$4,'Trade Tables'!D27,0)","v":0},null,{"$f":"CEILING(6*RAND(),1)","v":4}]
[null,{"$f":"IF(World!G24=\"yes\",'Trade Tables'!C6,0)","v":0},{"$f":"IF(Trade!$E$4,'Trade Tables'!D6,0)","v":0},{"$f":"IF(World!$G24=\"yes\",'Trade Tables'!C28,0)","v":0},{"$f":"IF(Trade!$E$4,'Trade Tables'!D28,0)","v":0},null,{"$f":"IF(G$27>0,VALUE(CONCATENATE(CEILING(6*RAND(),1),CEILING(6*RAND(),1))),\"\")","v":54}]
[null,{"$f":"IF(World!G25=\"yes\",'Trade Tables'!C7,0)","v":0},{"$f":"IF(Trade!$F$4,'Trade Tables'!D7,0)","v":0},{"$f":"IF(World!$G25=\"yes\",'Trade Tables'!C29,0)","v":0},{"$f":"IF(Trade!$F$4,'Trade Tables'!D29,0)","v":0},null,{"$f":"IF(G$27>1,VALUE(CONCATENATE(CEILING(6*RAND(),1),CEILING(6*RAND(),1))),\"\")","v":16}]
[null,{"$f":"IF(World!G26=\"yes\",'Trade Tables'!C8,0)","v":0},{"$f":"IF(Trade!$G$4,'Trade Tables'!D8,0)","v":0},{"$f":"IF(World!$G26=\"yes\",'Trade Tables'!C30,0)","v":0},{"$f":"IF(Trade!$G$4,'Trade Tables'!D30,0)","v":0},null,{"$f":"IF(G$27>2,VALUE(CONCATENATE(CEILING(6*RAND(),1),CEILING(6*RAND(),1))),\"\")","v":66}]
[null,{"$f":"IF(World!G27=\"yes\",'Trade Tables'!C9,0)","v":2},{"$f":"IF(Trade!$H$4,'Trade Tables'!D9,0)","v":2},{"$f":"IF(World!$G27=\"yes\",'Trade Tables'!C31,0)","v":2},{"$f":"IF(Trade!$H$4,'Trade Tables'!D31,0)","v":1},null,{"$f":"IF(G$27>3,VALUE(CONCATENATE(CEILING(6*RAND(),1),CEILING(6*RAND(),1))),\"\")","v":11}]
[null,{"$f":"IF(World!G28=\"yes\",'Trade Tables'!C10,0)","v":4},{"$f":"IF(Trade!$I$4,'Trade Tables'!D10,0)","v":0},{"$f":"IF(World!$G28=\"yes\",'Trade Tables'!C32,0)","v":2},{"$f":"IF(Trade!$I$4,'Trade Tables'!D32,0)","v":0},null,{"$f":"IF(G$27>4,VALUE(CONCATENATE(CEILING(6*RAND(),1),CEILING(6*RAND(),1))),\"\")","v":""}]
[null,{"$f":"IF(World!G29=\"yes\",'Trade Tables'!C11,0)","v":0},{"$f":"IF(Trade!$J$4,'Trade Tables'!D11,0)","v":0},{"$f":"IF(World!$G29=\"yes\",'Trade Tables'!C33,0)","v":0},{"$f":"IF(Trade!$J$4,'Trade Tables'!D33,0)","v":0},null,{"$f":"IF(G$27>5,VALUE(CONCATENATE(CEILING(6*RAND(),1),CEILING(6*RAND(),1))),\"\")","v":""}]
[null,{"$f":"IF(World!G30=\"yes\",'Trade Tables'!C12,0)","v":0},{"$f":"IF(Trade!$K$4,'Trade Tables'!D12,0)","v":0},{"$f":"IF(World!$G30=\"yes\",'Trade Tables'!C34,0)","v":0},{"$f":"IF(Trade!$K$4,'Trade Tables'!D34,0)","v":0}]
[null,{"$f":"IF(World!G31=\"yes\",'Trade Tables'!C13,0)","v":0},{"$f":"IF(Trade!$L$4,'Trade Tables'!D13,0)","v":0},{"$f":"IF(World!$G31=\"yes\",'Trade Tables'!C35,0)","v":0},{"$f":"IF(Trade!$L$4,'Trade Tables'!D35,0)","v":0}]
[null,{"$f":"IF(World!G32=\"yes\",'Trade Tables'!C14,0)","v":0},{"$f":"IF(Trade!$M$4,'Trade Tables'!D14,0)","v":0},{"$f":"IF(World!$G32=\"yes\",'Trade Tables'!C36,0)","v":0},{"$f":"IF(Trade!$M$4,'Trade Tables'!D36,0)","v":0}]
[null,{"$f":"IF(World!G33=\"yes\",'Trade Tables'!C15,0)","v":0},{"$f":"IF(Trade!$N$4,'Trade Tables'!D15,0)","v":0},{"$f":"IF(World!$G33=\"yes\",'Trade Tables'!C37,0)","v":-3},{"$f":"IF(Trade!$N$4,'Trade Tables'!D37,0)","v":0}]
[null,{"$f":"IF(World!G34=\"yes\",'Trade Tables'!C16,0)","v":0},{"$f":"IF(Trade!$O$4,'Trade Tables'!D16,0)","v":0},{"$f":"IF(World!$G34=\"yes\",'Trade Tables'!C38,0)","v":0},{"$f":"IF(Trade!$O$4,'Trade Tables'!D38,0)","v":0}]
[null,{"$f":"IF(World!G35=\"yes\",'Trade Tables'!C17,0)","v":0},{"$f":"IF(Trade!$P$4,'Trade Tables'!D17,0)","v":0},{"$f":"IF(World!$G35=\"yes\",'Trade Tables'!C39,0)","v":0},{"$f":"IF(Trade!$P$4,'Trade Tables'!D39,0)","v":0}]
[null,{"$f":"IF(World!G36=\"yes\",'Trade Tables'!C18,0)","v":0},{"$f":"IF(Trade!$Q$4,'Trade Tables'!D18,0)","v":0},{"$f":"IF(World!$G36=\"yes\",'Trade Tables'!C40,0)","v":0},{"$f":"IF(Trade!$Q$4,'Trade Tables'!D40,0)","v":0}]
[null,{"$f":"IF(World!G37=\"yes\",'Trade Tables'!C19,0)","v":0},{"$f":"IF(Trade!$R$4,'Trade Tables'!D19,0)","v":-2},{"$f":"IF(World!$G37=\"yes\",'Trade Tables'!C41,0)","v":0},{"$f":"IF(Trade!$R$4,'Trade Tables'!D41,0)","v":-5}]
[null,{"$f":"IF(World!G38=\"yes\",'Trade Tables'!C20,0)","v":0},{"$f":"IF(Trade!$S$4,'Trade Tables'!D20,0)","v":0},{"$f":"IF(World!$G38=\"yes\",'Trade Tables'!C42,0)","v":0},{"$f":"IF(Trade!$S$4,'Trade Tables'!D42,0)","v":0}]
[null,{"$f":"IF(World!G39=\"yes\",'Trade Tables'!C21,0)","v":0},{"$f":"IF(Trade!$T$4,'Trade Tables'!D21,0)","v":0},{"$f":"IF(World!$G39=\"yes\",'Trade Tables'!C43,0)","v":0},{"$f":"IF(Trade!$T$4,'Trade Tables'!D43,0)","v":0}]
[null,"final values:",{"$f":"IF(C24<0,0,IF(C24>16,16,C24))","v":15},null,{"$f":"IF(E24<0,0,IF(E24>16,16,E24))","v":6}]
[null,"Pass Info",null,null,"Freight Info"]
[null,{"$f":"VALUE(CONCATENATE(CEILING(6*RAND(),1),CEILING(6*RAND(),1)))","v":23},{"$f":"VALUE(CONCATENATE(CEILING(6*RAND(),1),CEILING(6*RAND(),1)))","v":32},{"$f":"VALUE(CONCATENATE(CEILING(6*RAND(),1),CEILING(6*RAND(),1)))","v":54},{"$f":"CEILING(6*RAND(),1)","v":2},{"$f":"CEILING(6*RAND(),1)*5","v":10},{"$f":"CEILING(6*RAND(),1)*10","v":50}]
[null,{"$f":"VALUE(CONCATENATE(CEILING(6*RAND(),1),CEILING(6*RAND(),1)))","v":45},31,25,{"$f":"CEILING(6*RAND(),1)","v":4},{"$f":"CEILING(6*RAND(),1)*5","v":10},{"$f":"CEILING(6*RAND(),1)*10","v":60}]
[null,31,35,22,6,20,20]
[null,32,41,43,5,15,10]
[null,52,42,31,1,5,30]
[null,22,22,31,5,25,40]
[null,55,65,23,5,10,20]
[null,35,26,31,5,25,30]
[null,11,24,62,3,25,60]
[null,26,43,34,4,15,50]
[null,44,55,23,3,30,60]
[null,45,21,22,1,5,30]
[null,62,32,56,null,15,50]
[null,12,43,42,null,25,30]
[null,33,46,34,null,15,60]
[null,16,24,43,null,30,20]
[null,66,21,25,null,15,60]
[null,12,13,34,null,5,10]
[null,42,63,45,null,25]
[null,44,16,26,null,30]
[null,53,11,22,null,20]
[null,22,52,21,null,25]
[null,15,26,44]
[null,42,41,52]
[null,51,52,46]
[null,34,54,36]
[null,52,66,16]
[null,36,45,64]
[null,61,21,15]
[null,23,56,12]
[null,42,44]
[null,15,44]
[null,22,23]
[null,62,11]
[null,15,32]
[null,65,11]
[null,51]
[null,22]
[null,14]
[null,62]
[null,51]
[null,66]
[null,24]
[null,12]
[null,54]
[null,35]
[null,34]
[null,16]
[null,42]
[null,55]
[null,13]
[null,36]
[null,52]
[null,55]